Workbook

Sheet UnHide Sheets (hidden)
A3: Sheet Names | C3: Macro 4 to unhide sheet name below
A4: FIA-bio
A6: FIAG3-RALL
A7: FIAG4-RALL
A8: FIAG5-RALL
A9: FIAG6-RALL
A10: FIAG7-RALL
A11: FIAG8-RALL
A12: FIAG9-RALL
A13: FIAG10-RALL
A14: FIAG3-MALL
A15: FIAG4-MALL
A16: FIAG5-MALL
A17: FIAG6-MALL
A18: FIAG7-MALL
A19: FIAG8-MALL
A20: FIA-ALG
A21: FIA-GEO
A22: FIAG5-sall
A23: FIAG8-sall
A24: FIA-USH
A25: FIA-Civ

Sheet SHEET NAMES (hidden)
A1: ASSESSMENTS | B1: Winter SHEET NAME | C1: Fall SHEET NAME | E1: This macro to split file by test name
A2: 03 Mathematics WIA 2013-14: 3rd Grade Math | B2: WIAG3-MALL | C2: FIAG3-MALL
A3: 03 Reading WIA 2013-14: 3rd Grade Reading | B3: WIAG3-RALL | C3: FIAG3-RALL
A4: 04 Mathematics WIA 2013-14: 4th Grade Math | B4: WIAG4-MALL | C4: FIAG4-MALL
A5: 04 Reading WIA 2013-14: 4th Grade Reading | B5: WIAG4-RALL | C5: FIAG4-RALL
A6: 05 Mathematics WIA 2013-14: 5th Grade Math | B6: WIAG5-MALL | C6: FIAG5-MALL
A7: 05 Reading WIA 2013-14: 5th Grade Reading | B7: WIAG5-RALL | C7: FIAG5-RALL
A8: 05 Science WIA 2013-14: 5th Grade Science | B8: WIAG5-SALL | C8: FIAG5-SALL
A9: 06 Mathematics WIA 2013-14: 6th Grade Math | B9: WIAG6-MALL | C9: FIAG6-MALL
A10: 06 Reading WIA 2013-14: 6th Grade Reading | B10: WIAG6-RALL | C10: FIAG6-RALL
A11: 07 Reading WIA 2013-2014: Grade 7 Reading | B11: WIAG7-RALL | C11: FIAG7-RALL
A12: 07 Mathematics WIA 2013-14: 7th grade Math | B12: WIAG7-MALL | C12: FIAG7-MALL
A13: 07 Civics WIA 2013-14:Civics | B13: WIA-CIV | C13: FIA-CIV
A14: 08 Mathematics WIA 2013-14: 8th grade Math | B14: WIAG8-MALL | C14: FIAG8-MALL
A15: 08 Reading WIA 2013-14: 8th Grade Reading | B15: WIAG8-RALL | C15: FIAG8-RALL
A16: 08 Science WIA 2013-14: 8th grade Science | B16: WIAG8-SALL | C16: FIAG8-SALL
A17: 9_12 Grade 10 Reading WIA 2013-14: 10th grade Reading | B17: WIAG10-RALL | C17: FIAG10-RALL
A18: 9_12 Grade 9 Reading WIA 2013-14: 9th grade Reading | B18: WIAG9-RALL | C18: FIAG9-RALL
A19: 9_12 Algebra I WIA 2013-2014 Algebra I | B19: WIA-ALG | C19: FIA-ALG
A20: 9_12 Geometry WIA 2013-14: Geometry | B20: WIA-GEO | C20: FIA-GEO
A21: 9_12 Biology WIA 2013-14: Biology | B21: WIA-BIO | C21: FIA-BIO
A22: 9_12 US History WIA 2013-14: US History | B22: WIA-USH | C22: FIA-USH

Sheet Overview

Sheet Select School
B3: =VLOOKUP(C3,SchList!$I$1:$J$500,2,FALSE) -> 9999 | C3: 1
J4: =B3 -> 9999

Sheet NOTES
A1: Notes for Year-at-a-Glance Data Report
A2: Assessment | B2: Enrollment as of Date | C2: Results as of Date | D2: All Average % Correct of less than 51 are denoted in red.
D3: Assessment Description | E3: % Satisfactory Performance (% Perf.)
A4: 2013-2014 FCAT 2.0/EOC | B4: May 2014 | C4: July 2014 | D4: FCAT 2.0 and EOC | E4: % of students who scoring at Levels 3 or higher
A5: 2013-2014 Winter Interim Assessments | B5: 2014-02-14 | C5: 2014-02-14 | D5: Interim Assessment | E5: Important Note: For reading, math, science, Algebra, Geometry, and Biology EOC of the Fall and Winter interim Assessments, the % Satisfactory in this document indicates the predictive value of the % of students who would earn achievement levels 3-5 on the 2014 FCAT2.0/ 2014 EOC. This percentage is based on the research study conducted by the Office of Research, Assessment, and Data Analysis. As for Civics and US History on the Fall and Winter interim assessments, the cut off is 70% and is NOT a predictive value. See cut-off on Fall IA Cut Scores and Winter IA Cut Scores Sheet Tab
A6: 2013-2014 Fall Interim Assessments | B6: 2013-11-12 | C6: 2013-11-27 | D6: Interim Assessment
A7: 2013 Baseline | B7: 2013-09-13 | C7: 2013-09-18 | D7: Baseline Assessment | E7: Proficient: % of students who scoring at 70% or higher. This is not a predictive value.
A8: 2012-2013 FCAT 2.0/EOC | B8: May 2013 | C8: July 2013 | D8: FCAT 2.0 and EOC | E8: % of students who scoring at Levels 3 or higher

Sheet Fall IA Cut Scores
B1: Math - 2013-2014 Fall Interim Assessment
B2: Grade | C2: Low | D2: Medium | E2: Total Points | F2: Insufficient Progress | G2: Limited Progress | H2: Satisfactory Progress | I2: %Insufficient Progress | J2: % Limited Progress | K2: % Satisfactory Progress
E3: Raw Score | I3: % Scores
B4: 3 | C4: 15 | D4: 17 | E4: 30 | F4: ="0 - "&C4 -> 0 - 15 | G4: =C4+1&" - "&D4 -> 16 - 17 | H4: 18 - 30 | I4: ="0 to "&TEXT(C4/E4*100,"0\%") -> 0 to 50% | J4: =TEXT((C4+1)/E4*100,"0\%")&" - "&TEXT(D4/E4*100,"0\%") -> 53% - 57% | K4: =TEXT((D4+1)/E4*100,"0\%")&" or higher" -> 60% or higher
B5: 4 | C5: 15 | D5: 18 | E5: 34 | F5: 0 - 15 | G5: 16 - 18 | H5: 19 - 34 | I5: 0 to 44% | J5: 47% - 53% | K5: 56% or higher
B6: 5 | C6: 18 | D6: 21 | E6: 34 | F6: 0 - 18 | G6: 19 - 21 | H6: 22 - 34 | I6: 0 to 53% | J6: 56% - 62% | K6: 65% or higher
B7: 6 | C7: 16 | D7: 19 | E7: 37 | F7: 0 - 16 | G7: 17 - 19 | H7: 20 - 37 | I7: 0 to 43% | J7: 46% - 51% | K7: 54% or higher
B8: 7 | C8: 16 | D8: 19 | E8: 39 | F8: 0 - 16 | G8: 17 - 19 | H8: 20 - 39 | I8: 0 to 41% | J8: 44% - 49% | K8: 51% or higher
B9: 8 | C9: 20 | D9: 23 | E9: 39 | F9: 0 - 20 | G9: 21 - 23 | H9: 24 - 39 | I9: 0 to 51% | J9: 54% - 59% | K9: 62% or higher
B10: Alg | C10: 10 | D10: 12 | E10: 34 | F10: 0 - 10 | G10: 11 - 12 | H10: 13 - 34 | I10: 0 to 29% | J10: 32% - 35% | K10: 38% or higher
B11: Geo | C11: 15 | D11: 18 | E11: 38 | F11: 0 - 15 | G11: 16 - 18 | H11: 19 - 38 | I11: 0 to 39% | J11: 42% - 47% | K11: 50% or higher
B12: Reading - 2013-2014 Fall Interim Assessment
B13: Grade | C13: Low | D13: Medium | E13: Total Points | F13: Insufficient Progress | G13: Limited Progress | H13: Satisfactory Progress | I13: %Insufficient Progress | J13: % Limited Progress | K13: % Satisfactory Progress
E14: Raw Score | I14: % Scores
B15: 3 | C15: 28 | D15: 31 | E15: 56 | F15: ="0 - "&C15 -> 0 - 28 | G15: =C15+1&" - "&D15 -> 29 - 31 | H15: 32 - 56 | I15: ="0 to "&TEXT(C15/E15*100,"0\%") -> 0 to 50% | J15: =TEXT((C15+1)/E15*100,"0\%")&" - "&TEXT(D15/E15*100,"0\%") -> 52% - 55% | K15: =TEXT((D15+1)/E15*100,"0\%")&" or higher" -> 57% or higher
B16: 4 | C16: 30 | D16: 33 | E16: 56 | F16: 0 - 30 | G16: 31 - 33 | H16: 34 - 56 | I16: 0 to 54% | J16: 55% - 59% | K16: 61% or higher
B17: 5 | C17: 31 | D17: 35 | E17: 56 | F17: 0 - 31 | G17: 32 - 35 | H17: 36 - 56 | I17: 0 to 55% | J17: 57% - 63% | K17: 64% or higher
B18: 6 | C18: 28 | D18: 32 | E18: 54 | F18: 0 - 28 | G18: 29 - 32 | H18: 33 - 54 | I18: 0 to 52% | J18: 54% - 59% | K18: 61% or higher
B19: 7 | C19: 26 | D19: 30 | E19: 56 | F19: 0 - 26 | G19: 27 - 30 | H19: 31 - 56 | I19: 0 to 46% | J19: 48% - 54% | K19: 55% or higher
B20: 8 | C20: 30 | D20: 35 | E20: 61 | F20: 0 - 30 | G20: 31 - 35 | H20: 36 - 61 | I20: 0 to 49% | J20: 51% - 57% | K20: 59% or higher
B21: 9 | C21: 29 | D21: 33 | E21: 57 | F21: 0 - 29 | G21: 30 - 33 | H21: 34 - 57 | I21: 0 to 51% | J21: 53% - 58% | K21: 60% or higher
B22: 10 | C22: 26 | D22: 31 | E22: 53 | F22: ="0 - "&C22 -> 0 - 26 | G22: =C22+1&" - "&D22 -> 27 - 31 | H22: =D22+1&" - "&E22 -> 32 - 53 | I22: ="0 to "&TEXT(C22/E22*100,"0\%") -> 0 to 49% | J22: =TEXT((C22+1)/E22*100,"0\%")&" - "&TEXT(D22/E22*100,"0\%") -> 51% - 58% | K22: =TEXT((D22+1)/E22*100,"0\%")&" or higher" -> 60% or higher
B23: Science - 2013-14 Fall Interim Assessment
B24: Grade | C24: Low | D24: Medium | E24: Total Points | F24: Insufficient Progress | G24: Limited Progress | H24: Satisfactory Progress | I24: %Insufficient Progress | J24: % Limited Progress | K24: % Satisfactory Progress
E25: Raw Score | I25: % Scores
B26: 5 | C26: 30 | D26: 34 | E26: 68 | F26: ="0 - "&C26 -> 0 - 30 | G26: =C26+1&" - "&D26 -> 31 - 34 | H26: 35 - 68 | I26: ="0 to "&TEXT(C26/E26*100,"0\%") -> 0 to 44% | J26: =TEXT((C26+1)/E26*100,"0\%")&" - "&TEXT(D26/E26*100,"0\%") -> 46% - 50% | K26: =TEXT((D26+1)/E26*100,"0\%")&" or higher" -> 51% or higher
B27: 8 | C27: 30 | D27: 34 | E27: 71 | F27: ="0 - "&C27 -> 0 - 30 | G27: 31 - 34 | H27: 35 - 71 | I27: ="0 to "&TEXT(C27/E27*100,"0\%") -> 0 to 42% | J27: =TEXT((C27+1)/E27*100,"0\%")&" - "&TEXT(D27/E27*100,"0\%") -> 44% - 48% | K27: =TEXT((D27+1)/E27*100,"0\%")&" or higher" -> 49% or higher
B28: Bio | C28: 23 | D28: 27 | E28: 67 | F28: ="0 - "&C28 -> 0 - 23 | G28: 24 - 27 | H28: 28 - 67 | I28: ="0 to "&TEXT(C28/E28*100,"0\%") -> 0 to 34% | J28: =TEXT((C28+1)/E28*100,"0\%")&" - "&TEXT(D28/E28*100,"0\%") -> 36% - 40% | K28: =TEXT((D28+1)/E28*100,"0\%")&" or higher" -> 42% or higher
B29: Social Studies - 2013-14 Fall Interim Assessment
B30: Grade | C30: Low | D30: Medium | E30: Total Points | G30: Non-Proficient | H30: Proficient | I30: %Non-Proficient | K30: % Proficient
E31: Raw Score | I31: % Scores
B32: Civics | D32: 41 | E32: 60 | G32: =C32+1&" - "&D32 -> 1 - 41 | H32: =D32+1&" - "&E32 -> 42 - 60 | I32: =TEXT((C32+1)/E32*100,"0\%")&" - "&TEXT(D32/E32*100,"0\%") -> 2% - 68% | K32: =TEXT((D32+1)/E32*100,"0\%")&" or higher" -> 70% or higher
B33: USH | D33: 36 | E33: 53 | G33: =C33+1&" - "&D33 -> 1 - 36 | H33: =D33+1&" - "&E33 -> 37 - 53 | I33: =TEXT((C33+1)/E33*100,"0\%")&" - "&TEXT(D33/E33*100,"0\%") -> 2% - 68% | K33: =TEXT((D33+1)/E33*100,"0\%")&" or higher" -> 70% or higher

Sheet Winter IA Cut Scores
B1: Math - 2013-14 Winter Interim Assessment
B2: Grade | C2: Low | D2: Medium | E2: Total Points | F2: Insufficient Progress | G2: Limited Progress | H2: Satisfactory Progress | I2: %Insufficient Progress | J2: % Limited Progress | K2: % Satisfactory Progress
E3: Raw Score | I3: % Scores
B4: 3 | C4: 14 | D4: 16 | E4: 34 | F4: ="0 - "&C4 -> 0 - 14 | G4: =C4+1&" - "&D4 -> 15 - 16 | H4: 17 - 34 | I4: ="0 to "&TEXT(C4/E4*100,"0\%") -> 0 to 41% | J4: =TEXT((C4+1)/E4*100,"0\%")&" - "&TEXT(D4/E4*100,"0\%") -> 44% - 47% | K4: =TEXT((D4+1)/E4*100,"0\%")&" or higher" -> 50% or higher
B5: 4 | C5: 15 | D5: 18 | E5: 40 | F5: 0 - 15 | G5: 16 - 18 | H5: 19 - 40 | I5: 0 to 38% | J5: 40% - 45% | K5: 48% or higher
B6: 5 | C6: 20 | D6: 23 | E6: 38 | F6: 0 - 20 | G6: 21 - 23 | H6: 24 - 38 | I6: 0 to 53% | J6: 55% - 61% | K6: 63% or higher
B7: 6 | C7: 16 | D7: 19 | E7: 40 | F7: 0 - 16 | G7: 17 - 19 | H7: 20 - 40 | I7: 0 to 40% | J7: 43% - 48% | K7: 50% or higher
B8: 7 | C8: 22 | D8: 25 | E8: 47 | F8: 0 - 22 | G8: 23 - 25 | H8: 26 - 47 | I8: 0 to 47% | J8: 49% - 53% | K8: 55% or higher
B9: 8 | C9: 22 | D9: 25 | E9: 40 | F9: 0 - 22 | G9: 23 - 25 | H9: 26 - 40 | I9: 0 to 55% | J9: 58% - 63% | K9: 65% or higher
B10: Alg | C10: 10 | D10: 13 | E10: 40 | F10: 0 - 10 | G10: 11 - 13 | H10: 14 - 40 | I10: 0 to 25% | J10: 28% - 33% | K10: 35% or higher
B11: Geo | C11: 16 | D11: 22 | E11: 43 | F11: 0 - 16 | G11: 17 - 22 | H11: 23 - 43 | I11: 0 to 37% | J11: 40% - 51% | K11: 53% or higher
B12: Reading - 2013-14 Winter Interim Assessment
B13: Grade | C13: Low | D13: Medium | E13: Total Points | F13: Insufficient Progress | G13: Limited Progress | H13: Satisfactory Progress | I13: %Insufficient Progress | J13: % Limited Progress | K13: % Satisfactory Progress
E14: Raw Score | I14: % Scores
B15: 3 | C15: 33 | D15: 36 | E15: 56 | F15: ="0 - "&C15 -> 0 - 33 | G15: =C15+1&" - "&D15 -> 34 - 36 | H15: 37 - 56 | I15: ="0 to "&TEXT(C15/E15*100,"0\%") -> 0 to 59% | J15: =TEXT((C15+1)/E15*100,"0\%")&" - "&TEXT(D15/E15*100,"0\%") -> 61% - 64% | K15: =TEXT((D15+1)/E15*100,"0\%")&" or higher" -> 66% or higher
B16: 4 | C16: 31 | D16: 34 | E16: 51 | F16: 0 - 31 | G16: 32 - 34 | H16: 35 - 51 | I16: 0 to 61% | J16: 63% - 67% | K16: 69% or higher
B17: 5 | C17: 34 | D17: 38 | E17: 59 | F17: 0 - 34 | G17: 35 - 38 | H17: 39 - 59 | I17: 0 to 58% | J17: 59% - 64% | K17: 66% or higher
B18: 6 | C18: 31 | D18: 34 | E18: 53 | F18: 0 - 31 | G18: 32 - 34 | H18: 35 - 53 | I18: 0 to 58% | J18: 60% - 64% | K18: 66% or higher
B19: 7 | C19: 26 | D19: 29 | E19: 47 | F19: 0 - 26 | G19: 27 - 29 | H19: 30 - 47 | I19: 0 to 55% | J19: 57% - 62% | K19: 64% or higher
B20: 8 | C20: 27 | D20: 30 | E20: 48 | F20: 0 - 27 | G20: 28 - 30 | H20: 31 - 48 | I20: 0 to 56% | J20: 58% - 63% | K20: 65% or higher
B21: 9 | C21: 26 | D21: 30 | E21: 50 | F21: 0 - 26 | G21: 27 - 30 | H21: 31 - 50 | I21: 0 to 52% | J21: 54% - 60% | K21: 62% or higher
B22: 10 | C22: 27 | D22: 31 | E22: 49 | F22: ="0 - "&C22 -> 0 - 27 | G22: =C22+1&" - "&D22 -> 28 - 31 | H22: =D22+1&" - "&E22 -> 32 - 49 | I22: ="0 to "&TEXT(C22/E22*100,"0\%") -> 0 to 55% | J22: =TEXT((C22+1)/E22*100,"0\%")&" - "&TEXT(D22/E22*100,"0\%") -> 57% - 63% | K22: =TEXT((D22+1)/E22*100,"0\%")&" or higher" -> 65% or higher
B23: Science - 2013-14 Winter Interim Assessment
B24: Grade | C24: Low | D24: Medium | E24: Total Points | F24: Insufficient Progress | G24: Limited Progress | H24: Satisfactory Progress | I24: %Insufficient Progress | J24: % Limited Progress | K24: % Satisfactory Progress
E25: Raw Score | I25: % Scores
B26: 5 | C26: 32 | D26: 35 | E26: 68 | F26: ="0 - "&C26 -> 0 - 32 | G26: =C26+1&" - "&D26 -> 33 - 35 | H26: 36 - 68 | I26: ="0 to "&TEXT(C26/E26*100,"0\%") -> 0 to 47% | J26: =TEXT((C26+1)/E26*100,"0\%")&" - "&TEXT(D26/E26*100,"0\%") -> 49% - 51% | K26: =TEXT((D26+1)/E26*100,"0\%")&" or higher" -> 53% or higher
B27: 8 | C27: 35 | D27: 39 | E27: 73 | F27: ="0 - "&C27 -> 0 - 35 | G27: 36 - 39 | H27: 40 - 73 | I27: ="0 to "&TEXT(C27/E27*100,"0\%") -> 0 to 48% | J27: =TEXT((C27+1)/E27*100,"0\%")&" - "&TEXT(D27/E27*100,"0\%") -> 49% - 53% | K27: =TEXT((D27+1)/E27*100,"0\%")&" or higher" -> 55% or higher
B28: Bio | C28: 23 | D28: 27 | E28: 67 | F28: ="0 - "&C28 -> 0 - 23 | G28: 24 - 27 | H28: 28 - 67 | I28: ="0 to "&TEXT(C28/E28*100,"0\%") -> 0 to 34% | J28: =TEXT((C28+1)/E28*100,"0\%")&" - "&TEXT(D28/E28*100,"0\%") -> 36% - 40% | K28: =TEXT((D28+1)/E28*100,"0\%")&" or higher" -> 42% or higher

Sheet G3-5 FIA Trend Report
A2: Click here to return to the school and sheet selection interface | AF2: District | AG2: Average % Correct | AT2: District | AU2: % Proficient
A3: ='Select School'!B3 -> 9999 | AG3: District | AU3: District
A4: =TEXT(A3,"0000")&"-"&VLOOKUP(A3,SchList!$A$2:$B$502,2,FALSE) -> 9999-District | AG4: Average % Correct | AP4: Average Score | AU4: % Proficient | BD4: % of Students Scoring at 4.0 and higher
A5: Fall IA Trend Report: 2013 FCAT 2.0, 2012 Fall Interim Assessment, and 2013 Fall Interim Assessment | AG5: Reading | AJ5: Math | AM5: Science | AP5: Writing | AU5: Reading | AX5: Math | BA5: Science | BD5: Writing
AF6: Grade | AG6: 2012 FCAT 2.0 | AH6: 2011 Fall IA | AI6: 2012 FIA | AJ6: Baseline | AK6: Fall IA | AL6: Winter IA | AM6: BL | AN6: Fall | AO6: Winter | AP6: Prompt | AQ6: Pre-Test | AR6: Midyear | AT6: Grade | AU6: 2013 FCAT 2.0 | AV6: 2012 Fall IA | AW6: 2013 Fall IA | AX6: 2013 FCAT 2.0 | AY6: 2012 Fall IA | AZ6: 2013 Fall IA | BA6: 2013 FCAT 2.0 | BB6: 2012 Fall IA | BC6: 2013 Fall IA | BD6: Prompt | BE6: Baseline | BF6: Midyear
AF7: 3 | AG7: =IFERROR(IF(VLOOKUP(9999,'BLG3-RALL'!$A$14:$CZ$500,3,FALSE)="",#N/A,VLOOKUP(9999,'BLG3-RALL'!$A$14:$CZ$500,5,FALSE)*100),#N/A) -> 55 | AH7: =IFERROR(IF(VLOOKUP(9999,#REF!,3,FALSE)="",#N/A,VLOOKUP(9999,#REF!,5,FALSE)*100),#N/A) ->  | AI7: =IFERROR(IF(VLOOKUP(9999,#REF!,3,FALSE)="",#N/A,VLOOKUP(9999,#REF!,5,FALSE)*100),#N/A) ->  | AJ7: =IFERROR(IF(VLOOKUP(9999,'BLG3-MALL'!$A$14:$CZ$500,3,FALSE)="",#N/A,VLOOKUP(9999,'BLG3-MALL'!$A$14:$CZ$500,5,FALSE)*100),#N/A) -> 39 | AK7: =IFERROR(IF(VLOOKUP(9999,#REF!,3,FALSE)="",#N/A,VLOOKUP(9999,#REF!,5,FALSE)*100),#N/A) ->  | AL7: =IFERROR(IF(VLOOKUP(9999,#REF!,3,FALSE)="",#N/A,VLOOKUP(9999,#REF!,5,FALSE)*100),#N/A) ->  | AP7: Expository | AQ7: =IFERROR(IF(VLOOKUP(9999,'BLG4-WALL'!$A$14:$CZ$503,3,FALSE)="",#N/A,VLOOKUP(9999,'BLG4-WALL'!$A$14:$CZ$503,4,FALSE)),#N/A) -> 1.399999976 | AR7: =IFERROR(IF(VLOOKUP(9999,'MYG4-WALL'!$A$14:$CG$495,3,FALSE)="",#N/A,VLOOKUP(9999,'MYG4-WALL'!$A$14:$CG$495,4,FALSE)),#N/A) -> E | AT7: 3 | AU7: =IFERROR(IF(VLOOKUP(9999,'R-2013'!$A$6:$N$500,3,FALSE)="",#N/A,VLOOKUP(9999,'R-2013'!$A$6:$N$500,10,FALSE)),#N/A) -> 53 | AV7: =IFERROR(IF(VLOOKUP(9999,'2012 FIA-Read'!$A$14:$K$500,3,FALSE)="",#N/A,VLOOKUP(9999,'2012 FIA-Read'!$A$14:$K$500,11,FALSE)*100),#N/A) -> 49.7 | AW7: =IFERROR(IF(VLOOKUP(9999,'FIAG3-RAll'!$B$2:$AC$500,3,FALSE)="",#N/A,VLOOKUP(9999,'FIAG3-RAll'!$B$2:$AC$500,12,FALSE)*100),#N/A) -> 51 | AX7: =IFERROR(IF(VLOOKUP(9999,'M-2013'!$A$6:$N$500,3,FALSE)="",#N/A,VLOOKUP(9999,'M-2013'!$A$6:$N$500,10,FALSE)),#N/A) -> 62 | AY7: =IFERROR(IF(VLOOKUP(9999,'2012 FIA-Math'!$A$14:$K$500,3,FALSE)="",#N/A,VLOOKUP(9999,'2012 FIA-Math'!$A$14:$K$500,11,FALSE)*100),#N/A) -> 58.74 | AZ7: =IFERROR(IF(VLOOKUP(9999,'FIAG3-MAll'!$B$2:$AC$500,3,FALSE)="",#N/A,VLOOKUP(9999,'FIAG3-MAll'!$B$2:$AC$500,12,FALSE)*100),#N/A) -> 61 | BD7: Expository | BE7: =IFERROR(IF(VLOOKUP(9999,'BLG4-WALL'!$A$14:$CZ$503,3,FALSE)="",#N/A,VLOOKUP(9999,'BLG4-WALL'!$A$14:$CZ$503,11,FALSE)*100),#N/A) -> 1.13 | BF7: =IFERROR(IF(VLOOKUP(9999,'MYG4-WALL'!$A$14:$CG$495,3,FALSE)="",#N/A,VLOOKUP(9999,'MYG4-WALL'!$A$14:$CG$495,11,FALSE)*100),#N/A) -> 3800
AF8: 4 | AG8: =IFERROR(IF(VLOOKUP(9999,'BLG4-RALL'!$A$14:$CZ$500,3,FALSE)="",#N/A,VLOOKUP(9999,'BLG4-RALL'!$A$14:$CZ$500,5,FALSE)*100),#N/A) -> 60 | AH8: =IFERROR(IF(VLOOKUP(9999,#REF!,3,FALSE)="",#N/A,VLOOKUP(9999,#REF!,5,FALSE)*100),#N/A) ->  | AI8: =IFERROR(IF(VLOOKUP(9999,#REF!,3,FALSE)="",#N/A,VLOOKUP(9999,#REF!,5,FALSE)*100),#N/A) ->  | AJ8: =IFERROR(IF(VLOOKUP(9999,'BLG4-MALL'!$A$14:$CZ$500,3,FALSE)="",#N/A,VLOOKUP(9999,'BLG4-MALL'!$A$14:$CZ$500,5,FALSE)*100),#N/A) -> 41 | AK8: =IFERROR(IF(VLOOKUP(9999,#REF!,3,FALSE)="",#N/A,VLOOKUP(9999,#REF!,5,FALSE)*100),#N/A) ->  | AL8: =IFERROR(IF(VLOOKUP(9999,#REF!,3,FALSE)="",#N/A,VLOOKUP(9999,#REF!,5,FALSE)*100),#N/A) ->  | AP8: Narrative | AQ8: =IFERROR(IF(VLOOKUP(9999,'BLG4-WALL'!$A$14:$CZ$503,12,FALSE)="",#N/A,VLOOKUP(9999,'BLG4-WALL'!$A$14:$CZ$503,13,FALSE)),#N/A) -> 1.5 | AR8: =IFERROR(IF(VLOOKUP(9999,'MYG4-WALL'!$A$14:$CG$495,12,FALSE)="",#N/A,VLOOKUP(9999,'MYG4-WALL'!$A$14:$CG$495,13,FALSE)),#N/A) -> 61 | AT8: 4 | AU8: =IFERROR(IF(VLOOKUP(9999,'R-2013'!$P$6:$AC$500,3,FALSE)="",#N/A,VLOOKUP(9999,'R-2013'!$P$6:$AC$500,10,FALSE)),#N/A) -> 59 | AV8: =IFERROR(IF(VLOOKUP(9999,'2012 FIA-Read'!$L$14:$V$500,3,FALSE)="",#N/A,VLOOKUP(9999,'2012 FIA-Read'!$L$14:$V$500,11,FALSE)*100),#N/A) -> 55.98 | AW8: =IFERROR(IF(VLOOKUP(9999,'FIAG4-RAll'!$B$2:$AC$500,3,FALSE)="",#N/A,VLOOKUP(9999,'FIAG4-RAll'!$B$2:$AC$500,12,FALSE)*100),#N/A) -> 62 | AX8: =IFERROR(IF(VLOOKUP(9999,'M-2013'!$O$6:$AB$500,3,FALSE)="",#N/A,VLOOKUP(9999,'M-2013'!$O$6:$AB$500,10,FALSE)),#N/A) -> 64 | AY8: =IFERROR(IF(VLOOKUP(9999,'2012 FIA-Math'!$L$14:$V$500,3,FALSE)="",#N/A,VLOOKUP(9999,'2012 FIA-Math'!$L$14:$V$500,11,FALSE)*100),#N/A) -> 59.5 | AZ8: =IFERROR(IF(VLOOKUP(9999,'FIAG4-MAll'!$B$2:$AC$500,3,FALSE)="",#N/A,VLOOKUP(9999,'FIAG4-MAll'!$B$2:$AC$500,12,FALSE)*100),#N/A) -> 65 | BD8: Narrative | BE8: =IFERROR(IF(VLOOKUP(9999,'BLG4-WALL'!$A$14:$CZ$503,12,FALSE)="",#N/A,VLOOKUP(9999,'BLG4-WALL'!$A$14:$CZ$503,20,FALSE)*100),#N/A) -> 2.32 | BF8: =IFERROR(IF(VLOOKUP(9999,'MYG4-WALL'!$A$14:$CG$495,12,FALSE)="",#N/A,VLOOKUP(9999,'MYG4-WALL'!$A$14:$CG$495,20,FALSE)*100),#N/A) -> 3600
AF9: 5 | AG9: =IFERROR(IF(VLOOKUP(9999,'BLG5-RALL'!$A$14:$CZ$500,3,FALSE)="",#N/A,VLOOKUP(9999,'BLG5-RALL'!$A$14:$CZ$500,5,FALSE)*100),#N/A) -> 61 | AH9: =IFERROR(IF(VLOOKUP(9999,#REF!,3,FALSE)="",#N/A,VLOOKUP(9999,#REF!,5,FALSE)*100),#N/A) ->  | AI9: =IFERROR(IF(VLOOKUP(9999,#REF!,3,FALSE)="",#N/A,VLOOKUP(9999,#REF!,5,FALSE)*100),#N/A) ->  | AJ9: =IFERROR(IF(VLOOKUP(9999,'BLG5-MALL'!$A$14:$CZ$500,3,FALSE)="",#N/A,VLOOKUP(9999,'BLG5-MALL'!$A$14:$CZ$500,5,FALSE)*100),#N/A) -> 42 | AK9: =IFERROR(IF(VLOOKUP(9999,#REF!,3,FALSE)="",#N/A,VLOOKUP(9999,#REF!,5,FALSE)*100),#N/A) ->  | AL9: =IFERROR(IF(VLOOKUP(9999,#REF!,3,FALSE)="",#N/A,VLOOKUP(9999,#REF!,5,FALSE)*100),#N/A) ->  | AM9: =IFERROR(IF(VLOOKUP(9999,'BLG5-SALL'!$A$14:$CZ$500,3,FALSE)="",#N/A,VLOOKUP(9999,'BLG5-SALL'!$A$14:$CZ$500,5,FALSE)*100),#N/A) -> 46 | AN9: =IFERROR(IF(VLOOKUP(9999,#REF!,3,FALSE)="",#N/A,VLOOKUP(9999,#REF!,5,FALSE)*100),#N/A) ->  | AO9: =IFERROR(IF(VLOOKUP(9999,#REF!,3,FALSE)="",#N/A,VLOOKUP(9999,#REF!,5,FALSE)*100),#N/A) ->  | AT9: 5 | AU9: =IFERROR(IF(VLOOKUP(9999,'R-2013'!$AE$6:$AR$500,3,FALSE)="",#N/A,VLOOKUP(9999,'R-2013'!$AE$6:$AR$500,10,FALSE)),#N/A) -> 59 | AV9: =IFERROR(IF(VLOOKUP(9999,'2012 FIA-Read'!$W$14:$AG$500,3,FALSE)="",#N/A,VLOOKUP(9999,'2012 FIA-Read'!$W$14:$AG$500,11,FALSE)*100),#N/A) -> 56.4 | AW9: =IFERROR(IF(VLOOKUP(9999,'FIAG5-RAll'!$B$2:$AC$500,3,FALSE)="",#N/A,VLOOKUP(9999,'FIAG5-RAll'!$B$2:$AC$500,12,FALSE)*100),#N/A) -> 57 | AX9: =IFERROR(IF(VLOOKUP(9999,'M-2013'!$AC$6:$AP$500,3,FALSE)="",#N/A,VLOOKUP(9999,'M-2013'!$AC$6:$AP$500,10,FALSE)),#N/A) -> 56 | AY9: =IFERROR(IF(VLOOKUP(9999,'2012 FIA-Math'!$W$14:$AG$500,3,FALSE)="",#N/A,VLOOKUP(9999,'2012 FIA-Math'!$W$14:$AG$500,11,FALSE)*100),#N/A) -> 57 | AZ9: =IFERROR(IF(VLOOKUP(9999,'FIAG5-MAll'!$B$2:$AC$500,3,FALSE)="",#N/A,VLOOKUP(9999,'FIAG5-MAll'!$B$2:$AC$500,12,FALSE)*100),#N/A) -> 55 | BA9: =IFERROR(IF(VLOOKUP(9999,'S-2013'!$A$6:$N$272,3,FALSE)="",#N/A,VLOOKUP(9999,'S-2013'!$A$6:$N$272,10,FALSE)),#N/A) -> 51 | BB9: =IFERROR(IF(VLOOKUP(9999,'2012 FIA-Sci'!$A$14:$P$500,3,FALSE)="",#N/A,VLOOKUP(9999,'2012 FIA-Sci'!$A$14:$K$500,11,FALSE)*100),#N/A) -> 48.76 | BC9: =IFERROR(IF(VLOOKUP(9999,'FIAG5-SALL'!$B$2:$AC$500,3,FALSE)="",#N/A,VLOOKUP(9999,'FIAG5-SALL'!$B$2:$AC$500,12,FALSE)*100),#N/A) -> 51
AF11: School | AG11: =A4 -> 9999-District | AT11: School | AU11: =A4 -> 9999-District
AG12: Average % Correct | AP12: Average Score | AU12: % Proficient | BD12: % of Students Scoring at 4.0 and higher
AG13: Reading | AJ13: Math | AM13: Science | AP13: Writing | AU13: Reading | AX13: Math | BA13: Science | BD13: Writing
AF14: Grade | AG14: Baseline | AH14: Fall IA | AI14: Winter IA | AJ14: Baseline | AK14: Fall IA | AL14: Winter IA | AM14: BL | AN14: Fall | AO14: Winter | AP14: Prompt | AQ14: Pre-Test | AR14: Midyear | AT14: Grade | AU14: 2013 FCAT 2.0 | AV14: 2012 Fall IA | AW14: 2013 Fall IA | AX14: 2013 FCAT 2.0 | AY14: 2012 Fall IA | AZ14: 2013 Fall IA | BA14: 2013 FCAT 2.0 | BB14: 2012 Fall IA | BC14: 2013 Fall IA | BD14: Prompt | BE14: Baseline | BF14: Midyear
AF15: 3 | AG15: =IFERROR(IF(VLOOKUP($A$3,'BLG3-RALL'!$A$14:$CZ$500,3,FALSE)="",#N/A,VLOOKUP($A$3,'BLG3-RALL'!$A$14:$CZ$500,5,FALSE)*100),#N/A) -> 55 | AH15: =IFERROR(IF(VLOOKUP($A$3,#REF!,3,FALSE)="",#N/A,VLOOKUP($A$3,#REF!,5,FALSE)*100),#N/A) ->  | AI15: =IFERROR(IF(VLOOKUP($A$3,#REF!,3,FALSE)="",#N/A,VLOOKUP($A$3,#REF!,5,FALSE)*100),#N/A) ->  | AJ15: =IFERROR(IF(VLOOKUP($A$3,'BLG3-MALL'!$A$14:$CZ$500,3,FALSE)="",#N/A,VLOOKUP($A$3,'BLG3-MALL'!$A$14:$CZ$500,5,FALSE)*100),#N/A) -> 39 | AK15: =IFERROR(IF(VLOOKUP($A$3,#REF!,3,FALSE)="",#N/A,VLOOKUP($A$3,#REF!,5,FALSE)*100),#N/A) ->  | AL15: =IFERROR(IF(VLOOKUP($A$3,#REF!,3,FALSE)="",#N/A,VLOOKUP($A$3,#REF!,5,FALSE)*100),#N/A) ->  | AP15: Expository | AQ15: =IFERROR(IF(VLOOKUP($A$3,'BLG4-WALL'!$A$14:$CZ$503,3,FALSE)="",#N/A,VLOOKUP($A$3,'BLG4-WALL'!$A$14:$CZ$503,4,FALSE)),#N/A) -> 1.399999976 | AR15: =IFERROR(IF(VLOOKUP($A$3,'MYG4-WALL'!$A$14:$CG$495,3,FALSE)="",#N/A,VLOOKUP($A$3,'MYG4-WALL'!$A$14:$CG$495,4,FALSE)),#N/A) -> E | AT15: 3 | AU15: =IFERROR(IF(VLOOKUP(VALUE($A$3),'R-2013'!$A$6:$N$500,3,FALSE)="",#N/A,VLOOKUP(VALUE($A$3),'R-2013'!$A$6:$N$500,10,FALSE)),#N/A) -> 53 | AV15: =IFERROR(IF(VLOOKUP(VALUE($A$3),'2012 FIA-Read'!$A$14:$K$500,3,FALSE)="",#N/A,VLOOKUP(VALUE($A$3),'2012 FIA-Read'!$A$14:$K$500,11,FALSE)*100),#N/A) -> 49.7 | AW15: =IFERROR(IF(VLOOKUP($A$3,'FIAG3-RAll'!$B$2:$AC$500,3,FALSE)="",#N/A,VLOOKUP($A$3,'FIAG3-RAll'!$B$2:$AC$500,12,FALSE)*100),#N/A) -> 51 | AX15: =IFERROR(IF(VLOOKUP(VALUE($A$3),'M-2013'!$A$6:$N$500,3,FALSE)="",#N/A,VLOOKUP(VALUE($A$3),'M-2013'!$A$6:$N$500,10,FALSE)),#N/A) -> 62 | AY15: =IFERROR(IF(VLOOKUP(VALUE($A$3),'2012 FIA-Math'!$A$14:$K$500,3,FALSE)="",#N/A,VLOOKUP(VALUE($A$3),'2012 FIA-Math'!$A$14:$K$500,11,FALSE)*100),#N/A) -> 58.74 | AZ15: =IFERROR(IF(VLOOKUP($A$3,'FIAG3-MAll'!$B$2:$AC$500,3,FALSE)="",#N/A,VLOOKUP($A$3,'FIAG3-MAll'!$B$2:$AC$500,12,FALSE)*100),#N/A) -> 61 | BD15: Expository | BE15: =IFERROR(IF(VLOOKUP(VALUE($A$3),'BLG4-WALL'!$A$14:$CZ$503,3,FALSE)="",#N/A,VLOOKUP(VALUE($A$3),'BLG4-WALL'!$A$14:$CZ$503,11,FALSE)*100),#N/A) -> 1.13 | BF15: =IFERROR(IF(VLOOKUP(VALUE($A$3),'MYG4-WALL'!$A$14:$CG$495,3,FALSE)="",#N/A,VLOOKUP(VALUE($A$3),'MYG4-WALL'!$A$14:$CG$495,11,FALSE)*100),#N/A) -> 3800
AF16: 4 | AG16: =IFERROR(IF(VLOOKUP($A$3,'BLG4-RALL'!$A$14:$CZ$500,3,FALSE)="",#N/A,VLOOKUP($A$3,'BLG4-RALL'!$A$14:$CZ$500,5,FALSE)*100),#N/A) -> 60 | AH16: =IFERROR(IF(VLOOKUP($A$3,#REF!,3,FALSE)="",#N/A,VLOOKUP($A$3,#REF!,5,FALSE)*100),#N/A) ->  | AI16: =IFERROR(IF(VLOOKUP($A$3,#REF!,3,FALSE)="",#N/A,VLOOKUP($A$3,#REF!,5,FALSE)*100),#N/A) ->  | AJ16: =IFERROR(IF(VLOOKUP($A$3,'BLG4-MALL'!$A$14:$CZ$500,3,FALSE)="",#N/A,VLOOKUP($A$3,'BLG4-MALL'!$A$14:$CZ$500,5,FALSE)*100),#N/A) -> 41 | AK16: =IFERROR(IF(VLOOKUP($A$3,#REF!,3,FALSE)="",#N/A,VLOOKUP($A$3,#REF!,5,FALSE)*100),#N/A) ->  | AL16: =IFERROR(IF(VLOOKUP($A$3,#REF!,3,FALSE)="",#N/A,VLOOKUP($A$3,#REF!,5,FALSE)*100),#N/A) ->  | AP16: Narrative | AQ16: =IFERROR(IF(VLOOKUP($A$3,'BLG4-WALL'!$A$14:$CZ$503,12,FALSE)="",#N/A,VLOOKUP($A$3,'BLG4-WALL'!$A$14:$CZ$503,13,FALSE)),#N/A) -> 1.5 | AR16: =IFERROR(IF(VLOOKUP($A$3,'MYG4-WALL'!$A$14:$CG$495,12,FALSE)="",#N/A,VLOOKUP($A$3,'MYG4-WALL'!$A$14:$CG$495,13,FALSE)),#N/A) -> 61 | AT16: 4 | AU16: =IFERROR(IF(VLOOKUP(VALUE($A$3),'R-2013'!$P$6:$AC$500,3,FALSE)="",#N/A,VLOOKUP(VALUE($A$3),'R-2013'!$P$6:$AC$500,10,FALSE)),#N/A) -> 59 | AV16: =IFERROR(IF(VLOOKUP(VALUE($A$3),'2012 FIA-Read'!$L$14:$V$500,3,FALSE)="",#N/A,VLOOKUP(VALUE($A$3),'2012 FIA-Read'!$L$14:$V$500,11,FALSE)*100),#N/A) -> 55.98 | AW16: =IFERROR(IF(VLOOKUP($A$3,'FIAG4-RAll'!$B$2:$AC$500,3,FALSE)="",#N/A,VLOOKUP($A$3,'FIAG4-RAll'!$B$2:$AC$500,12,FALSE)*100),#N/A) -> 62 | AX16: =IFERROR(IF(VLOOKUP(VALUE($A$3),'M-2013'!$O$6:$AB$500,3,FALSE)="",#N/A,VLOOKUP(VALUE($A$3),'M-2013'!$O$6:$AB$500,10,FALSE)),#N/A) -> 64 | AY16: =IFERROR(IF(VLOOKUP(VALUE($A$3),'2012 FIA-Math'!$L$14:$V$500,3,FALSE)="",#N/A,VLOOKUP(VALUE($A$3),'2012 FIA-Math'!$L$14:$V$500,11,FALSE)*100),#N/A) -> 59.5 | AZ16: =IFERROR(IF(VLOOKUP($A$3,'FIAG4-MAll'!$B$2:$AC$500,3,FALSE)="",#N/A,VLOOKUP($A$3,'FIAG4-MAll'!$B$2:$AC$500,12,FALSE)*100),#N/A) -> 65 | BD16: Narrative | BE16: =IFERROR(IF(VLOOKUP(VALUE($A$3),'BLG4-WALL'!$A$14:$CZ$503,12,FALSE)="",#N/A,VLOOKUP(VALUE($A$3),'BLG4-WALL'!$A$14:$CZ$503,20,FALSE)*100),#N/A) -> 2.32 | BF16: =IFERROR(IF(VLOOKUP(VALUE($A$3),'MYG4-WALL'!$A$14:$CG$495,12,FALSE)="",#N/A,VLOOKUP(VALUE($A$3),'MYG4-WALL'!$A$14:$CG$495,20,FALSE)*100),#N/A) -> 3600
AF17: 5 | AG17: =IFERROR(IF(VLOOKUP($A$3,'BLG5-RALL'!$A$14:$CZ$500,3,FALSE)="",#N/A,VLOOKUP($A$3,'BLG5-RALL'!$A$14:$CZ$500,5,FALSE)*100),#N/A) -> 61 | AH17: =IFERROR(IF(VLOOKUP($A$3,#REF!,3,FALSE)="",#N/A,VLOOKUP($A$3,#REF!,5,FALSE)*100),#N/A) ->  | AI17: =IFERROR(IF(VLOOKUP($A$3,#REF!,3,FALSE)="",#N/A,VLOOKUP($A$3,#REF!,5,FALSE)*100),#N/A) ->  | AJ17: =IFERROR(IF(VLOOKUP($A$3,'BLG5-MALL'!$A$14:$CZ$500,3,FALSE)="",#N/A,VLOOKUP($A$3,'BLG5-MALL'!$A$14:$CZ$500,5,FALSE)*100),#N/A) -> 42 | AK17: =IFERROR(IF(VLOOKUP($A$3,#REF!,3,FALSE)="",#N/A,VLOOKUP($A$3,#REF!,5,FALSE)*100),#N/A) ->  | AL17: =IFERROR(IF(VLOOKUP($A$3,#REF!,3,FALSE)="",#N/A,VLOOKUP($A$3,#REF!,5,FALSE)*100),#N/A) ->  | AM17: =IFERROR(IF(VLOOKUP($A$3,'BLG5-SALL'!$A$14:$CZ$500,3,FALSE)="",#N/A,VLOOKUP($A$3,'BLG5-SALL'!$A$14:$CZ$500,5,FALSE)*100),#N/A) -> 46 | AN17: =IFERROR(IF(VLOOKUP($A$3,#REF!,3,FALSE)="",#N/A,VLOOKUP($A$3,#REF!,5,FALSE)*100),#N/A) ->  | AO17: =IFERROR(IF(VLOOKUP($A$3,#REF!,3,FALSE)="",#N/A,VLOOKUP($A$3,#REF!,5,FALSE)*100),#N/A) ->  | AT17: 5 | AU17: =IFERROR(IF(VLOOKUP(VALUE($A$3),'R-2013'!$AE$6:$AR$500,3,FALSE)="",#N/A,VLOOKUP(VALUE($A$3),'R-2013'!$AE$6:$AR$500,10,FALSE)),#N/A) -> 59 | AV17: =IFERROR(IF(VLOOKUP(VALUE($A$3),'2012 FIA-Read'!$W$14:$AG$500,3,FALSE)="",#N/A,VLOOKUP(VALUE($A$3),'2012 FIA-Read'!$W$14:$AG$500,11,FALSE)*100),#N/A) -> 56.4 | AW17: =IFERROR(IF(VLOOKUP($A$3,'FIAG5-RAll'!$B$2:$AC$500,3,FALSE)="",#N/A,VLOOKUP($A$3,'FIAG5-RAll'!$B$2:$AC$500,12,FALSE)*100),#N/A) -> 57 | AX17: =IFERROR(IF(VLOOKUP(VALUE($A$3),'M-2013'!$AC$6:$AP$500,3,FALSE)="",#N/A,VLOOKUP(VALUE($A$3),'M-2013'!$AC$6:$AP$500,10,FALSE)),#N/A) -> 56 | AY17: =IFERROR(IF(VLOOKUP(VALUE($A$3),'2012 FIA-Math'!$W$14:$AG$500,3,FALSE)="",#N/A,VLOOKUP(VALUE($A$3),'2012 FIA-Math'!$W$14:$AG$500,11,FALSE)*100),#N/A) -> 57 | AZ17: =IFERROR(IF(VLOOKUP($A$3,'FIAG5-MAll'!$B$2:$AC$500,3,FALSE)="",#N/A,VLOOKUP($A$3,'FIAG5-MAll'!$B$2:$AC$500,12,FALSE)*100),#N/A) -> 55 | BA17: =IFERROR(IF(VLOOKUP(VALUE($A$3),'S-2013'!$A$6:$N$272,3,FALSE)="",#N/A,VLOOKUP(VALUE($A$3),'S-2013'!$A$6:$N$272,10,FALSE)),#N/A) -> 51 | BB17: =IFERROR(IF(VLOOKUP(VALUE($A$3),'2012 FIA-Sci'!$A$14:$K$500,3,FALSE)="",#N/A,VLOOKUP(VALUE($A$3),'2012 FIA-Sci'!$A$14:$K$500,11,FALSE)*100),#N/A) -> 48.76 | BC17: =IFERROR(IF(VLOOKUP($A$3,'FIAG5-SALL'!$B$2:$AC$500,3,FALSE)="",#N/A,VLOOKUP($A$3,'FIAG5-SALL'!$B$2:$AC$500,12,FALSE)*100),#N/A) -> 51

Sheet G3-5 WIA Trend Report
A2: Click here to return to the school and sheet selection interface | AE2: District | AF2: % Proficient - Winter IA
A3: ='Select School'!B3 -> 9999 | AF3: District
A4: =TEXT(A3,"0000")&"-"&VLOOKUP(A3,SchList!$A$2:$B$502,2,FALSE) -> 9999-District | AF4: % Proficient | AO4: % of Students Scoring at 4.0 and higher
A5: Winter IA Trend Report: 2013 FCAT 2.0, 2013 Winter Interim Assessment, and 2014 Winter Interim Assessment | AF5: Reading | AI5: Math | AL5: Science | AO5: Writing
AE6: Grade | AF6: 2013 FCAT 2.0 | AG6: 2013 WIA | AH6: 2014 WIA | AI6: 2013 FCAT 2.0 | AJ6: 2013 WIA | AK6: 2014 WIA | AL6: 2013 FCAT 2.0 | AM6: 2013 WIA | AN6: 2014 WIA | AO6: Prompt | AP6: 2013 FCAT | AQ6: 2013 Midyear | AR6: 2014 Midyear
AE7: 3 | AF7: =IFERROR(IF(VLOOKUP(9999,'R-2013'!$A$6:$N$500,3,FALSE)="",#N/A,VLOOKUP(9999,'R-2013'!$A$6:$N$500,10,FALSE)),#N/A) -> 53 | AG7: =IFERROR(IF(VLOOKUP(9999,'2013 WIA-Read'!$A$14:$K$500,3,FALSE)="",#N/A,VLOOKUP(9999,'2013 WIA-Read'!$A$14:$K$500,11,FALSE)*100),#N/A) -> 53.31 | AH7: =IFERROR(IF(VLOOKUP(9999,'WIAG3-RALL'!$B$2:$AC$500,3,FALSE)="",#N/A,VLOOKUP(9999,'WIAG3-RALL'!$B$2:$AC$500,12,FALSE)*100),#N/A) -> 53 | AI7: =IFERROR(IF(VLOOKUP(9999,'M-2013'!$A$6:$N$500,3,FALSE)="",#N/A,VLOOKUP(9999,'M-2013'!$A$6:$N$500,10,FALSE)),#N/A) -> 62 | AJ7: =IFERROR(IF(VLOOKUP(9999,'2013 WIA-Math'!$A$14:$K$500,3,FALSE)="",#N/A,VLOOKUP(9999,'2013 WIA-Math'!$A$14:$K$500,11,FALSE)*100),#N/A) -> 64.35 | AK7: =IFERROR(IF(VLOOKUP(9999,'WIAG3-MALL'!$B$2:$AC$500,3,FALSE)="",#N/A,VLOOKUP(9999,'WIAG3-MALL'!$B$2:$AC$500,12,FALSE)*100),#N/A) -> 60 | AO7: Expository | AQ7: =IFERROR(IF(VLOOKUP(9999,'2013 MY-Writing'!$A$14:$T$503,3,FALSE)="",#N/A,VLOOKUP(9999,'2013 MY-Writing'!$A$14:$T$503,11,FALSE)*100),#N/A) -> 23.28435011 | AR7: =IFERROR(IF(VLOOKUP(9999,'MYG4-WALL'!$A$2:$W$495,5,FALSE)<10,#N/A,VLOOKUP(9999,'MYG4-WALL'!$A$2:$W$495,12,FALSE)),#N/A) -> 23
AE8: 4 | AF8: =IFERROR(IF(VLOOKUP(9999,'R-2013'!$P$6:$AC$500,3,FALSE)="",#N/A,VLOOKUP(9999,'R-2013'!$P$6:$AC$500,10,FALSE)),#N/A) -> 59 | AG8: =IFERROR(IF(VLOOKUP(9999,'2013 WIA-Read'!$L$14:$V$500,3,FALSE)="",#N/A,VLOOKUP(9999,'2013 WIA-Read'!$L$14:$V$500,11,FALSE)*100),#N/A) -> 61.57 | AH8: =IFERROR(IF(VLOOKUP(9999,'WIAG4-RALL'!$B$2:$AC$500,3,FALSE)="",#N/A,VLOOKUP(9999,'WIAG4-RALL'!$B$2:$AC$500,12,FALSE)*100),#N/A) -> 60 | AI8: =IFERROR(IF(VLOOKUP(9999,'M-2013'!$O$6:$AB$500,3,FALSE)="",#N/A,VLOOKUP(9999,'M-2013'!$O$6:$AB$500,10,FALSE)),#N/A) -> 64 | AJ8: =IFERROR(IF(VLOOKUP(9999,'2013 WIA-Math'!$L$14:$V$500,3,FALSE)="",#N/A,VLOOKUP(9999,'2013 WIA-Math'!$L$14:$V$500,11,FALSE)*100),#N/A) -> 61.57 | AK8: =IFERROR(IF(VLOOKUP(9999,'WIAG4-MALL'!$B$2:$AC$500,3,FALSE)="",#N/A,VLOOKUP(9999,'WIAG4-MALL'!$B$2:$AC$500,12,FALSE)*100),#N/A) -> 68 | AO8: Narrative | AP8: =IFERROR(VLOOKUP(9999,'W13'!$A$7:$S$500,19,FALSE),#N/A) -> 37 | AQ8: =IFERROR(IF(VLOOKUP(9999,'2013 MY-Writing'!$A$14:$T$503,3,FALSE)="",#N/A,VLOOKUP(9999,'2013 MY-Writing'!$A$14:$T$503,20,FALSE)*100),#N/A) -> 24.18300654 | AR8: =IFERROR(IF(VLOOKUP(9999,'MYG4-WALL'!$A$2:$W$495,15,FALSE)<10,#N/A,VLOOKUP(9999,'MYG4-WALL'!$A$2:$W$495,22,FALSE)),#N/A) -> 27
AE9: 5 | AF9: =IFERROR(IF(VLOOKUP(9999,'R-2013'!$AE$6:$AR$500,3,FALSE)="",#N/A,VLOOKUP(9999,'R-2013'!$AE$6:$AR$500,10,FALSE)),#N/A) -> 59 | AG9: =IFERROR(IF(VLOOKUP(9999,'2013 WIA-Read'!$W$14:$AG$500,3,FALSE)="",#N/A,VLOOKUP(9999,'2013 WIA-Read'!$W$14:$AG$500,11,FALSE)*100),#N/A) -> 57.39 | AH9: =IFERROR(IF(VLOOKUP(9999,'WIAG5-RALL'!$B$2:$AC$500,3,FALSE)="",#N/A,VLOOKUP(9999,'WIAG5-RALL'!$B$2:$AC$500,12,FALSE)*100),#N/A) -> 59 | AI9: =IFERROR(IF(VLOOKUP(9999,'M-2013'!$AC$6:$AP$500,3,FALSE)="",#N/A,VLOOKUP(9999,'M-2013'!$AC$6:$AP$500,10,FALSE)),#N/A) -> 56 | AJ9: =IFERROR(IF(VLOOKUP(9999,'2013 WIA-Math'!$W$14:$AG$500,3,FALSE)="",#N/A,VLOOKUP(9999,'2013 WIA-Math'!$W$14:$AG$500,11,FALSE)*100),#N/A) -> 50.2 | AK9: =IFERROR(IF(VLOOKUP(9999,'WIAG5-MALL'!$B$2:$AC$500,3,FALSE)="",#N/A,VLOOKUP(9999,'WIAG5-MALL'!$B$2:$AC$500,12,FALSE)*100),#N/A) -> 51 | AL9: =IFERROR(IF(VLOOKUP(9999,'S-2013'!$A$6:$N$272,3,FALSE)="",#N/A,VLOOKUP(9999,'S-2013'!$A$6:$N$272,10,FALSE)),#N/A) -> 51 | AM9: =IFERROR(IF(VLOOKUP(9999,'2013 WIA-Sci'!$A$14:$K$500,3,FALSE)="",#N/A,VLOOKUP(9999,'2013 WIA-Sci'!$A$14:$K$500,11,FALSE)*100),#N/A) -> 52.43 | AN9: =IFERROR(IF(VLOOKUP(9999,'WIAG5-SALL'!$B$2:$AC$500,3,FALSE)="",#N/A,VLOOKUP(9999,'WIAG5-SALL'!$B$2:$AC$500,12,FALSE)*100),#N/A) -> 56
AE11: School | AF11: =A4 -> 9999-District
AF12: % Proficient | AO12: % of Students Scoring at 4.0 and higher
AF13: Reading | AI13: Math | AL13: Science | AO13: Writing
AE14: Grade | AF14: 2013 FCAT 2.0 | AG14: 2013 WIA | AH14: 2014 WIA | AI14: 2013 FCAT 2.0 | AJ14: 2013 WIA | AK14: 2014 WIA | AL14: 2013 FCAT 2.0 | AM14: 2013 WIA | AN14: 2014 WIA | AO14: Prompt | AP14: FCAT | AQ14: 2013 Midyear | AR14: 2014 Midyear
AE15: 3 | AF15: =IFERROR(IF(VLOOKUP(VALUE($A$3),'R-2013'!$A$6:$N$500,3,FALSE)="",#N/A,VLOOKUP(VALUE($A$3),'R-2013'!$A$6:$N$500,10,FALSE)),#N/A) -> 53 | AG15: =IFERROR(IF(VLOOKUP($A$3,'2013 WIA-Read'!$A$14:$K$500,3,FALSE)="",#N/A,VLOOKUP($A$3,'2013 WIA-Read'!$A$14:$K$500,11,FALSE)*100),#N/A) -> 53.31 | AH15: =IFERROR(IF(VLOOKUP($A$3,'WIAG3-RALL'!$B$2:$AC$500,3,FALSE)="",#N/A,VLOOKUP($A$3,'WIAG3-RALL'!$B$2:$AC$500,12,FALSE)*100),#N/A) -> 53 | AI15: =IFERROR(IF(VLOOKUP(VALUE($A$3),'M-2013'!$A$6:$N$500,3,FALSE)="",#N/A,VLOOKUP(VALUE($A$3),'M-2013'!$A$6:$N$500,10,FALSE)),#N/A) -> 62 | AJ15: =IFERROR(IF(VLOOKUP($A$3,'2013 WIA-Math'!$A$14:$K$500,3,FALSE)="",#N/A,VLOOKUP($A$3,'2013 WIA-Math'!$A$14:$K$500,11,FALSE)*100),#N/A) -> 64.35 | AK15: =IFERROR(IF(VLOOKUP($A$3,'WIAG3-MALL'!$B$2:$AC$500,3,FALSE)="",#N/A,VLOOKUP($A$3,'WIAG3-MALL'!$B$2:$AC$500,12,FALSE)*100),#N/A) -> 60 | AO15: Expository | AQ15: =IFERROR(IF(VLOOKUP($A$3,'2013 MY-Writing'!$A$14:$T$503,3,FALSE)="",#N/A,VLOOKUP($A$3,'2013 MY-Writing'!$A$14:$T$503,11,FALSE)*100),#N/A) -> 23.28435011 | AR15: =IFERROR(IF(VLOOKUP($A$3,'MYG4-WALL'!$A$2:$W$495,5,FALSE)<10,#N/A,VLOOKUP($A$3,'MYG4-WALL'!$A$2:$W$495,12,FALSE)),#N/A) -> 23
AE16: 4 | AF16: =IFERROR(IF(VLOOKUP(VALUE($A$3),'R-2013'!$P$6:$AC$500,3,FALSE)="",#N/A,VLOOKUP(VALUE($A$3),'R-2013'!$P$6:$AC$500,10,FALSE)),#N/A) -> 59 | AG16: =IFERROR(IF(VLOOKUP($A$3,'2013 WIA-Read'!$L$14:$V$500,3,FALSE)="",#N/A,VLOOKUP($A$3,'2013 WIA-Read'!$L$14:$V$500,11,FALSE)*100),#N/A) -> 61.57 | AH16: =IFERROR(IF(VLOOKUP($A$3,'WIAG4-RALL'!$B$2:$AC$500,3,FALSE)="",#N/A,VLOOKUP($A$3,'WIAG4-RALL'!$B$2:$AC$500,12,FALSE)*100),#N/A) -> 60 | AI16: =IFERROR(IF(VLOOKUP(VALUE($A$3),'M-2013'!$O$6:$AB$500,3,FALSE)="",#N/A,VLOOKUP(VALUE($A$3),'M-2013'!$O$6:$AB$500,10,FALSE)),#N/A) -> 64 | AJ16: =IFERROR(IF(VLOOKUP($A$3,'2013 WIA-Math'!$L$14:$V$500,3,FALSE)="",#N/A,VLOOKUP($A$3,'2013 WIA-Math'!$L$14:$V$500,11,FALSE)*100),#N/A) -> 61.57 | AK16: =IFERROR(IF(VLOOKUP($A$3,'WIAG4-MALL'!$B$2:$AC$500,3,FALSE)="",#N/A,VLOOKUP($A$3,'WIAG4-MALL'!$B$2:$AC$500,12,FALSE)*100),#N/A) -> 68 | AO16: Narrative | AP16: =IFERROR(VLOOKUP($A$3,'W13'!$A$7:$S$500,19,FALSE),#N/A) -> 37 | AQ16: =IFERROR(IF(VLOOKUP($A$3,'2013 MY-Writing'!$A$14:$T$503,3,FALSE)="",#N/A,VLOOKUP($A$3,'2013 MY-Writing'!$A$14:$T$503,20,FALSE)*100),#N/A) -> 24.18300654 | AR16: =IFERROR(IF(VLOOKUP($A$3,'MYG4-WALL'!$A$2:$W$495,15,FALSE)<10,#N/A,VLOOKUP($A$3,'MYG4-WALL'!$A$2:$W$495,22,FALSE)),#N/A) -> 27
AE17: 5 | AF17: =IFERROR(IF(VLOOKUP(VALUE($A$3),'R-2013'!$AE$6:$AR$500,3,FALSE)="",#N/A,VLOOKUP(VALUE($A$3),'R-2013'!$AE$6:$AR$500,10,FALSE)),#N/A) -> 59 | AG17: =IFERROR(IF(VLOOKUP($A$3,'2013 WIA-Read'!$W$14:$AG$500,3,FALSE)="",#N/A,VLOOKUP($A$3,'2013 WIA-Read'!$W$14:$AG$500,11,FALSE)*100),#N/A) -> 57.39 | AH17: =IFERROR(IF(VLOOKUP($A$3,'WIAG5-RALL'!$B$2:$AC$500,3,FALSE)="",#N/A,VLOOKUP($A$3,'WIAG5-RALL'!$B$2:$AC$500,12,FALSE)*100),#N/A) -> 59 | AI17: =IFERROR(IF(VLOOKUP(VALUE($A$3),'M-2013'!$AC$6:$AP$500,3,FALSE)="",#N/A,VLOOKUP(VALUE($A$3),'M-2013'!$AC$6:$AP$500,10,FALSE)),#N/A) -> 56 | AJ17: =IFERROR(IF(VLOOKUP($A$3,'2013 WIA-Math'!$W$14:$AG$500,3,FALSE)="",#N/A,VLOOKUP($A$3,'2013 WIA-Math'!$W$14:$AG$500,11,FALSE)*100),#N/A) -> 50.2 | AK17: =IFERROR(IF(VLOOKUP($A$3,'WIAG5-MALL'!$B$2:$AC$500,3,FALSE)="",#N/A,VLOOKUP($A$3,'WIAG5-MALL'!$B$2:$AC$500,12,FALSE)*100),#N/A) -> 51 | AL17: =IFERROR(IF(VLOOKUP(VALUE($A$3),'S-2013'!$A$6:$N$272,3,FALSE)="",#N/A,VLOOKUP(VALUE($A$3),'S-2013'!$A$6:$N$272,10,FALSE)),#N/A) -> 51 | AM17: =IFERROR(IF(VLOOKUP($A$3,'2013 WIA-Sci'!$A$14:$K$500,3,FALSE)="",#N/A,VLOOKUP($A$3,'2013 WIA-Sci'!$A$14:$K$500,11,FALSE)*100),#N/A) -> 52.43 | AN17: =IFERROR(IF(VLOOKUP($A$3,'WIAG5-SALL'!$B$2:$AC$500,3,FALSE)="",#N/A,VLOOKUP($A$3,'WIAG5-SALL'!$B$2:$AC$500,12,FALSE)*100),#N/A) -> 56

Sheet G3-5 YAG Trend
A2: Click here to return to the school and sheet selection interface | AF2: District | AG2: Average % Correct | AT2: District | AU2: % Proficient - Fall IA, Winter IA, FCAT 2.0
A3: ='Select School'!B3 -> 9999 | AG3: District | AU3: District
A4: =TEXT(A3,"0000")&"-"&VLOOKUP(A3,SchList!$A$2:$B$502,2,FALSE) -> 9999-District | AG4: Average % Correct | AP4: Average Score | AU4: % Proficient | BD4: % of Students Scoring at 4.0 and higher
A5: Year-at-a-Glance Trend Report: 2013-14 Fall Interim, 2013-14 Winter Interim, and 2014 FCAT 2.0 | AG5: Reading | AJ5: Math | AM5: Science | AP5: Writing | AU5: Reading | AX5: Math | BA5: Science | BD5: Writing
AF6: Grade | AG6: 2012 FCAT 2.0 | AH6: 2011 Fall IA | AI6: 2012 wia | AJ6: Baseline | AK6: Fall IA | AL6: Winter IA | AM6: BL | AN6: Fall | AO6: Winter | AP6: Prompt | AQ6: Pre-Test | AR6: Midyear | AT6: Grade | AU6: 2013-14 FIA | AV6: 2013-14 WIA | AW6: 2014 FCAT 2.0 | AX6: 2013-14 FIA | AY6: 2013-14 WIA | AZ6: 2014 FCAT 2.0 | BA6: FIA | BB6: WIA | BC6: 2014 FCAT 2.0 | BD6: Prompt | BE6: 2013-14 Pre-Test | BF6: 2013-14 Midyear | BG6: 2014 FCAT2.0
AF7: 3 | AG7: =IFERROR(IF(VLOOKUP(9999,'BLG3-RALL'!$A$14:$CZ$500,3,FALSE)="",#N/A,VLOOKUP(9999,'BLG3-RALL'!$A$14:$CZ$500,5,FALSE)*100),#N/A) -> 55 | AH7: =IFERROR(IF(VLOOKUP(9999,#REF!,3,FALSE)="",#N/A,VLOOKUP(9999,#REF!,5,FALSE)*100),#N/A) ->  | AI7: =IFERROR(IF(VLOOKUP(9999,#REF!,3,FALSE)="",#N/A,VLOOKUP(9999,#REF!,5,FALSE)*100),#N/A) ->  | AJ7: =IFERROR(IF(VLOOKUP(9999,'BLG3-MALL'!$A$14:$CZ$500,3,FALSE)="",#N/A,VLOOKUP(9999,'BLG3-MALL'!$A$14:$CZ$500,5,FALSE)*100),#N/A) -> 39 | AK7: =IFERROR(IF(VLOOKUP(9999,#REF!,3,FALSE)="",#N/A,VLOOKUP(9999,#REF!,5,FALSE)*100),#N/A) ->  | AL7: =IFERROR(IF(VLOOKUP(9999,#REF!,3,FALSE)="",#N/A,VLOOKUP(9999,#REF!,5,FALSE)*100),#N/A) ->  | AP7: Expository | AQ7: =IFERROR(IF(VLOOKUP(9999,'BLG4-WALL'!$A$14:$CZ$503,3,FALSE)="",#N/A,VLOOKUP(9999,'BLG4-WALL'!$A$14:$CZ$503,4,FALSE)),#N/A) -> 1.399999976 | AR7: =IFERROR(IF(VLOOKUP(9999,'MYG4-WALL'!$A$14:$CG$495,3,FALSE)="",#N/A,VLOOKUP(9999,'MYG4-WALL'!$A$14:$CG$495,4,FALSE)),#N/A) -> E | AT7: 3 | AU7: =IFERROR(IF(VLOOKUP(9999,'FIAG3-RAll'!$B$2:$AC$500,3,FALSE)="",#N/A,VLOOKUP(9999,'FIAG3-RAll'!$B$2:$AC$500,12,FALSE)*100),#N/A) -> 51 | AV7: =IFERROR(IF(VLOOKUP(9999,'WIAG3-RALL'!$B$2:$AC$500,3,FALSE)="",#N/A,VLOOKUP(9999,'WIAG3-RALL'!$B$2:$AC$500,12,FALSE)*100),#N/A) -> 53 | AW7: =IFERROR(VLOOKUP(9999,'R-2014'!$A$3:$N$500,10,FALSE),"") -> 56 | AX7: =IFERROR(IF(VLOOKUP(9999,'FIAG3-MAll'!$B$2:$AC$500,3,FALSE)="",#N/A,VLOOKUP(9999,'FIAG3-MAll'!$B$2:$AC$500,12,FALSE)*100),#N/A) -> 61 | AY7: =IFERROR(IF(VLOOKUP(9999,'WIAG3-MALL'!$B$2:$AC$500,3,FALSE)="",#N/A,VLOOKUP(9999,'WIAG3-MALL'!$B$2:$AC$500,12,FALSE)*100),#N/A) -> 60 | AZ7: =IFERROR(VLOOKUP(9999,'M-2014'!$A$7:$M$500,10,FALSE),"") -> 62 | BD7: Expository | BE7: =IFERROR(IF(VLOOKUP(9999,'BLG4-WALL'!$A$14:$CZ$503,3,FALSE)="",#N/A,VLOOKUP(9999,'BLG4-WALL'!$A$14:$CZ$503,11,FALSE)*100),#N/A) -> 1.13 | BF7: =IFERROR(IF(VLOOKUP(9999,'MYG4-WALL'!$A$2:$W$495,5,FALSE)<10,#N/A,VLOOKUP(9999,'MYG4-WALL'!$A$2:$W$495,12,FALSE)),#N/A) -> 23 | BG7: =IFERROR(VLOOKUP(9999,'W14'!$A$7:$S$500,19,FALSE),#N/A) -> 33
AF8: 4 | AG8: =IFERROR(IF(VLOOKUP(9999,'BLG4-RALL'!$A$14:$CZ$500,3,FALSE)="",#N/A,VLOOKUP(9999,'BLG4-RALL'!$A$14:$CZ$500,5,FALSE)*100),#N/A) -> 60 | AH8: =IFERROR(IF(VLOOKUP(9999,#REF!,3,FALSE)="",#N/A,VLOOKUP(9999,#REF!,5,FALSE)*100),#N/A) ->  | AI8: =IFERROR(IF(VLOOKUP(9999,#REF!,3,FALSE)="",#N/A,VLOOKUP(9999,#REF!,5,FALSE)*100),#N/A) ->  | AJ8: =IFERROR(IF(VLOOKUP(9999,'BLG4-MALL'!$A$14:$CZ$500,3,FALSE)="",#N/A,VLOOKUP(9999,'BLG4-MALL'!$A$14:$CZ$500,5,FALSE)*100),#N/A) -> 41 | AK8: =IFERROR(IF(VLOOKUP(9999,#REF!,3,FALSE)="",#N/A,VLOOKUP(9999,#REF!,5,FALSE)*100),#N/A) ->  | AL8: =IFERROR(IF(VLOOKUP(9999,#REF!,3,FALSE)="",#N/A,VLOOKUP(9999,#REF!,5,FALSE)*100),#N/A) ->  | AP8: Narrative | AQ8: =IFERROR(IF(VLOOKUP(9999,'BLG4-WALL'!$A$14:$CZ$503,12,FALSE)="",#N/A,VLOOKUP(9999,'BLG4-WALL'!$A$14:$CZ$503,13,FALSE)),#N/A) -> 1.5 | AR8: =IFERROR(IF(VLOOKUP(9999,'MYG4-WALL'!$A$14:$CG$495,12,FALSE)="",#N/A,VLOOKUP(9999,'MYG4-WALL'!$A$14:$CG$495,13,FALSE)),#N/A) -> 61 | AT8: 4 | AU8: =IFERROR(IF(VLOOKUP(9999,'FIAG4-RAll'!$B$2:$AC$500,3,FALSE)="",#N/A,VLOOKUP(9999,'FIAG4-RAll'!$B$2:$AC$500,12,FALSE)*100),#N/A) -> 62 | AV8: =IFERROR(IF(VLOOKUP(9999,'WIAG4-RALL'!$B$2:$AC$500,3,FALSE)="",#N/A,VLOOKUP(9999,'WIAG4-RALL'!$B$2:$AC$500,12,FALSE)*100),#N/A) -> 60 | AW8: =IFERROR(VLOOKUP(9999,'R-2014'!$P$7:$AC$500,10,FALSE),"") -> 63 | AX8: =IFERROR(IF(VLOOKUP(9999,'FIAG4-MAll'!$B$2:$AC$500,3,FALSE)="",#N/A,VLOOKUP(9999,'FIAG4-MAll'!$B$2:$AC$500,12,FALSE)*100),#N/A) -> 65 | AY8: =IFERROR(IF(VLOOKUP(9999,'WIAG4-MALL'!$B$2:$AC$500,3,FALSE)="",#N/A,VLOOKUP(9999,'WIAG4-MALL'!$B$2:$AC$500,12,FALSE)*100),#N/A) -> 68 | AZ8: =IFERROR(IF(VLOOKUP(9999,'M-2014'!$O$6:$AB$500,3,FALSE)="",#N/A,VLOOKUP(9999,'M-2014'!$O$6:$AB$500,10,FALSE)),#N/A) -> 66 | BD8: Narrative | BE8: =IFERROR(IF(VLOOKUP(9999,'BLG4-WALL'!$A$14:$CZ$503,12,FALSE)="",#N/A,VLOOKUP(9999,'BLG4-WALL'!$A$14:$CZ$503,20,FALSE)*100),#N/A) -> 2.32 | BF8: =IFERROR(IF(VLOOKUP(9999,'MYG4-WALL'!$A$2:$W$495,15,FALSE)<10,#N/A,VLOOKUP(9999,'MYG4-WALL'!$A$2:$W$495,22,FALSE)),#N/A) -> 27
AF9: 5 | AG9: =IFERROR(IF(VLOOKUP(9999,'BLG5-RALL'!$A$14:$CZ$500,3,FALSE)="",#N/A,VLOOKUP(9999,'BLG5-RALL'!$A$14:$CZ$500,5,FALSE)*100),#N/A) -> 61 | AH9: =IFERROR(IF(VLOOKUP(9999,#REF!,3,FALSE)="",#N/A,VLOOKUP(9999,#REF!,5,FALSE)*100),#N/A) ->  | AI9: =IFERROR(IF(VLOOKUP(9999,#REF!,3,FALSE)="",#N/A,VLOOKUP(9999,#REF!,5,FALSE)*100),#N/A) ->  | AJ9: =IFERROR(IF(VLOOKUP(9999,'BLG5-MALL'!$A$14:$CZ$500,3,FALSE)="",#N/A,VLOOKUP(9999,'BLG5-MALL'!$A$14:$CZ$500,5,FALSE)*100),#N/A) -> 42 | AK9: =IFERROR(IF(VLOOKUP(9999,#REF!,3,FALSE)="",#N/A,VLOOKUP(9999,#REF!,5,FALSE)*100),#N/A) ->  | AL9: =IFERROR(IF(VLOOKUP(9999,#REF!,3,FALSE)="",#N/A,VLOOKUP(9999,#REF!,5,FALSE)*100),#N/A) ->  | AM9: =IFERROR(IF(VLOOKUP(9999,'BLG5-SALL'!$A$14:$CZ$500,3,FALSE)="",#N/A,VLOOKUP(9999,'BLG5-SALL'!$A$14:$CZ$500,5,FALSE)*100),#N/A) -> 46 | AN9: =IFERROR(IF(VLOOKUP(9999,#REF!,3,FALSE)="",#N/A,VLOOKUP(9999,#REF!,5,FALSE)*100),#N/A) ->  | AO9: =IFERROR(IF(VLOOKUP(9999,#REF!,3,FALSE)="",#N/A,VLOOKUP(9999,#REF!,5,FALSE)*100),#N/A) ->  | AT9: 5 | AU9: =IFERROR(IF(VLOOKUP(9999,'FIAG5-RAll'!$B$2:$AC$500,3,FALSE)="",#N/A,VLOOKUP(9999,'FIAG5-RAll'!$B$2:$AC$500,12,FALSE)*100),#N/A) -> 57 | AV9: =IFERROR(IF(VLOOKUP(9999,'WIAG5-RALL'!$B$2:$AC$500,3,FALSE)="",#N/A,VLOOKUP(9999,'WIAG5-RALL'!$B$2:$AC$500,12,FALSE)*100),#N/A) -> 59 | AW9: =IFERROR(VLOOKUP(9999,'R-2014'!$AE$7:$AR$500,10,FALSE),"") -> 61 | AX9: =IFERROR(IF(VLOOKUP(9999,'FIAG5-MAll'!$B$2:$AC$500,3,FALSE)="",#N/A,VLOOKUP(9999,'FIAG5-MAll'!$B$2:$AC$500,12,FALSE)*100),#N/A) -> 55 | AY9: =IFERROR(IF(VLOOKUP(9999,'WIAG5-MALL'!$B$2:$AC$500,3,FALSE)="",#N/A,VLOOKUP(9999,'WIAG5-MALL'!$B$2:$AC$500,12,FALSE)*100),#N/A) -> 51 | AZ9: =IFERROR(IF(VLOOKUP(9999,'M-2014'!$AC$6:$AP$500,3,FALSE)="",#N/A,VLOOKUP(9999,'M-2014'!$AC$6:$AP$500,10,FALSE)),#N/A) -> 58 | BA9: =IFERROR(IF(VLOOKUP(9999,'FIAG5-SALL'!$B$2:$AC$500,3,FALSE)="",#N/A,VLOOKUP(9999,'FIAG5-SALL'!$B$2:$AC$500,12,FALSE)*100),#N/A) -> 51 | BB9: =IFERROR(IF(VLOOKUP(9999,'WIAG5-SALL'!$B$2:$AC$500,3,FALSE)="",#N/A,VLOOKUP(9999,'WIAG5-SALL'!$B$2:$AC$500,12,FALSE)*100),#N/A) -> 56 | BC9: =IFERROR(VLOOKUP(9999,'S-2014'!$A$3:$N$500,10,FALSE),#N/A) -> 51
AF11: School | AG11: =A4 -> 9999-District | AT11: School | AU11: =A4 -> 9999-District
AG12: Average % Correct | AP12: Average Score | AU12: % Proficient | BD12: % of Students Scoring at 4.0 and higher
AG13: Reading | AJ13: Math | AM13: Science | AP13: Writing | AU13: Reading | AX13: Math | BA13: Science | BD13: Writing
AF14: Grade | AG14: Baseline | AH14: Fall IA | AI14: Winter IA | AJ14: Baseline | AK14: Fall IA | AL14: Winter IA | AM14: BL | AN14: Fall | AO14: Winter | AP14: Prompt | AQ14: Pre-Test | AR14: Midyear | AT14: Grade | AU14: 2013-14 FIA | AV14: 2013-14 WIA | AW14: 2014 FCAT 2.0 | AX14: 2013-14 FIA | AY14: 2013-14 WIA | AZ14: 2014 FCAT 2.0 | BA14: FIA | BB14: WIA | BC14: 2014 FCAT 2.0 | BD14: Prompt | BE14: 2013-14 Pre-Test | BF14: 2013-14 Midyear | BG14: 2014 FCAT2.0
AF15: 3 | AG15: =IFERROR(IF(VLOOKUP($A$3,'BLG3-RALL'!$A$14:$CZ$500,3,FALSE)="",#N/A,VLOOKUP($A$3,'BLG3-RALL'!$A$14:$CZ$500,5,FALSE)*100),#N/A) -> 55 | AH15: =IFERROR(IF(VLOOKUP($A$3,#REF!,3,FALSE)="",#N/A,VLOOKUP($A$3,#REF!,5,FALSE)*100),#N/A) ->  | AI15: =IFERROR(IF(VLOOKUP($A$3,#REF!,3,FALSE)="",#N/A,VLOOKUP($A$3,#REF!,5,FALSE)*100),#N/A) ->  | AJ15: =IFERROR(IF(VLOOKUP($A$3,'BLG3-MALL'!$A$14:$CZ$500,3,FALSE)="",#N/A,VLOOKUP($A$3,'BLG3-MALL'!$A$14:$CZ$500,5,FALSE)*100),#N/A) -> 39 | AK15: =IFERROR(IF(VLOOKUP($A$3,#REF!,3,FALSE)="",#N/A,VLOOKUP($A$3,#REF!,5,FALSE)*100),#N/A) ->  | AL15: =IFERROR(IF(VLOOKUP($A$3,#REF!,3,FALSE)="",#N/A,VLOOKUP($A$3,#REF!,5,FALSE)*100),#N/A) ->  | AP15: Expository | AQ15: =IFERROR(IF(VLOOKUP($A$3,'BLG4-WALL'!$A$14:$CZ$503,3,FALSE)="",#N/A,VLOOKUP($A$3,'BLG4-WALL'!$A$14:$CZ$503,4,FALSE)),#N/A) -> 1.399999976 | AR15: =IFERROR(IF(VLOOKUP($A$3,'MYG4-WALL'!$A$14:$CG$495,3,FALSE)="",#N/A,VLOOKUP($A$3,'MYG4-WALL'!$A$14:$CG$495,4,FALSE)),#N/A) -> E | AT15: 3 | AU15: =IFERROR(IF(VLOOKUP($A$3,'FIAG3-RAll'!$B$2:$AC$500,3,FALSE)="",#N/A,VLOOKUP($A$3,'FIAG3-RAll'!$B$2:$AC$500,12,FALSE)*100),#N/A) -> 51 | AV15: =IFERROR(IF(VLOOKUP($A$3,'WIAG3-RALL'!$B$2:$AC$500,3,FALSE)="",#N/A,VLOOKUP($A$3,'WIAG3-RALL'!$B$2:$AC$500,12,FALSE)*100),#N/A) -> 53 | AW15: =IFERROR(VLOOKUP($A$3,'R-2014'!$A$3:$N$500,10,FALSE),"") -> 56 | AX15: =IFERROR(IF(VLOOKUP($A$3,'FIAG3-MAll'!$B$2:$AC$500,3,FALSE)="",#N/A,VLOOKUP($A$3,'FIAG3-MAll'!$B$2:$AC$500,12,FALSE)*100),#N/A) -> 61 | AY15: =IFERROR(IF(VLOOKUP($A$3,'WIAG3-MALL'!$B$2:$AC$500,3,FALSE)="",#N/A,VLOOKUP($A$3,'WIAG3-MALL'!$B$2:$AC$500,12,FALSE)*100),#N/A) -> 60 | AZ15: =IFERROR(VLOOKUP($A$3,'M-2014'!$A$7:$M$500,10,FALSE),"") -> 62 | BD15: Expository | BE15: =IFERROR(IF(VLOOKUP(VALUE($A$3),'BLG4-WALL'!$A$14:$CZ$503,3,FALSE)="",#N/A,VLOOKUP(VALUE($A$3),'BLG4-WALL'!$A$14:$CZ$503,11,FALSE)*100),#N/A) -> 1.13 | BF15: =IFERROR(IF(VLOOKUP($A$3,'MYG4-WALL'!$A$2:$W$495,5,FALSE)<10,#N/A,VLOOKUP($A$3,'MYG4-WALL'!$A$2:$W$495,12,FALSE)),#N/A) -> 23 | BG15: =IFERROR(VLOOKUP($A$3,'W14'!$A$7:$S$500,19,FALSE),#N/A) -> 33
AF16: 4 | AG16: =IFERROR(IF(VLOOKUP($A$3,'BLG4-RALL'!$A$14:$CZ$500,3,FALSE)="",#N/A,VLOOKUP($A$3,'BLG4-RALL'!$A$14:$CZ$500,5,FALSE)*100),#N/A) -> 60 | AH16: =IFERROR(IF(VLOOKUP($A$3,#REF!,3,FALSE)="",#N/A,VLOOKUP($A$3,#REF!,5,FALSE)*100),#N/A) ->  | AI16: =IFERROR(IF(VLOOKUP($A$3,#REF!,3,FALSE)="",#N/A,VLOOKUP($A$3,#REF!,5,FALSE)*100),#N/A) ->  | AJ16: =IFERROR(IF(VLOOKUP($A$3,'BLG4-MALL'!$A$14:$CZ$500,3,FALSE)="",#N/A,VLOOKUP($A$3,'BLG4-MALL'!$A$14:$CZ$500,5,FALSE)*100),#N/A) -> 41 | AK16: =IFERROR(IF(VLOOKUP($A$3,#REF!,3,FALSE)="",#N/A,VLOOKUP($A$3,#REF!,5,FALSE)*100),#N/A) ->  | AL16: =IFERROR(IF(VLOOKUP($A$3,#REF!,3,FALSE)="",#N/A,VLOOKUP($A$3,#REF!,5,FALSE)*100),#N/A) ->  | AP16: Narrative | AQ16: =IFERROR(IF(VLOOKUP($A$3,'BLG4-WALL'!$A$14:$CZ$503,12,FALSE)="",#N/A,VLOOKUP($A$3,'BLG4-WALL'!$A$14:$CZ$503,13,FALSE)),#N/A) -> 1.5 | AR16: =IFERROR(IF(VLOOKUP($A$3,'MYG4-WALL'!$A$14:$CG$495,12,FALSE)="",#N/A,VLOOKUP($A$3,'MYG4-WALL'!$A$14:$CG$495,13,FALSE)),#N/A) -> 61 | AT16: 4 | AU16: =IFERROR(IF(VLOOKUP($A$3,'FIAG4-RAll'!$B$2:$AC$500,3,FALSE)="",#N/A,VLOOKUP($A$3,'FIAG4-RAll'!$B$2:$AC$500,12,FALSE)*100),#N/A) -> 62 | AV16: =IFERROR(IF(VLOOKUP($A$3,'WIAG4-RALL'!$B$2:$AC$500,3,FALSE)="",#N/A,VLOOKUP($A$3,'WIAG4-RALL'!$B$2:$AC$500,12,FALSE)*100),#N/A) -> 60 | AW16: =IFERROR(VLOOKUP($A$3,'R-2014'!$P$7:$AC$500,10,FALSE),"") -> 63 | AX16: =IFERROR(IF(VLOOKUP($A$3,'FIAG4-MAll'!$B$2:$AC$500,3,FALSE)="",#N/A,VLOOKUP($A$3,'FIAG4-MAll'!$B$2:$AC$500,12,FALSE)*100),#N/A) -> 65 | AY16: =IFERROR(IF(VLOOKUP($A$3,'WIAG4-MALL'!$B$2:$AC$500,3,FALSE)="",#N/A,VLOOKUP($A$3,'WIAG4-MALL'!$B$2:$AC$500,12,FALSE)*100),#N/A) -> 68 | AZ16: =IFERROR(IF(VLOOKUP($A$3,'M-2014'!$O$6:$AB$500,3,FALSE)="",#N/A,VLOOKUP($A$3,'M-2014'!$O$6:$AB$500,10,FALSE)),#N/A) -> 66 | BD16: Narrative | BE16: =IFERROR(IF(VLOOKUP(VALUE($A$3),'BLG4-WALL'!$A$14:$CZ$503,12,FALSE)="",#N/A,VLOOKUP(VALUE($A$3),'BLG4-WALL'!$A$14:$CZ$503,20,FALSE)*100),#N/A) -> 2.32 | BF16: =IFERROR(IF(VLOOKUP($A$3,'MYG4-WALL'!$A$2:$W$495,15,FALSE)<10,#N/A,VLOOKUP($A$3,'MYG4-WALL'!$A$2:$W$495,22,FALSE)),#N/A) -> 27
AF17: 5 | AG17: =IFERROR(IF(VLOOKUP($A$3,'BLG5-RALL'!$A$14:$CZ$500,3,FALSE)="",#N/A,VLOOKUP($A$3,'BLG5-RALL'!$A$14:$CZ$500,5,FALSE)*100),#N/A) -> 61 | AH17: =IFERROR(IF(VLOOKUP($A$3,#REF!,3,FALSE)="",#N/A,VLOOKUP($A$3,#REF!,5,FALSE)*100),#N/A) ->  | AI17: =IFERROR(IF(VLOOKUP($A$3,#REF!,3,FALSE)="",#N/A,VLOOKUP($A$3,#REF!,5,FALSE)*100),#N/A) ->  | AJ17: =IFERROR(IF(VLOOKUP($A$3,'BLG5-MALL'!$A$14:$CZ$500,3,FALSE)="",#N/A,VLOOKUP($A$3,'BLG5-MALL'!$A$14:$CZ$500,5,FALSE)*100),#N/A) -> 42 | AK17: =IFERROR(IF(VLOOKUP($A$3,#REF!,3,FALSE)="",#N/A,VLOOKUP($A$3,#REF!,5,FALSE)*100),#N/A) ->  | AL17: =IFERROR(IF(VLOOKUP($A$3,#REF!,3,FALSE)="",#N/A,VLOOKUP($A$3,#REF!,5,FALSE)*100),#N/A) ->  | AM17: =IFERROR(IF(VLOOKUP($A$3,'BLG5-SALL'!$A$14:$CZ$500,3,FALSE)="",#N/A,VLOOKUP($A$3,'BLG5-SALL'!$A$14:$CZ$500,5,FALSE)*100),#N/A) -> 46 | AN17: =IFERROR(IF(VLOOKUP($A$3,#REF!,3,FALSE)="",#N/A,VLOOKUP($A$3,#REF!,5,FALSE)*100),#N/A) ->  | AO17: =IFERROR(IF(VLOOKUP($A$3,#REF!,3,FALSE)="",#N/A,VLOOKUP($A$3,#REF!,5,FALSE)*100),#N/A) ->  | AT17: 5 | AU17: =IFERROR(IF(VLOOKUP($A$3,'FIAG5-RAll'!$B$2:$AC$500,3,FALSE)="",#N/A,VLOOKUP($A$3,'FIAG5-RAll'!$B$2:$AC$500,12,FALSE)*100),#N/A) -> 57 | AV17: =IFERROR(IF(VLOOKUP($A$3,'WIAG5-RALL'!$B$2:$AC$500,3,FALSE)="",#N/A,VLOOKUP($A$3,'WIAG5-RALL'!$B$2:$AC$500,12,FALSE)*100),#N/A) -> 59 | AW17: =IFERROR(VLOOKUP($A$3,'R-2014'!$AE$7:$AR$500,10,FALSE),"") -> 61 | AX17: =IFERROR(IF(VLOOKUP($A$3,'FIAG5-MAll'!$B$2:$AC$500,3,FALSE)="",#N/A,VLOOKUP($A$3,'FIAG5-MAll'!$B$2:$AC$500,12,FALSE)*100),#N/A) -> 55 | AY17: =IFERROR(IF(VLOOKUP($A$3,'WIAG5-MALL'!$B$2:$AC$500,3,FALSE)="",#N/A,VLOOKUP($A$3,'WIAG5-MALL'!$B$2:$AC$500,12,FALSE)*100),#N/A) -> 51 | AZ17: =IFERROR(IF(VLOOKUP($A$3,'M-2014'!$AC$6:$AP$500,3,FALSE)="",#N/A,VLOOKUP($A$3,'M-2014'!$AC$6:$AP$500,10,FALSE)),#N/A) -> 58 | BA17: =IFERROR(IF(VLOOKUP($A$3,'FIAG5-SALL'!$B$2:$AC$500,3,FALSE)="",#N/A,VLOOKUP($A$3,'FIAG5-SALL'!$B$2:$AC$500,12,FALSE)*100),#N/A) -> 51 | BB17: =IFERROR(IF(VLOOKUP($A$3,'WIAG5-SALL'!$B$2:$AC$500,3,FALSE)="",#N/A,VLOOKUP($A$3,'WIAG5-SALL'!$B$2:$AC$500,12,FALSE)*100),#N/A) -> 56 | BC17: =IFERROR(VLOOKUP($A$3,'S-2014'!$A$3:$N$500,10,FALSE),#N/A) -> 51

Sheet G3-6 WIA Trend Report (hidden)
A2: Click here to return to the school and sheet selection interface | AG2: District | AH2: % Proficient
A3: ='Select School'!B3 -> 9999 | AH3: District
A4: =TEXT(A3,"0000")&"-"&VLOOKUP(A3,SchList!$A$2:$B$502,2,FALSE) -> 9999-District | AH4: % Proficient | AQ4: % of Students Scoring at 4.0 and higher
A5: Trend Report: 2013 FCAT 2.0, 2013 Winter Interim Assessment, and 2014 Winter Interim Assessment | AH5: Reading | AK5: Math | AN5: Science | AQ5: Writing
AG6: Grade | AH6: 2013 FCAT 2.0 | AI6: 2013 WIA | AJ6: 2014 WIA | AK6: 2013 FCAT 2.0 | AL6: 2013 WIA | AM6: 2014 WIA | AN6: 2013 FCAT 2.0 | AO6: 2013 WIA | AP6: 2014 WIA | AQ6: Prompt | AR6: 2013 FCAT | AS6: 2013 Midyear | AT6: 2014 Midyear
AG7: 3 | AH7: =IFERROR(IF(VLOOKUP(9999,'R-2013'!$A$6:$N$500,3,FALSE)="",#N/A,VLOOKUP(9999,'R-2013'!$A$6:$N$500,10,FALSE)),#N/A) -> 53 | AI7: =IFERROR(IF(VLOOKUP(9999,'2013 WIA-Read'!$A$14:$K$500,3,FALSE)="",#N/A,VLOOKUP(9999,'2013 WIA-Read'!$A$14:$K$500,11,FALSE)*100),#N/A) -> 53.31 | AJ7: =IFERROR(IF(VLOOKUP(9999,'WIAG3-RALL'!$B$2:$AC$500,3,FALSE)="",#N/A,VLOOKUP(9999,'WIAG3-RALL'!$B$2:$AC$500,12,FALSE)*100),#N/A) -> 53 | AK7: =IFERROR(IF(VLOOKUP(9999,'M-2013'!$A$6:$N$500,3,FALSE)="",#N/A,VLOOKUP(9999,'M-2013'!$A$6:$N$500,10,FALSE)),#N/A) -> 62 | AL7: =IFERROR(IF(VLOOKUP(9999,'2013 WIA-Math'!$A$14:$K$500,3,FALSE)="",#N/A,VLOOKUP(9999,'2013 WIA-Math'!$A$14:$K$500,11,FALSE)*100),#N/A) -> 64.35 | AM7: =IFERROR(IF(VLOOKUP(9999,'WIAG3-MALL'!$B$2:$AC$500,3,FALSE)="",#N/A,VLOOKUP(9999,'WIAG3-MALL'!$B$2:$AC$500,12,FALSE)*100),#N/A) -> 60 | AQ7: Expository | AS7: =IFERROR(IF(VLOOKUP(9999,'2013 MY-Writing'!$A$14:$T$503,3,FALSE)="",#N/A,VLOOKUP(9999,'2013 MY-Writing'!$A$14:$T$503,11,FALSE)*100),#N/A) -> 23.28435011 | AT7: =IFERROR(IF(VLOOKUP(9999,'MYG4-WALL'!$A$2:$W$495,5,FALSE)<10,#N/A,VLOOKUP(9999,'MYG4-WALL'!$A$2:$W$495,12,FALSE)),#N/A) -> 23
AG8: 4 | AH8: =IFERROR(IF(VLOOKUP(9999,'R-2013'!$P$6:$AC$500,3,FALSE)="",#N/A,VLOOKUP(9999,'R-2013'!$P$6:$AC$500,10,FALSE)),#N/A) -> 59 | AI8: =IFERROR(IF(VLOOKUP(9999,'2013 WIA-Read'!$L$14:$V$500,3,FALSE)="",#N/A,VLOOKUP(9999,'2013 WIA-Read'!$L$14:$V$500,11,FALSE)*100),#N/A) -> 61.57 | AJ8: =IFERROR(IF(VLOOKUP(9999,'WIAG4-RALL'!$B$2:$AC$500,3,FALSE)="",#N/A,VLOOKUP(9999,'WIAG4-RALL'!$B$2:$AC$500,12,FALSE)*100),#N/A) -> 60 | AK8: =IFERROR(IF(VLOOKUP(9999,'M-2013'!$O$6:$AB$500,3,FALSE)="",#N/A,VLOOKUP(9999,'M-2013'!$O$6:$AB$500,10,FALSE)),#N/A) -> 64 | AL8: =IFERROR(IF(VLOOKUP(9999,'2013 WIA-Math'!$L$14:$V$500,3,FALSE)="",#N/A,VLOOKUP(9999,'2013 WIA-Math'!$L$14:$V$500,11,FALSE)*100),#N/A) -> 61.57 | AM8: =IFERROR(IF(VLOOKUP(9999,'WIAG4-MALL'!$B$2:$AC$500,3,FALSE)="",#N/A,VLOOKUP(9999,'WIAG4-MALL'!$B$2:$AC$500,12,FALSE)*100),#N/A) -> 68 | AQ8: Narrative | AR8: =IFERROR(VLOOKUP(9999,'W13'!$A$7:$S$500,19,FALSE),#N/A) -> 37 | AS8: =IFERROR(IF(VLOOKUP(9999,'2013 MY-Writing'!$A$14:$T$503,3,FALSE)="",#N/A,VLOOKUP(9999,'2013 MY-Writing'!$A$14:$T$503,20,FALSE)*100),#N/A) -> 24.18300654 | AT8: =IFERROR(IF(VLOOKUP(9999,'MYG4-WALL'!$A$2:$W$495,15,FALSE)<10,#N/A,VLOOKUP(9999,'MYG4-WALL'!$A$2:$W$495,22,FALSE)),#N/A) -> 27
AG9: 5 | AH9: =IFERROR(IF(VLOOKUP(9999,'R-2013'!$AE$6:$AR$500,3,FALSE)="",#N/A,VLOOKUP(9999,'R-2013'!$AE$6:$AR$500,10,FALSE)),#N/A) -> 59 | AI9: =IFERROR(IF(VLOOKUP(9999,'2013 WIA-Read'!$W$14:$AG$500,3,FALSE)="",#N/A,VLOOKUP(9999,'2013 WIA-Read'!$W$14:$AG$500,11,FALSE)*100),#N/A) -> 57.39 | AJ9: =IFERROR(IF(VLOOKUP(9999,'WIAG5-RALL'!$B$2:$AC$500,3,FALSE)="",#N/A,VLOOKUP(9999,'WIAG5-RALL'!$B$2:$AC$500,12,FALSE)*100),#N/A) -> 59 | AK9: =IFERROR(IF(VLOOKUP(9999,'M-2013'!$AC$6:$AP$500,3,FALSE)="",#N/A,VLOOKUP(9999,'M-2013'!$AC$6:$AP$500,10,FALSE)),#N/A) -> 56 | AL9: =IFERROR(IF(VLOOKUP(9999,'2013 WIA-Math'!$W$14:$AG$500,3,FALSE)="",#N/A,VLOOKUP(9999,'2013 WIA-Math'!$W$14:$AG$500,11,FALSE)*100),#N/A) -> 50.2 | AM9: =IFERROR(IF(VLOOKUP(9999,'WIAG5-MALL'!$B$2:$AC$500,3,FALSE)="",#N/A,VLOOKUP(9999,'WIAG5-MALL'!$B$2:$AC$500,12,FALSE)*100),#N/A) -> 51 | AN9: =IFERROR(IF(VLOOKUP(9999,'S-2013'!$A$6:$N$272,3,FALSE)="",#N/A,VLOOKUP(9999,'S-2013'!$A$6:$N$272,10,FALSE)),#N/A) -> 51 | AO9: =IFERROR(IF(VLOOKUP(9999,'2013 WIA-Sci'!$A$14:$K$500,3,FALSE)="",#N/A,VLOOKUP(9999,'2013 WIA-Sci'!$A$14:$K$500,11,FALSE)*100),#N/A) -> 52.43 | AP9: =IFERROR(IF(VLOOKUP(9999,'WIAG5-SALL'!$B$2:$AC$500,3,FALSE)="",#N/A,VLOOKUP(9999,'WIAG5-SALL'!$B$2:$AC$500,12,FALSE)*100),#N/A) -> 56
AG10: 6 | AH10: =IFERROR(IF(VLOOKUP(9999,'R-2013'!$AT$6:$BH$500,3,FALSE)="",#N/A,VLOOKUP(9999,'R-2013'!$AT$6:$BH$500,10,FALSE)),#N/A) -> 57 | AI10: =IFERROR(IF(VLOOKUP(9999,'2013 WIA-Read'!$AH$14:$AR$500,3,FALSE)="",#N/A,VLOOKUP(9999,'2013 WIA-Read'!$AH$14:$AR$500,11,FALSE)*100),#N/A) -> 54.36 | AJ10: =IFERROR(IF(VLOOKUP(9999,'WIAG6-RALL'!$B$2:$AC$500,3,FALSE)="",#N/A,VLOOKUP(9999,'WIAG6-RALL'!$B$2:$AC$500,12,FALSE)*100),#N/A) -> 62 | AK10: =IFERROR(IF(VLOOKUP(9999,'M-2013'!$AQ$6:$BD$500,3,FALSE)="",#N/A,VLOOKUP(9999,'M-2013'!$AQ$6:$BD$500,10,FALSE)),#N/A) -> 51 | AL10: =IFERROR(IF(VLOOKUP(9999,'2013 WIA-Math'!$AH$14:$AR$500,3,FALSE)="",#N/A,VLOOKUP(9999,'2013 WIA-Math'!$AH$14:$AR$500,11,FALSE)*100),#N/A) -> 48.65 | AM10: =IFERROR(IF(VLOOKUP(9999,'WIAG6-MALL'!$B$2:$AC$500,3,FALSE)="",#N/A,VLOOKUP(9999,'WIAG6-MALL'!$B$2:$AC$500,12,FALSE)*100),#N/A) -> 47
AG11: 7 | AH11: =IFERROR(IF(VLOOKUP(9999,'R-2013'!$BI$6:$BW$500,3,FALSE)="",#N/A,VLOOKUP(9999,'R-2013'!$BI$6:$BW$500,10,FALSE)),#N/A) -> 57 | AI11: =IFERROR(IF(VLOOKUP(9999,'2013 WIA-Read'!$AS$14:$BC$500,3,FALSE)="",#N/A,VLOOKUP(9999,'2013 WIA-Read'!$AS$14:$BC$500,11,FALSE)*100),#N/A) -> 55.3 | AJ11: =IFERROR(IF(VLOOKUP(9999,'WIAG7-RALL'!$B$2:$AC$500,3,FALSE)="",#N/A,VLOOKUP(9999,'WIAG7-RALL'!$B$2:$AC$500,12,FALSE)*100),#N/A) -> 60 | AK11: =IFERROR(IF(VLOOKUP(9999,'M-2013'!$BE$6:$BS$500,3,FALSE)="",#N/A,VLOOKUP(9999,'M-2013'!$BE$6:$BS$500,10,FALSE)),#N/A) -> 51 | AL11: =IFERROR(IF(VLOOKUP(9999,'2013 WIA-Math'!$AS$14:$BC$500,3,FALSE)="",#N/A,VLOOKUP(9999,'2013 WIA-Math'!$AS$14:$BC$500,11,FALSE)*100),#N/A) -> 47.59 | AM11: =IFERROR(IF(VLOOKUP(9999,'WIAG7-MALL'!$B$2:$AC$500,3,FALSE)="",#N/A,VLOOKUP(9999,'WIAG7-MALL'!$B$2:$AC$500,12,FALSE)*100),#N/A) -> 43
AG12: 8 | AH12: =IFERROR(IF(VLOOKUP(9999,'R-2013'!$BX$6:$CL$500,3,FALSE)="",#N/A,VLOOKUP(9999,'R-2013'!$BX$6:$CL$500,10,FALSE)),#N/A) -> 56 | AI12: =IFERROR(IF(VLOOKUP(9999,'2013 WIA-Read'!$BD$14:$BN$500,3,FALSE)="",#N/A,VLOOKUP(9999,'2013 WIA-Read'!$BD$14:$BN$500,11,FALSE)*100),#N/A) -> 50.36 | AJ12: =IFERROR(IF(VLOOKUP(9999,'WIAG8-RALL'!$B$2:$AC$500,3,FALSE)="",#N/A,VLOOKUP(9999,'WIAG8-RALL'!$B$2:$AC$500,12,FALSE)*100),#N/A) -> 56 | AK12: =IFERROR(IF(VLOOKUP(9999,'M-2013'!$BT$6:$CG$500,3,FALSE)="",#N/A,VLOOKUP(9999,'M-2013'!$BT$6:$CG$500,10,FALSE)),#N/A) -> 35 | AL12: =IFERROR(IF(VLOOKUP(9999,'2013 WIA-Math'!$BD$14:$BN$500,3,FALSE)="",#N/A,VLOOKUP(9999,'2013 WIA-Math'!$BD$14:$BN$500,11,FALSE)*100),#N/A) -> 37.42 | AM12: =IFERROR(IF(VLOOKUP(9999,'WIAG8-MALL'!$B$2:$AC$500,3,FALSE)="",#N/A,VLOOKUP(9999,'WIAG8-MALL'!$B$2:$AC$500,12,FALSE)*100),#N/A) -> 23 | AN12: =IFERROR(IF(VLOOKUP(9999,'S-2013'!$P$6:$AC$272,3,FALSE)="",#N/A,VLOOKUP(9999,'S-2013'!$P$6:$AC$272,10,FALSE)),#N/A) -> 42 | AO12: =IFERROR(IF(VLOOKUP(9999,'2013 WIA-Sci'!$L$14:$V$500,3,FALSE)="",#N/A,VLOOKUP(9999,'2013 WIA-Sci'!$L$14:$V$500,11,FALSE)*100),#N/A) -> 38.26 | AP12: =IFERROR(IF(VLOOKUP(9999,'WIAG8-SALL'!$B$2:$AC$496,3,FALSE)="",#N/A,VLOOKUP(9999,'WIAG8-SALL'!$B$2:$AC$496,12,FALSE)*100),#N/A) -> 41 | AQ12: Grade | AR12: 2013 FCAT 2.0 | AS12: 2013 WIA | AT12: 2014 WIA
AG13: Alg. | AK13: =IFERROR(VLOOKUP(9999,'2013 ALG'!$A$6:$I$500,5,FALSE),#N/A) -> 66 | AL13: =IFERROR(IF(VLOOKUP(9999,'2013 WIA-Math'!$BO$14:$BY$500,3,FALSE)="",#N/A,VLOOKUP(9999,'2013 WIA-Math'!$BO$14:$BY$500,11,FALSE)*100),#N/A) -> 43.82097752 | AM13: =IFERROR(IF(VLOOKUP(9999,'WIA-ALG'!$B$2:$AC$500,3,FALSE)="",#N/A,VLOOKUP(9999,'WIA-ALG'!$B$2:$AC$500,12,FALSE)*100),#N/A) -> 68 | AQ13: Grade 5 | AR13: =IFERROR(IF(VLOOKUP(VALUE(9999),'S-2013'!$A$6:$N$272,3,FALSE)="",#N/A,VLOOKUP(VALUE(9999),'S-2013'!$A$6:$N$272,10,FALSE)),#N/A) -> 51 | AS13: =IFERROR(IF(VLOOKUP(VALUE(9999),'2013 WIA-Sci'!$A$14:$K$500,3,FALSE)="",#N/A,VLOOKUP(VALUE(9999),'2013 WIA-Sci'!$A$14:$K$500,11,FALSE)*100),#N/A) -> 52.43 | AT13: =IFERROR(IF(VLOOKUP(9999,'WIAG5-SALL'!$B$2:$AC$500,3,FALSE)="",#N/A,VLOOKUP(9999,'WIAG5-SALL'!$B$2:$AC$500,12,FALSE)*100),#N/A) -> 56
AG14: Geo | AK14: =IFERROR(VLOOKUP(9999,'2013 GEO'!$A$6:$I$500,5,FALSE),#N/A) -> 60 | AL14: =IFERROR(IF(VLOOKUP(9999,'2013 WIA-Math'!$BZ$14:$CJ$500,3,FALSE)="",#N/A,VLOOKUP(9999,'2013 WIA-Math'!$BZ$14:$CJ$500,11,FALSE)*100),#N/A) -> 39.49498094 | AM14: =IFERROR(IF(VLOOKUP(9999,'WIA-GEO'!$B$2:$AC$500,3,FALSE)="",#N/A,VLOOKUP(9999,'WIA-GEO'!$B$2:$AC$500,12,FALSE)*100),#N/A) -> 43 | AQ14: 8 | AR14: =IFERROR(IF(VLOOKUP(9999,'S-2013'!$P$6:$AC$272,3,FALSE)="",#N/A,VLOOKUP(9999,'S-2013'!$P$6:$AC$272,10,FALSE)),#N/A) -> 42 | AS14: =IFERROR(IF(VLOOKUP(9999,'2013 WIA-Sci'!$L$14:$V$500,3,FALSE)="",#N/A,VLOOKUP(9999,'2013 WIA-Sci'!$L$14:$V$500,11,FALSE)*100),#N/A) -> 38.26 | AT14: =IFERROR(IF(VLOOKUP(9999,'WIAG8-SALL'!$B$2:$AC$496,3,FALSE)="",#N/A,VLOOKUP(9999,'WIAG8-SALL'!$B$2:$AC$496,12,FALSE)*100),#N/A) -> 41
AG17: School | AH17: =A4 -> 9999-District
AH18: % Proficient | AQ18: % of Students Scoring at 4.0 and higher
AH19: Reading | AK19: Math | AN19: Science | AQ19: Writing
AG20: Grade | AH20: 2013 FCAT 2.0 | AI20: 2012 Fall IA | AJ20: 2013 Fall IA | AK20: 2013 FCAT 2.0 | AL20: 2012 Fall IA | AM20: 2013 Fall IA | AN20: 2013 FCAT 2.0 | AO20: 2012 Fall IA | AP20: 2013 Fall IA | AQ20: Prompt | AR20: 2013 FCAT | AS20: 2013 Midyear | AT20: 2014 Midyear
AG21: 3 | AH21: =IFERROR(IF(VLOOKUP($A$3,'R-2013'!$A$6:$N$500,3,FALSE)="",#N/A,VLOOKUP($A$3,'R-2013'!$A$6:$N$500,10,FALSE)),#N/A) -> 53 | AI21: =IFERROR(IF(VLOOKUP($A$3,'2013 WIA-Read'!$A$14:$K$500,3,FALSE)="",#N/A,VLOOKUP($A$3,'2013 WIA-Read'!$A$14:$K$500,11,FALSE)*100),#N/A) -> 53.31 | AJ21: =IFERROR(IF(VLOOKUP($A$3,'WIAG3-RALL'!$B$2:$AC$500,3,FALSE)="",#N/A,VLOOKUP($A$3,'WIAG3-RALL'!$B$2:$AC$500,12,FALSE)*100),#N/A) -> 53 | AK21: =IFERROR(IF(VLOOKUP($A$3,'M-2013'!$A$6:$N$500,3,FALSE)="",#N/A,VLOOKUP($A$3,'M-2013'!$A$6:$N$500,10,FALSE)),#N/A) -> 62 | AL21: =IFERROR(IF(VLOOKUP($A$3,'2013 WIA-Math'!$A$14:$K$500,3,FALSE)="",#N/A,VLOOKUP($A$3,'2013 WIA-Math'!$A$14:$K$500,11,FALSE)*100),#N/A) -> 64.35 | AM21: =IFERROR(IF(VLOOKUP($A$3,'WIAG3-MALL'!$B$2:$AC$500,3,FALSE)="",#N/A,VLOOKUP($A$3,'WIAG3-MALL'!$B$2:$AC$500,12,FALSE)*100),#N/A) -> 60 | AQ21: Expository | AS21: =IFERROR(IF(VLOOKUP($A$3,'2013 MY-Writing'!$A$14:$T$503,3,FALSE)="",#N/A,VLOOKUP($A$3,'2013 MY-Writing'!$A$14:$T$503,11,FALSE)*100),#N/A) -> 23.28435011 | AT21: =IFERROR(IF(VLOOKUP($A$3,'MYG4-WALL'!$A$2:$W$495,5,FALSE)<10,#N/A,VLOOKUP($A$3,'MYG4-WALL'!$A$2:$W$495,12,FALSE)),#N/A) -> 23
AG22: 4 | AH22: =IFERROR(IF(VLOOKUP($A$3,'R-2013'!$P$6:$AC$500,3,FALSE)="",#N/A,VLOOKUP($A$3,'R-2013'!$P$6:$AC$500,10,FALSE)),#N/A) -> 59 | AI22: =IFERROR(IF(VLOOKUP($A$3,'2013 WIA-Read'!$L$14:$V$500,3,FALSE)="",#N/A,VLOOKUP($A$3,'2013 WIA-Read'!$L$14:$V$500,11,FALSE)*100),#N/A) -> 61.57 | AJ22: =IFERROR(IF(VLOOKUP($A$3,'WIAG4-RALL'!$B$2:$AC$500,3,FALSE)="",#N/A,VLOOKUP($A$3,'WIAG4-RALL'!$B$2:$AC$500,12,FALSE)*100),#N/A) -> 60 | AK22: =IFERROR(IF(VLOOKUP($A$3,'M-2013'!$O$6:$AB$500,3,FALSE)="",#N/A,VLOOKUP($A$3,'M-2013'!$O$6:$AB$500,10,FALSE)),#N/A) -> 64 | AL22: =IFERROR(IF(VLOOKUP($A$3,'2013 WIA-Math'!$L$14:$V$500,3,FALSE)="",#N/A,VLOOKUP($A$3,'2013 WIA-Math'!$L$14:$V$500,11,FALSE)*100),#N/A) -> 61.57 | AM22: =IFERROR(IF(VLOOKUP($A$3,'WIAG4-MALL'!$B$2:$AC$500,3,FALSE)="",#N/A,VLOOKUP($A$3,'WIAG4-MALL'!$B$2:$AC$500,12,FALSE)*100),#N/A) -> 68 | AQ22: Narrative | AR22: =IFERROR(VLOOKUP($A$3,'W13'!$A$7:$S$500,19,FALSE),#N/A) -> 37 | AS22: =IFERROR(IF(VLOOKUP($A$3,'2013 MY-Writing'!$A$14:$T$503,3,FALSE)="",#N/A,VLOOKUP($A$3,'2013 MY-Writing'!$A$14:$T$503,20,FALSE)*100),#N/A) -> 24.18300654 | AT22: =IFERROR(IF(VLOOKUP($A$3,'MYG4-WALL'!$A$2:$W$495,15,FALSE)<10,#N/A,VLOOKUP($A$3,'MYG4-WALL'!$A$2:$W$495,22,FALSE)),#N/A) -> 27
AG23: 5 | AH23: =IFERROR(IF(VLOOKUP($A$3,'R-2013'!$AE$6:$AR$500,3,FALSE)="",#N/A,VLOOKUP($A$3,'R-2013'!$AE$6:$AR$500,10,FALSE)),#N/A) -> 59 | AI23: =IFERROR(IF(VLOOKUP($A$3,'2013 WIA-Read'!$W$14:$AG$500,3,FALSE)="",#N/A,VLOOKUP($A$3,'2013 WIA-Read'!$W$14:$AG$500,11,FALSE)*100),#N/A) -> 57.39 | AJ23: =IFERROR(IF(VLOOKUP($A$3,'WIAG5-RALL'!$B$2:$AC$500,3,FALSE)="",#N/A,VLOOKUP($A$3,'WIAG5-RALL'!$B$2:$AC$500,12,FALSE)*100),#N/A) -> 59 | AK23: =IFERROR(IF(VLOOKUP($A$3,'M-2013'!$AC$6:$AP$500,3,FALSE)="",#N/A,VLOOKUP($A$3,'M-2013'!$AC$6:$AP$500,10,FALSE)),#N/A) -> 56 | AL23: =IFERROR(IF(VLOOKUP($A$3,'2013 WIA-Math'!$W$14:$AG$500,3,FALSE)="",#N/A,VLOOKUP($A$3,'2013 WIA-Math'!$W$14:$AG$500,11,FALSE)*100),#N/A) -> 50.2 | AM23: =IFERROR(IF(VLOOKUP($A$3,'WIAG5-MALL'!$B$2:$AC$500,3,FALSE)="",#N/A,VLOOKUP($A$3,'WIAG5-MALL'!$B$2:$AC$500,12,FALSE)*100),#N/A) -> 51 | AN23: =IFERROR(IF(VLOOKUP($A$3,'S-2013'!$A$6:$N$272,3,FALSE)="",#N/A,VLOOKUP($A$3,'S-2013'!$A$6:$N$272,10,FALSE)),#N/A) -> 51 | AO23: =IFERROR(IF(VLOOKUP($A$3,'2013 WIA-Sci'!$A$14:$K$500,3,FALSE)="",#N/A,VLOOKUP($A$3,'2013 WIA-Sci'!$A$14:$K$500,11,FALSE)*100),#N/A) -> 52.43 | AP23: =IFERROR(IF(VLOOKUP($A$3,'WIAG5-SALL'!$B$2:$AC$500,3,FALSE)="",#N/A,VLOOKUP($A$3,'WIAG5-SALL'!$B$2:$AC$500,12,FALSE)*100),#N/A) -> 56
AG24: 6 | AH24: =IFERROR(IF(VLOOKUP($A$3,'R-2013'!$AT$6:$BH$500,3,FALSE)="",#N/A,VLOOKUP($A$3,'R-2013'!$AT$6:$BH$500,10,FALSE)),#N/A) -> 57 | AI24: =IFERROR(IF(VLOOKUP($A$3,'2013 WIA-Read'!$AH$14:$AR$500,3,FALSE)="",#N/A,VLOOKUP($A$3,'2013 WIA-Read'!$AH$14:$AR$500,11,FALSE)*100),#N/A) -> 54.36 | AJ24: =IFERROR(IF(VLOOKUP($A$3,'WIAG6-RALL'!$B$2:$AC$500,3,FALSE)="",#N/A,VLOOKUP($A$3,'WIAG6-RALL'!$B$2:$AC$500,12,FALSE)*100),#N/A) -> 62 | AK24: =IFERROR(IF(VLOOKUP($A$3,'M-2013'!$AQ$6:$BD$500,3,FALSE)="",#N/A,VLOOKUP($A$3,'M-2013'!$AQ$6:$BD$500,10,FALSE)),#N/A) -> 51 | AL24: =IFERROR(IF(VLOOKUP($A$3,'2013 WIA-Math'!$AH$14:$AR$500,3,FALSE)="",#N/A,VLOOKUP($A$3,'2013 WIA-Math'!$AH$14:$AR$500,11,FALSE)*100),#N/A) -> 48.65 | AM24: =IFERROR(IF(VLOOKUP($A$3,'WIAG6-MALL'!$B$2:$AC$500,3,FALSE)="",#N/A,VLOOKUP($A$3,'WIAG6-MALL'!$B$2:$AC$500,12,FALSE)*100),#N/A) -> 47
AG25: 7 | AH25: =IFERROR(IF(VLOOKUP($A$3,'R-2013'!$BI$6:$BW$500,3,FALSE)="",#N/A,VLOOKUP($A$3,'R-2013'!$BI$6:$BW$500,10,FALSE)),#N/A) -> 57 | AI25: =IFERROR(IF(VLOOKUP($A$3,'2013 WIA-Read'!$AS$14:$BC$500,3,FALSE)="",#N/A,VLOOKUP($A$3,'2013 WIA-Read'!$AS$14:$BC$500,11,FALSE)*100),#N/A) -> 55.3 | AJ25: =IFERROR(IF(VLOOKUP($A$3,'WIAG7-RALL'!$B$2:$AC$500,3,FALSE)="",#N/A,VLOOKUP($A$3,'WIAG7-RALL'!$B$2:$AC$500,12,FALSE)*100),#N/A) -> 60 | AK25: =IFERROR(IF(VLOOKUP($A$3,'M-2013'!$BE$6:$BS$500,3,FALSE)="",#N/A,VLOOKUP($A$3,'M-2013'!$BE$6:$BS$500,10,FALSE)),#N/A) -> 51 | AL25: =IFERROR(IF(VLOOKUP($A$3,'2013 WIA-Math'!$AS$14:$BC$500,3,FALSE)="",#N/A,VLOOKUP($A$3,'2013 WIA-Math'!$AS$14:$BC$500,11,FALSE)*100),#N/A) -> 47.59 | AM25: =IFERROR(IF(VLOOKUP($A$3,'WIAG7-MALL'!$B$2:$AC$500,3,FALSE)="",#N/A,VLOOKUP($A$3,'WIAG7-MALL'!$B$2:$AC$500,12,FALSE)*100),#N/A) -> 43
AG26: 8 | AH26: =IFERROR(IF(VLOOKUP($A$3,'R-2013'!$BX$6:$CL$500,3,FALSE)="",#N/A,VLOOKUP($A$3,'R-2013'!$BX$6:$CL$500,10,FALSE)),#N/A) -> 56 | AI26: =IFERROR(IF(VLOOKUP($A$3,'2013 WIA-Read'!$BD$14:$BN$500,3,FALSE)="",#N/A,VLOOKUP($A$3,'2013 WIA-Read'!$BD$14:$BN$500,11,FALSE)*100),#N/A) -> 50.36 | AJ26: =IFERROR(IF(VLOOKUP($A$3,'WIAG8-RALL'!$B$2:$AC$500,3,FALSE)="",#N/A,VLOOKUP($A$3,'WIAG8-RALL'!$B$2:$AC$500,12,FALSE)*100),#N/A) -> 56 | AK26: =IFERROR(IF(VLOOKUP($A$3,'M-2013'!$BT$6:$CG$500,3,FALSE)="",#N/A,VLOOKUP($A$3,'M-2013'!$BT$6:$CG$500,10,FALSE)),#N/A) -> 35 | AL26: =IFERROR(IF(VLOOKUP($A$3,'2013 WIA-Math'!$BD$14:$BN$500,3,FALSE)="",#N/A,VLOOKUP($A$3,'2013 WIA-Math'!$BD$14:$BN$500,11,FALSE)*100),#N/A) -> 37.42 | AM26: =IFERROR(IF(VLOOKUP($A$3,'WIAG8-MALL'!$B$2:$AC$500,3,FALSE)="",#N/A,VLOOKUP($A$3,'WIAG8-MALL'!$B$2:$AC$500,12,FALSE)*100),#N/A) -> 23 | AN26: =IFERROR(IF(VLOOKUP($A$3,'S-2013'!$P$6:$AC$272,3,FALSE)="",#N/A,VLOOKUP($A$3,'S-2013'!$P$6:$AC$272,10,FALSE)),#N/A) -> 42 | AO26: =IFERROR(IF(VLOOKUP($A$3,'2013 WIA-Sci'!$L$14:$V$500,3,FALSE)="",#N/A,VLOOKUP($A$3,'2013 WIA-Sci'!$L$14:$V$500,11,FALSE)*100),#N/A) -> 38.26 | AP26: =IFERROR(IF(VLOOKUP($A$3,'WIAG8-SALL'!$B$2:$AC$496,3,FALSE)="",#N/A,VLOOKUP($A$3,'WIAG8-SALL'!$B$2:$AC$496,12,FALSE)*100),#N/A) -> 41 | AQ26: Grade | AR26: 2013 FCAT 2.0 | AS26: 2013 WIA | AT26: 2014 WIA
AG27: Alg | AK27: =IFERROR(VLOOKUP($A$3,'2013 ALG'!$A$6:$I$500,5,FALSE),#N/A) -> 66 | AL27: =IFERROR(IF(VLOOKUP($A$3,'2013 WIA-Math'!$BO$14:$BY$500,3,FALSE)="",#N/A,VLOOKUP($A$3,'2013 WIA-Math'!$BO$14:$BY$500,11,FALSE)*100),#N/A) -> 43.82097752 | AM27: =IFERROR(IF(VLOOKUP($A$3,'WIA-ALG'!$B$2:$AC$500,3,FALSE)="",#N/A,VLOOKUP($A$3,'WIA-ALG'!$B$2:$AC$500,12,FALSE)*100),#N/A) -> 68 | AQ27: Grade 5 | AR27: =IFERROR(IF(VLOOKUP(VALUE($A$3),'S-2013'!$A$6:$N$272,3,FALSE)="",#N/A,VLOOKUP(VALUE($A$3),'S-2013'!$A$6:$N$272,10,FALSE)),#N/A) -> 51 | AS27: =IFERROR(IF(VLOOKUP(VALUE($A$3),'2013 WIA-Sci'!$A$14:$K$500,3,FALSE)="",#N/A,VLOOKUP(VALUE($A$3),'2013 WIA-Sci'!$A$14:$K$500,11,FALSE)*100),#N/A) -> 52.43 | AT27: =IFERROR(IF(VLOOKUP($A$3,'WIAG5-SALL'!$B$2:$AC$500,3,FALSE)="",#N/A,VLOOKUP($A$3,'WIAG5-SALL'!$B$2:$AC$500,12,FALSE)*100),#N/A) -> 56
AG28: Geo | AK28: =IFERROR(VLOOKUP($A$3,'2013 GEO'!$A$6:$I$500,5,FALSE),#N/A) -> 60 | AL28: =IFERROR(IF(VLOOKUP($A$3,'2013 WIA-Math'!$BZ$14:$CJ$500,3,FALSE)="",#N/A,VLOOKUP($A$3,'2013 WIA-Math'!$BZ$14:$CJ$500,11,FALSE)*100),#N/A) -> 39.49498094 | AM28: =IFERROR(IF(VLOOKUP($A$3,'WIA-GEO'!$B$2:$AC$500,3,FALSE)="",#N/A,VLOOKUP($A$3,'WIA-GEO'!$B$2:$AC$500,12,FALSE)*100),#N/A) -> 43 | AQ28: 8 | AR28: =IFERROR(IF(VLOOKUP($A$3,'S-2013'!$P$6:$AC$272,3,FALSE)="",#N/A,VLOOKUP($A$3,'S-2013'!$P$6:$AC$272,10,FALSE)),#N/A) -> 42 | AS28: =IFERROR(IF(VLOOKUP($A$3,'2013 WIA-Sci'!$L$14:$V$500,3,FALSE)="",#N/A,VLOOKUP($A$3,'2013 WIA-Sci'!$L$14:$V$500,11,FALSE)*100),#N/A) -> 38.26 | AT28: =IFERROR(IF(VLOOKUP($A$3,'WIAG8-SALL'!$B$2:$AC$496,3,FALSE)="",#N/A,VLOOKUP($A$3,'WIAG8-SALL'!$B$2:$AC$496,12,FALSE)*100),#N/A) -> 41

Sheet G3-6 FIA Trend Report (hidden)
A2: Click here to return to the school and sheet selection interface | AF2: District | AG2: Average % Correct | AT2: District | AU2: % Proficient
A3: ='Select School'!B3 -> 9999 | AG3: District | AU3: District
A4: =TEXT(A3,"0000")&"-"&VLOOKUP(A3,SchList!$A$2:$B$502,2,FALSE) -> 9999-District | AG4: Average % Correct | AP4: Average Score | AU4: % Proficient | BD4: % of Students Scoring at 4.0 and higher
A5: Trend Report: 2013 FCAT 2.0, 2012 Fall Interim Assessment, and 2013 Fall Interim Assessment | AG5: Reading | AJ5: Math | AM5: Science | AP5: Writing | AU5: Reading | AX5: Math | BA5: Science | BD5: Writing
AF6: Grade | AG6: 2012 FCAT 2.0 | AH6: 2011 Fall IA | AI6: 2012 FIA | AJ6: Baseline | AK6: Fall IA | AL6: Winter IA | AM6: BL | AN6: Fall | AO6: Winter | AP6: Prompt | AQ6: Pre-Test | AR6: Midyear | AT6: Grade | AU6: 2013 FCAT 2.0 | AV6: 2012 Fall IA | AW6: 2013 Fall IA | AX6: 2013 FCAT 2.0 | AY6: 2012 Fall IA | AZ6: 2013 Fall IA | BA6: 2013 FCAT 2.0 | BB6: 2012 Fall IA | BC6: 2013 Fall IA | BD6: Prompt | BE6: Baseline | BF6: Midyear
AF7: 3 | AG7: =IFERROR(IF(VLOOKUP(9999,'BLG3-RALL'!$A$14:$CZ$500,3,FALSE)="",#N/A,VLOOKUP(9999,'BLG3-RALL'!$A$14:$CZ$500,5,FALSE)*100),#N/A) -> 55 | AH7: =IFERROR(IF(VLOOKUP(9999,#REF!,3,FALSE)="",#N/A,VLOOKUP(9999,#REF!,5,FALSE)*100),#N/A) ->  | AI7: =IFERROR(IF(VLOOKUP(9999,#REF!,3,FALSE)="",#N/A,VLOOKUP(9999,#REF!,5,FALSE)*100),#N/A) ->  | AJ7: =IFERROR(IF(VLOOKUP(9999,'BLG3-MALL'!$A$14:$CZ$500,3,FALSE)="",#N/A,VLOOKUP(9999,'BLG3-MALL'!$A$14:$CZ$500,5,FALSE)*100),#N/A) -> 39 | AK7: =IFERROR(IF(VLOOKUP(9999,#REF!,3,FALSE)="",#N/A,VLOOKUP(9999,#REF!,5,FALSE)*100),#N/A) ->  | AL7: =IFERROR(IF(VLOOKUP(9999,#REF!,3,FALSE)="",#N/A,VLOOKUP(9999,#REF!,5,FALSE)*100),#N/A) ->  | AP7: Expository | AQ7: =IFERROR(IF(VLOOKUP(9999,'BLG4-WALL'!$A$14:$CZ$503,3,FALSE)="",#N/A,VLOOKUP(9999,'BLG4-WALL'!$A$14:$CZ$503,4,FALSE)),#N/A) -> 1.399999976 | AR7: =IFERROR(IF(VLOOKUP(9999,'MYG4-WALL'!$A$14:$CG$495,3,FALSE)="",#N/A,VLOOKUP(9999,'MYG4-WALL'!$A$14:$CG$495,4,FALSE)),#N/A) -> E | AT7: 3 | AU7: =IFERROR(IF(VLOOKUP(9999,'R-2013'!$A$6:$N$500,3,FALSE)="",#N/A,VLOOKUP(9999,'R-2013'!$A$6:$N$500,10,FALSE)),#N/A) -> 53 | AV7: =IFERROR(IF(VLOOKUP(9999,'2012 FIA-Read'!$A$14:$K$500,3,FALSE)="",#N/A,VLOOKUP(9999,'2012 FIA-Read'!$A$14:$K$500,11,FALSE)*100),#N/A) -> 49.7 | AW7: =IFERROR(IF(VLOOKUP(9999,'FIAG3-RAll'!$B$2:$AC$500,3,FALSE)="",#N/A,VLOOKUP(9999,'FIAG3-RAll'!$B$2:$AC$500,12,FALSE)*100),#N/A) -> 51 | AX7: =IFERROR(IF(VLOOKUP(9999,'M-2013'!$A$6:$N$500,3,FALSE)="",#N/A,VLOOKUP(9999,'M-2013'!$A$6:$N$500,10,FALSE)),#N/A) -> 62 | AY7: =IFERROR(IF(VLOOKUP(9999,'2012 FIA-Math'!$A$14:$K$500,3,FALSE)="",#N/A,VLOOKUP(9999,'2012 FIA-Math'!$A$14:$K$500,11,FALSE)*100),#N/A) -> 58.74 | AZ7: =IFERROR(IF(VLOOKUP(9999,'FIAG3-MAll'!$B$2:$AC$500,3,FALSE)="",#N/A,VLOOKUP(9999,'FIAG3-MAll'!$B$2:$AC$500,12,FALSE)*100),#N/A) -> 61 | BD7: Expository | BE7: =IFERROR(IF(VLOOKUP(9999,'BLG4-WALL'!$A$14:$CZ$503,3,FALSE)="",#N/A,VLOOKUP(9999,'BLG4-WALL'!$A$14:$CZ$503,11,FALSE)*100),#N/A) -> 1.13 | BF7: =IFERROR(IF(VLOOKUP(9999,'MYG4-WALL'!$A$14:$CG$495,3,FALSE)="",#N/A,VLOOKUP(9999,'MYG4-WALL'!$A$14:$CG$495,11,FALSE)*100),#N/A) -> 3800
AF8: 4 | AG8: =IFERROR(IF(VLOOKUP(9999,'BLG4-RALL'!$A$14:$CZ$500,3,FALSE)="",#N/A,VLOOKUP(9999,'BLG4-RALL'!$A$14:$CZ$500,5,FALSE)*100),#N/A) -> 60 | AH8: =IFERROR(IF(VLOOKUP(9999,#REF!,3,FALSE)="",#N/A,VLOOKUP(9999,#REF!,5,FALSE)*100),#N/A) ->  | AI8: =IFERROR(IF(VLOOKUP(9999,#REF!,3,FALSE)="",#N/A,VLOOKUP(9999,#REF!,5,FALSE)*100),#N/A) ->  | AJ8: =IFERROR(IF(VLOOKUP(9999,'BLG4-MALL'!$A$14:$CZ$500,3,FALSE)="",#N/A,VLOOKUP(9999,'BLG4-MALL'!$A$14:$CZ$500,5,FALSE)*100),#N/A) -> 41 | AK8: =IFERROR(IF(VLOOKUP(9999,#REF!,3,FALSE)="",#N/A,VLOOKUP(9999,#REF!,5,FALSE)*100),#N/A) ->  | AL8: =IFERROR(IF(VLOOKUP(9999,#REF!,3,FALSE)="",#N/A,VLOOKUP(9999,#REF!,5,FALSE)*100),#N/A) ->  | AP8: Narrative | AQ8: =IFERROR(IF(VLOOKUP(9999,'BLG4-WALL'!$A$14:$CZ$503,12,FALSE)="",#N/A,VLOOKUP(9999,'BLG4-WALL'!$A$14:$CZ$503,13,FALSE)),#N/A) -> 1.5 | AR8: =IFERROR(IF(VLOOKUP(9999,'MYG4-WALL'!$A$14:$CG$495,12,FALSE)="",#N/A,VLOOKUP(9999,'MYG4-WALL'!$A$14:$CG$495,13,FALSE)),#N/A) -> 61 | AT8: 4 | AU8: =IFERROR(IF(VLOOKUP(9999,'R-2013'!$P$6:$AC$500,3,FALSE)="",#N/A,VLOOKUP(9999,'R-2013'!$P$6:$AC$500,10,FALSE)),#N/A) -> 59 | AV8: =IFERROR(IF(VLOOKUP(9999,'2012 FIA-Read'!$L$14:$V$500,3,FALSE)="",#N/A,VLOOKUP(9999,'2012 FIA-Read'!$L$14:$V$500,11,FALSE)*100),#N/A) -> 55.98 | AW8: =IFERROR(IF(VLOOKUP(9999,'FIAG4-RAll'!$B$2:$AC$500,3,FALSE)="",#N/A,VLOOKUP(9999,'FIAG4-RAll'!$B$2:$AC$500,12,FALSE)*100),#N/A) -> 62 | AX8: =IFERROR(IF(VLOOKUP(9999,'M-2013'!$O$6:$AB$500,3,FALSE)="",#N/A,VLOOKUP(9999,'M-2013'!$O$6:$AB$500,10,FALSE)),#N/A) -> 64 | AY8: =IFERROR(IF(VLOOKUP(9999,'2012 FIA-Math'!$L$14:$V$500,3,FALSE)="",#N/A,VLOOKUP(9999,'2012 FIA-Math'!$L$14:$V$500,11,FALSE)*100),#N/A) -> 59.5 | AZ8: =IFERROR(IF(VLOOKUP(9999,'FIAG4-MAll'!$B$2:$AC$500,3,FALSE)="",#N/A,VLOOKUP(9999,'FIAG4-MAll'!$B$2:$AC$500,12,FALSE)*100),#N/A) -> 65 | BD8: Narrative | BE8: =IFERROR(IF(VLOOKUP(9999,'BLG4-WALL'!$A$14:$CZ$503,12,FALSE)="",#N/A,VLOOKUP(9999,'BLG4-WALL'!$A$14:$CZ$503,20,FALSE)*100),#N/A) -> 2.32 | BF8: =IFERROR(IF(VLOOKUP(9999,'MYG4-WALL'!$A$14:$CG$495,12,FALSE)="",#N/A,VLOOKUP(9999,'MYG4-WALL'!$A$14:$CG$495,20,FALSE)*100),#N/A) -> 3600
AF9: 5 | AG9: =IFERROR(IF(VLOOKUP(9999,'BLG5-RALL'!$A$14:$CZ$500,3,FALSE)="",#N/A,VLOOKUP(9999,'BLG5-RALL'!$A$14:$CZ$500,5,FALSE)*100),#N/A) -> 61 | AH9: =IFERROR(IF(VLOOKUP(9999,#REF!,3,FALSE)="",#N/A,VLOOKUP(9999,#REF!,5,FALSE)*100),#N/A) ->  | AI9: =IFERROR(IF(VLOOKUP(9999,#REF!,3,FALSE)="",#N/A,VLOOKUP(9999,#REF!,5,FALSE)*100),#N/A) ->  | AJ9: =IFERROR(IF(VLOOKUP(9999,'BLG5-MALL'!$A$14:$CZ$500,3,FALSE)="",#N/A,VLOOKUP(9999,'BLG5-MALL'!$A$14:$CZ$500,5,FALSE)*100),#N/A) -> 42 | AK9: =IFERROR(IF(VLOOKUP(9999,#REF!,3,FALSE)="",#N/A,VLOOKUP(9999,#REF!,5,FALSE)*100),#N/A) ->  | AL9: =IFERROR(IF(VLOOKUP(9999,#REF!,3,FALSE)="",#N/A,VLOOKUP(9999,#REF!,5,FALSE)*100),#N/A) ->  | AM9: =IFERROR(IF(VLOOKUP(9999,'BLG5-SALL'!$A$14:$CZ$500,3,FALSE)="",#N/A,VLOOKUP(9999,'BLG5-SALL'!$A$14:$CZ$500,5,FALSE)*100),#N/A) -> 46 | AN9: =IFERROR(IF(VLOOKUP(9999,#REF!,3,FALSE)="",#N/A,VLOOKUP(9999,#REF!,5,FALSE)*100),#N/A) ->  | AO9: =IFERROR(IF(VLOOKUP(9999,#REF!,3,FALSE)="",#N/A,VLOOKUP(9999,#REF!,5,FALSE)*100),#N/A) ->  | AT9: 5 | AU9: =IFERROR(IF(VLOOKUP(9999,'R-2013'!$AE$6:$AR$500,3,FALSE)="",#N/A,VLOOKUP(9999,'R-2013'!$AE$6:$AR$500,10,FALSE)),#N/A) -> 59 | AV9: =IFERROR(IF(VLOOKUP(9999,'2012 FIA-Read'!$W$14:$AG$500,3,FALSE)="",#N/A,VLOOKUP(9999,'2012 FIA-Read'!$W$14:$AG$500,11,FALSE)*100),#N/A) -> 56.4 | AW9: =IFERROR(IF(VLOOKUP(9999,'FIAG5-RAll'!$B$2:$AC$500,3,FALSE)="",#N/A,VLOOKUP(9999,'FIAG5-RAll'!$B$2:$AC$500,12,FALSE)*100),#N/A) -> 57 | AX9: =IFERROR(IF(VLOOKUP(9999,'M-2013'!$AC$6:$AP$500,3,FALSE)="",#N/A,VLOOKUP(9999,'M-2013'!$AC$6:$AP$500,10,FALSE)),#N/A) -> 56 | AY9: =IFERROR(IF(VLOOKUP(9999,'2012 FIA-Math'!$W$14:$AG$500,3,FALSE)="",#N/A,VLOOKUP(9999,'2012 FIA-Math'!$W$14:$AG$500,11,FALSE)*100),#N/A) -> 57 | AZ9: =IFERROR(IF(VLOOKUP(9999,'FIAG5-MAll'!$B$2:$AC$500,3,FALSE)="",#N/A,VLOOKUP(9999,'FIAG5-MAll'!$B$2:$AC$500,12,FALSE)*100),#N/A) -> 55 | BA9: =IFERROR(IF(VLOOKUP(9999,'S-2013'!$A$6:$N$272,3,FALSE)="",#N/A,VLOOKUP(9999,'S-2013'!$A$6:$N$272,10,FALSE)),#N/A) -> 51 | BB9: =IFERROR(IF(VLOOKUP(9999,'2012 FIA-Sci'!$A$14:$P$500,3,FALSE)="",#N/A,VLOOKUP(9999,'2012 FIA-Sci'!$A$14:$K$500,11,FALSE)*100),#N/A) -> 48.76 | BC9: =IFERROR(IF(VLOOKUP(9999,'FIAG5-SALL'!$B$2:$AC$500,3,FALSE)="",#N/A,VLOOKUP(9999,'FIAG5-SALL'!$B$2:$AC$500,12,FALSE)*100),#N/A) -> 51
AT10: 6 | AU10: =IFERROR(IF(VLOOKUP(9999,'R-2013'!$AT$6:$BH$500,3,FALSE)="",#N/A,VLOOKUP(9999,'R-2013'!$AT$6:$BH$500,10,FALSE)),#N/A) -> 57 | AV10: =IFERROR(IF(VLOOKUP(9999,'2012 FIA-Read'!$AH$14:$AR$500,3,FALSE)="",#N/A,VLOOKUP(9999,'2012 FIA-Read'!$AH$14:$AR$500,11,FALSE)*100),#N/A) -> 51.84 | AW10: =IFERROR(IF(VLOOKUP(9999,'FIAG6-RAll'!$B$2:$AC$500,3,FALSE)="",#N/A,VLOOKUP(9999,'FIAG6-RAll'!$B$2:$AC$500,12,FALSE)*100),#N/A) -> 60 | AX10: =IFERROR(IF(VLOOKUP(9999,'M-2013'!$AQ$6:$BD$500,3,FALSE)="",#N/A,VLOOKUP(9999,'M-2013'!$AQ$6:$BD$500,10,FALSE)),#N/A) -> 51 | AY10: =IFERROR(IF(VLOOKUP(9999,'2012 FIA-Math'!$AH$14:$AR$500,3,FALSE)="",#N/A,VLOOKUP(9999,'2012 FIA-Math'!$AH$14:$AR$500,11,FALSE)*100),#N/A) -> 48.23 | AZ10: =IFERROR(IF(VLOOKUP(9999,'FIAG6-MAll'!$B$2:$AC$500,3,FALSE)="",#N/A,VLOOKUP(9999,'FIAG6-MAll'!$B$2:$AC$500,12,FALSE)*100),#N/A) -> 48
AF11: School | AG11: =A4 -> 9999-District | AT11: 7 | AU11: =IFERROR(IF(VLOOKUP(9999,'R-2013'!$BI$6:$BW$500,3,FALSE)="",#N/A,VLOOKUP(9999,'R-2013'!$BI$6:$BW$500,10,FALSE)),#N/A) -> 57 | AV11: =IFERROR(IF(VLOOKUP(9999,'2012 FIA-Read'!$AS$14:$BC$500,3,FALSE)="",#N/A,VLOOKUP(9999,'2012 FIA-Read'!$AS$14:$BC$500,11,FALSE)*100),#N/A) -> 49.22 | AW11: =IFERROR(IF(VLOOKUP(9999,'FIAG7-RAll'!$B$2:$AC$500,3,FALSE)="",#N/A,VLOOKUP(9999,'FIAG7-RAll'!$B$2:$AC$500,12,FALSE)*100),#N/A) -> 59 | AX11: =IFERROR(IF(VLOOKUP(9999,'M-2013'!$BE$6:$BS$500,3,FALSE)="",#N/A,VLOOKUP(9999,'M-2013'!$BE$6:$BS$500,10,FALSE)),#N/A) -> 51 | AY11: =IFERROR(IF(VLOOKUP(9999,'2012 FIA-Math'!$AS$14:$BC$500,3,FALSE)="",#N/A,VLOOKUP(9999,'2012 FIA-Math'!$AS$14:$BC$500,11,FALSE)*100),#N/A) -> 47.05 | AZ11: =IFERROR(IF(VLOOKUP(9999,'FIAG7-MAll'!$B$2:$AC$500,3,FALSE)="",#N/A,VLOOKUP(9999,'FIAG7-MAll'!$B$2:$AC$500,12,FALSE)*100),#N/A) -> 42
AG12: Average % Correct | AP12: Average Score | AT12: 8 | AU12: =IFERROR(IF(VLOOKUP(9999,'R-2013'!$BX$6:$CL$500,3,FALSE)="",#N/A,VLOOKUP(9999,'R-2013'!$BX$6:$CL$500,10,FALSE)),#N/A) -> 56 | AV12: =IFERROR(IF(VLOOKUP(9999,'2012 FIA-Read'!$BD$14:$BN$500,3,FALSE)="",#N/A,VLOOKUP(9999,'2012 FIA-Read'!$BD$14:$BN$500,11,FALSE)*100),#N/A) -> 49.79 | AW12: =IFERROR(IF(VLOOKUP(9999,'FIAG8-RAll'!$B$2:$AC$500,3,FALSE)="",#N/A,VLOOKUP(9999,'FIAG8-RAll'!$B$2:$AC$500,12,FALSE)*100),#N/A) -> 54 | AX12: =IFERROR(IF(VLOOKUP(9999,'M-2013'!$BT$6:$CG$500,3,FALSE)="",#N/A,VLOOKUP(9999,'M-2013'!$BT$6:$CG$500,10,FALSE)),#N/A) -> 35 | AY12: =IFERROR(IF(VLOOKUP(9999,'2012 FIA-Math'!$BD$14:$BN$500,3,FALSE)="",#N/A,VLOOKUP(9999,'2012 FIA-Math'!$BD$14:$BN$500,11,FALSE)*100),#N/A) -> 39.49 | AZ12: =IFERROR(IF(VLOOKUP(9999,'FIAG8-MAll'!$B$2:$AC$500,3,FALSE)="",#N/A,VLOOKUP(9999,'FIAG8-MAll'!$B$2:$AC$500,12,FALSE)*100),#N/A) -> 21 | BA12: =IFERROR(IF(VLOOKUP(9999,'S-2013'!$P$6:$AC$272,3,FALSE)="",#N/A,VLOOKUP(9999,'S-2013'!$P$6:$AC$272,10,FALSE)),#N/A) -> 42 | BB12: =IFERROR(IF(VLOOKUP(9999,'2012 FIA-Sci'!$L$14:$V$500,3,FALSE)="",#N/A,VLOOKUP(9999,'2012 FIA-Sci'!$L$14:$V$500,11,FALSE)*100),#N/A) -> 37.57 | BC12: =IFERROR(IF(VLOOKUP(9999,'FIAG8-SALL'!$B$2:$AC$496,3,FALSE)="",#N/A,VLOOKUP(9999,'FIAG8-SALL'!$B$2:$AC$496,12,FALSE)*100),#N/A) -> 40
AG13: Reading | AJ13: Math | AM13: Science | AP13: Writing | AT13: Alg | AX13: =IFERROR(VLOOKUP(9999,'2013 ALG'!$A$6:$I$500,5,FALSE),#N/A) -> 66 | AY13: =IFERROR(IF(VLOOKUP(9999,'2012 FIA-EOC'!$A$14:$K$500,3,FALSE)="",#N/A,VLOOKUP(9999,'2012 FIA-EOC'!$A$14:$K$500,11,FALSE)*100),#N/A) -> 49.93294891 | AZ13: =IFERROR(IF(VLOOKUP(9999,'FIA-ALG'!$B$2:$AC$500,3,FALSE)="",#N/A,VLOOKUP(9999,'FIA-ALG'!$B$2:$AC$500,12,FALSE)*100),#N/A) -> 68
AF14: Grade | AG14: Baseline | AH14: Fall IA | AI14: Winter IA | AJ14: Baseline | AK14: Fall IA | AL14: Winter IA | AM14: BL | AN14: Fall | AO14: Winter | AP14: Prompt | AQ14: Pre-Test | AR14: Midyear | AT14: Geo | AX14: =IFERROR(VLOOKUP(9999,'2013 GEO'!$A$6:$I$500,5,FALSE),#N/A) -> 60 | AY14: =IFERROR(IF(VLOOKUP(9999,'2012 FIA-EOC'!$L$14:$V$500,3,FALSE)="",#N/A,VLOOKUP(9999,'2012 FIA-EOC'!$L$14:$V$500,11,FALSE)*100),#N/A) -> 44.94303106 | AZ14: =IFERROR(IF(VLOOKUP(9999,'FIA-GEO'!$B$2:$AC$500,3,FALSE)="",#N/A,VLOOKUP(9999,'FIA-GEO'!$B$2:$AC$500,12,FALSE)*100),#N/A) -> 60
AF15: 3 | AG15: =IFERROR(IF(VLOOKUP($A$3,'BLG3-RALL'!$A$14:$CZ$500,3,FALSE)="",#N/A,VLOOKUP($A$3,'BLG3-RALL'!$A$14:$CZ$500,5,FALSE)*100),#N/A) -> 55 | AH15: =IFERROR(IF(VLOOKUP($A$3,#REF!,3,FALSE)="",#N/A,VLOOKUP($A$3,#REF!,5,FALSE)*100),#N/A) ->  | AI15: =IFERROR(IF(VLOOKUP($A$3,#REF!,3,FALSE)="",#N/A,VLOOKUP($A$3,#REF!,5,FALSE)*100),#N/A) ->  | AJ15: =IFERROR(IF(VLOOKUP($A$3,'BLG3-MALL'!$A$14:$CZ$500,3,FALSE)="",#N/A,VLOOKUP($A$3,'BLG3-MALL'!$A$14:$CZ$500,5,FALSE)*100),#N/A) -> 39 | AK15: =IFERROR(IF(VLOOKUP($A$3,#REF!,3,FALSE)="",#N/A,VLOOKUP($A$3,#REF!,5,FALSE)*100),#N/A) ->  | AL15: =IFERROR(IF(VLOOKUP($A$3,#REF!,3,FALSE)="",#N/A,VLOOKUP($A$3,#REF!,5,FALSE)*100),#N/A) ->  | AP15: Expository | AQ15: =IFERROR(IF(VLOOKUP($A$3,'BLG4-WALL'!$A$14:$CZ$503,3,FALSE)="",#N/A,VLOOKUP($A$3,'BLG4-WALL'!$A$14:$CZ$503,4,FALSE)),#N/A) -> 1.399999976 | AR15: =IFERROR(IF(VLOOKUP($A$3,'MYG4-WALL'!$A$14:$CG$495,3,FALSE)="",#N/A,VLOOKUP($A$3,'MYG4-WALL'!$A$14:$CG$495,4,FALSE)),#N/A) -> E
AF16: 4 | AG16: =IFERROR(IF(VLOOKUP($A$3,'BLG4-RALL'!$A$14:$CZ$500,3,FALSE)="",#N/A,VLOOKUP($A$3,'BLG4-RALL'!$A$14:$CZ$500,5,FALSE)*100),#N/A) -> 60 | AH16: =IFERROR(IF(VLOOKUP($A$3,#REF!,3,FALSE)="",#N/A,VLOOKUP($A$3,#REF!,5,FALSE)*100),#N/A) ->  | AI16: =IFERROR(IF(VLOOKUP($A$3,#REF!,3,FALSE)="",#N/A,VLOOKUP($A$3,#REF!,5,FALSE)*100),#N/A) ->  | AJ16: =IFERROR(IF(VLOOKUP($A$3,'BLG4-MALL'!$A$14:$CZ$500,3,FALSE)="",#N/A,VLOOKUP($A$3,'BLG4-MALL'!$A$14:$CZ$500,5,FALSE)*100),#N/A) -> 41 | AK16: =IFERROR(IF(VLOOKUP($A$3,#REF!,3,FALSE)="",#N/A,VLOOKUP($A$3,#REF!,5,FALSE)*100),#N/A) ->  | AL16: =IFERROR(IF(VLOOKUP($A$3,#REF!,3,FALSE)="",#N/A,VLOOKUP($A$3,#REF!,5,FALSE)*100),#N/A) ->  | AP16: Narrative | AQ16: =IFERROR(IF(VLOOKUP($A$3,'BLG4-WALL'!$A$14:$CZ$503,12,FALSE)="",#N/A,VLOOKUP($A$3,'BLG4-WALL'!$A$14:$CZ$503,13,FALSE)),#N/A) -> 1.5 | AR16: =IFERROR(IF(VLOOKUP($A$3,'MYG4-WALL'!$A$14:$CG$495,12,FALSE)="",#N/A,VLOOKUP($A$3,'MYG4-WALL'!$A$14:$CG$495,13,FALSE)),#N/A) -> 61
AF17: 5 | AG17: =IFERROR(IF(VLOOKUP($A$3,'BLG5-RALL'!$A$14:$CZ$500,3,FALSE)="",#N/A,VLOOKUP($A$3,'BLG5-RALL'!$A$14:$CZ$500,5,FALSE)*100),#N/A) -> 61 | AH17: =IFERROR(IF(VLOOKUP($A$3,#REF!,3,FALSE)="",#N/A,VLOOKUP($A$3,#REF!,5,FALSE)*100),#N/A) ->  | AI17: =IFERROR(IF(VLOOKUP($A$3,#REF!,3,FALSE)="",#N/A,VLOOKUP($A$3,#REF!,5,FALSE)*100),#N/A) ->  | AJ17: =IFERROR(IF(VLOOKUP($A$3,'BLG5-MALL'!$A$14:$CZ$500,3,FALSE)="",#N/A,VLOOKUP($A$3,'BLG5-MALL'!$A$14:$CZ$500,5,FALSE)*100),#N/A) -> 42 | AK17: =IFERROR(IF(VLOOKUP($A$3,#REF!,3,FALSE)="",#N/A,VLOOKUP($A$3,#REF!,5,FALSE)*100),#N/A) ->  | AL17: =IFERROR(IF(VLOOKUP($A$3,#REF!,3,FALSE)="",#N/A,VLOOKUP($A$3,#REF!,5,FALSE)*100),#N/A) ->  | AM17: =IFERROR(IF(VLOOKUP($A$3,'BLG5-SALL'!$A$14:$CZ$500,3,FALSE)="",#N/A,VLOOKUP($A$3,'BLG5-SALL'!$A$14:$CZ$500,5,FALSE)*100),#N/A) -> 46 | AN17: =IFERROR(IF(VLOOKUP($A$3,#REF!,3,FALSE)="",#N/A,VLOOKUP($A$3,#REF!,5,FALSE)*100),#N/A) ->  | AO17: =IFERROR(IF(VLOOKUP($A$3,#REF!,3,FALSE)="",#N/A,VLOOKUP($A$3,#REF!,5,FALSE)*100),#N/A) ->  | AT17: School | AU17: =A4 -> 9999-District
AU18: % Proficient | BD18: % of Students Scoring at 4.0 and higher
AU19: Reading | AX19: Math | BA19: Science | BD19: Writing
AT20: Grade | AU20: 2013 FCAT 2.0 | AV20: 2012 Fall IA | AW20: 2013 Fall IA | AX20: 2013 FCAT 2.0 | AY20: 2012 Fall IA | AZ20: 2013 Fall IA | BA20: 2013 FCAT 2.0 | BB20: 2012 Fall IA | BC20: 2013 Fall IA | BD20: Prompt | BE20: Baseline | BF20: Midyear
AT21: 3 | AU21: =IFERROR(IF(VLOOKUP(VALUE($A$3),'R-2013'!$A$6:$N$500,3,FALSE)="",#N/A,VLOOKUP(VALUE($A$3),'R-2013'!$A$6:$N$500,10,FALSE)),#N/A) -> 53 | AV21: =IFERROR(IF(VLOOKUP(VALUE($A$3),'2012 FIA-Read'!$A$14:$K$500,3,FALSE)="",#N/A,VLOOKUP(VALUE($A$3),'2012 FIA-Read'!$A$14:$K$500,11,FALSE)*100),#N/A) -> 49.7 | AW21: =IFERROR(IF(VLOOKUP($A$3,'FIAG3-RAll'!$B$2:$AC$500,3,FALSE)="",#N/A,VLOOKUP($A$3,'FIAG3-RAll'!$B$2:$AC$500,12,FALSE)*100),#N/A) -> 51 | AX21: =IFERROR(IF(VLOOKUP(VALUE($A$3),'M-2013'!$A$6:$N$500,3,FALSE)="",#N/A,VLOOKUP(VALUE($A$3),'M-2013'!$A$6:$N$500,10,FALSE)),#N/A) -> 62 | AY21: =IFERROR(IF(VLOOKUP(VALUE($A$3),'2012 FIA-Math'!$A$14:$K$500,3,FALSE)="",#N/A,VLOOKUP(VALUE($A$3),'2012 FIA-Math'!$A$14:$K$500,11,FALSE)*100),#N/A) -> 58.74 | AZ21: =IFERROR(IF(VLOOKUP($A$3,'FIAG3-MAll'!$B$2:$AC$500,3,FALSE)="",#N/A,VLOOKUP($A$3,'FIAG3-MAll'!$B$2:$AC$500,12,FALSE)*100),#N/A) -> 61 | BD21: Expository | BE21: =IFERROR(IF(VLOOKUP(VALUE($A$3),'BLG4-WALL'!$A$14:$CZ$503,3,FALSE)="",#N/A,VLOOKUP(VALUE($A$3),'BLG4-WALL'!$A$14:$CZ$503,11,FALSE)*100),#N/A) -> 1.13 | BF21: =IFERROR(IF(VLOOKUP(VALUE($A$3),'MYG4-WALL'!$A$14:$CG$495,3,FALSE)="",#N/A,VLOOKUP(VALUE($A$3),'MYG4-WALL'!$A$14:$CG$495,11,FALSE)*100),#N/A) -> 3800
AT22: 4 | AU22: =IFERROR(IF(VLOOKUP(VALUE($A$3),'R-2013'!$P$6:$AC$500,3,FALSE)="",#N/A,VLOOKUP(VALUE($A$3),'R-2013'!$P$6:$AC$500,10,FALSE)),#N/A) -> 59 | AV22: =IFERROR(IF(VLOOKUP(VALUE($A$3),'2012 FIA-Read'!$L$14:$V$500,3,FALSE)="",#N/A,VLOOKUP(VALUE($A$3),'2012 FIA-Read'!$L$14:$V$500,11,FALSE)*100),#N/A) -> 55.98 | AW22: =IFERROR(IF(VLOOKUP($A$3,'FIAG4-RAll'!$B$2:$AC$500,3,FALSE)="",#N/A,VLOOKUP($A$3,'FIAG4-RAll'!$B$2:$AC$500,12,FALSE)*100),#N/A) -> 62 | AX22: =IFERROR(IF(VLOOKUP(VALUE($A$3),'M-2013'!$O$6:$AB$500,3,FALSE)="",#N/A,VLOOKUP(VALUE($A$3),'M-2013'!$O$6:$AB$500,10,FALSE)),#N/A) -> 64 | AY22: =IFERROR(IF(VLOOKUP(VALUE($A$3),'2012 FIA-Math'!$L$14:$V$500,3,FALSE)="",#N/A,VLOOKUP(VALUE($A$3),'2012 FIA-Math'!$L$14:$V$500,11,FALSE)*100),#N/A) -> 59.5 | AZ22: =IFERROR(IF(VLOOKUP($A$3,'FIAG4-MAll'!$B$2:$AC$500,3,FALSE)="",#N/A,VLOOKUP($A$3,'FIAG4-MAll'!$B$2:$AC$500,12,FALSE)*100),#N/A) -> 65 | BD22: Narrative | BE22: =IFERROR(IF(VLOOKUP(VALUE($A$3),'BLG4-WALL'!$A$14:$CZ$503,12,FALSE)="",#N/A,VLOOKUP(VALUE($A$3),'BLG4-WALL'!$A$14:$CZ$503,20,FALSE)*100),#N/A) -> 2.32 | BF22: =IFERROR(IF(VLOOKUP(VALUE($A$3),'MYG4-WALL'!$A$14:$CG$495,12,FALSE)="",#N/A,VLOOKUP(VALUE($A$3),'MYG4-WALL'!$A$14:$CG$495,20,FALSE)*100),#N/A) -> 3600
AT23: 5 | AU23: =IFERROR(IF(VLOOKUP(VALUE($A$3),'R-2013'!$AE$6:$AR$500,3,FALSE)="",#N/A,VLOOKUP(VALUE($A$3),'R-2013'!$AE$6:$AR$500,10,FALSE)),#N/A) -> 59 | AV23: =IFERROR(IF(VLOOKUP(VALUE($A$3),'2012 FIA-Read'!$W$14:$AG$500,3,FALSE)="",#N/A,VLOOKUP(VALUE($A$3),'2012 FIA-Read'!$W$14:$AG$500,11,FALSE)*100),#N/A) -> 56.4 | AW23: =IFERROR(IF(VLOOKUP($A$3,'FIAG5-RAll'!$B$2:$AC$500,3,FALSE)="",#N/A,VLOOKUP($A$3,'FIAG5-RAll'!$B$2:$AC$500,12,FALSE)*100),#N/A) -> 57 | AX23: =IFERROR(IF(VLOOKUP(VALUE($A$3),'M-2013'!$AC$6:$AP$500,3,FALSE)="",#N/A,VLOOKUP(VALUE($A$3),'M-2013'!$AC$6:$AP$500,10,FALSE)),#N/A) -> 56 | AY23: =IFERROR(IF(VLOOKUP(VALUE($A$3),'2012 FIA-Math'!$W$14:$AG$500,3,FALSE)="",#N/A,VLOOKUP(VALUE($A$3),'2012 FIA-Math'!$W$14:$AG$500,11,FALSE)*100),#N/A) -> 57 | AZ23: =IFERROR(IF(VLOOKUP($A$3,'FIAG5-MAll'!$B$2:$AC$500,3,FALSE)="",#N/A,VLOOKUP($A$3,'FIAG5-MAll'!$B$2:$AC$500,12,FALSE)*100),#N/A) -> 55 | BA23: =IFERROR(IF(VLOOKUP(VALUE($A$3),'S-2013'!$A$6:$N$272,3,FALSE)="",#N/A,VLOOKUP(VALUE($A$3),'S-2013'!$A$6:$N$272,10,FALSE)),#N/A) -> 51 | BB23: =IFERROR(IF(VLOOKUP(VALUE($A$3),'2012 FIA-Sci'!$A$14:$K$500,3,FALSE)="",#N/A,VLOOKUP(VALUE($A$3),'2012 FIA-Sci'!$A$14:$K$500,11,FALSE)*100),#N/A) -> 48.76 | BC23: =IFERROR(IF(VLOOKUP($A$3,'FIAG5-SALL'!$B$2:$AC$500,3,FALSE)="",#N/A,VLOOKUP($A$3,'FIAG5-SALL'!$B$2:$AC$500,12,FALSE)*100),#N/A) -> 51
AT24: 6 | AU24: =IFERROR(IF(VLOOKUP($A$3,'R-2013'!$AT$6:$BH$500,3,FALSE)="",#N/A,VLOOKUP($A$3,'R-2013'!$AT$6:$BH$500,10,FALSE)),#N/A) -> 57 | AV24: =IFERROR(IF(VLOOKUP($A$3,'2012 FIA-Read'!$AH$14:$AR$500,3,FALSE)="",#N/A,VLOOKUP($A$3,'2012 FIA-Read'!$AH$14:$AR$500,11,FALSE)*100),#N/A) -> 51.84 | AW24: =IFERROR(IF(VLOOKUP($A$3,'FIAG6-RAll'!$B$2:$AC$500,3,FALSE)="",#N/A,VLOOKUP($A$3,'FIAG6-RAll'!$B$2:$AC$500,12,FALSE)*100),#N/A) -> 60 | AX24: =IFERROR(IF(VLOOKUP($A$3,'M-2013'!$AQ$6:$BD$500,3,FALSE)="",#N/A,VLOOKUP($A$3,'M-2013'!$AQ$6:$BD$500,10,FALSE)),#N/A) -> 51 | AY24: =IFERROR(IF(VLOOKUP($A$3,'2012 FIA-Math'!$AH$14:$AR$500,3,FALSE)="",#N/A,VLOOKUP($A$3,'2012 FIA-Math'!$AH$14:$AR$500,11,FALSE)*100),#N/A) -> 48.23 | AZ24: =IFERROR(IF(VLOOKUP($A$3,'FIAG6-MAll'!$B$2:$AC$500,3,FALSE)="",#N/A,VLOOKUP($A$3,'FIAG6-MAll'!$B$2:$AC$500,12,FALSE)*100),#N/A) -> 48
AT25: 7 | AU25: =IFERROR(IF(VLOOKUP($A$3,'R-2013'!$BI$6:$BW$500,3,FALSE)="",#N/A,VLOOKUP($A$3,'R-2013'!$BI$6:$BW$500,10,FALSE)),#N/A) -> 57 | AV25: =IFERROR(IF(VLOOKUP($A$3,'2012 FIA-Read'!$AS$14:$BC$500,3,FALSE)="",#N/A,VLOOKUP($A$3,'2012 FIA-Read'!$AS$14:$BC$500,11,FALSE)*100),#N/A) -> 49.22 | AW25: =IFERROR(IF(VLOOKUP($A$3,'FIAG7-RAll'!$B$2:$AC$500,3,FALSE)="",#N/A,VLOOKUP($A$3,'FIAG7-RAll'!$B$2:$AC$500,12,FALSE)*100),#N/A) -> 59 | AX25: =IFERROR(IF(VLOOKUP($A$3,'M-2013'!$BE$6:$BS$500,3,FALSE)="",#N/A,VLOOKUP($A$3,'M-2013'!$BE$6:$BS$500,10,FALSE)),#N/A) -> 51 | AY25: =IFERROR(IF(VLOOKUP($A$3,'2012 FIA-Math'!$AS$14:$BC$500,3,FALSE)="",#N/A,VLOOKUP($A$3,'2012 FIA-Math'!$AS$14:$BC$500,11,FALSE)*100),#N/A) -> 47.05 | AZ25: =IFERROR(IF(VLOOKUP($A$3,'FIAG7-MAll'!$B$2:$AC$500,3,FALSE)="",#N/A,VLOOKUP($A$3,'FIAG7-MAll'!$B$2:$AC$500,12,FALSE)*100),#N/A) -> 42
AT26: 8 | AU26: =IFERROR(IF(VLOOKUP($A$3,'R-2013'!$BX$6:$CL$500,3,FALSE)="",#N/A,VLOOKUP($A$3,'R-2013'!$BX$6:$CL$500,10,FALSE)),#N/A) -> 56 | AV26: =IFERROR(IF(VLOOKUP($A$3,'2012 FIA-Read'!$BD$14:$BN$500,3,FALSE)="",#N/A,VLOOKUP($A$3,'2012 FIA-Read'!$BD$14:$BN$500,11,FALSE)*100),#N/A) -> 49.79 | AW26: =IFERROR(IF(VLOOKUP($A$3,'FIAG8-RAll'!$B$2:$AC$500,3,FALSE)="",#N/A,VLOOKUP($A$3,'FIAG8-RAll'!$B$2:$AC$500,12,FALSE)*100),#N/A) -> 54 | AX26: =IFERROR(IF(VLOOKUP($A$3,'M-2013'!$BT$6:$CG$500,3,FALSE)="",#N/A,VLOOKUP($A$3,'M-2013'!$BT$6:$CG$500,10,FALSE)),#N/A) -> 35 | AY26: =IFERROR(IF(VLOOKUP($A$3,'2012 FIA-Math'!$BD$14:$BN$500,3,FALSE)="",#N/A,VLOOKUP($A$3,'2012 FIA-Math'!$BD$14:$BN$500,11,FALSE)*100),#N/A) -> 39.49 | AZ26: =IFERROR(IF(VLOOKUP($A$3,'FIAG8-MAll'!$B$2:$AC$500,3,FALSE)="",#N/A,VLOOKUP($A$3,'FIAG8-MAll'!$B$2:$AC$500,12,FALSE)*100),#N/A) -> 21 | BA26: =IFERROR(IF(VLOOKUP($A$3,'S-2013'!$P$6:$AC$272,3,FALSE)="",#N/A,VLOOKUP($A$3,'S-2013'!$P$6:$AC$272,10,FALSE)),#N/A) -> 42 | BB26: =IFERROR(IF(VLOOKUP($A$3,'2012 FIA-Sci'!$L$14:$V$500,3,FALSE)="",#N/A,VLOOKUP($A$3,'2012 FIA-Sci'!$L$14:$V$500,11,FALSE)*100),#N/A) -> 37.57 | BC26: =IFERROR(IF(VLOOKUP($A$3,'FIAG8-SALL'!$B$2:$AC$496,3,FALSE)="",#N/A,VLOOKUP($A$3,'FIAG8-SALL'!$B$2:$AC$496,12,FALSE)*100),#N/A) -> 40
AT27: Alg | AX27: =IFERROR(VLOOKUP($A$3,'2013 ALG'!$A$6:$I$500,5,FALSE),#N/A) -> 66 | AY27: =IFERROR(IF(VLOOKUP($A$3,'2012 FIA-EOC'!$A$14:$K$500,3,FALSE)="",#N/A,VLOOKUP($A$3,'2012 FIA-EOC'!$A$14:$K$500,11,FALSE)*100),#N/A) -> 49.93294891 | AZ27: =IFERROR(IF(VLOOKUP($A$3,'FIA-ALG'!$B$2:$AC$500,3,FALSE)="",#N/A,VLOOKUP($A$3,'FIA-ALG'!$B$2:$AC$500,12,FALSE)*100),#N/A) -> 68
AT28: Geo | AX28: =IFERROR(VLOOKUP($A$3,'2013 GEO'!$A$6:$I$500,5,FALSE),#N/A) -> 60 | AY28: =IFERROR(IF(VLOOKUP($A$3,'2012 FIA-EOC'!$L$14:$V$500,3,FALSE)="",#N/A,VLOOKUP($A$3,'2012 FIA-EOC'!$L$14:$V$500,11,FALSE)*100),#N/A) -> 44.94303106 | AZ28: =IFERROR(IF(VLOOKUP($A$3,'FIA-GEO'!$B$2:$AC$500,3,FALSE)="",#N/A,VLOOKUP($A$3,'FIA-GEO'!$B$2:$AC$500,12,FALSE)*100),#N/A) -> 60

Sheet G3-7 FIA Trend Report (hidden)
A2: Click here to return to the school and sheet selection interface | AF2: District | AG2: Average % Correct | AT2: District | AU2: % Proficient
A3: ='Select School'!B3 -> 9999 | AG3: District | AU3: District
A4: =TEXT(A3,"0000")&"-"&VLOOKUP(A3,SchList!$A$2:$B$502,2,FALSE) -> 9999-District | AG4: Average % Correct | AP4: Average Score | AU4: % Proficient | BD4: % of Students Scoring at 4.0 and higher
A5: Trend Report: 2013 FCAT 2.0, 2012 Fall Interim Assessment, and 2013 Fall Interim Assessment | AG5: Reading | AJ5: Math | AM5: Science | AP5: Writing | AU5: Reading | AX5: Math | BA5: Science | BD5: Writing
AF6: Grade | AG6: 2012 FCAT 2.0 | AH6: 2011 Fall IA | AI6: 2012 FIA | AJ6: Baseline | AK6: Fall IA | AL6: Winter IA | AM6: BL | AN6: Fall | AO6: Winter | AP6: Prompt | AQ6: Pre-Test | AR6: Midyear | AT6: Grade | AU6: 2013 FCAT 2.0 | AV6: 2012 Fall IA | AW6: 2013 Fall IA | AX6: 2013 FCAT 2.0 | AY6: 2012 Fall IA | AZ6: 2013 Fall IA | BA6: 2013 FCAT 2.0 | BB6: 2012 Fall IA | BC6: 2013 Fall IA | BD6: Prompt | BE6: Baseline | BF6: Midyear
AF7: 3 | AG7: =IFERROR(IF(VLOOKUP(9999,'BLG3-RALL'!$A$14:$CZ$500,3,FALSE)="",#N/A,VLOOKUP(9999,'BLG3-RALL'!$A$14:$CZ$500,5,FALSE)*100),#N/A) -> 55 | AH7: =IFERROR(IF(VLOOKUP(9999,#REF!,3,FALSE)="",#N/A,VLOOKUP(9999,#REF!,5,FALSE)*100),#N/A) ->  | AI7: =IFERROR(IF(VLOOKUP(9999,#REF!,3,FALSE)="",#N/A,VLOOKUP(9999,#REF!,5,FALSE)*100),#N/A) ->  | AJ7: =IFERROR(IF(VLOOKUP(9999,'BLG3-MALL'!$A$14:$CZ$500,3,FALSE)="",#N/A,VLOOKUP(9999,'BLG3-MALL'!$A$14:$CZ$500,5,FALSE)*100),#N/A) -> 39 | AK7: =IFERROR(IF(VLOOKUP(9999,#REF!,3,FALSE)="",#N/A,VLOOKUP(9999,#REF!,5,FALSE)*100),#N/A) ->  | AL7: =IFERROR(IF(VLOOKUP(9999,#REF!,3,FALSE)="",#N/A,VLOOKUP(9999,#REF!,5,FALSE)*100),#N/A) ->  | AP7: Expository | AQ7: =IFERROR(IF(VLOOKUP(9999,'BLG4-WALL'!$A$14:$CZ$503,3,FALSE)="",#N/A,VLOOKUP(9999,'BLG4-WALL'!$A$14:$CZ$503,4,FALSE)),#N/A) -> 1.399999976 | AR7: =IFERROR(IF(VLOOKUP(9999,'MYG4-WALL'!$A$14:$CG$495,3,FALSE)="",#N/A,VLOOKUP(9999,'MYG4-WALL'!$A$14:$CG$495,4,FALSE)),#N/A) -> E | AT7: 3 | AU7: =IFERROR(IF(VLOOKUP(9999,'R-2013'!$A$6:$N$500,3,FALSE)="",#N/A,VLOOKUP(9999,'R-2013'!$A$6:$N$500,10,FALSE)),#N/A) -> 53 | AV7: =IFERROR(IF(VLOOKUP(9999,'2012 FIA-Read'!$A$14:$K$500,3,FALSE)="",#N/A,VLOOKUP(9999,'2012 FIA-Read'!$A$14:$K$500,11,FALSE)*100),#N/A) -> 49.7 | AW7: =IFERROR(IF(VLOOKUP(9999,'FIAG3-RAll'!$B$2:$AC$500,3,FALSE)="",#N/A,VLOOKUP(9999,'FIAG3-RAll'!$B$2:$AC$500,12,FALSE)*100),#N/A) -> 51 | AX7: =IFERROR(IF(VLOOKUP(9999,'M-2013'!$A$6:$N$500,3,FALSE)="",#N/A,VLOOKUP(9999,'M-2013'!$A$6:$N$500,10,FALSE)),#N/A) -> 62 | AY7: =IFERROR(IF(VLOOKUP(9999,'2012 FIA-Math'!$A$14:$K$500,3,FALSE)="",#N/A,VLOOKUP(9999,'2012 FIA-Math'!$A$14:$K$500,11,FALSE)*100),#N/A) -> 58.74 | AZ7: =IFERROR(IF(VLOOKUP(9999,'FIAG3-MAll'!$B$2:$AC$500,3,FALSE)="",#N/A,VLOOKUP(9999,'FIAG3-MAll'!$B$2:$AC$500,12,FALSE)*100),#N/A) -> 61 | BD7: Expository | BE7: =IFERROR(IF(VLOOKUP(9999,'BLG4-WALL'!$A$14:$CZ$503,3,FALSE)="",#N/A,VLOOKUP(9999,'BLG4-WALL'!$A$14:$CZ$503,11,FALSE)*100),#N/A) -> 1.13 | BF7: =IFERROR(IF(VLOOKUP(9999,'MYG4-WALL'!$A$14:$CG$495,3,FALSE)="",#N/A,VLOOKUP(9999,'MYG4-WALL'!$A$14:$CG$495,11,FALSE)*100),#N/A) -> 3800
AF8: 4 | AG8: =IFERROR(IF(VLOOKUP(9999,'BLG4-RALL'!$A$14:$CZ$500,3,FALSE)="",#N/A,VLOOKUP(9999,'BLG4-RALL'!$A$14:$CZ$500,5,FALSE)*100),#N/A) -> 60 | AH8: =IFERROR(IF(VLOOKUP(9999,#REF!,3,FALSE)="",#N/A,VLOOKUP(9999,#REF!,5,FALSE)*100),#N/A) ->  | AI8: =IFERROR(IF(VLOOKUP(9999,#REF!,3,FALSE)="",#N/A,VLOOKUP(9999,#REF!,5,FALSE)*100),#N/A) ->  | AJ8: =IFERROR(IF(VLOOKUP(9999,'BLG4-MALL'!$A$14:$CZ$500,3,FALSE)="",#N/A,VLOOKUP(9999,'BLG4-MALL'!$A$14:$CZ$500,5,FALSE)*100),#N/A) -> 41 | AK8: =IFERROR(IF(VLOOKUP(9999,#REF!,3,FALSE)="",#N/A,VLOOKUP(9999,#REF!,5,FALSE)*100),#N/A) ->  | AL8: =IFERROR(IF(VLOOKUP(9999,#REF!,3,FALSE)="",#N/A,VLOOKUP(9999,#REF!,5,FALSE)*100),#N/A) ->  | AP8: Narrative | AQ8: =IFERROR(IF(VLOOKUP(9999,'BLG4-WALL'!$A$14:$CZ$503,12,FALSE)="",#N/A,VLOOKUP(9999,'BLG4-WALL'!$A$14:$CZ$503,13,FALSE)),#N/A) -> 1.5 | AR8: =IFERROR(IF(VLOOKUP(9999,'MYG4-WALL'!$A$14:$CG$495,12,FALSE)="",#N/A,VLOOKUP(9999,'MYG4-WALL'!$A$14:$CG$495,13,FALSE)),#N/A) -> 61 | AT8: 4 | AU8: =IFERROR(IF(VLOOKUP(9999,'R-2013'!$P$6:$AC$500,3,FALSE)="",#N/A,VLOOKUP(9999,'R-2013'!$P$6:$AC$500,10,FALSE)),#N/A) -> 59 | AV8: =IFERROR(IF(VLOOKUP(9999,'2012 FIA-Read'!$L$14:$V$500,3,FALSE)="",#N/A,VLOOKUP(9999,'2012 FIA-Read'!$L$14:$V$500,11,FALSE)*100),#N/A) -> 55.98 | AW8: =IFERROR(IF(VLOOKUP(9999,'FIAG4-RAll'!$B$2:$AC$500,3,FALSE)="",#N/A,VLOOKUP(9999,'FIAG4-RAll'!$B$2:$AC$500,12,FALSE)*100),#N/A) -> 62 | AX8: =IFERROR(IF(VLOOKUP(9999,'M-2013'!$O$6:$AB$500,3,FALSE)="",#N/A,VLOOKUP(9999,'M-2013'!$O$6:$AB$500,10,FALSE)),#N/A) -> 64 | AY8: =IFERROR(IF(VLOOKUP(9999,'2012 FIA-Math'!$L$14:$V$500,3,FALSE)="",#N/A,VLOOKUP(9999,'2012 FIA-Math'!$L$14:$V$500,11,FALSE)*100),#N/A) -> 59.5 | AZ8: =IFERROR(IF(VLOOKUP(9999,'FIAG4-MAll'!$B$2:$AC$500,3,FALSE)="",#N/A,VLOOKUP(9999,'FIAG4-MAll'!$B$2:$AC$500,12,FALSE)*100),#N/A) -> 65 | BD8: Narrative | BE8: =IFERROR(IF(VLOOKUP(9999,'BLG4-WALL'!$A$14:$CZ$503,12,FALSE)="",#N/A,VLOOKUP(9999,'BLG4-WALL'!$A$14:$CZ$503,20,FALSE)*100),#N/A) -> 2.32 | BF8: =IFERROR(IF(VLOOKUP(9999,'MYG4-WALL'!$A$14:$CG$495,12,FALSE)="",#N/A,VLOOKUP(9999,'MYG4-WALL'!$A$14:$CG$495,20,FALSE)*100),#N/A) -> 3600
AF9: 5 | AG9: =IFERROR(IF(VLOOKUP(9999,'BLG5-RALL'!$A$14:$CZ$500,3,FALSE)="",#N/A,VLOOKUP(9999,'BLG5-RALL'!$A$14:$CZ$500,5,FALSE)*100),#N/A) -> 61 | AH9: =IFERROR(IF(VLOOKUP(9999,#REF!,3,FALSE)="",#N/A,VLOOKUP(9999,#REF!,5,FALSE)*100),#N/A) ->  | AI9: =IFERROR(IF(VLOOKUP(9999,#REF!,3,FALSE)="",#N/A,VLOOKUP(9999,#REF!,5,FALSE)*100),#N/A) ->  | AJ9: =IFERROR(IF(VLOOKUP(9999,'BLG5-MALL'!$A$14:$CZ$500,3,FALSE)="",#N/A,VLOOKUP(9999,'BLG5-MALL'!$A$14:$CZ$500,5,FALSE)*100),#N/A) -> 42 | AK9: =IFERROR(IF(VLOOKUP(9999,#REF!,3,FALSE)="",#N/A,VLOOKUP(9999,#REF!,5,FALSE)*100),#N/A) ->  | AL9: =IFERROR(IF(VLOOKUP(9999,#REF!,3,FALSE)="",#N/A,VLOOKUP(9999,#REF!,5,FALSE)*100),#N/A) ->  | AM9: =IFERROR(IF(VLOOKUP(9999,'BLG5-SALL'!$A$14:$CZ$500,3,FALSE)="",#N/A,VLOOKUP(9999,'BLG5-SALL'!$A$14:$CZ$500,5,FALSE)*100),#N/A) -> 46 | AN9: =IFERROR(IF(VLOOKUP(9999,#REF!,3,FALSE)="",#N/A,VLOOKUP(9999,#REF!,5,FALSE)*100),#N/A) ->  | AO9: =IFERROR(IF(VLOOKUP(9999,#REF!,3,FALSE)="",#N/A,VLOOKUP(9999,#REF!,5,FALSE)*100),#N/A) ->  | AT9: 5 | AU9: =IFERROR(IF(VLOOKUP(9999,'R-2013'!$AE$6:$AR$500,3,FALSE)="",#N/A,VLOOKUP(9999,'R-2013'!$AE$6:$AR$500,10,FALSE)),#N/A) -> 59 | AV9: =IFERROR(IF(VLOOKUP(9999,'2012 FIA-Read'!$W$14:$AG$500,3,FALSE)="",#N/A,VLOOKUP(9999,'2012 FIA-Read'!$W$14:$AG$500,11,FALSE)*100),#N/A) -> 56.4 | AW9: =IFERROR(IF(VLOOKUP(9999,'FIAG5-RAll'!$B$2:$AC$500,3,FALSE)="",#N/A,VLOOKUP(9999,'FIAG5-RAll'!$B$2:$AC$500,12,FALSE)*100),#N/A) -> 57 | AX9: =IFERROR(IF(VLOOKUP(9999,'M-2013'!$AC$6:$AP$500,3,FALSE)="",#N/A,VLOOKUP(9999,'M-2013'!$AC$6:$AP$500,10,FALSE)),#N/A) -> 56 | AY9: =IFERROR(IF(VLOOKUP(9999,'2012 FIA-Math'!$W$14:$AG$500,3,FALSE)="",#N/A,VLOOKUP(9999,'2012 FIA-Math'!$W$14:$AG$500,11,FALSE)*100),#N/A) -> 57 | AZ9: =IFERROR(IF(VLOOKUP(9999,'FIAG5-MAll'!$B$2:$AC$500,3,FALSE)="",#N/A,VLOOKUP(9999,'FIAG5-MAll'!$B$2:$AC$500,12,FALSE)*100),#N/A) -> 55 | BA9: =IFERROR(IF(VLOOKUP(9999,'S-2013'!$A$6:$N$272,3,FALSE)="",#N/A,VLOOKUP(9999,'S-2013'!$A$6:$N$272,10,FALSE)),#N/A) -> 51 | BB9: =IFERROR(IF(VLOOKUP(9999,'2012 FIA-Sci'!$A$14:$P$500,3,FALSE)="",#N/A,VLOOKUP(9999,'2012 FIA-Sci'!$A$14:$K$500,11,FALSE)*100),#N/A) -> 48.76 | BC9: =IFERROR(IF(VLOOKUP(9999,'FIAG5-SALL'!$B$2:$AC$500,3,FALSE)="",#N/A,VLOOKUP(9999,'FIAG5-SALL'!$B$2:$AC$500,12,FALSE)*100),#N/A) -> 51
AT10: 6 | AU10: =IFERROR(IF(VLOOKUP(9999,'R-2013'!$AT$6:$BH$500,3,FALSE)="",#N/A,VLOOKUP(9999,'R-2013'!$AT$6:$BH$500,10,FALSE)),#N/A) -> 57 | AV10: =IFERROR(IF(VLOOKUP(9999,'2012 FIA-Read'!$AH$14:$AR$500,3,FALSE)="",#N/A,VLOOKUP(9999,'2012 FIA-Read'!$AH$14:$AR$500,11,FALSE)*100),#N/A) -> 51.84 | AW10: =IFERROR(IF(VLOOKUP(9999,'FIAG6-RAll'!$B$2:$AC$500,3,FALSE)="",#N/A,VLOOKUP(9999,'FIAG6-RAll'!$B$2:$AC$500,12,FALSE)*100),#N/A) -> 60 | AX10: =IFERROR(IF(VLOOKUP(9999,'M-2013'!$AQ$6:$BD$500,3,FALSE)="",#N/A,VLOOKUP(9999,'M-2013'!$AQ$6:$BD$500,10,FALSE)),#N/A) -> 51 | AY10: =IFERROR(IF(VLOOKUP(9999,'2012 FIA-Math'!$AH$14:$AR$500,3,FALSE)="",#N/A,VLOOKUP(9999,'2012 FIA-Math'!$AH$14:$AR$500,11,FALSE)*100),#N/A) -> 48.23 | AZ10: =IFERROR(IF(VLOOKUP(9999,'FIAG6-MAll'!$B$2:$AC$500,3,FALSE)="",#N/A,VLOOKUP(9999,'FIAG6-MAll'!$B$2:$AC$500,12,FALSE)*100),#N/A) -> 48
AF11: School | AG11: =A4 -> 9999-District | AT11: 7 | AU11: =IFERROR(IF(VLOOKUP(9999,'R-2013'!$BI$6:$BW$500,3,FALSE)="",#N/A,VLOOKUP(9999,'R-2013'!$BI$6:$BW$500,10,FALSE)),#N/A) -> 57 | AV11: =IFERROR(IF(VLOOKUP(9999,'2012 FIA-Read'!$AS$14:$BC$500,3,FALSE)="",#N/A,VLOOKUP(9999,'2012 FIA-Read'!$AS$14:$BC$500,11,FALSE)*100),#N/A) -> 49.22 | AW11: =IFERROR(IF(VLOOKUP(9999,'FIAG7-RAll'!$B$2:$AC$500,3,FALSE)="",#N/A,VLOOKUP(9999,'FIAG7-RAll'!$B$2:$AC$500,12,FALSE)*100),#N/A) -> 59 | AX11: =IFERROR(IF(VLOOKUP(9999,'M-2013'!$BE$6:$BS$500,3,FALSE)="",#N/A,VLOOKUP(9999,'M-2013'!$BE$6:$BS$500,10,FALSE)),#N/A) -> 51 | AY11: =IFERROR(IF(VLOOKUP(9999,'2012 FIA-Math'!$AS$14:$BC$500,3,FALSE)="",#N/A,VLOOKUP(9999,'2012 FIA-Math'!$AS$14:$BC$500,11,FALSE)*100),#N/A) -> 47.05 | AZ11: =IFERROR(IF(VLOOKUP(9999,'FIAG7-MAll'!$B$2:$AC$500,3,FALSE)="",#N/A,VLOOKUP(9999,'FIAG7-MAll'!$B$2:$AC$500,12,FALSE)*100),#N/A) -> 42
AG12: Average % Correct | AP12: Average Score | AT12: 8 | AU12: =IFERROR(IF(VLOOKUP(9999,'R-2013'!$BX$6:$CL$500,3,FALSE)="",#N/A,VLOOKUP(9999,'R-2013'!$BX$6:$CL$500,10,FALSE)),#N/A) -> 56 | AV12: =IFERROR(IF(VLOOKUP(9999,'2012 FIA-Read'!$BD$14:$BN$500,3,FALSE)="",#N/A,VLOOKUP(9999,'2012 FIA-Read'!$BD$14:$BN$500,11,FALSE)*100),#N/A) -> 49.79 | AW12: =IFERROR(IF(VLOOKUP(9999,'FIAG8-RAll'!$B$2:$AC$500,3,FALSE)="",#N/A,VLOOKUP(9999,'FIAG8-RAll'!$B$2:$AC$500,12,FALSE)*100),#N/A) -> 54 | AX12: =IFERROR(IF(VLOOKUP(9999,'M-2013'!$BT$6:$CG$500,3,FALSE)="",#N/A,VLOOKUP(9999,'M-2013'!$BT$6:$CG$500,10,FALSE)),#N/A) -> 35 | AY12: =IFERROR(IF(VLOOKUP(9999,'2012 FIA-Math'!$BD$14:$BN$500,3,FALSE)="",#N/A,VLOOKUP(9999,'2012 FIA-Math'!$BD$14:$BN$500,11,FALSE)*100),#N/A) -> 39.49 | AZ12: =IFERROR(IF(VLOOKUP(9999,'FIAG8-MAll'!$B$2:$AC$500,3,FALSE)="",#N/A,VLOOKUP(9999,'FIAG8-MAll'!$B$2:$AC$500,12,FALSE)*100),#N/A) -> 21 | BA12: =IFERROR(IF(VLOOKUP(9999,'S-2013'!$P$6:$AC$272,3,FALSE)="",#N/A,VLOOKUP(9999,'S-2013'!$P$6:$AC$272,10,FALSE)),#N/A) -> 42 | BB12: =IFERROR(IF(VLOOKUP(9999,'2012 FIA-Sci'!$L$14:$V$500,3,FALSE)="",#N/A,VLOOKUP(9999,'2012 FIA-Sci'!$L$14:$V$500,11,FALSE)*100),#N/A) -> 37.57 | BC12: =IFERROR(IF(VLOOKUP(9999,'FIAG8-SALL'!$B$2:$AC$496,3,FALSE)="",#N/A,VLOOKUP(9999,'FIAG8-SALL'!$B$2:$AC$496,12,FALSE)*100),#N/A) -> 40
AG13: Reading | AJ13: Math | AM13: Science | AP13: Writing | AT13: Alg | AX13: =IFERROR(VLOOKUP(9999,'2013 ALG'!$A$6:$I$500,5,FALSE),#N/A) -> 66 | AY13: =IFERROR(IF(VLOOKUP(9999,'2012 FIA-EOC'!$A$14:$K$500,3,FALSE)="",#N/A,VLOOKUP(9999,'2012 FIA-EOC'!$A$14:$K$500,11,FALSE)*100),#N/A) -> 49.93294891 | AZ13: =IFERROR(IF(VLOOKUP(9999,'FIA-ALG'!$B$2:$AC$500,3,FALSE)="",#N/A,VLOOKUP(9999,'FIA-ALG'!$B$2:$AC$500,12,FALSE)*100),#N/A) -> 68
AF14: Grade | AG14: Baseline | AH14: Fall IA | AI14: Winter IA | AJ14: Baseline | AK14: Fall IA | AL14: Winter IA | AM14: BL | AN14: Fall | AO14: Winter | AP14: Prompt | AQ14: Pre-Test | AR14: Midyear | AT14: Geo | AX14: =IFERROR(VLOOKUP(9999,'2013 GEO'!$A$6:$I$500,5,FALSE),#N/A) -> 60 | AY14: =IFERROR(IF(VLOOKUP(9999,'2012 FIA-EOC'!$L$14:$V$500,3,FALSE)="",#N/A,VLOOKUP(9999,'2012 FIA-EOC'!$L$14:$V$500,11,FALSE)*100),#N/A) -> 44.94303106 | AZ14: =IFERROR(IF(VLOOKUP(9999,'FIA-GEO'!$B$2:$AC$500,3,FALSE)="",#N/A,VLOOKUP(9999,'FIA-GEO'!$B$2:$AC$500,12,FALSE)*100),#N/A) -> 60
AF15: 3 | AG15: =IFERROR(IF(VLOOKUP($A$3,'BLG3-RALL'!$A$14:$CZ$500,3,FALSE)="",#N/A,VLOOKUP($A$3,'BLG3-RALL'!$A$14:$CZ$500,5,FALSE)*100),#N/A) -> 55 | AH15: =IFERROR(IF(VLOOKUP($A$3,#REF!,3,FALSE)="",#N/A,VLOOKUP($A$3,#REF!,5,FALSE)*100),#N/A) ->  | AI15: =IFERROR(IF(VLOOKUP($A$3,#REF!,3,FALSE)="",#N/A,VLOOKUP($A$3,#REF!,5,FALSE)*100),#N/A) ->  | AJ15: =IFERROR(IF(VLOOKUP($A$3,'BLG3-MALL'!$A$14:$CZ$500,3,FALSE)="",#N/A,VLOOKUP($A$3,'BLG3-MALL'!$A$14:$CZ$500,5,FALSE)*100),#N/A) -> 39 | AK15: =IFERROR(IF(VLOOKUP($A$3,#REF!,3,FALSE)="",#N/A,VLOOKUP($A$3,#REF!,5,FALSE)*100),#N/A) ->  | AL15: =IFERROR(IF(VLOOKUP($A$3,#REF!,3,FALSE)="",#N/A,VLOOKUP($A$3,#REF!,5,FALSE)*100),#N/A) ->  | AP15: Expository | AQ15: =IFERROR(IF(VLOOKUP($A$3,'BLG4-WALL'!$A$14:$CZ$503,3,FALSE)="",#N/A,VLOOKUP($A$3,'BLG4-WALL'!$A$14:$CZ$503,4,FALSE)),#N/A) -> 1.399999976 | AR15: =IFERROR(IF(VLOOKUP($A$3,'MYG4-WALL'!$A$14:$CG$495,3,FALSE)="",#N/A,VLOOKUP($A$3,'MYG4-WALL'!$A$14:$CG$495,4,FALSE)),#N/A) -> E
AF16: 4 | AG16: =IFERROR(IF(VLOOKUP($A$3,'BLG4-RALL'!$A$14:$CZ$500,3,FALSE)="",#N/A,VLOOKUP($A$3,'BLG4-RALL'!$A$14:$CZ$500,5,FALSE)*100),#N/A) -> 60 | AH16: =IFERROR(IF(VLOOKUP($A$3,#REF!,3,FALSE)="",#N/A,VLOOKUP($A$3,#REF!,5,FALSE)*100),#N/A) ->  | AI16: =IFERROR(IF(VLOOKUP($A$3,#REF!,3,FALSE)="",#N/A,VLOOKUP($A$3,#REF!,5,FALSE)*100),#N/A) ->  | AJ16: =IFERROR(IF(VLOOKUP($A$3,'BLG4-MALL'!$A$14:$CZ$500,3,FALSE)="",#N/A,VLOOKUP($A$3,'BLG4-MALL'!$A$14:$CZ$500,5,FALSE)*100),#N/A) -> 41 | AK16: =IFERROR(IF(VLOOKUP($A$3,#REF!,3,FALSE)="",#N/A,VLOOKUP($A$3,#REF!,5,FALSE)*100),#N/A) ->  | AL16: =IFERROR(IF(VLOOKUP($A$3,#REF!,3,FALSE)="",#N/A,VLOOKUP($A$3,#REF!,5,FALSE)*100),#N/A) ->  | AP16: Narrative | AQ16: =IFERROR(IF(VLOOKUP($A$3,'BLG4-WALL'!$A$14:$CZ$503,12,FALSE)="",#N/A,VLOOKUP($A$3,'BLG4-WALL'!$A$14:$CZ$503,13,FALSE)),#N/A) -> 1.5 | AR16: =IFERROR(IF(VLOOKUP($A$3,'MYG4-WALL'!$A$14:$CG$495,12,FALSE)="",#N/A,VLOOKUP($A$3,'MYG4-WALL'!$A$14:$CG$495,13,FALSE)),#N/A) -> 61
AF17: 5 | AG17: =IFERROR(IF(VLOOKUP($A$3,'BLG5-RALL'!$A$14:$CZ$500,3,FALSE)="",#N/A,VLOOKUP($A$3,'BLG5-RALL'!$A$14:$CZ$500,5,FALSE)*100),#N/A) -> 61 | AH17: =IFERROR(IF(VLOOKUP($A$3,#REF!,3,FALSE)="",#N/A,VLOOKUP($A$3,#REF!,5,FALSE)*100),#N/A) ->  | AI17: =IFERROR(IF(VLOOKUP($A$3,#REF!,3,FALSE)="",#N/A,VLOOKUP($A$3,#REF!,5,FALSE)*100),#N/A) ->  | AJ17: =IFERROR(IF(VLOOKUP($A$3,'BLG5-MALL'!$A$14:$CZ$500,3,FALSE)="",#N/A,VLOOKUP($A$3,'BLG5-MALL'!$A$14:$CZ$500,5,FALSE)*100),#N/A) -> 42 | AK17: =IFERROR(IF(VLOOKUP($A$3,#REF!,3,FALSE)="",#N/A,VLOOKUP($A$3,#REF!,5,FALSE)*100),#N/A) ->  | AL17: =IFERROR(IF(VLOOKUP($A$3,#REF!,3,FALSE)="",#N/A,VLOOKUP($A$3,#REF!,5,FALSE)*100),#N/A) ->  | AM17: =IFERROR(IF(VLOOKUP($A$3,'BLG5-SALL'!$A$14:$CZ$500,3,FALSE)="",#N/A,VLOOKUP($A$3,'BLG5-SALL'!$A$14:$CZ$500,5,FALSE)*100),#N/A) -> 46 | AN17: =IFERROR(IF(VLOOKUP($A$3,#REF!,3,FALSE)="",#N/A,VLOOKUP($A$3,#REF!,5,FALSE)*100),#N/A) ->  | AO17: =IFERROR(IF(VLOOKUP($A$3,#REF!,3,FALSE)="",#N/A,VLOOKUP($A$3,#REF!,5,FALSE)*100),#N/A) ->  | AT17: School | AU17: =A4 -> 9999-District
AU18: % Proficient | BD18: % of Students Scoring at 4.0 and higher
AU19: Reading | AX19: Math | BA19: Science | BD19: Writing
AT20: Grade | AU20: 2013 FCAT 2.0 | AV20: 2012 Fall IA | AW20: 2013 Fall IA | AX20: 2013 FCAT 2.0 | AY20: 2012 Fall IA | AZ20: 2013 Fall IA | BA20: 2013 FCAT 2.0 | BB20: 2012 Fall IA | BC20: 2013 Fall IA | BD20: Prompt | BE20: Baseline | BF20: Midyear
AT21: 3 | AU21: =IFERROR(IF(VLOOKUP(VALUE($A$3),'R-2013'!$A$6:$N$500,3,FALSE)="",#N/A,VLOOKUP(VALUE($A$3),'R-2013'!$A$6:$N$500,10,FALSE)),#N/A) -> 53 | AV21: =IFERROR(IF(VLOOKUP(VALUE($A$3),'2012 FIA-Read'!$A$14:$K$500,3,FALSE)="",#N/A,VLOOKUP(VALUE($A$3),'2012 FIA-Read'!$A$14:$K$500,11,FALSE)*100),#N/A) -> 49.7 | AW21: =IFERROR(IF(VLOOKUP($A$3,'FIAG3-RAll'!$B$2:$AC$500,3,FALSE)="",#N/A,VLOOKUP($A$3,'FIAG3-RAll'!$B$2:$AC$500,12,FALSE)*100),#N/A) -> 51 | AX21: =IFERROR(IF(VLOOKUP(VALUE($A$3),'M-2013'!$A$6:$N$500,3,FALSE)="",#N/A,VLOOKUP(VALUE($A$3),'M-2013'!$A$6:$N$500,10,FALSE)),#N/A) -> 62 | AY21: =IFERROR(IF(VLOOKUP(VALUE($A$3),'2012 FIA-Math'!$A$14:$K$500,3,FALSE)="",#N/A,VLOOKUP(VALUE($A$3),'2012 FIA-Math'!$A$14:$K$500,11,FALSE)*100),#N/A) -> 58.74 | AZ21: =IFERROR(IF(VLOOKUP($A$3,'FIAG3-MAll'!$B$2:$AC$500,3,FALSE)="",#N/A,VLOOKUP($A$3,'FIAG3-MAll'!$B$2:$AC$500,12,FALSE)*100),#N/A) -> 61 | BD21: Expository | BE21: =IFERROR(IF(VLOOKUP(VALUE($A$3),'BLG4-WALL'!$A$14:$CZ$503,3,FALSE)="",#N/A,VLOOKUP(VALUE($A$3),'BLG4-WALL'!$A$14:$CZ$503,11,FALSE)*100),#N/A) -> 1.13 | BF21: =IFERROR(IF(VLOOKUP(VALUE($A$3),'MYG4-WALL'!$A$14:$CG$495,3,FALSE)="",#N/A,VLOOKUP(VALUE($A$3),'MYG4-WALL'!$A$14:$CG$495,11,FALSE)*100),#N/A) -> 3800
AT22: 4 | AU22: =IFERROR(IF(VLOOKUP(VALUE($A$3),'R-2013'!$P$6:$AC$500,3,FALSE)="",#N/A,VLOOKUP(VALUE($A$3),'R-2013'!$P$6:$AC$500,10,FALSE)),#N/A) -> 59 | AV22: =IFERROR(IF(VLOOKUP(VALUE($A$3),'2012 FIA-Read'!$L$14:$V$500,3,FALSE)="",#N/A,VLOOKUP(VALUE($A$3),'2012 FIA-Read'!$L$14:$V$500,11,FALSE)*100),#N/A) -> 55.98 | AW22: =IFERROR(IF(VLOOKUP($A$3,'FIAG4-RAll'!$B$2:$AC$500,3,FALSE)="",#N/A,VLOOKUP($A$3,'FIAG4-RAll'!$B$2:$AC$500,12,FALSE)*100),#N/A) -> 62 | AX22: =IFERROR(IF(VLOOKUP(VALUE($A$3),'M-2013'!$O$6:$AB$500,3,FALSE)="",#N/A,VLOOKUP(VALUE($A$3),'M-2013'!$O$6:$AB$500,10,FALSE)),#N/A) -> 64 | AY22: =IFERROR(IF(VLOOKUP(VALUE($A$3),'2012 FIA-Math'!$L$14:$V$500,3,FALSE)="",#N/A,VLOOKUP(VALUE($A$3),'2012 FIA-Math'!$L$14:$V$500,11,FALSE)*100),#N/A) -> 59.5 | AZ22: =IFERROR(IF(VLOOKUP($A$3,'FIAG4-MAll'!$B$2:$AC$500,3,FALSE)="",#N/A,VLOOKUP($A$3,'FIAG4-MAll'!$B$2:$AC$500,12,FALSE)*100),#N/A) -> 65 | BD22: Narrative | BE22: =IFERROR(IF(VLOOKUP(VALUE($A$3),'BLG4-WALL'!$A$14:$CZ$503,12,FALSE)="",#N/A,VLOOKUP(VALUE($A$3),'BLG4-WALL'!$A$14:$CZ$503,20,FALSE)*100),#N/A) -> 2.32 | BF22: =IFERROR(IF(VLOOKUP(VALUE($A$3),'MYG4-WALL'!$A$14:$CG$495,12,FALSE)="",#N/A,VLOOKUP(VALUE($A$3),'MYG4-WALL'!$A$14:$CG$495,20,FALSE)*100),#N/A) -> 3600
AT23: 5 | AU23: =IFERROR(IF(VLOOKUP(VALUE($A$3),'R-2013'!$AE$6:$AR$500,3,FALSE)="",#N/A,VLOOKUP(VALUE($A$3),'R-2013'!$AE$6:$AR$500,10,FALSE)),#N/A) -> 59 | AV23: =IFERROR(IF(VLOOKUP(VALUE($A$3),'2012 FIA-Read'!$W$14:$AG$500,3,FALSE)="",#N/A,VLOOKUP(VALUE($A$3),'2012 FIA-Read'!$W$14:$AG$500,11,FALSE)*100),#N/A) -> 56.4 | AW23: =IFERROR(IF(VLOOKUP($A$3,'FIAG5-RAll'!$B$2:$AC$500,3,FALSE)="",#N/A,VLOOKUP($A$3,'FIAG5-RAll'!$B$2:$AC$500,12,FALSE)*100),#N/A) -> 57 | AX23: =IFERROR(IF(VLOOKUP(VALUE($A$3),'M-2013'!$AC$6:$AP$500,3,FALSE)="",#N/A,VLOOKUP(VALUE($A$3),'M-2013'!$AC$6:$AP$500,10,FALSE)),#N/A) -> 56 | AY23: =IFERROR(IF(VLOOKUP(VALUE($A$3),'2012 FIA-Math'!$W$14:$AG$500,3,FALSE)="",#N/A,VLOOKUP(VALUE($A$3),'2012 FIA-Math'!$W$14:$AG$500,11,FALSE)*100),#N/A) -> 57 | AZ23: =IFERROR(IF(VLOOKUP($A$3,'FIAG5-MAll'!$B$2:$AC$500,3,FALSE)="",#N/A,VLOOKUP($A$3,'FIAG5-MAll'!$B$2:$AC$500,12,FALSE)*100),#N/A) -> 55 | BA23: =IFERROR(IF(VLOOKUP(VALUE($A$3),'S-2013'!$A$6:$N$272,3,FALSE)="",#N/A,VLOOKUP(VALUE($A$3),'S-2013'!$A$6:$N$272,10,FALSE)),#N/A) -> 51 | BB23: =IFERROR(IF(VLOOKUP(VALUE($A$3),'2012 FIA-Sci'!$A$14:$K$500,3,FALSE)="",#N/A,VLOOKUP(VALUE($A$3),'2012 FIA-Sci'!$A$14:$K$500,11,FALSE)*100),#N/A) -> 48.76 | BC23: =IFERROR(IF(VLOOKUP($A$3,'FIAG5-SALL'!$B$2:$AC$500,3,FALSE)="",#N/A,VLOOKUP($A$3,'FIAG5-SALL'!$B$2:$AC$500,12,FALSE)*100),#N/A) -> 51
AT24: 6 | AU24: =IFERROR(IF(VLOOKUP($A$3,'R-2013'!$AT$6:$BH$500,3,FALSE)="",#N/A,VLOOKUP($A$3,'R-2013'!$AT$6:$BH$500,10,FALSE)),#N/A) -> 57 | AV24: =IFERROR(IF(VLOOKUP($A$3,'2012 FIA-Read'!$AH$14:$AR$500,3,FALSE)="",#N/A,VLOOKUP($A$3,'2012 FIA-Read'!$AH$14:$AR$500,11,FALSE)*100),#N/A) -> 51.84 | AW24: =IFERROR(IF(VLOOKUP($A$3,'FIAG6-RAll'!$B$2:$AC$500,3,FALSE)="",#N/A,VLOOKUP($A$3,'FIAG6-RAll'!$B$2:$AC$500,12,FALSE)*100),#N/A) -> 60 | AX24: =IFERROR(IF(VLOOKUP($A$3,'M-2013'!$AQ$6:$BD$500,3,FALSE)="",#N/A,VLOOKUP($A$3,'M-2013'!$AQ$6:$BD$500,10,FALSE)),#N/A) -> 51 | AY24: =IFERROR(IF(VLOOKUP($A$3,'2012 FIA-Math'!$AH$14:$AR$500,3,FALSE)="",#N/A,VLOOKUP($A$3,'2012 FIA-Math'!$AH$14:$AR$500,11,FALSE)*100),#N/A) -> 48.23 | AZ24: =IFERROR(IF(VLOOKUP($A$3,'FIAG6-MAll'!$B$2:$AC$500,3,FALSE)="",#N/A,VLOOKUP($A$3,'FIAG6-MAll'!$B$2:$AC$500,12,FALSE)*100),#N/A) -> 48
AT25: 7 | AU25: =IFERROR(IF(VLOOKUP($A$3,'R-2013'!$BI$6:$BW$500,3,FALSE)="",#N/A,VLOOKUP($A$3,'R-2013'!$BI$6:$BW$500,10,FALSE)),#N/A) -> 57 | AV25: =IFERROR(IF(VLOOKUP($A$3,'2012 FIA-Read'!$AS$14:$BC$500,3,FALSE)="",#N/A,VLOOKUP($A$3,'2012 FIA-Read'!$AS$14:$BC$500,11,FALSE)*100),#N/A) -> 49.22 | AW25: =IFERROR(IF(VLOOKUP($A$3,'FIAG7-RAll'!$B$2:$AC$500,3,FALSE)="",#N/A,VLOOKUP($A$3,'FIAG7-RAll'!$B$2:$AC$500,12,FALSE)*100),#N/A) -> 59 | AX25: =IFERROR(IF(VLOOKUP($A$3,'M-2013'!$BE$6:$BS$500,3,FALSE)="",#N/A,VLOOKUP($A$3,'M-2013'!$BE$6:$BS$500,10,FALSE)),#N/A) -> 51 | AY25: =IFERROR(IF(VLOOKUP($A$3,'2012 FIA-Math'!$AS$14:$BC$500,3,FALSE)="",#N/A,VLOOKUP($A$3,'2012 FIA-Math'!$AS$14:$BC$500,11,FALSE)*100),#N/A) -> 47.05 | AZ25: =IFERROR(IF(VLOOKUP($A$3,'FIAG7-MAll'!$B$2:$AC$500,3,FALSE)="",#N/A,VLOOKUP($A$3,'FIAG7-MAll'!$B$2:$AC$500,12,FALSE)*100),#N/A) -> 42
AT26: 8 | AU26: =IFERROR(IF(VLOOKUP($A$3,'R-2013'!$BX$6:$CL$500,3,FALSE)="",#N/A,VLOOKUP($A$3,'R-2013'!$BX$6:$CL$500,10,FALSE)),#N/A) -> 56 | AV26: =IFERROR(IF(VLOOKUP($A$3,'2012 FIA-Read'!$BD$14:$BN$500,3,FALSE)="",#N/A,VLOOKUP($A$3,'2012 FIA-Read'!$BD$14:$BN$500,11,FALSE)*100),#N/A) -> 49.79 | AW26: =IFERROR(IF(VLOOKUP($A$3,'FIAG8-RAll'!$B$2:$AC$500,3,FALSE)="",#N/A,VLOOKUP($A$3,'FIAG8-RAll'!$B$2:$AC$500,12,FALSE)*100),#N/A) -> 54 | AX26: =IFERROR(IF(VLOOKUP($A$3,'M-2013'!$BT$6:$CG$500,3,FALSE)="",#N/A,VLOOKUP($A$3,'M-2013'!$BT$6:$CG$500,10,FALSE)),#N/A) -> 35 | AY26: =IFERROR(IF(VLOOKUP($A$3,'2012 FIA-Math'!$BD$14:$BN$500,3,FALSE)="",#N/A,VLOOKUP($A$3,'2012 FIA-Math'!$BD$14:$BN$500,11,FALSE)*100),#N/A) -> 39.49 | AZ26: =IFERROR(IF(VLOOKUP($A$3,'FIAG8-MAll'!$B$2:$AC$500,3,FALSE)="",#N/A,VLOOKUP($A$3,'FIAG8-MAll'!$B$2:$AC$500,12,FALSE)*100),#N/A) -> 21 | BA26: =IFERROR(IF(VLOOKUP($A$3,'S-2013'!$P$6:$AC$272,3,FALSE)="",#N/A,VLOOKUP($A$3,'S-2013'!$P$6:$AC$272,10,FALSE)),#N/A) -> 42 | BB26: =IFERROR(IF(VLOOKUP($A$3,'2012 FIA-Sci'!$L$14:$V$500,3,FALSE)="",#N/A,VLOOKUP($A$3,'2012 FIA-Sci'!$L$14:$V$500,11,FALSE)*100),#N/A) -> 37.57 | BC26: =IFERROR(IF(VLOOKUP($A$3,'FIAG8-SALL'!$B$2:$AC$496,3,FALSE)="",#N/A,VLOOKUP($A$3,'FIAG8-SALL'!$B$2:$AC$496,12,FALSE)*100),#N/A) -> 40
AT27: Alg | AX27: =IFERROR(VLOOKUP($A$3,'2013 ALG'!$A$6:$I$500,5,FALSE),#N/A) -> 66 | AY27: =IFERROR(IF(VLOOKUP($A$3,'2012 FIA-EOC'!$A$14:$K$500,3,FALSE)="",#N/A,VLOOKUP($A$3,'2012 FIA-EOC'!$A$14:$K$500,11,FALSE)*100),#N/A) -> 49.93294891 | AZ27: =IFERROR(IF(VLOOKUP($A$3,'FIA-ALG'!$B$2:$AC$500,3,FALSE)="",#N/A,VLOOKUP($A$3,'FIA-ALG'!$B$2:$AC$500,12,FALSE)*100),#N/A) -> 68
AT28: Geo | AX28: =IFERROR(VLOOKUP($A$3,'2013 GEO'!$A$6:$I$500,5,FALSE),#N/A) -> 60 | AY28: =IFERROR(IF(VLOOKUP($A$3,'2012 FIA-EOC'!$L$14:$V$500,3,FALSE)="",#N/A,VLOOKUP($A$3,'2012 FIA-EOC'!$L$14:$V$500,11,FALSE)*100),#N/A) -> 44.94303106 | AZ28: =IFERROR(IF(VLOOKUP($A$3,'FIA-GEO'!$B$2:$AC$500,3,FALSE)="",#N/A,VLOOKUP($A$3,'FIA-GEO'!$B$2:$AC$500,12,FALSE)*100),#N/A) -> 60

Sheet G3-7 WIA Trend Report (hidden)
A2: Click here to return to the school and sheet selection interface | AG2: District | AH2: % Proficient
A3: ='Select School'!B3 -> 9999 | AH3: District
A4: =TEXT(A3,"0000")&"-"&VLOOKUP(A3,SchList!$A$2:$B$502,2,FALSE) -> 9999-District | AH4: % Proficient | AQ4: % of Students Scoring at 4.0 and higher
A5: Trend Report: 2013 FCAT 2.0, 2013 Winter Interim Assessment, and 2014 Winter Interim Assessment | AH5: Reading | AK5: Math | AN5: Science | AQ5: Writing
AG6: Grade | AH6: 2013 FCAT 2.0 | AI6: 2013 WIA | AJ6: 2014 WIA | AK6: 2013 FCAT 2.0 | AL6: 2013 WIA | AM6: 2014 WIA | AN6: 2013 FCAT 2.0 | AO6: 2013 WIA | AP6: 2014 WIA | AQ6: Prompt | AR6: 2013 FCAT | AS6: 2013 Midyear | AT6: 2014 Midyear
AG7: 3 | AH7: =IFERROR(IF(VLOOKUP(9999,'R-2013'!$A$6:$N$500,3,FALSE)="",#N/A,VLOOKUP(9999,'R-2013'!$A$6:$N$500,10,FALSE)),#N/A) -> 53 | AI7: =IFERROR(IF(VLOOKUP(9999,'2013 WIA-Read'!$A$14:$K$500,3,FALSE)="",#N/A,VLOOKUP(9999,'2013 WIA-Read'!$A$14:$K$500,11,FALSE)*100),#N/A) -> 53.31 | AJ7: =IFERROR(IF(VLOOKUP(9999,'WIAG3-RALL'!$B$2:$AC$500,3,FALSE)="",#N/A,VLOOKUP(9999,'WIAG3-RALL'!$B$2:$AC$500,12,FALSE)*100),#N/A) -> 53 | AK7: =IFERROR(IF(VLOOKUP(9999,'M-2013'!$A$6:$N$500,3,FALSE)="",#N/A,VLOOKUP(9999,'M-2013'!$A$6:$N$500,10,FALSE)),#N/A) -> 62 | AL7: =IFERROR(IF(VLOOKUP(9999,'2013 WIA-Math'!$A$14:$K$500,3,FALSE)="",#N/A,VLOOKUP(9999,'2013 WIA-Math'!$A$14:$K$500,11,FALSE)*100),#N/A) -> 64.35 | AM7: =IFERROR(IF(VLOOKUP(9999,'WIAG3-MALL'!$B$2:$AC$500,3,FALSE)="",#N/A,VLOOKUP(9999,'WIAG3-MALL'!$B$2:$AC$500,12,FALSE)*100),#N/A) -> 60 | AQ7: Expository | AS7: =IFERROR(IF(VLOOKUP(9999,'2013 MY-Writing'!$A$14:$T$503,3,FALSE)="",#N/A,VLOOKUP(9999,'2013 MY-Writing'!$A$14:$T$503,11,FALSE)*100),#N/A) -> 23.28435011 | AT7: =IFERROR(IF(VLOOKUP(9999,'MYG4-WALL'!$A$2:$W$495,5,FALSE)<10,#N/A,VLOOKUP(9999,'MYG4-WALL'!$A$2:$W$495,12,FALSE)),#N/A) -> 23
AG8: 4 | AH8: =IFERROR(IF(VLOOKUP(9999,'R-2013'!$P$6:$AC$500,3,FALSE)="",#N/A,VLOOKUP(9999,'R-2013'!$P$6:$AC$500,10,FALSE)),#N/A) -> 59 | AI8: =IFERROR(IF(VLOOKUP(9999,'2013 WIA-Read'!$L$14:$V$500,3,FALSE)="",#N/A,VLOOKUP(9999,'2013 WIA-Read'!$L$14:$V$500,11,FALSE)*100),#N/A) -> 61.57 | AJ8: =IFERROR(IF(VLOOKUP(9999,'WIAG4-RALL'!$B$2:$AC$500,3,FALSE)="",#N/A,VLOOKUP(9999,'WIAG4-RALL'!$B$2:$AC$500,12,FALSE)*100),#N/A) -> 60 | AK8: =IFERROR(IF(VLOOKUP(9999,'M-2013'!$O$6:$AB$500,3,FALSE)="",#N/A,VLOOKUP(9999,'M-2013'!$O$6:$AB$500,10,FALSE)),#N/A) -> 64 | AL8: =IFERROR(IF(VLOOKUP(9999,'2013 WIA-Math'!$L$14:$V$500,3,FALSE)="",#N/A,VLOOKUP(9999,'2013 WIA-Math'!$L$14:$V$500,11,FALSE)*100),#N/A) -> 61.57 | AM8: =IFERROR(IF(VLOOKUP(9999,'WIAG4-MALL'!$B$2:$AC$500,3,FALSE)="",#N/A,VLOOKUP(9999,'WIAG4-MALL'!$B$2:$AC$500,12,FALSE)*100),#N/A) -> 68 | AQ8: Narrative | AR8: =IFERROR(VLOOKUP(9999,'W13'!$A$7:$S$500,19,FALSE),#N/A) -> 37 | AS8: =IFERROR(IF(VLOOKUP(9999,'2013 MY-Writing'!$A$14:$T$503,3,FALSE)="",#N/A,VLOOKUP(9999,'2013 MY-Writing'!$A$14:$T$503,20,FALSE)*100),#N/A) -> 24.18300654 | AT8: =IFERROR(IF(VLOOKUP(9999,'MYG4-WALL'!$A$2:$W$495,15,FALSE)<10,#N/A,VLOOKUP(9999,'MYG4-WALL'!$A$2:$W$495,22,FALSE)),#N/A) -> 27
AG9: 5 | AH9: =IFERROR(IF(VLOOKUP(9999,'R-2013'!$AE$6:$AR$500,3,FALSE)="",#N/A,VLOOKUP(9999,'R-2013'!$AE$6:$AR$500,10,FALSE)),#N/A) -> 59 | AI9: =IFERROR(IF(VLOOKUP(9999,'2013 WIA-Read'!$W$14:$AG$500,3,FALSE)="",#N/A,VLOOKUP(9999,'2013 WIA-Read'!$W$14:$AG$500,11,FALSE)*100),#N/A) -> 57.39 | AJ9: =IFERROR(IF(VLOOKUP(9999,'WIAG5-RALL'!$B$2:$AC$500,3,FALSE)="",#N/A,VLOOKUP(9999,'WIAG5-RALL'!$B$2:$AC$500,12,FALSE)*100),#N/A) -> 59 | AK9: =IFERROR(IF(VLOOKUP(9999,'M-2013'!$AC$6:$AP$500,3,FALSE)="",#N/A,VLOOKUP(9999,'M-2013'!$AC$6:$AP$500,10,FALSE)),#N/A) -> 56 | AL9: =IFERROR(IF(VLOOKUP(9999,'2013 WIA-Math'!$W$14:$AG$500,3,FALSE)="",#N/A,VLOOKUP(9999,'2013 WIA-Math'!$W$14:$AG$500,11,FALSE)*100),#N/A) -> 50.2 | AM9: =IFERROR(IF(VLOOKUP(9999,'WIAG5-MALL'!$B$2:$AC$500,3,FALSE)="",#N/A,VLOOKUP(9999,'WIAG5-MALL'!$B$2:$AC$500,12,FALSE)*100),#N/A) -> 51 | AN9: =IFERROR(IF(VLOOKUP(9999,'S-2013'!$A$6:$N$272,3,FALSE)="",#N/A,VLOOKUP(9999,'S-2013'!$A$6:$N$272,10,FALSE)),#N/A) -> 51 | AO9: =IFERROR(IF(VLOOKUP(9999,'2013 WIA-Sci'!$A$14:$K$500,3,FALSE)="",#N/A,VLOOKUP(9999,'2013 WIA-Sci'!$A$14:$K$500,11,FALSE)*100),#N/A) -> 52.43 | AP9: =IFERROR(IF(VLOOKUP(9999,'WIAG5-SALL'!$B$2:$AC$500,3,FALSE)="",#N/A,VLOOKUP(9999,'WIAG5-SALL'!$B$2:$AC$500,12,FALSE)*100),#N/A) -> 56
AG10: 6 | AH10: =IFERROR(IF(VLOOKUP(9999,'R-2013'!$AT$6:$BH$500,3,FALSE)="",#N/A,VLOOKUP(9999,'R-2013'!$AT$6:$BH$500,10,FALSE)),#N/A) -> 57 | AI10: =IFERROR(IF(VLOOKUP(9999,'2013 WIA-Read'!$AH$14:$AR$500,3,FALSE)="",#N/A,VLOOKUP(9999,'2013 WIA-Read'!$AH$14:$AR$500,11,FALSE)*100),#N/A) -> 54.36 | AJ10: =IFERROR(IF(VLOOKUP(9999,'WIAG6-RALL'!$B$2:$AC$500,3,FALSE)="",#N/A,VLOOKUP(9999,'WIAG6-RALL'!$B$2:$AC$500,12,FALSE)*100),#N/A) -> 62 | AK10: =IFERROR(IF(VLOOKUP(9999,'M-2013'!$AQ$6:$BD$500,3,FALSE)="",#N/A,VLOOKUP(9999,'M-2013'!$AQ$6:$BD$500,10,FALSE)),#N/A) -> 51 | AL10: =IFERROR(IF(VLOOKUP(9999,'2013 WIA-Math'!$AH$14:$AR$500,3,FALSE)="",#N/A,VLOOKUP(9999,'2013 WIA-Math'!$AH$14:$AR$500,11,FALSE)*100),#N/A) -> 48.65 | AM10: =IFERROR(IF(VLOOKUP(9999,'WIAG6-MALL'!$B$2:$AC$500,3,FALSE)="",#N/A,VLOOKUP(9999,'WIAG6-MALL'!$B$2:$AC$500,12,FALSE)*100),#N/A) -> 47
AG11: 7 | AH11: =IFERROR(IF(VLOOKUP(9999,'R-2013'!$BI$6:$BW$500,3,FALSE)="",#N/A,VLOOKUP(9999,'R-2013'!$BI$6:$BW$500,10,FALSE)),#N/A) -> 57 | AI11: =IFERROR(IF(VLOOKUP(9999,'2013 WIA-Read'!$AS$14:$BC$500,3,FALSE)="",#N/A,VLOOKUP(9999,'2013 WIA-Read'!$AS$14:$BC$500,11,FALSE)*100),#N/A) -> 55.3 | AJ11: =IFERROR(IF(VLOOKUP(9999,'WIAG7-RALL'!$B$2:$AC$500,3,FALSE)="",#N/A,VLOOKUP(9999,'WIAG7-RALL'!$B$2:$AC$500,12,FALSE)*100),#N/A) -> 60 | AK11: =IFERROR(IF(VLOOKUP(9999,'M-2013'!$BE$6:$BS$500,3,FALSE)="",#N/A,VLOOKUP(9999,'M-2013'!$BE$6:$BS$500,10,FALSE)),#N/A) -> 51 | AL11: =IFERROR(IF(VLOOKUP(9999,'2013 WIA-Math'!$AS$14:$BC$500,3,FALSE)="",#N/A,VLOOKUP(9999,'2013 WIA-Math'!$AS$14:$BC$500,11,FALSE)*100),#N/A) -> 47.59 | AM11: =IFERROR(IF(VLOOKUP(9999,'WIAG7-MALL'!$B$2:$AC$500,3,FALSE)="",#N/A,VLOOKUP(9999,'WIAG7-MALL'!$B$2:$AC$500,12,FALSE)*100),#N/A) -> 43
AG12: 8 | AH12: =IFERROR(IF(VLOOKUP(9999,'R-2013'!$BX$6:$CL$500,3,FALSE)="",#N/A,VLOOKUP(9999,'R-2013'!$BX$6:$CL$500,10,FALSE)),#N/A) -> 56 | AI12: =IFERROR(IF(VLOOKUP(9999,'2013 WIA-Read'!$BD$14:$BN$500,3,FALSE)="",#N/A,VLOOKUP(9999,'2013 WIA-Read'!$BD$14:$BN$500,11,FALSE)*100),#N/A) -> 50.36 | AJ12: =IFERROR(IF(VLOOKUP(9999,'WIAG8-RALL'!$B$2:$AC$500,3,FALSE)="",#N/A,VLOOKUP(9999,'WIAG8-RALL'!$B$2:$AC$500,12,FALSE)*100),#N/A) -> 56 | AK12: =IFERROR(IF(VLOOKUP(9999,'M-2013'!$BT$6:$CG$500,3,FALSE)="",#N/A,VLOOKUP(9999,'M-2013'!$BT$6:$CG$500,10,FALSE)),#N/A) -> 35 | AL12: =IFERROR(IF(VLOOKUP(9999,'2013 WIA-Math'!$BD$14:$BN$500,3,FALSE)="",#N/A,VLOOKUP(9999,'2013 WIA-Math'!$BD$14:$BN$500,11,FALSE)*100),#N/A) -> 37.42 | AM12: =IFERROR(IF(VLOOKUP(9999,'WIAG8-MALL'!$B$2:$AC$500,3,FALSE)="",#N/A,VLOOKUP(9999,'WIAG8-MALL'!$B$2:$AC$500,12,FALSE)*100),#N/A) -> 23 | AN12: =IFERROR(IF(VLOOKUP(9999,'S-2013'!$P$6:$AC$272,3,FALSE)="",#N/A,VLOOKUP(9999,'S-2013'!$P$6:$AC$272,10,FALSE)),#N/A) -> 42 | AO12: =IFERROR(IF(VLOOKUP(9999,'2013 WIA-Sci'!$L$14:$V$500,3,FALSE)="",#N/A,VLOOKUP(9999,'2013 WIA-Sci'!$L$14:$V$500,11,FALSE)*100),#N/A) -> 38.26 | AP12: =IFERROR(IF(VLOOKUP(9999,'WIAG8-SALL'!$B$2:$AC$496,3,FALSE)="",#N/A,VLOOKUP(9999,'WIAG8-SALL'!$B$2:$AC$496,12,FALSE)*100),#N/A) -> 41 | AQ12: Grade | AR12: 2013 FCAT 2.0 | AS12: 2013 WIA | AT12: 2014 WIA
AG13: Alg. | AK13: =IFERROR(VLOOKUP(9999,'2013 ALG'!$A$6:$I$500,5,FALSE),#N/A) -> 66 | AL13: =IFERROR(IF(VLOOKUP(9999,'2013 WIA-Math'!$BO$14:$BY$500,3,FALSE)="",#N/A,VLOOKUP(9999,'2013 WIA-Math'!$BO$14:$BY$500,11,FALSE)*100),#N/A) -> 43.82097752 | AM13: =IFERROR(IF(VLOOKUP(9999,'WIA-ALG'!$B$2:$AC$500,3,FALSE)="",#N/A,VLOOKUP(9999,'WIA-ALG'!$B$2:$AC$500,12,FALSE)*100),#N/A) -> 68 | AQ13: Grade 5 | AR13: =IFERROR(IF(VLOOKUP(VALUE(9999),'S-2013'!$A$6:$N$272,3,FALSE)="",#N/A,VLOOKUP(VALUE(9999),'S-2013'!$A$6:$N$272,10,FALSE)),#N/A) -> 51 | AS13: =IFERROR(IF(VLOOKUP(VALUE(9999),'2013 WIA-Sci'!$A$14:$K$500,3,FALSE)="",#N/A,VLOOKUP(VALUE(9999),'2013 WIA-Sci'!$A$14:$K$500,11,FALSE)*100),#N/A) -> 52.43 | AT13: =IFERROR(IF(VLOOKUP(9999,'WIAG5-SALL'!$B$2:$AC$500,3,FALSE)="",#N/A,VLOOKUP(9999,'WIAG5-SALL'!$B$2:$AC$500,12,FALSE)*100),#N/A) -> 56
AG14: Geo | AK14: =IFERROR(VLOOKUP(9999,'2013 GEO'!$A$6:$I$500,5,FALSE),#N/A) -> 60 | AL14: =IFERROR(IF(VLOOKUP(9999,'2013 WIA-Math'!$BZ$14:$CJ$500,3,FALSE)="",#N/A,VLOOKUP(9999,'2013 WIA-Math'!$BZ$14:$CJ$500,11,FALSE)*100),#N/A) -> 39.49498094 | AM14: =IFERROR(IF(VLOOKUP(9999,'WIA-GEO'!$B$2:$AC$500,3,FALSE)="",#N/A,VLOOKUP(9999,'WIA-GEO'!$B$2:$AC$500,12,FALSE)*100),#N/A) -> 43
AG17: School | AH17: =A4 -> 9999-District
AH18: % Proficient | AQ18: % of Students Scoring at 4.0 and higher
AH19: Reading | AK19: Math | AN19: Science | AQ19: Writing
AG20: Grade | AH20: 2013 FCAT 2.0 | AI20: 2012 Fall IA | AJ20: 2013 Fall IA | AK20: 2013 FCAT 2.0 | AL20: 2012 Fall IA | AM20: 2013 Fall IA | AN20: 2013 FCAT 2.0 | AO20: 2012 Fall IA | AP20: 2013 Fall IA | AQ20: Prompt | AR20: 2013 FCAT | AS20: 2013 Midyear | AT20: 2014 Midyear
AG21: 3 | AH21: =IFERROR(IF(VLOOKUP($A$3,'R-2013'!$A$6:$N$500,3,FALSE)="",#N/A,VLOOKUP($A$3,'R-2013'!$A$6:$N$500,10,FALSE)),#N/A) -> 53 | AI21: =IFERROR(IF(VLOOKUP($A$3,'2013 WIA-Read'!$A$14:$K$500,3,FALSE)="",#N/A,VLOOKUP($A$3,'2013 WIA-Read'!$A$14:$K$500,11,FALSE)*100),#N/A) -> 53.31 | AJ21: =IFERROR(IF(VLOOKUP($A$3,'WIAG3-RALL'!$B$2:$AC$500,3,FALSE)="",#N/A,VLOOKUP($A$3,'WIAG3-RALL'!$B$2:$AC$500,12,FALSE)*100),#N/A) -> 53 | AK21: =IFERROR(IF(VLOOKUP($A$3,'M-2013'!$A$6:$N$500,3,FALSE)="",#N/A,VLOOKUP($A$3,'M-2013'!$A$6:$N$500,10,FALSE)),#N/A) -> 62 | AL21: =IFERROR(IF(VLOOKUP($A$3,'2013 WIA-Math'!$A$14:$K$500,3,FALSE)="",#N/A,VLOOKUP($A$3,'2013 WIA-Math'!$A$14:$K$500,11,FALSE)*100),#N/A) -> 64.35 | AM21: =IFERROR(IF(VLOOKUP($A$3,'WIAG3-MALL'!$B$2:$AC$500,3,FALSE)="",#N/A,VLOOKUP($A$3,'WIAG3-MALL'!$B$2:$AC$500,12,FALSE)*100),#N/A) -> 60 | AQ21: Expository | AS21: =IFERROR(IF(VLOOKUP($A$3,'2013 MY-Writing'!$A$14:$T$503,3,FALSE)="",#N/A,VLOOKUP($A$3,'2013 MY-Writing'!$A$14:$T$503,11,FALSE)*100),#N/A) -> 23.28435011 | AT21: =IFERROR(IF(VLOOKUP($A$3,'MYG4-WALL'!$A$2:$W$495,5,FALSE)<10,#N/A,VLOOKUP($A$3,'MYG4-WALL'!$A$2:$W$495,12,FALSE)),#N/A) -> 23
AG22: 4 | AH22: =IFERROR(IF(VLOOKUP($A$3,'R-2013'!$P$6:$AC$500,3,FALSE)="",#N/A,VLOOKUP($A$3,'R-2013'!$P$6:$AC$500,10,FALSE)),#N/A) -> 59 | AI22: =IFERROR(IF(VLOOKUP($A$3,'2013 WIA-Read'!$L$14:$V$500,3,FALSE)="",#N/A,VLOOKUP($A$3,'2013 WIA-Read'!$L$14:$V$500,11,FALSE)*100),#N/A) -> 61.57 | AJ22: =IFERROR(IF(VLOOKUP($A$3,'WIAG4-RALL'!$B$2:$AC$500,3,FALSE)="",#N/A,VLOOKUP($A$3,'WIAG4-RALL'!$B$2:$AC$500,12,FALSE)*100),#N/A) -> 60 | AK22: =IFERROR(IF(VLOOKUP($A$3,'M-2013'!$O$6:$AB$500,3,FALSE)="",#N/A,VLOOKUP($A$3,'M-2013'!$O$6:$AB$500,10,FALSE)),#N/A) -> 64 | AL22: =IFERROR(IF(VLOOKUP($A$3,'2013 WIA-Math'!$L$14:$V$500,3,FALSE)="",#N/A,VLOOKUP($A$3,'2013 WIA-Math'!$L$14:$V$500,11,FALSE)*100),#N/A) -> 61.57 | AM22: =IFERROR(IF(VLOOKUP($A$3,'WIAG4-MALL'!$B$2:$AC$500,3,FALSE)="",#N/A,VLOOKUP($A$3,'WIAG4-MALL'!$B$2:$AC$500,12,FALSE)*100),#N/A) -> 68 | AQ22: Narrative | AR22: =IFERROR(VLOOKUP($A$3,'W13'!$A$7:$S$500,19,FALSE),#N/A) -> 37 | AS22: =IFERROR(IF(VLOOKUP($A$3,'2013 MY-Writing'!$A$14:$T$503,3,FALSE)="",#N/A,VLOOKUP($A$3,'2013 MY-Writing'!$A$14:$T$503,20,FALSE)*100),#N/A) -> 24.18300654 | AT22: =IFERROR(IF(VLOOKUP($A$3,'MYG4-WALL'!$A$2:$W$495,15,FALSE)<10,#N/A,VLOOKUP($A$3,'MYG4-WALL'!$A$2:$W$495,22,FALSE)),#N/A) -> 27
AG23: 5 | AH23: =IFERROR(IF(VLOOKUP($A$3,'R-2013'!$AE$6:$AR$500,3,FALSE)="",#N/A,VLOOKUP($A$3,'R-2013'!$AE$6:$AR$500,10,FALSE)),#N/A) -> 59 | AI23: =IFERROR(IF(VLOOKUP($A$3,'2013 WIA-Read'!$W$14:$AG$500,3,FALSE)="",#N/A,VLOOKUP($A$3,'2013 WIA-Read'!$W$14:$AG$500,11,FALSE)*100),#N/A) -> 57.39 | AJ23: =IFERROR(IF(VLOOKUP($A$3,'WIAG5-RALL'!$B$2:$AC$500,3,FALSE)="",#N/A,VLOOKUP($A$3,'WIAG5-RALL'!$B$2:$AC$500,12,FALSE)*100),#N/A) -> 59 | AK23: =IFERROR(IF(VLOOKUP($A$3,'M-2013'!$AC$6:$AP$500,3,FALSE)="",#N/A,VLOOKUP($A$3,'M-2013'!$AC$6:$AP$500,10,FALSE)),#N/A) -> 56 | AL23: =IFERROR(IF(VLOOKUP($A$3,'2013 WIA-Math'!$W$14:$AG$500,3,FALSE)="",#N/A,VLOOKUP($A$3,'2013 WIA-Math'!$W$14:$AG$500,11,FALSE)*100),#N/A) -> 50.2 | AM23: =IFERROR(IF(VLOOKUP($A$3,'WIAG5-MALL'!$B$2:$AC$500,3,FALSE)="",#N/A,VLOOKUP($A$3,'WIAG5-MALL'!$B$2:$AC$500,12,FALSE)*100),#N/A) -> 51 | AN23: =IFERROR(IF(VLOOKUP($A$3,'S-2013'!$A$6:$N$272,3,FALSE)="",#N/A,VLOOKUP($A$3,'S-2013'!$A$6:$N$272,10,FALSE)),#N/A) -> 51 | AO23: =IFERROR(IF(VLOOKUP($A$3,'2013 WIA-Sci'!$A$14:$K$500,3,FALSE)="",#N/A,VLOOKUP($A$3,'2013 WIA-Sci'!$A$14:$K$500,11,FALSE)*100),#N/A) -> 52.43 | AP23: =IFERROR(IF(VLOOKUP($A$3,'WIAG5-SALL'!$B$2:$AC$500,3,FALSE)="",#N/A,VLOOKUP($A$3,'WIAG5-SALL'!$B$2:$AC$500,12,FALSE)*100),#N/A) -> 56
AG24: 6 | AH24: =IFERROR(IF(VLOOKUP($A$3,'R-2013'!$AT$6:$BH$500,3,FALSE)="",#N/A,VLOOKUP($A$3,'R-2013'!$AT$6:$BH$500,10,FALSE)),#N/A) -> 57 | AI24: =IFERROR(IF(VLOOKUP($A$3,'2013 WIA-Read'!$AH$14:$AR$500,3,FALSE)="",#N/A,VLOOKUP($A$3,'2013 WIA-Read'!$AH$14:$AR$500,11,FALSE)*100),#N/A) -> 54.36 | AJ24: =IFERROR(IF(VLOOKUP($A$3,'WIAG6-RALL'!$B$2:$AC$500,3,FALSE)="",#N/A,VLOOKUP($A$3,'WIAG6-RALL'!$B$2:$AC$500,12,FALSE)*100),#N/A) -> 62 | AK24: =IFERROR(IF(VLOOKUP($A$3,'M-2013'!$AQ$6:$BD$500,3,FALSE)="",#N/A,VLOOKUP($A$3,'M-2013'!$AQ$6:$BD$500,10,FALSE)),#N/A) -> 51 | AL24: =IFERROR(IF(VLOOKUP($A$3,'2013 WIA-Math'!$AH$14:$AR$500,3,FALSE)="",#N/A,VLOOKUP($A$3,'2013 WIA-Math'!$AH$14:$AR$500,11,FALSE)*100),#N/A) -> 48.65 | AM24: =IFERROR(IF(VLOOKUP($A$3,'WIAG6-MALL'!$B$2:$AC$500,3,FALSE)="",#N/A,VLOOKUP($A$3,'WIAG6-MALL'!$B$2:$AC$500,12,FALSE)*100),#N/A) -> 47
AG25: 7 | AH25: =IFERROR(IF(VLOOKUP($A$3,'R-2013'!$BI$6:$BW$500,3,FALSE)="",#N/A,VLOOKUP($A$3,'R-2013'!$BI$6:$BW$500,10,FALSE)),#N/A) -> 57 | AI25: =IFERROR(IF(VLOOKUP($A$3,'2013 WIA-Read'!$AS$14:$BC$500,3,FALSE)="",#N/A,VLOOKUP($A$3,'2013 WIA-Read'!$AS$14:$BC$500,11,FALSE)*100),#N/A) -> 55.3 | AJ25: =IFERROR(IF(VLOOKUP($A$3,'WIAG7-RALL'!$B$2:$AC$500,3,FALSE)="",#N/A,VLOOKUP($A$3,'WIAG7-RALL'!$B$2:$AC$500,12,FALSE)*100),#N/A) -> 60 | AK25: =IFERROR(IF(VLOOKUP($A$3,'M-2013'!$BE$6:$BS$500,3,FALSE)="",#N/A,VLOOKUP($A$3,'M-2013'!$BE$6:$BS$500,10,FALSE)),#N/A) -> 51 | AL25: =IFERROR(IF(VLOOKUP($A$3,'2013 WIA-Math'!$AS$14:$BC$500,3,FALSE)="",#N/A,VLOOKUP($A$3,'2013 WIA-Math'!$AS$14:$BC$500,11,FALSE)*100),#N/A) -> 47.59 | AM25: =IFERROR(IF(VLOOKUP($A$3,'WIAG7-MALL'!$B$2:$AC$500,3,FALSE)="",#N/A,VLOOKUP($A$3,'WIAG7-MALL'!$B$2:$AC$500,12,FALSE)*100),#N/A) -> 43
AG26: 8 | AH26: =IFERROR(IF(VLOOKUP($A$3,'R-2013'!$BX$6:$CL$500,3,FALSE)="",#N/A,VLOOKUP($A$3,'R-2013'!$BX$6:$CL$500,10,FALSE)),#N/A) -> 56 | AI26: =IFERROR(IF(VLOOKUP($A$3,'2013 WIA-Read'!$BD$14:$BN$500,3,FALSE)="",#N/A,VLOOKUP($A$3,'2013 WIA-Read'!$BD$14:$BN$500,11,FALSE)*100),#N/A) -> 50.36 | AJ26: =IFERROR(IF(VLOOKUP($A$3,'WIAG8-RALL'!$B$2:$AC$500,3,FALSE)="",#N/A,VLOOKUP($A$3,'WIAG8-RALL'!$B$2:$AC$500,12,FALSE)*100),#N/A) -> 56 | AK26: =IFERROR(IF(VLOOKUP($A$3,'M-2013'!$BT$6:$CG$500,3,FALSE)="",#N/A,VLOOKUP($A$3,'M-2013'!$BT$6:$CG$500,10,FALSE)),#N/A) -> 35 | AL26: =IFERROR(IF(VLOOKUP($A$3,'2013 WIA-Math'!$BD$14:$BN$500,3,FALSE)="",#N/A,VLOOKUP($A$3,'2013 WIA-Math'!$BD$14:$BN$500,11,FALSE)*100),#N/A) -> 37.42 | AM26: =IFERROR(IF(VLOOKUP($A$3,'WIAG8-MALL'!$B$2:$AC$500,3,FALSE)="",#N/A,VLOOKUP($A$3,'WIAG8-MALL'!$B$2:$AC$500,12,FALSE)*100),#N/A) -> 23 | AN26: =IFERROR(IF(VLOOKUP($A$3,'S-2013'!$P$6:$AC$272,3,FALSE)="",#N/A,VLOOKUP($A$3,'S-2013'!$P$6:$AC$272,10,FALSE)),#N/A) -> 42 | AO26: =IFERROR(IF(VLOOKUP($A$3,'2013 WIA-Sci'!$L$14:$V$500,3,FALSE)="",#N/A,VLOOKUP($A$3,'2013 WIA-Sci'!$L$14:$V$500,11,FALSE)*100),#N/A) -> 38.26 | AP26: =IFERROR(IF(VLOOKUP($A$3,'WIAG8-SALL'!$B$2:$AC$496,3,FALSE)="",#N/A,VLOOKUP($A$3,'WIAG8-SALL'!$B$2:$AC$496,12,FALSE)*100),#N/A) -> 41 | AQ26: Grade | AR26: 2013 FCAT 2.0 | AS26: 2013 WIA | AT26: 2014 WIA
AG27: Alg | AK27: =IFERROR(VLOOKUP($A$3,'2013 ALG'!$A$6:$I$500,5,FALSE),#N/A) -> 66 | AL27: =IFERROR(IF(VLOOKUP($A$3,'2013 WIA-Math'!$BO$14:$BY$500,3,FALSE)="",#N/A,VLOOKUP($A$3,'2013 WIA-Math'!$BO$14:$BY$500,11,FALSE)*100),#N/A) -> 43.82097752 | AM27: =IFERROR(IF(VLOOKUP($A$3,'WIA-ALG'!$B$2:$AC$500,3,FALSE)="",#N/A,VLOOKUP($A$3,'WIA-ALG'!$B$2:$AC$500,12,FALSE)*100),#N/A) -> 68 | AQ27: Grade 5 | AR27: =IFERROR(IF(VLOOKUP(VALUE($A$3),'S-2013'!$A$6:$N$272,3,FALSE)="",#N/A,VLOOKUP(VALUE($A$3),'S-2013'!$A$6:$N$272,10,FALSE)),#N/A) -> 51 | AS27: =IFERROR(IF(VLOOKUP(VALUE($A$3),'2013 WIA-Sci'!$A$14:$K$500,3,FALSE)="",#N/A,VLOOKUP(VALUE($A$3),'2013 WIA-Sci'!$A$14:$K$500,11,FALSE)*100),#N/A) -> 52.43 | AT27: =IFERROR(IF(VLOOKUP($A$3,'WIAG5-SALL'!$B$2:$AC$500,3,FALSE)="",#N/A,VLOOKUP($A$3,'WIAG5-SALL'!$B$2:$AC$500,12,FALSE)*100),#N/A) -> 56
AG28: Geo | AK28: =IFERROR(VLOOKUP($A$3,'2013 GEO'!$A$6:$I$500,5,FALSE),#N/A) -> 60 | AL28: =IFERROR(IF(VLOOKUP($A$3,'2013 WIA-Math'!$BZ$14:$CJ$500,3,FALSE)="",#N/A,VLOOKUP($A$3,'2013 WIA-Math'!$BZ$14:$CJ$500,11,FALSE)*100),#N/A) -> 39.49498094 | AM28: =IFERROR(IF(VLOOKUP($A$3,'WIA-GEO'!$B$2:$AC$500,3,FALSE)="",#N/A,VLOOKUP($A$3,'WIA-GEO'!$B$2:$AC$500,12,FALSE)*100),#N/A) -> 43

Sheet G3-5 Detailed Report
A2: Click here to return to the school and sheet selection interface | AG2: Average % Correct | AU2: % Proficient
A3: ='Select School'!B3 -> 9999 | AJ3: =TYPE(A3) -> 1
A4: =TEXT(A3,"0000")&"-"&VLOOKUP(A3,SchList!$A$2:$B$497,2,FALSE) -> 9999-District
A5: Reading - Grade 3 | S5: Mathematics - Grade 3
A6: Assessment | B6: Enroll-ment | C6: % Tested | D6: Avg. % Correct | E6: % Perf. | F6: Vocabulary | I6: Reading Application | L6: Literary Analysis Fiction/Non Fiction | O6: Informational Text/ Research Process | S6: Assessment | T6: Enroll-ment | U6: % Tested | V6: Avg. % Correct | W6: % Perf. | X6: Number: Oper., Problems & Stat. | AB6: Number: Fractions | AF6: Geometry and Measurement | AJ6: Number Tested Grade 3
F7: Avg.% Correct | G7: Pts. Max | H7: % Perf. | I7: Avg.% Correct | J7: Pts. Max | K7: % Perf. | L7: Avg.% Correct | M7: Pts. Max | N7: % Perf. | O7: Avg.% Correct | P7: Pts. Max | Q7: % Perf. | X7: Avg.% Correct | Y7: Pts. Max | AA7: % Perf. | AB7: Avg.% Correct | AD7: Pts. Max | AE7: % Perf. | AF7: Avg.% Correct | AG7: Pts. Max | AH7: % Perf. | AJ7: Reading | AK7: Math
A8: FCAT 2014 | B8: =IFERROR(VLOOKUP(TEXT($A$3,"0000"),'MemMay28-2014'!$A$2:$O$500,7,FALSE),"") -> 27037 | C8: =IFERROR(IF(VLOOKUP($A$3,'R-2014'!$A$7:$N$500,3,FALSE)>B8,1,VLOOKUP($A$3,'R-2014'!$A$7:$N$500,3,FALSE)/B8),"") -> 1 | D8: NA | E8: =IFERROR(VLOOKUP($A$3,'R-2014'!$A$7:$N$500,10,FALSE),"") -> 56 | F8: =IFERROR(VLOOKUP($A$3,'R-2014'!$A$7:$N$500,11,FALSE)/G8,"") -> 0.75 | G8: ='R-2014'!$K$6 -> 8 | H8: NA | I8: =IFERROR(VLOOKUP($A$3,'R-2014'!$A$7:$N$500,12,FALSE)/J8,"") -> 0.6470588235 | J8: ='R-2014'!$L$6 -> 17 | K8: NA | L8: =IFERROR(VLOOKUP($A$3,'R-2014'!$A$7:$N$500,13,FALSE)/M8,"") -> 0.6666666667 | M8: ='R-2014'!$M$6 -> 12 | N8: NA | O8: =IFERROR(VLOOKUP($A$3,'R-2014'!$A$7:$N$500,14,FALSE)/P8,"") -> 0.75 | P8: ='R-2014'!$N$6 -> 8 | Q8: NA | S8: FCAT 2014 | T8: =IFERROR(VLOOKUP(TEXT($A$3,"0000"),'MemMay28-2014'!$A$2:$O$500,7,FALSE),"") -> 27037 | U8: =IFERROR(IF(VLOOKUP($A$3,'M-2014'!$A$7:$M$500,3,FALSE)>T8,1,VLOOKUP($A$3,'M-2014'!$A$7:$M$500,3,FALSE)/T8),"") -> 1 | V8: NA | W8: =IFERROR(VLOOKUP($A$3,'M-2014'!$A$7:$M$500,10,FALSE),"") -> 62 | X8: =IFERROR(VLOOKUP($A$3,'M-2014'!$A$7:$M$500,11,FALSE)/Y8,"") -> 0.7619047619 | Y8: ='M-2014'!$K$6 -> 21 | Z8: NA | AA8: NA | AB8: =IFERROR(VLOOKUP($A$3,'M-2014'!$A$7:$M$500,12,FALSE)/AD8,"") -> 0.6 | AC8: =IFERROR(VLOOKUP($A$3,'M-2012'!$A$7:$N$500,11,FALSE)/AD8,"") -> 1.5 | AD8: ='M-2014'!$L$6 -> 10 | AE8: NA | AF8: =IFERROR(VLOOKUP($A$3,'M-2014'!$A$7:$M$500,13,FALSE)/AG8,"") -> 0.6923076923 | AG8: ='M-2014'!$M$6 -> 13 | AH8: NA | AJ8: =VLOOKUP($A$3,'R-2014'!$A$7:$O$500,3,FALSE) -> 27111 | AK8: =VLOOKUP($A$3,'M-2014'!$A$7:$N$500,3,FALSE) -> 27105
A9: Winter IA | B9: =IFERROR(VLOOKUP(TEXT($A$3,"0000"),MemFeb14!$A$3:$O$500,7,FALSE),"NA") -> 26990 | C9: =IFERROR(IF(OR($B9="NA",AJ9<10),"NA",IF(VLOOKUP($A$3,'WIAG3-RALL'!$B$2:$AC$500,3,FALSE)>$B9,1,VLOOKUP($A$3,'WIAG3-RALL'!$B$2:$AC$500,3,FALSE)/$B9)),"NT") -> 0.9690626158 | D9: =IFERROR(IF(VLOOKUP($A$3,'WIAG3-RALL'!$B$2:$AC$500,3,FALSE)<10,#N/A,VLOOKUP($A$3,'WIAG3-RALL'!$B$2:$AC$500,5,FALSE)),#N/A) -> 63.23 | E9: =IFERROR(IF(VLOOKUP($A$3,'WIAG3-RALL'!$B$2:$AC$500,3,FALSE)="",#N/A,VLOOKUP($A$3,'WIAG3-RALL'!$B$2:$AC$500,12,FALSE)*100),#N/A) -> 53 | F9: =IFERROR(IF(VLOOKUP($A$3,'WIAG3-RALL'!$B$2:$AC$500,3,FALSE)<10,#N/A,VLOOKUP($A$3,'WIAG3-RALL'!$B$2:$AC$500,27,FALSE)),#N/A) -> 0.72 | G9: =VLOOKUP($A$3,'WIAG3-RALL'!$B$2:$AC$500,26,FALSE) -> 15 | H9: NA | I9: =IFERROR(IF(VLOOKUP($A$3,'WIAG3-RALL'!$B$2:$AC$500,3,FALSE)<10,#N/A,VLOOKUP($A$3,'WIAG3-RALL'!$B$2:$AC$500,23,FALSE)),#N/A) -> 0.62 | J9: =VLOOKUP($A$3,'WIAG3-RALL'!$B$2:$AC$500,22,FALSE) -> 25 | K9: NA | L9: =IFERROR(IF(VLOOKUP($A$3,'WIAG3-RALL'!$B$2:$AC$500,3,FALSE)<10,#N/A,VLOOKUP($A$3,'WIAG3-RALL'!$B$2:$AC$500,19,FALSE)),#N/A) -> 0.58 | M9: =VLOOKUP($A$3,'WIAG3-RALL'!$B$2:$AC$500,18,FALSE) -> 12 | N9: NA | O9: =IFERROR(IF(VLOOKUP($A$3,'WIAG3-RALL'!$B$2:$AC$500,3,FALSE)<10,#N/A,VLOOKUP($A$3,'WIAG3-RALL'!$B$2:$AC$500,15,FALSE)),#N/A) -> 0.56 | P9: =VLOOKUP($A$3,'WIAG3-RALL'!$B$2:$AC$500,14,FALSE) -> 4 | Q9: NA | S9: Winter IA | T9: =IFERROR(VLOOKUP(TEXT($A$3,"0000"),MemFeb14!$A$3:$O$500,7,FALSE),"NA") -> 26990 | U9: =IFERROR(IF(OR($T9="NA",AK9<10),"NA",IF(VLOOKUP($A$3,'WIAG3-MALL'!$B$2:$AC$500,3,FALSE)>$T9,1,VLOOKUP($A$3,'WIAG3-MALL'!$B$2:$AC$500,3,FALSE)/$T9)),"NA") -> 0.9656168951 | V9: =IFERROR(IF(VLOOKUP($A$3,'WIAG3-MALL'!$B$2:$AC$500,3,FALSE)<10,#N/A,VLOOKUP($A$3,'WIAG3-MALL'!$B$2:$AC$500,5,FALSE)),#N/A) -> 55.6 | W9: =IFERROR(IF(VLOOKUP($A$3,'WIAG3-MALL'!$B$2:$AC$500,3,FALSE)<10,#N/A,VLOOKUP($A$3,'WIAG3-MALL'!$B$2:$AC$500,12,FALSE)*100),#N/A) -> 60 | X9: =IFERROR(IF(VLOOKUP($A$3,'WIAG3-MALL'!$B$2:$AC$500,3,FALSE)<10,#N/A,VLOOKUP($A$3,'WIAG3-MALL'!$B$2:$AC$500,15,FALSE)),#N/A) -> 0.59 | Y9: =VLOOKUP($A$3,'WIAG3-MALL'!$B$2:$AC$500,14,FALSE) -> 16 | AA9: NA | AB9: =IFERROR(IF(VLOOKUP($A$3,'WIAG3-MALL'!$B$2:$AC$500,3,FALSE)<10,#N/A,VLOOKUP($A$3,'WIAG3-MALL'!$B$2:$AC$500,19,FALSE)),#N/A) -> 0.53 | AD9: =IFERROR(IF(VLOOKUP($A$3,'WIAG3-MALL'!$B$2:$AC$500,3,FALSE)<10,#N/A,VLOOKUP($A$3,'WIAG3-MALL'!$B$2:$AC$500,18,FALSE)),#N/A) -> 18 | AE9: NA | AF9: NT | AG9: NT | AH9: NT | AJ9: =VLOOKUP($A$3,'WIAG3-RALL'!$B$2:$AC$500,3,FALSE) -> 26155 | AK9: =VLOOKUP($A$3,'WIAG3-MALL'!$B$2:$AC$500,3,FALSE) -> 26062
A10: Fall IA | B10: =IFERROR(VLOOKUP(TEXT($A$3,"0000"),MemNov12!$A$3:$O$500,7,FALSE),"NA") -> 26874 | C10: =IFERROR(IF(OR($B10="NA",AJ10<10),"NA",IF(VLOOKUP($A$3,'FIAG3-RAll'!$B$2:$AC$500,3,FALSE)>$B10,1,VLOOKUP($A$3,'FIAG3-RAll'!$B$2:$AC$500,3,FALSE)/$B10)),"NT") -> 0.958398452 | D10: =IFERROR(IF(VLOOKUP($A$3,'FIAG3-RAll'!$B$2:$AC$500,3,FALSE)<10,#N/A,VLOOKUP($A$3,'FIAG3-RAll'!$B$2:$AC$500,5,FALSE)),#N/A) -> 55.97 | E10: =IFERROR(IF(VLOOKUP($A$3,'FIAG3-RAll'!$B$2:$AC$500,3,FALSE)="",#N/A,VLOOKUP($A$3,'FIAG3-RAll'!$B$2:$AC$500,12,FALSE)*100),#N/A) -> 51 | F10: =IFERROR(IF(VLOOKUP($A$3,'FIAG3-RAll'!$B$2:$AC$500,3,FALSE)<10,#N/A,VLOOKUP($A$3,'FIAG3-RAll'!$B$2:$AC$500,27,FALSE)),#N/A) -> 0.66 | G10: =VLOOKUP($A$3,'FIAG3-RAll'!$B$2:$AC$500,26,FALSE) -> 16 | H10: NA | I10: =IFERROR(IF(VLOOKUP($A$3,'FIAG3-RAll'!$B$2:$AC$500,3,FALSE)<10,#N/A,VLOOKUP($A$3,'FIAG3-RAll'!$B$2:$AC$500,23,FALSE)),#N/A) -> 0.54 | J10: =VLOOKUP($A$3,'FIAG3-RAll'!$B$2:$AC$500,22,FALSE) -> 24 | K10: NA | L10: =IFERROR(IF(VLOOKUP($A$3,'FIAG3-RAll'!$B$2:$AC$500,3,FALSE)<10,#N/A,VLOOKUP($A$3,'FIAG3-RAll'!$B$2:$AC$500,19,FALSE)),#N/A) -> 0.43 | M10: =VLOOKUP($A$3,'FIAG3-RAll'!$B$2:$AC$500,18,FALSE) -> 12 | N10: NA | O10: =IFERROR(IF(VLOOKUP($A$3,'FIAG3-RAll'!$B$2:$AC$500,3,FALSE)<10,#N/A,VLOOKUP($A$3,'FIAG3-RAll'!$B$2:$AC$500,15,FALSE)),#N/A) -> 0.67 | P10: =VLOOKUP($A$3,'FIAG3-RAll'!$B$2:$AC$500,14,FALSE) -> 4 | Q10: NA | S10: Fall IA | T10: =IFERROR(VLOOKUP(TEXT($A$3,"0000"),MemNov12!$A$3:$O$500,7,FALSE),"NA") -> 26874 | U10: =IFERROR(IF(OR($T10="NA",AK10<10),"NA",IF(VLOOKUP($A$3,'FIAG3-MAll'!$B$2:$AC$500,3,FALSE)>$T10,1,VLOOKUP($A$3,'FIAG3-MAll'!$B$2:$AC$500,3,FALSE)/$T10)),"NA") -> 0.9571332887 | V10: =IFERROR(IF(VLOOKUP($A$3,'FIAG3-MAll'!$B$2:$AC$500,3,FALSE)<10,#N/A,VLOOKUP($A$3,'FIAG3-MAll'!$B$2:$AC$500,5,FALSE)),#N/A) -> 63.79 | W10: =IFERROR(IF(VLOOKUP($A$3,'FIAG3-MAll'!$B$2:$AC$500,3,FALSE)<10,#N/A,VLOOKUP($A$3,'FIAG3-MAll'!$B$2:$AC$500,12,FALSE)*100),#N/A) -> 61 | X10: =IFERROR(IF(VLOOKUP($A$3,'FIAG3-MAll'!$B$2:$AC$500,3,FALSE)<10,#N/A,VLOOKUP($A$3,'FIAG3-MAll'!$B$2:$AC$500,15,FALSE)),#N/A) -> 0.64 | Y10: =VLOOKUP($A$3,'FIAG3-MAll'!$B$2:$AC$500,14,FALSE) -> 30 | AA10: NA | AB10: NT | AD10: NT | AE10: NT | AF10: NT | AG10: NT | AH10: NT | AJ10: =VLOOKUP($A$3,'FIAG3-RAll'!$B$2:$AC$500,3,FALSE) -> 25756 | AK10: =VLOOKUP($A$3,'FIAG3-MAll'!$B$2:$AC$500,3,FALSE) -> 25722
A11: Baseline | B11: =IFERROR(VLOOKUP(TEXT($A$3,"0000"),MemSep13!$A$2:$O$500,7,FALSE),"NA") -> 26859 | C11: =IFERROR(IF(OR($B11="NA",AJ11<10),"NA",IF(VLOOKUP($A$3,'BLG3-RALL'!$A$14:$AG$500,3,FALSE)>$B11,1,VLOOKUP($A$3,'BLG3-RALL'!$A$14:$AG$500,3,FALSE)/$B11)),"NT") -> 0.9507799993 | D11: =IFERROR(IF($C11="NA","NA",VLOOKUP($A$3,'BLG3-RALL'!$A$14:$AG$500,5,FALSE)*100),"NT") -> 55 | E11: =IFERROR(IF($C11="NA","NA",VLOOKUP($A$3,'BLG3-RALL'!$A$14:$AG$500,9,FALSE)*100),"NT") -> 29.82 | F11: =IFERROR(IF($C11="NA","NA",VLOOKUP($A$3,'BLG3-RALL'!$A$14:$AM$500,11,FALSE)),"NT") -> 0.66 | G11: 6 | H11: =IFERROR((IF($C11="NA","NA",VLOOKUP($A$3,'BLG3-RALL'!$A$14:$AM$500,15,FALSE)*100)),"NT") -> 44.54 | I11: =IFERROR(IF($C11="NA","NA",VLOOKUP($A$3,'BLG3-RALL'!$A$14:$AM$500,17,FALSE)),"NT") -> 0.54 | J11: 17 | K11: =IFERROR((IF($C11="NA","NA",VLOOKUP($A$3,'BLG3-RALL'!$A$14:$AM$500,21,FALSE)*100)),"NT") -> 28.58 | L11: =IFERROR(IF($C11="NA","NA",VLOOKUP($A$3,'BLG3-RALL'!$A$14:$AM$500,23,FALSE)),"NT") -> 0.55 | M11: 6 | N11: =IFERROR((IF($C11="NA","NA",VLOOKUP($A$3,'BLG3-RALL'!$A$14:$AM$500,27,FALSE)*100)),"NT") -> 27.78 | O11: =IFERROR(IF($C11="NA","NA",VLOOKUP($A$3,'BLG3-RALL'!$A$14:$AM$500,29,FALSE)),"NT") -> 0.39 | P11: 2 | Q11: =IFERROR((IF($C11="NA","NA",VLOOKUP($A$3,'BLG3-RALL'!$A$14:$AM$500,33,FALSE)*100)),"NT") -> 15.04 | S11: Baseline | T11: =IFERROR(VLOOKUP(TEXT($A$3,"0000"),MemSep13!$A$2:$O$500,7,FALSE),"NA") -> 26859 | U11: =IFERROR(IF(OR($T11="NA",AK11<10),"NA",IF(VLOOKUP($A$3,'BLG3-MALL'!$A$14:$AG$500,3,FALSE)>$T11,1,VLOOKUP($A$3,'BLG3-MALL'!$A$14:$AG$500,3,FALSE)/$T11)),"NA") -> 0.9498119811 | V11: =IFERROR(IF($U11="NA","NA",VLOOKUP($A$3,'BLG3-MALL'!$A$14:$AG$500,5,FALSE)*100),"NT") -> 39 | W11: =IFERROR(IF(U11="NA","NA",VLOOKUP($A$3,'BLG3-MALL'!$A$14:$AG$500,9,FALSE)*100),"NT") -> 1.73 | X11: =IFERROR(IF($U11="NA","NA",VLOOKUP($A$3,'BLG3-MALL'!$A$14:$AM$500,11,FALSE)),"NT") -> 0.38 | Y11: 15 | AA11: =IFERROR((IF($U11="NA","NA",VLOOKUP($A$3,'BLG3-MALL'!$A$14:$AM$500,15,FALSE)*100)),"NT") -> 3.06 | AB11: =IFERROR(IF($U11="NA","NA",VLOOKUP($A$3,'BLG3-MALL'!$A$14:$AM$500,17,FALSE)),"NT") -> 0.31 | AD11: 3 | AE11: =IFERROR((IF($U11="NA","NA",VLOOKUP($A$3,'BLG3-MALL'!$A$14:$AM$500,21,FALSE)*100)),"NT") -> 3.1 | AF11: =IFERROR(IF($U11="NA","NA",VLOOKUP($A$3,'BLG3-MALL'!$A$14:$AM$500,23,FALSE)),"NT") -> 0.42 | AG11: 16 | AH11: =IFERROR((IF($U11="NA","NA",VLOOKUP($A$3,'BLG3-MALL'!$A$14:$AM$500,27,FALSE)*100)),"NT") -> 2.04 | AJ11: =VLOOKUP($A$3,'BLG3-RALL'!$A$14:$AG$500,3,FALSE) -> 25537 | AK11: =VLOOKUP($A$3,'BLG3-MALL'!$A$14:$AG$500,3,FALSE) -> 25511
A12: FCAT 2013 | B12: =IFERROR(VLOOKUP(TEXT($A$3,"0000"),'MemMay16-2013'!$A$2:$O$500,7,FALSE),"") -> 26737 | C12: =IFERROR(IF(VLOOKUP($A$3,'R-2013'!$A$7:$N$500,3,FALSE)>B12,1,VLOOKUP($A$3,'R-2013'!$A$7:$N$500,3,FALSE)/B12),"") -> 0.9990275648 | D12: NA | E12: =IFERROR(VLOOKUP($A$3,'R-2013'!$A$7:$N$500,10,FALSE),"") -> 53 | F12: =IFERROR(VLOOKUP($A$3,'R-2013'!$A$7:$N$500,11,FALSE)/G12,"") -> 0.75 | G12: ='R-2013'!$K$6 -> 8 | H12: NA | I12: =IFERROR(VLOOKUP($A$3,'R-2013'!$A$7:$N$500,12,FALSE)/J12,"") -> 0.625 | J12: ='R-2013'!$L$6 -> 16 | K12: NA | L12: =IFERROR(VLOOKUP($A$3,'R-2013'!$A$7:$N$500,13,FALSE)/M12,"") -> 0.6153846154 | M12: ='R-2013'!$M$6 -> 13 | N12: NA | O12: =IFERROR(VLOOKUP($A$3,'R-2013'!$A$7:$N$500,14,FALSE)/P12,"") -> 0.625 | P12: ='R-2013'!$N$6 -> 8 | Q12: NA | S12: FCAT 2013 | T12: =IFERROR(VLOOKUP(TEXT($A$3,"0000"),'MemMay16-2013'!$A$2:$O$500,7,FALSE),"") -> 26737 | U12: =IFERROR(IF(VLOOKUP($A$3,'M-2013'!$A$7:$M$500,3,FALSE)>T12,1,VLOOKUP($A$3,'M-2013'!$A$7:$M$500,3,FALSE)/T12),"") -> 0.9990275648 | V12: NA | W12: =IFERROR(VLOOKUP($A$3,'M-2013'!$A$7:$M$500,10,FALSE),"") -> 62 | X12: =IFERROR(VLOOKUP($A$3,'M-2013'!$A$7:$M$500,11,FALSE)/Y12,"") -> 0.7142857143 | Y12: ='M-2013'!$K$6 -> 21 | Z12: NA | AA12: NA | AB12: =IFERROR(VLOOKUP($A$3,'M-2013'!$A$7:$M$500,12,FALSE)/AD12,"") -> 0.7 | AC12: =IFERROR(VLOOKUP($A$3,'M-2012'!$A$7:$N$500,11,FALSE)/AD12,"") -> 1.5 | AD12: ='M-2013'!$L$6 -> 10 | AE12: NA | AF12: =IFERROR(VLOOKUP($A$3,'M-2013'!$A$7:$M$500,13,FALSE)/AG12,"") -> 0.7692307692 | AG12: ='M-2013'!$M$6 -> 13 | AH12: NA | AJ12: =VLOOKUP($A$3,'R-2013'!$A$7:$O$500,3,FALSE) -> 26711 | AK12: =VLOOKUP($A$3,'M-2013'!$A$7:$N$500,3,FALSE) -> 26711
A13: Reading - Grade 4 | S13: Mathematics - Grade 4
A14: Assessment | B14: Enroll-ment | C14: % Tested | D14: Avg. % Correct | E14: % Perf. | F14: Vocabulary | I14: Reading Application | L14: Literary Analysis Fiction/Non Fiction | O14: Informational Text/ Research Process | S14: Assessment | T14: Enroll-ment | U14: % Tested | V14: Avg. % Correct | W14: % Perf. | X14: Number: Operations & Problems | AB14: Number: Base Ten & Fractions | AF14: Geometry and Measurement | AJ14: Number Tested Grade 4
F15: Avg.% Correct | G15: Pts. Max | H15: % Perf. | I15: Avg.% Correct | J15: Pts. Max | K15: % Perf. | L15: Avg.% Correct | M15: Pts. Max | N15: % Perf. | O15: Avg.% Correct | P15: Pts. Max | Q15: % Perf. | X15: Avg.% Correct | Y15: Pts. Max | AA15: % Perf. | AB15: Avg.% Correct | AD15: Pts. Max | AE15: % Perf. | AF15: Avg.% Correct | AG15: Pts. Max | AH15: % Perf. | AJ15: Reading | AK15: Math
A16: FCAT 2014 | B16: =IFERROR(VLOOKUP(TEXT($A$3,"0000"),'MemMay28-2014'!$A$2:$O$500,8,FALSE),"") -> 25241 | C16: =IFERROR(IF(VLOOKUP($A$3,'R-2014'!$P$7:$AC$500,3,FALSE)>B16,1,VLOOKUP($A$3,'R-2014'!$P$7:$AC$500,3,FALSE)/B16),"") -> 0.9998415277 | D16: NA | E16: =IFERROR(VLOOKUP($A$3,'R-2014'!$P$7:$AC$500,10,FALSE),"") -> 63 | F16: =IFERROR(VLOOKUP($A$3,'R-2014'!$P$7:$AC$500,11,FALSE)/G16,"") -> 0.6666666667 | G16: ='R-2014'!$Z$6 -> 9 | H16: NA | I16: =IFERROR(VLOOKUP($A$3,'R-2014'!$P$7:$AC$500,12,FALSE)/J16,"") -> 0.7142857143 | J16: ='R-2014'!$AA$6 -> 14 | K16: NA | L16: =IFERROR(VLOOKUP($A$3,'R-2014'!$P$7:$AC$500,13,FALSE)/M16,"") -> 0.7272727273 | M16: ='R-2014'!$AB$6 -> 11 | N16: NA | O16: =IFERROR(VLOOKUP($A$3,'R-2014'!$P$7:$AC$500,14,FALSE)/P16,"") -> 0.7272727273 | P16: ='R-2014'!$AC$6 -> 11 | Q16: NA | S16: FCAT 2014 | T16: =IFERROR(VLOOKUP(TEXT($A$3,"0000"),'MemMay28-2014'!$A$2:$O$500,8,FALSE),"") -> 25241 | U16: =IFERROR(IF(VLOOKUP($A$3,'M-2014'!$O$7:$AA$500,3,FALSE)>T16,1,VLOOKUP($A$3,'M-2014'!$O$7:$AA$500,3,FALSE)/T16),"") -> 0.9998415277 | V16: NA | W16: =IFERROR(VLOOKUP($A$3,'M-2014'!$O$7:$AA$500,10,FALSE),"") -> 66 | X16: =IFERROR(VLOOKUP($A$3,'M-2014'!$O$7:$AA$500,11,FALSE)/Y16,"") -> 0.7222222222 | Y16: ='M-2014'!$Y$6 -> 18 | Z16: NA | AA16: NA | AB16: =IFERROR(VLOOKUP($A$3,'M-2014'!$O$7:$AA$500,12,FALSE)/AD16,"") -> 0.8 | AC16: =IFERROR(VLOOKUP($A$3,'M-2012'!$A$7:$N$500,11,FALSE)/AD16,"") -> 1.5 | AD16: ='M-2014'!$Z$6 -> 10 | AE16: NA | AF16: =IFERROR(VLOOKUP($A$3,'M-2014'!$O$7:$AA$500,13,FALSE)/AG16,"") -> 0.6666666667 | AG16: ='M-2014'!$AA$6 -> 12 | AH16: NA | AJ16: =IFERROR(VLOOKUP($A$3,'R-2014'!$P$7:$AC$500,3,FALSE),"NT") -> 25237 | AK16: =IFERROR(VLOOKUP($A$3,'M-2014'!$O$7:$AA$500,3,FALSE),"NT") -> 25237
A17: Winter IA | B17: =IFERROR(VLOOKUP(TEXT($A$3,"0000"),MemFeb14!$A$3:$O$500,8,FALSE),"NA") -> 25207 | C17: =IFERROR(IF(OR($B17="NA",AJ17<10),"NA",IF(VLOOKUP($A$3,'WIAG4-RALL'!$B$2:$AC$500,3,FALSE)>$B17,1,VLOOKUP($A$3,'WIAG4-RALL'!$B$2:$AC$500,3,FALSE)/$B17)),"NT") -> 0.963898917 | D17: =IFERROR(IF(VLOOKUP($A$3,'WIAG4-RALL'!$B$2:$AC$500,3,FALSE)<10,#N/A,VLOOKUP($A$3,'WIAG4-RALL'!$B$2:$AC$500,5,FALSE)),#N/A) -> 68.84 | E17: =IFERROR(IF(VLOOKUP($A$3,'WIAG4-RALL'!$B$2:$AC$500,3,FALSE)="",#N/A,VLOOKUP($A$3,'WIAG4-RALL'!$B$2:$AC$500,12,FALSE)*100),#N/A) -> 60 | F17: =IFERROR(IF(VLOOKUP($A$3,'WIAG4-RALL'!$B$2:$AC$500,3,FALSE)<10,#N/A,VLOOKUP($A$3,'WIAG4-RALL'!$B$2:$AC$500,27,FALSE)),#N/A) -> 0.77 | G17: =VLOOKUP($A$3,'WIAG4-RALL'!$B$2:$AC$500,26,FALSE) -> 16 | H17: NA | I17: =IFERROR(IF(VLOOKUP($A$3,'WIAG4-RALL'!$B$2:$AC$500,3,FALSE)<10,#N/A,VLOOKUP($A$3,'WIAG4-RALL'!$B$2:$AC$500,23,FALSE)),#N/A) -> 0.72 | J17: =VLOOKUP($A$3,'WIAG4-RALL'!$B$2:$AC$500,22,FALSE) -> 20 | K17: NA | L17: =IFERROR(IF(VLOOKUP($A$3,'WIAG4-RALL'!$B$2:$AC$500,3,FALSE)<10,#N/A,VLOOKUP($A$3,'WIAG4-RALL'!$B$2:$AC$500,19,FALSE)),#N/A) -> 0.57 | M17: =VLOOKUP($A$3,'WIAG4-RALL'!$B$2:$AC$500,18,FALSE) -> 10 | N17: NA | O17: =IFERROR(IF(VLOOKUP($A$3,'WIAG4-RALL'!$B$2:$AC$500,3,FALSE)<10,#N/A,VLOOKUP($A$3,'WIAG4-RALL'!$B$2:$AC$500,15,FALSE)),#N/A) -> 0.55 | P17: =VLOOKUP($A$3,'WIAG4-RALL'!$B$2:$AC$500,14,FALSE) -> 5 | Q17: NA | S17: Winter IA | T17: =IFERROR(VLOOKUP(TEXT($A$3,"0000"),MemFeb14!$A$3:$O$500,8,FALSE),"NA") -> 25207 | U17: =IFERROR(IF(OR($T17="NA",AK17<10),"NA",IF(VLOOKUP($A$3,'WIAG4-MALL'!$B$2:$AC$500,3,FALSE)>$T17,1,VLOOKUP($A$3,'WIAG4-MALL'!$B$2:$AC$500,3,FALSE)/$T17)),"NA") -> 0.9595350498 | V17: =IFERROR(IF(VLOOKUP($A$3,'WIAG4-MALL'!$B$2:$AC$500,3,FALSE)<10,#N/A,VLOOKUP($A$3,'WIAG4-MALL'!$B$2:$AC$500,5,FALSE)),#N/A) -> 57.88 | W17: =IFERROR(IF(VLOOKUP($A$3,'WIAG4-MALL'!$B$2:$AC$500,3,FALSE)<10,#N/A,VLOOKUP($A$3,'WIAG4-MALL'!$B$2:$AC$500,12,FALSE)*100),#N/A) -> 68 | X17: =IFERROR(IF(VLOOKUP($A$3,'WIAG4-MALL'!$B$2:$AC$500,3,FALSE)<10,#N/A,VLOOKUP($A$3,'WIAG4-MALL'!$B$2:$AC$500,15,FALSE)),#N/A) -> 0.58 | Y17: =VLOOKUP($A$3,'WIAG4-MALL'!$B$2:$AC$500,14,FALSE) -> 20 | AA17: NA | AB17: =IFERROR(IF(VLOOKUP($A$3,'WIAG4-MALL'!$B$2:$AC$500,3,FALSE)<10,#N/A,VLOOKUP($A$3,'WIAG4-MALL'!$B$2:$AC$500,19,FALSE)),#N/A) -> 0.58 | AD17: =IFERROR(IF(VLOOKUP($A$3,'WIAG4-MALL'!$B$2:$AC$500,3,FALSE)<10,#N/A,VLOOKUP($A$3,'WIAG4-MALL'!$B$2:$AC$500,18,FALSE)),#N/A) -> 20 | AE17: NA | AF17: NT | AG17: NT | AH17: NT | AJ17: =VLOOKUP($A$3,'WIAG4-RALL'!$B$2:$AC$500,3,FALSE) -> 24297 | AK17: =VLOOKUP($A$3,'WIAG4-MALL'!$B$2:$AC$500,3,FALSE) -> 24187
A18: Fall IA | B18: =IFERROR(VLOOKUP(TEXT($A$3,"0000"),MemNov12!$A$3:$O$500,8,FALSE),"NA") -> 24987 | C18: =IFERROR(IF(OR($B18="NA",AJ18<10),"NA",IF(VLOOKUP($A$3,'FIAG4-RAll'!$B$2:$AC$500,3,FALSE)>$B18,1,VLOOKUP($A$3,'FIAG4-RAll'!$B$2:$AC$500,3,FALSE)/$B18)),"NT") -> 0.9508944651 | D18: =IFERROR(IF(VLOOKUP($A$3,'FIAG4-RAll'!$B$2:$AC$500,3,FALSE)<10,#N/A,VLOOKUP($A$3,'FIAG4-RAll'!$B$2:$AC$500,5,FALSE)),#N/A) -> 63.58 | E18: =IFERROR(IF(VLOOKUP($A$3,'FIAG4-RAll'!$B$2:$AC$500,3,FALSE)<10,#N/A,VLOOKUP($A$3,'FIAG4-RAll'!$B$2:$AC$500,12,FALSE)*100),#N/A) -> 62 | F18: =IFERROR(IF(VLOOKUP($A$3,'FIAG4-RAll'!$B$2:$AC$500,3,FALSE)<10,#N/A,VLOOKUP($A$3,'FIAG4-RAll'!$B$2:$AC$500,27,FALSE)),#N/A) -> 0.73 | G18: =VLOOKUP($A$3,'FIAG4-RAll'!$B$2:$AC$500,26,FALSE) -> 15 | H18: NA | I18: =IFERROR(IF(VLOOKUP($A$3,'FIAG4-RAll'!$B$2:$AC$500,3,FALSE)<10,#N/A,VLOOKUP($A$3,'FIAG4-RAll'!$B$2:$AC$500,23,FALSE)),#N/A) -> 0.6 | J18: =VLOOKUP($A$3,'FIAG4-RAll'!$B$2:$AC$500,22,FALSE) -> 24 | K18: NA | L18: =IFERROR(IF(VLOOKUP($A$3,'FIAG4-RAll'!$B$2:$AC$500,3,FALSE)<10,#N/A,VLOOKUP($A$3,'FIAG4-RAll'!$B$2:$AC$500,19,FALSE)),#N/A) -> 0.59 | M18: =VLOOKUP($A$3,'FIAG4-RAll'!$B$2:$AC$500,18,FALSE) -> 13 | N18: NA | O18: =IFERROR(IF(VLOOKUP($A$3,'FIAG4-RAll'!$B$2:$AC$500,3,FALSE)<10,#N/A,VLOOKUP($A$3,'FIAG4-RAll'!$B$2:$AC$500,15,FALSE)),#N/A) -> 0.62 | P18: =VLOOKUP($A$3,'FIAG4-RAll'!$B$2:$AC$500,14,FALSE) -> 4 | Q18: NA | S18: Fall IA | T18: =IFERROR(VLOOKUP(TEXT($A$3,"0000"),MemNov12!$A$3:$O$500,8,FALSE),"NA") -> 24987 | U18: =IFERROR(IF(OR($T18="NA",AK18<10),"NA",IF(VLOOKUP($A$3,'FIAG4-MAll'!$B$2:$AC$500,3,FALSE)>$T18,1,VLOOKUP($A$3,'FIAG4-MAll'!$B$2:$AC$500,3,FALSE)/$T18)),"NA") -> 0.9476928003 | V18: =IFERROR(IF(VLOOKUP($A$3,'FIAG4-MAll'!$B$2:$AC$500,3,FALSE)<10,#N/A,VLOOKUP($A$3,'FIAG4-MAll'!$B$2:$AC$500,5,FALSE)),#N/A) -> 61.57 | W18: =IFERROR(IF(VLOOKUP($A$3,'FIAG4-MAll'!$B$2:$AC$500,3,FALSE)<10,#N/A,VLOOKUP($A$3,'FIAG4-MAll'!$B$2:$AC$500,12,FALSE)*100),#N/A) -> 65 | X18: =IFERROR(IF(VLOOKUP($A$3,'FIAG4-MAll'!$B$2:$AC$500,3,FALSE)<10,#N/A,VLOOKUP($A$3,'FIAG4-MAll'!$B$2:$AC$500,15,FALSE)),#N/A) -> 0.62 | Y18: =VLOOKUP($A$3,'FIAG4-MAll'!$B$2:$AC$500,14,FALSE) -> 34 | AA18: NA | AB18: NT | AD18: NT | AE18: NT | AF18: NT | AG18: NT | AH18: NT | AJ18: =VLOOKUP($A$3,'FIAG4-RAll'!$B$2:$AC$500,3,FALSE) -> 23760 | AK18: =VLOOKUP($A$3,'FIAG4-MAll'!$B$2:$AC$500,3,FALSE) -> 23680
A19: Baseline | B19: =IFERROR(VLOOKUP(TEXT($A$3,"0000"),MemSep13!$A$2:$O$500,8,FALSE),"NA") -> 24928 | C19: =IFERROR(IF(OR($B19="NA",AJ19<10),"NT",IF(VLOOKUP($A$3,'BLG4-RALL'!$A$14:$AG$500,3,FALSE)>$B19,1,VLOOKUP($A$3,'BLG4-RALL'!$A$14:$AG$500,3,FALSE)/$B19)),"NT") -> 0.9456033376 | D19: =IFERROR(IF($C19="NA","NA",VLOOKUP($A$3,'BLG4-RALL'!$A$14:$AG$500,5,FALSE)*100),"NT") -> 60 | E19: =IFERROR(IF($C19="NA","NA",VLOOKUP($A$3,'BLG4-RALL'!$A$14:$AG$500,9,FALSE)*100),"NT") -> 39.93 | F19: =IFERROR(IF($D19="NA","NA",VLOOKUP($A$3,'BLG4-RALL'!$A$14:$AM$500,11,FALSE)),"NT") -> 0.66 | G19: 7 | H19: =IFERROR((IF($D19="NA","NA",VLOOKUP($A$3,'BLG4-RALL'!$A$14:$AM$500,15,FALSE)*100)),"NT") -> 56.29 | I19: =IFERROR(IF($D19="NA","NA",VLOOKUP($A$3,'BLG4-RALL'!$A$14:$AM$500,17,FALSE)),"NT") -> 0.58 | J19: 25 | K19: =IFERROR((IF($D19="NA","NA",VLOOKUP($A$3,'BLG4-RALL'!$A$14:$AM$500,21,FALSE)*100)),"NT") -> 31.13 | L19: =IFERROR(IF($D19="NA","NA",VLOOKUP($A$3,'BLG4-RALL'!$A$14:$AM$500,23,FALSE)),"NT") -> 0.59 | M19: 6 | N19: =IFERROR((IF($D19="NA","NA",VLOOKUP($A$3,'BLG4-RALL'!$A$14:$AM$500,27,FALSE)*100)),"NT") -> 32.59 | O19: =IFERROR(IF($D19="NA","NA",VLOOKUP($A$3,'BLG4-RALL'!$A$14:$AM$500,29,FALSE)),"NT") -> 0.68 | P19: 5 | Q19: =IFERROR((IF($D19="NA","NA",VLOOKUP($A$3,'BLG4-RALL'!$A$14:$AM$500,33,FALSE)*100)),"NT") -> 53.5 | S19: Baseline | T19: =IFERROR(VLOOKUP(TEXT($A$3,"0000"),MemSep13!$A$2:$O$500,8,FALSE),"NA") -> 24928 | U19: =IFERROR(IF(OR($T19="NA",AK19<10),"NA",IF(VLOOKUP($A$3,'BLG4-MALL'!$A$14:$AG$500,3,FALSE)>$T19,1,VLOOKUP($A$3,'BLG4-MALL'!$A$14:$AG$500,3,FALSE)/$T19)),"NT") -> 0.9454428755 | V19: =IFERROR(IF($U19="NA","NA",VLOOKUP($A$3,'BLG4-MALL'!$A$14:$AG$500,5,FALSE)*100),"NT") -> 41 | W19: =IFERROR(IF(U19="NA","NA",VLOOKUP($A$3,'BLG4-MALL'!$A$14:$AG$500,9,FALSE)*100),"NT") -> 3.69 | X19: =IFERROR(IF($U19="NA","NA",VLOOKUP($A$3,'BLG4-MALL'!$A$14:$AM$500,11,FALSE)),"NT") -> 0.47 | Y19: 16 | AA19: =IFERROR((IF($U19="NA","NA",VLOOKUP($A$3,'BLG4-MALL'!$A$14:$AM$500,15,FALSE)*100)),"NT") -> 11.08 | AB19: =IFERROR(IF($U19="NA","NA",VLOOKUP($A$3,'BLG4-MALL'!$A$14:$AM$500,17,FALSE)),"NT") -> 0.32 | AD19: 8 | AE19: =IFERROR((IF($U19="NA","NA",VLOOKUP($A$3,'BLG4-MALL'!$A$14:$AM$500,21,FALSE)*100)),"NT") -> 4.7 | AF19: =IFERROR(IF($U19="NA","NA",VLOOKUP($A$3,'BLG4-MALL'!$A$14:$AM$500,23,FALSE)),"NT") -> 0.37 | AG19: 10 | AH19: =IFERROR((IF($U19="NA","NA",VLOOKUP($A$3,'BLG4-MALL'!$A$14:$AM$500,27,FALSE)*100)),"NT") -> 5.98 | AJ19: =VLOOKUP($A$3,'BLG4-RALL'!$A$14:$AG$500,3,FALSE) -> 23572 | AK19: =VLOOKUP($A$3,'BLG4-MALL'!$A$14:$AG$500,3,FALSE) -> 23568
A20: FCAT 2013 | B20: =IFERROR(VLOOKUP(TEXT($A$3,"0000"),'MemMay16-2013'!$A$2:$O$500,8,FALSE),"") -> 25646 | C20: =IFERROR(IF(VLOOKUP($A$3,'R-2013'!$P$7:$AC$500,3,FALSE)>B20,1,VLOOKUP($A$3,'R-2013'!$P$7:$AC$500,3,FALSE)/B20),"") -> 0.9975044841 | D20: NA | E20: =IFERROR(VLOOKUP($A$3,'R-2013'!$P$7:$AC$500,10,FALSE),"") -> 59 | F20: =IFERROR(VLOOKUP($A$3,'R-2013'!$P$7:$AC$500,11,FALSE)/G20,"") -> 0.6666666667 | G20: ='R-2013'!$Z$6 -> 9 | H20: NA | I20: =IFERROR(VLOOKUP($A$3,'R-2013'!$P$7:$AC$500,12,FALSE)/J20,"") -> 0.6875 | J20: ='R-2013'!$AA$6 -> 16 | K20: NA | L20: =IFERROR(VLOOKUP($A$3,'R-2013'!$P$7:$AC$500,13,FALSE)/M20,"") -> 0.6666666667 | M20: ='R-2013'!$AB$6 -> 12 | N20: NA | O20: =IFERROR(VLOOKUP($A$3,'R-2013'!$P$7:$AC$500,14,FALSE)/P20,"") -> 0.625 | P20: ='R-2013'!$AC$6 -> 8 | Q20: NA | S20: FCAT 2013 | T20: =IFERROR(VLOOKUP(TEXT($A$3,"0000"),'MemMay16-2013'!$A$2:$O$500,8,FALSE),"") -> 25646 | U20: =IFERROR(IF(VLOOKUP($A$3,'M-2013'!$O$7:$AA$500,3,FALSE)>T20,1,VLOOKUP($A$3,'M-2013'!$O$7:$AA$500,3,FALSE)/T20),"") -> 0.9978944085 | V20: NA | W20: =IFERROR(VLOOKUP($A$3,'M-2013'!$O$7:$AA$500,10,FALSE),"") -> 64 | X20: =IFERROR(VLOOKUP($A$3,'M-2013'!$O$7:$AA$500,11,FALSE)/Y20,"") -> 0.7777777778 | Y20: ='M-2013'!$Y$6 -> 18 | Z20: NA | AA20: NA | AB20: =IFERROR(VLOOKUP($A$3,'M-2013'!$O$7:$AA$500,12,FALSE)/AD20,"") -> 0.7 | AC20: =IFERROR(VLOOKUP($A$3,'M-2012'!$A$7:$N$500,11,FALSE)/AD20,"") -> 1.5 | AD20: ='M-2013'!$Z$6 -> 10 | AE20: NA | AF20: =IFERROR(VLOOKUP($A$3,'M-2013'!$O$7:$AA$500,13,FALSE)/AG20,"") -> 0.75 | AG20: ='M-2013'!$AA$6 -> 12 | AH20: NA | AJ20: =IFERROR(VLOOKUP($A$3,'R-2013'!$P$7:$AC$500,3,FALSE),"NT") -> 25582 | AK20: =IFERROR(VLOOKUP($A$3,'M-2013'!$O$7:$AA$500,3,FALSE),"NT") -> 25592
A21: Reading - Grade 5 | S21: Mathematics - Grade 5
A22: Assessment | B22: Enroll-ment | C22: % Tested | D22: Avg. % Correct | E22: % Perf. | F22: Vocabulary | I22: Reading Application | L22: Literary Analysis Fiction/Non Fiction | O22: Informational Text/ Research Process | S22: Assessment | T22: Enroll-ment | U22: % Tested | V22: Avg. % Correct | W22: % Perf. | X22: Number: Base Ten & Fractions | AB22: Expressions, Equations, & Stat. | AF22: Geometry and Measurement | AJ22: Number Tested Grade 5
F23: Avg.% Correct | G23: Pts. Max | H23: % Perf. | I23: Avg.% Correct | J23: Pts. Max | K23: % Perf. | L23: Avg.% Correct | M23: Pts. Max | N23: % Perf. | O23: Avg.% Correct | P23: Pts. Max | Q23: % Perf. | X23: Avg.% Correct | Y23: Pts. Max | AA23: % Perf. | AB23: Avg.% Correct | AD23: Pts. Max | AE23: % Perf. | AF23: Avg.% Correct | AG23: Pts. Max | AH23: % Perf. | AJ23: Reading | AK23: Math
A24: FCAT 2014 | B24: =IFERROR(VLOOKUP(TEXT($A$3,"0000"),'MemMay28-2014'!$A$2:$O$500,9,FALSE),"") -> 25703 | C24: =IFERROR(IF(VLOOKUP($A$3,'R-2014'!$AE$7:$AR$500,3,FALSE)>B24,1,VLOOKUP($A$3,'R-2014'!$AE$7:$AR$500,3,FALSE)/B24),"") -> 0.9979379839 | D24: NA | E24: =IFERROR(VLOOKUP($A$3,'R-2014'!$AE$7:$AR$500,10,FALSE),"") -> 61 | F24: =IFERROR(VLOOKUP($A$3,'R-2014'!$AE$7:$AR$500,11,FALSE)/G24,"") -> 0.7 | G24: ='R-2014'!$AO$6 -> 10 | H24: NA | I24: =IFERROR(VLOOKUP($A$3,'R-2014'!$AE$7:$AR$500,12,FALSE)/J24,"") -> 0.625 | J24: ='R-2014'!$AP$6 -> 16 | K24: NA | L24: =IFERROR(VLOOKUP($A$3,'R-2014'!$AE$7:$AR$500,13,FALSE)/M24,"") -> 0.7272727273 | M24: ='R-2014'!$AQ$6 -> 11 | N24: NA | O24: =IFERROR(VLOOKUP($A$3,'R-2014'!$AE$7:$AR$500,14,FALSE)/P24,"") -> 0.625 | P24: ='R-2014'!$AR$6 -> 8 | Q24: NA | S24: FCAT 2014 | T24: =IFERROR(VLOOKUP(TEXT($A$3,"0000"),'MemMay28-2014'!$A$2:$O$500,9,FALSE),"") -> 25703 | U24: =IFERROR(IF(VLOOKUP($A$3,'M-2014'!$AC$7:$AO$500,3,FALSE)>T24,1,VLOOKUP($A$3,'M-2014'!$AC$7:$AO$500,3,FALSE)/T24),"") -> 0.9957592499 | V24: NA | W24: =IFERROR(VLOOKUP($A$3,'M-2014'!$AC$7:$AO$500,10,FALSE),"") -> 58 | X24: =IFERROR(VLOOKUP($A$3,'M-2014'!$AC$7:$AO$500,11,FALSE)/Y24,"") -> 0.6363636364 | Y24: ='M-2014'!$AM$6 -> 22 | Z24: NA | AA24: NA | AB24: =IFERROR(VLOOKUP($A$3,'M-2014'!$AC$7:$AO$500,12,FALSE)/AD24,"") -> 0.5 | AC24: =IFERROR(VLOOKUP($A$3,'M-2012'!$A$7:$N$500,11,FALSE)/AD24,"") -> 1.5 | AD24: ='M-2014'!$AN$6 -> 10 | AE24: NA | AF24: =IFERROR(VLOOKUP($A$3,'M-2014'!$AC$7:$AO$500,13,FALSE)/AG24,"") -> 0.5714285714 | AG24: ='M-2014'!$AO$6 -> 14 | AH24: NA | AJ24: =IFERROR(VLOOKUP($A$3,'R-2014'!$AE$7:$AR$500,3,FALSE),"NT") -> 25650 | AK24: =IFERROR(VLOOKUP($A$3,'M-2014'!$AC$7:$AO$500,3,FALSE),"NT") -> 25594
A25: Winter IA | B25: =IFERROR(VLOOKUP(TEXT($A$3,"0000"),MemFeb14!$A$3:$O$500,9,FALSE),"NA") -> 25663 | C25: =IFERROR(IF(OR($B25="NA",AJ25<10),"NA",IF(VLOOKUP($A$3,'WIAG5-RALL'!$B$2:$AC$500,3,FALSE)>$B25,1,VLOOKUP($A$3,'WIAG5-RALL'!$B$2:$AC$500,3,FALSE)/$B25)),"NT") -> 0.9654755874 | D25: =IFERROR(IF(VLOOKUP($A$3,'WIAG5-RALL'!$B$2:$AC$500,3,FALSE)<10,#N/A,VLOOKUP($A$3,'WIAG5-RALL'!$B$2:$AC$500,5,FALSE)),#N/A) -> 65.76 | E25: =IFERROR(IF(VLOOKUP($A$3,'WIAG5-RALL'!$B$2:$AC$500,3,FALSE)<10,#N/A,VLOOKUP($A$3,'WIAG5-RALL'!$B$2:$AC$500,12,FALSE)*100),#N/A) -> 59 | F25: =IFERROR(IF(VLOOKUP($A$3,'WIAG5-RALL'!$B$2:$AC$500,3,FALSE)<10,#N/A,VLOOKUP($A$3,'WIAG5-RALL'!$B$2:$AC$500,27,FALSE)),#N/A) -> 0.74 | G25: =VLOOKUP($A$3,'WIAG5-RALL'!$B$2:$AC$500,26,FALSE) -> 15 | H25: NA | I25: =IFERROR(IF(VLOOKUP($A$3,'WIAG5-RALL'!$B$2:$AC$500,3,FALSE)<10,#N/A,VLOOKUP($A$3,'WIAG5-RALL'!$B$2:$AC$500,23,FALSE)),#N/A) -> 0.66 | J25: =VLOOKUP($A$3,'WIAG5-RALL'!$B$2:$AC$500,22,FALSE) -> 25 | K25: NA | L25: =IFERROR(IF(VLOOKUP($A$3,'WIAG5-RALL'!$B$2:$AC$500,3,FALSE)<10,#N/A,VLOOKUP($A$3,'WIAG5-RALL'!$B$2:$AC$500,19,FALSE)),#N/A) -> 0.61 | M25: =VLOOKUP($A$3,'WIAG5-RALL'!$B$2:$AC$500,18,FALSE) -> 11 | N25: NA | O25: =IFERROR(IF(VLOOKUP($A$3,'WIAG5-RALL'!$B$2:$AC$500,3,FALSE)<10,#N/A,VLOOKUP($A$3,'WIAG5-RALL'!$B$2:$AC$500,15,FALSE)),#N/A) -> 0.58 | P25: =VLOOKUP($A$3,'WIAG5-RALL'!$B$2:$AC$500,14,FALSE) -> 8 | Q25: NA | S25: Winter IA | T25: =IFERROR(VLOOKUP(TEXT($A$3,"0000"),MemFeb14!$A$3:$O$500,9,FALSE),"NA") -> 25663 | U25: =IFERROR(IF(OR($T25="NA",AK25<10),"NA",IF(VLOOKUP($A$3,'WIAG5-MALL'!$B$2:$AC$500,3,FALSE)>$T25,1,VLOOKUP($A$3,'WIAG5-MALL'!$B$2:$AC$500,3,FALSE)/$T25)),"NA") -> 0.9695281144 | V25: =IFERROR(IF(VLOOKUP($A$3,'WIAG5-MALL'!$B$2:$AC$500,3,FALSE)<10,#N/A,VLOOKUP($A$3,'WIAG5-MALL'!$B$2:$AC$500,5,FALSE)),#N/A) -> 61.83 | W25: =IFERROR(IF(VLOOKUP($A$3,'WIAG5-MALL'!$B$2:$AC$500,3,FALSE)<10,#N/A,VLOOKUP($A$3,'WIAG5-MALL'!$B$2:$AC$500,12,FALSE)*100),#N/A) -> 51 | X25: =IFERROR(IF(VLOOKUP($A$3,'WIAG5-MALL'!$B$2:$AC$500,3,FALSE)<10,#N/A,VLOOKUP($A$3,'WIAG5-MALL'!$B$2:$AC$500,19,FALSE)),#N/A) -> 0.57 | Y25: =VLOOKUP($A$3,'WIAG5-MALL'!$B$2:$AC$500,18,FALSE) -> 21 | AA25: NA | AB25: =IFERROR(IF(VLOOKUP($A$3,'WIAG5-MALL'!$B$2:$AC$500,3,FALSE)<10,#N/A,VLOOKUP($A$3,'WIAG5-MALL'!$B$2:$AC$500,15,FALSE)),#N/A) -> 0.67 | AD25: =IFERROR(IF(VLOOKUP($A$3,'WIAG5-MALL'!$B$2:$AC$500,3,FALSE)<10,#N/A,VLOOKUP($A$3,'WIAG5-MALL'!$B$2:$AC$500,14,FALSE)),#N/A) -> 11 | AE25: NA | AF25: =IFERROR(IF(VLOOKUP($A$3,'WIAG5-MALL'!$B$2:$AC$500,3,FALSE)<10,#N/A,VLOOKUP($A$3,'WIAG5-MALL'!$B$2:$AC$500,23,FALSE)),#N/A) -> 0.71 | AG25: =IFERROR(IF(VLOOKUP($A$3,'WIAG5-MALL'!$B$2:$AC$500,3,FALSE)<10,#N/A,VLOOKUP($A$3,'WIAG5-MALL'!$B$2:$AC$500,22,FALSE)),#N/A) -> 6 | AH25: NA | AJ25: =VLOOKUP($A$3,'WIAG5-RALL'!$B$2:$AC$500,3,FALSE) -> 24777 | AK25: =VLOOKUP($A$3,'WIAG5-MALL'!$B$2:$AC$500,3,FALSE) -> 24881
A26: Fall IA | B26: =IFERROR(VLOOKUP(TEXT($A$3,"0000"),MemNov12!$A$3:$O$500,9,FALSE),"NA") -> 25561 | C26: =IFERROR(IF(OR($B26="NA",AJ26<10),"NA",IF(VLOOKUP($A$3,'FIAG5-RAll'!$B$2:$AC$500,3,FALSE)>$B26,1,VLOOKUP($A$3,'FIAG5-RAll'!$B$2:$AC$500,3,FALSE)/$B26)),"NT") -> 0.9556355385 | D26: =IFERROR(IF(VLOOKUP($A$3,'FIAG5-RAll'!$B$2:$AC$500,3,FALSE)<10,#N/A,VLOOKUP($A$3,'FIAG5-RAll'!$B$2:$AC$500,5,FALSE)),#N/A) -> 64.46 | E26: =IFERROR(IF(VLOOKUP($A$3,'FIAG5-RAll'!$B$2:$AC$500,3,FALSE)<10,#N/A,VLOOKUP($A$3,'FIAG5-RAll'!$B$2:$AC$500,12,FALSE)*100),#N/A) -> 57 | F26: =IFERROR(IF(VLOOKUP($A$3,'FIAG5-RAll'!$B$2:$AC$500,3,FALSE)<10,#N/A,VLOOKUP($A$3,'FIAG5-RAll'!$B$2:$AC$500,27,FALSE)),#N/A) -> 0.63 | G26: =VLOOKUP($A$3,'FIAG5-RAll'!$B$2:$AC$500,26,FALSE) -> 15 | H26: NA | I26: =IFERROR(IF(VLOOKUP($A$3,'FIAG5-RAll'!$B$2:$AC$500,3,FALSE)<10,#N/A,VLOOKUP($A$3,'FIAG5-RAll'!$B$2:$AC$500,23,FALSE)),#N/A) -> 0.7 | J26: =VLOOKUP($A$3,'FIAG5-RAll'!$B$2:$AC$500,22,FALSE) -> 24 | K26: NA | L26: =IFERROR(IF(VLOOKUP($A$3,'FIAG5-RAll'!$B$2:$AC$500,3,FALSE)<10,#N/A,VLOOKUP($A$3,'FIAG5-RAll'!$B$2:$AC$500,19,FALSE)),#N/A) -> 0.59 | M26: =VLOOKUP($A$3,'FIAG5-RAll'!$B$2:$AC$500,18,FALSE) -> 11 | N26: NA | O26: =IFERROR(IF(VLOOKUP($A$3,'FIAG5-RAll'!$B$2:$AC$500,3,FALSE)<10,#N/A,VLOOKUP($A$3,'FIAG5-RAll'!$B$2:$AC$500,15,FALSE)),#N/A) -> 0.57 | P26: =VLOOKUP($A$3,'FIAG5-RAll'!$B$2:$AC$500,14,FALSE) -> 6 | Q26: NA | S26: Fall IA | T26: =IFERROR(VLOOKUP(TEXT($A$3,"0000"),MemNov12!$A$3:$O$500,9,FALSE),"NA") -> 25561 | U26: =IFERROR(IF(OR($T26="NA",AK26<10),"NA",IF(VLOOKUP($A$3,'FIAG5-MAll'!$B$2:$AC$500,3,FALSE)>$T26,1,VLOOKUP($A$3,'FIAG5-MAll'!$B$2:$AC$500,3,FALSE)/$T26)),"NA") -> 0.9575916435 | V26: =IFERROR(IF(VLOOKUP($A$3,'FIAG5-MAll'!$B$2:$AC$500,3,FALSE)<10,#N/A,VLOOKUP($A$3,'FIAG5-MAll'!$B$2:$AC$500,5,FALSE)),#N/A) -> 63.7 | W26: =IFERROR(IF(VLOOKUP($A$3,'FIAG5-MAll'!$B$2:$AC$500,3,FALSE)<10,#N/A,VLOOKUP($A$3,'FIAG5-MAll'!$B$2:$AC$500,12,FALSE)*100),#N/A) -> 55 | X26: =IFERROR(IF(VLOOKUP($A$3,'FIAG5-MAll'!$B$2:$AC$500,3,FALSE)<10,#N/A,VLOOKUP($A$3,'FIAG5-MAll'!$B$2:$AC$500,19,FALSE)),#N/A) -> 0.63 | Y26: =VLOOKUP($A$3,'FIAG5-MAll'!$B$2:$AC$500,18,FALSE) -> 24 | AA26: NA | AB26: =IFERROR(IF(VLOOKUP($A$3,'FIAG5-MAll'!$B$2:$AC$500,3,FALSE)<10,#N/A,VLOOKUP($A$3,'FIAG5-MAll'!$B$2:$AC$500,15,FALSE)),#N/A) -> 0.67 | AD26: =VLOOKUP($A$3,'FIAG5-MAll'!$B$2:$AC$500,14,FALSE) -> 10 | AE26: NA | AF26: NT | AG26: NT | AH26: NT | AJ26: =VLOOKUP($A$3,'FIAG5-RAll'!$B$2:$AC$500,3,FALSE) -> 24427 | AK26: =VLOOKUP($A$3,'FIAG5-MAll'!$B$2:$AC$500,3,FALSE) -> 24477
A27: Baseline | B27: =IFERROR(VLOOKUP(TEXT($A$3,"0000"),MemSep13!$A$2:$O$500,9,FALSE),"NA") -> 25542 | C27: =IFERROR(IF(OR(AJ27<10,$B27="NA"),"NA",IF(VLOOKUP($A$3,'BLG5-RALL'!$A$14:$AG$500,3,FALSE)>$B27,1,VLOOKUP($A$3,'BLG5-RALL'!$A$14:$AG$500,3,FALSE)/$B27)),"NT") -> 0.9471850286 | D27: =IFERROR(IF($C27="NA","NA",VLOOKUP($A$3,'BLG5-RALL'!$A$14:$AG$500,5,FALSE)*100),"NT") -> 61 | E27: =IFERROR(IF($C27="NA","NA",VLOOKUP($A$3,'BLG5-RALL'!$A$14:$AG$500,9,FALSE)*100),"NT") -> 41.95 | F27: =IFERROR(IF($C27="NA","NA",VLOOKUP($A$3,'BLG5-RALL'!$A$14:$AM$500,11,FALSE)),"NT") -> 0.65 | G27: 7 | H27: =IFERROR((IF($C27="NA","NA",VLOOKUP($A$3,'BLG5-RALL'!$A$14:$AM$500,15,FALSE)*100)),"NT") -> 55.62 | I27: =IFERROR(IF($C27="NA","NA",VLOOKUP($A$3,'BLG5-RALL'!$A$14:$AM$500,17,FALSE)),"NT") -> 0.62 | J27: 23 | K27: =IFERROR((IF($C27="NA","NA",VLOOKUP($A$3,'BLG5-RALL'!$A$14:$AM$500,21,FALSE)*100)),"NT") -> 39.6 | L27: =IFERROR(IF($C27="NA","NA",VLOOKUP($A$3,'BLG5-RALL'!$A$14:$AM$500,23,FALSE)),"NT") -> 0.57 | M27: 8 | N27: =IFERROR((IF($C27="NA","NA",VLOOKUP($A$3,'BLG5-RALL'!$A$14:$AM$500,27,FALSE)*100)),"NT") -> 34.56 | O27: =IFERROR(IF($C27="NA","NA",VLOOKUP($A$3,'BLG5-RALL'!$A$14:$AM$500,29,FALSE)),"NT") -> 0.59 | P27: 5 | Q27: =IFERROR((IF($C27="NA","NA",VLOOKUP($A$3,'BLG5-RALL'!$A$14:$AM$500,33,FALSE)*100)),"NT") -> 38.83 | S27: Baseline | T27: =IFERROR(VLOOKUP(TEXT($A$3,"0000"),MemSep13!$A$2:$O$500,9,FALSE),"NA") -> 25542 | U27: =IFERROR(IF(OR($T27="NA",AK27<10),"NA",IF(VLOOKUP($A$3,'BLG5-MALL'!$A$14:$AA$500,3,FALSE)>$T27,1,VLOOKUP($A$3,'BLG5-MALL'!$A$14:$AA$500,3,FALSE)/$T27)),"NT") -> 0.9390415786 | V27: =IFERROR(IF($U27="NA","NA",VLOOKUP($A$3,'BLG5-MALL'!$A$14:$AA$500,5,FALSE)*100),"NT") -> 42 | W27: =IFERROR(IF(U27="NT","NT",VLOOKUP($A$3,'BLG5-MALL'!$A$14:$AA$500,9,FALSE)*100),"NT") -> 4.45 | X27: =IFERROR(IF($U27="NT","NT",VLOOKUP($A$3,'BLG5-MALL'!$A$14:$AG$500,11,FALSE)),"NT") -> 0.46 | Y27: 16 | AA27: =IFERROR((IF($U27="NA","NA",VLOOKUP($A$3,'BLG5-MALL'!$A$14:$AG$500,15,FALSE)*100)),"NT") -> 12.58 | AB27: =IFERROR(IF($U27="NT","NT",VLOOKUP($A$3,'BLG5-MALL'!$A$14:$AG$500,17,FALSE)),"NT") -> 0.41 | AD27: 9 | AE27: =IFERROR((IF($U27="NA","NA",VLOOKUP($A$3,'BLG5-MALL'!$A$14:$AG$500,21,FALSE)*100)),"NT") -> 3.76 | AF27: =IFERROR(IF($U27="NT","NT",VLOOKUP($A$3,'BLG5-MALL'!$A$14:$AG$500,23,FALSE)),"NT") -> 0.38 | AG27: 14 | AH27: =IFERROR((IF($U27="NA","NA",VLOOKUP($A$3,'BLG5-MALL'!$A$14:$AG$500,27,FALSE)*100)),"NT") -> 5.57 | AJ27: =VLOOKUP($A$3,'BLG5-RALL'!$A$14:$AG$500,3,FALSE) -> 24193 | AK27: =VLOOKUP($A$3,'BLG5-MALL'!$A$14:$AG$500,3,FALSE) -> 23985
A28: FCAT 2013 | B28: =IFERROR(VLOOKUP(TEXT($A$3,"0000"),'MemMay16-2013'!$A$2:$O$500,9,FALSE),"") -> 25642 | C28: =IFERROR(IF(VLOOKUP($A$3,'R-2013'!$AE$7:$AR$500,3,FALSE)>B28,1,VLOOKUP($A$3,'R-2013'!$AE$7:$AR$500,3,FALSE)/B28),"") -> 0.9971921067 | D28: NA | E28: =IFERROR(VLOOKUP($A$3,'R-2013'!$AE$7:$AR$500,10,FALSE),"") -> 59 | F28: =IFERROR(VLOOKUP($A$3,'R-2013'!$AE$7:$AR$500,11,FALSE)/G28,"") -> 0.7 | G28: ='R-2013'!$AO$6 -> 10 | H28: NA | I28: =IFERROR(VLOOKUP($A$3,'R-2013'!$AE$7:$AR$500,12,FALSE)/J28,"") -> 0.6 | J28: ='R-2013'!$AP$6 -> 15 | K28: NA | L28: =IFERROR(VLOOKUP($A$3,'R-2013'!$AE$7:$AR$500,13,FALSE)/M28,"") -> 0.7272727273 | M28: ='R-2013'!$AQ$6 -> 11 | N28: NA | O28: =IFERROR(VLOOKUP($A$3,'R-2013'!$AE$7:$AR$500,14,FALSE)/P28,"") -> 0.6666666667 | P28: ='R-2013'!$AR$6 -> 9 | Q28: NA | S28: FCAT 2013 | T28: =IFERROR(VLOOKUP(TEXT($A$3,"0000"),'MemMay16-2013'!$A$2:$O$500,9,FALSE),"") -> 25642 | U28: =IFERROR(IF(VLOOKUP($A$3,'M-2013'!$AC$7:$AO$500,3,FALSE)>T28,1,VLOOKUP($A$3,'M-2013'!$AC$7:$AO$500,3,FALSE)/T28),"") -> 0.9960611497 | V28: NA | W28: =IFERROR(VLOOKUP($A$3,'M-2013'!$AC$7:$AO$500,10,FALSE),"") -> 56 | X28: =IFERROR(VLOOKUP($A$3,'M-2013'!$AC$7:$AO$500,11,FALSE)/Y28,"") -> 0.5909090909 | Y28: ='M-2013'!$AM$6 -> 22 | Z28: NA | AA28: NA | AB28: =IFERROR(VLOOKUP($A$3,'M-2013'!$AC$7:$AO$500,12,FALSE)/AD28,"") -> 0.6 | AC28: =IFERROR(VLOOKUP($A$3,'M-2012'!$A$7:$N$500,11,FALSE)/AD28,"") -> 1.5 | AD28: ='M-2013'!$AN$6 -> 10 | AE28: NA | AF28: =IFERROR(VLOOKUP($A$3,'M-2013'!$AC$7:$AO$500,13,FALSE)/AG28,"") -> 0.5 | AG28: ='M-2013'!$AO$6 -> 14 | AH28: NA | AJ28: =IFERROR(VLOOKUP($A$3,'R-2013'!$AE$7:$AR$500,3,FALSE),"NT") -> 25570 | AK28: =IFERROR(VLOOKUP($A$3,'M-2013'!$AC$7:$AO$500,3,FALSE),"NT") -> 25541
A29: Science - Grade 5 | S29: Writing - Grade 4
A30: Assessment | B30: Enroll-ment | C30: % Tested | D30: Avg. % Correct | E30: % Perf. | F30: Nature of Science | I30: Earth and Space Science | L30: Physical Science | O30: Life Science | S30: Assessment | T30: Enroll-ment | U30: Expository | AA30: Narrative | AJ30: Number Tested
F31: Avg.% Correct | G31: Pts. Max | H31: % Perf. | I31: Avg.% Correct | J31: Pts. Max | K31: % Perf. | L31: Avg.% Correct | M31: Pts. Max | N31: % Perf. | O31: Avg.% Correct | P31: Pts. Max | Q31: % Perf. | U31: % Tested | V31: Average Score | W31: % 3.0 or higher | X31: % 3.5 or higher | Y31: % 4.0 or higher | AA31: % Tested | AC31: Average Score | AE31: % 3.0 or higher | AG31: % 3.5 or higher | AH31: % 4.0 or higher | AJ31: Science, G5 | AK31: Writing Expository, G4 | AL31: Writing Narrative, G4
A32: FCAT 2014 | B32: =IFERROR(VLOOKUP(TEXT($A$3,"0000"),'MemMay28-2014'!$A$2:$O$500,9,FALSE),"") -> 25703 | C32: =IFERROR(IF(VLOOKUP($A$3,'S-2014'!$A$7:$N$500,3,FALSE)>B32,1,VLOOKUP($A$3,'S-2014'!$A$3:$N$500,3,FALSE)/B32),"") -> 0.9974711123 | D32: NA | E32: =IFERROR(VLOOKUP($A$3,'S-2014'!$A$3:$N$500,10,FALSE),"") -> 51 | F32: =IFERROR(VLOOKUP($A$3,'S-2014'!$A$7:$N$500,11,FALSE)/G32,"") -> 0.7 | G32: ='S-2014'!$K$6 -> 10 | H32: NA | I32: =IFERROR(VLOOKUP($A$3,'S-2014'!$A$7:$N$500,12,FALSE)/J32,"") -> 0.6875 | J32: ='S-2014'!$L$6 -> 16 | K32: NA | L32: =IFERROR(VLOOKUP($A$3,'S-2014'!$A$7:$N$500,13,FALSE)/M32,"") -> 0.6875 | M32: ='S-2014'!$M$6 -> 16 | N32: NA | O32: =IFERROR(VLOOKUP($A$3,'S-2014'!$A$7:$N$500,14,FALSE)/P32,"") -> 0.6428571429 | P32: ='S-2014'!$N$6 -> 14 | Q32: NA | S32: FCAT 2014 | T32: =IFERROR(VLOOKUP(TEXT($A$3,"0000"),'MemMay28-2014'!$A$2:$O$500,8,FALSE),"NA") -> 25241 | U32: =IFERROR(IF(VLOOKUP($A$3,'W14'!$A$7:$S$500,3,FALSE)<10,"NA",IF(VLOOKUP($A$3,'W14'!$A$7:$S$500,3,FALSE)>T32,"100%",ROUND(VLOOKUP($A$3,'W14'!$A$7:$S$500,3,FALSE)/T32*100,0)&"%")),"NA") -> 99% | V32: =IFERROR(IF($AK$32="NA","NA",VLOOKUP($A$3,'W14'!$A$2:$S$500,4,FALSE)),"NA") -> 3.3 | W32: =IFERROR(IF($AK$32="NA","NA",VLOOKUP($A$3,'W14'!$A$7:$S$500,17,FALSE)),"NA") -> 77 | X32: =IFERROR(IF($AK$32="NA","NA",VLOOKUP($A$3,'W14'!$A$7:$S$500,18,FALSE)),"NA") -> 53 | Y32: =IFERROR(IF($AK$32="NA","NA",VLOOKUP($A$3,'W14'!$A$7:$S$500,19,FALSE)),"NA") -> 33 | AA32: NA | AC32: NA | AE32: NA | AG32: NA | AH32: NA | AJ32: =VLOOKUP($A$3,'S-2014'!$A$7:$N$500,3,FALSE) -> 25638 | AK32: =IF(VLOOKUP($A$3,'W14'!$A$7:$S$500,3,FALSE)<10,"NA",VLOOKUP($A$3,'W14'!$A$7:$S$500,3,FALSE)) -> 25103 | AL32: NA
A33: Winter IA | B33: =IFERROR(VLOOKUP(TEXT($A$3,"0000"),MemFeb14!$A$3:$O$500,9,FALSE),"NA") -> 25663 | C33: =IFERROR(IF(OR($B33="NA",AJ33<10),"NA",IF(VLOOKUP($A$3,'WIAG5-SALL'!$B$2:$AC$500,3,FALSE)>$B33,1,VLOOKUP($A$3,'WIAG5-SALL'!$B$2:$AC$500,3,FALSE)/$B33)),"NT") -> 0.9580329657 | D33: =IFERROR(IF(VLOOKUP($A$3,'WIAG5-SALL'!$B$2:$AC$500,3,FALSE)<10,#N/A,VLOOKUP($A$3,'WIAG5-SALL'!$B$2:$AC$500,5,FALSE)),#N/A) -> 54.6 | E33: =IFERROR(IF(VLOOKUP($A$3,'WIAG5-SALL'!$B$2:$AC$500,3,FALSE)<10,#N/A,VLOOKUP($A$3,'WIAG5-SALL'!$B$2:$AC$500,12,FALSE)*100),#N/A) -> 56 | F33: =IFERROR(IF(VLOOKUP($A$3,'WIAG5-SALL'!$B$2:$AC$500,3,FALSE)<10,#N/A,VLOOKUP($A$3,'WIAG5-SALL'!$B$2:$AC$500,23,FALSE)),#N/A) -> 0.48 | G33: =VLOOKUP($A$3,'WIAG5-SALL'!$B$2:$AC$500,22,FALSE) -> 9 | H33: NA | I33: =IFERROR(IF(VLOOKUP($A$3,'WIAG5-SALL'!$B$2:$AC$500,3,FALSE)<10,#N/A,VLOOKUP($A$3,'WIAG5-SALL'!$B$2:$AC$500,15,FALSE)),#N/A) -> 0.6 | J33: =VLOOKUP($A$3,'WIAG5-SALL'!$B$2:$AC$500,14,FALSE) -> 20 | K33: NA | L33: =IFERROR(IF(VLOOKUP($A$3,'WIAG5-SALL'!$B$2:$AC$500,3,FALSE)<10,#N/A,VLOOKUP($A$3,'WIAG5-SALL'!$B$2:$AC$500,27,FALSE)),#N/A) -> 0.57 | M33: =VLOOKUP($A$3,'WIAG5-SALL'!$B$2:$AC$500,26,FALSE) -> 24 | N33: NA | O33: =IFERROR(IF(VLOOKUP($A$3,'WIAG5-SALL'!$B$2:$AC$500,3,FALSE)<10,#N/A,VLOOKUP($A$3,'WIAG5-SALL'!$B$2:$AC$500,19,FALSE)),#N/A) -> 0.48 | P33: =VLOOKUP($A$3,'WIAG5-SALL'!$B$2:$AC$500,18,FALSE) -> 15 | Q33: NA | S33: Mid-Year | T33: =IFERROR(VLOOKUP(TEXT($A$3,"0000"),MemFeb14!$A$3:$O$500,8,FALSE),"NA") -> 25207 | U33: =IFERROR(IF(VLOOKUP($A$3,'MYG4-WALL'!$A$2:$W$495,5,FALSE)<10,"NA",IF(VLOOKUP($A$3,'MYG4-WALL'!$A$2:$W$495,5,FALSE)>$T33,"100%",ROUND(VLOOKUP($A$3,'MYG4-WALL'!$A$2:$W$495,5,FALSE)/$T33*100,0)&"%")),"NT") -> 84% | V33: =IFERROR(IF($U33="NA","NA",VLOOKUP($A$3,'MYG4-WALL'!$A$2:$W$495,6,FALSE)),"NT") -> 2.663951444 | W33: =IFERROR(IF($U33="NA","NA",VLOOKUP($A$3,'MYG4-WALL'!$A$2:$W$495,13,FALSE)),"NT") -> 61 | X33: NA | Y33: =IFERROR(IF($U33="NA","NA",VLOOKUP($A$3,'MYG4-WALL'!$A$2:$W$495,12,FALSE)),"NT") -> 23 | Z33: =IFERROR(IF($U33="NA","NA",VLOOKUP($A$3,'MYG4-WALL'!$A$2:$W$495,13,FALSE)),"NT") -> 61 | AA33: =IFERROR(IF(VLOOKUP($A$3,'MYG4-WALL'!$A$2:$W$495,15,FALSE)<10,"NA",IF(VLOOKUP($A$3,'MYG4-WALL'!$A$2:$W$495,15,FALSE)>$T33,"100%",ROUND(VLOOKUP($A$3,'MYG4-WALL'!$A$2:$W$495,15,FALSE)/$T33*100,0)&"%")),"NT") -> 86% | AB33: =IFERROR(IF(VLOOKUP($A$3,'MYG4-WALL'!$A$2:$W$495,5,FALSE)<10,"NA",IF(VLOOKUP($A$3,'MYG4-WALL'!$A$2:$W$495,5,FALSE)>AA33,"100%",ROUND(VLOOKUP($A$3,'MYG4-WALL'!$A$2:$W$495,5,FALSE)/AA33*100,0)&"%")),"NT") -> 2447442% | AC33: =IFERROR(IF($AA33="NA","NA",VLOOKUP($A$3,'MYG4-WALL'!$A$2:$W$495,16,FALSE)),"NT") -> 2.737717732 | AD33: =IFERROR(IF($U33="NA","NA",VLOOKUP($A$3,'MYG4-WALL'!$A$2:$W$495,6,FALSE)),"NT") -> 2.663951444 | AE33: =IFERROR(IF($AA33="NA","NA",VLOOKUP($A$3,'MYG4-WALL'!$A$2:$W$495,23,FALSE)),"NT") -> 64 | AF33: =IFERROR(IF($U33="NA","NA",VLOOKUP($A$3,'MYG4-WALL'!$A$2:$W$495,13,FALSE)),"NT") -> 61 | AG33: NA | AH33: =IFERROR(IF($AA33="NA","NA",VLOOKUP($A$3,'MYG4-WALL'!$A$2:$W$495,22,FALSE)),"NT") -> 27 | AJ33: =IFERROR(VLOOKUP($A$3,'WIAG5-SALL'!$B$2:$AC$500,3,FALSE),"NT") -> 24586 | AK33: =VLOOKUP($A$3,'MYG4-WALL'!$A$2:$W$495,5,FALSE) -> 21048 | AL33: =VLOOKUP($A$3,'MYG4-WALL'!$A$2:$W$495,15,FALSE) -> 21724
A34: Fall IA | B34: =IFERROR(VLOOKUP(TEXT($A$3,"0000"),MemNov12!$A$3:$O$500,9,FALSE),"NA") -> 25561 | C34: =IFERROR(IF(OR($B34="NA",AJ34<10),"NA",IF(VLOOKUP($A$3,'FIAG5-SALL'!$B$2:$AC$500,3,FALSE)>$B34,1,VLOOKUP($A$3,'FIAG5-SALL'!$B$2:$AC$500,3,FALSE)/$B34)),"NT") -> 0.9439771527 | D34: =IFERROR(IF(VLOOKUP($A$3,'FIAG5-SALL'!$B$2:$AC$500,3,FALSE)<10,#N/A,VLOOKUP($A$3,'FIAG5-SALL'!$B$2:$AC$500,5,FALSE)),#N/A) -> 51.57 | E34: =IFERROR(IF(VLOOKUP($A$3,'FIAG5-SALL'!$B$2:$AC$500,3,FALSE)<10,#N/A,VLOOKUP($A$3,'FIAG5-SALL'!$B$2:$AC$500,12,FALSE)*100),#N/A) -> 51 | F34: =IFERROR(IF(VLOOKUP($A$3,'FIAG5-SALL'!$B$2:$AC$500,3,FALSE)<10,#N/A,VLOOKUP($A$3,'FIAG5-SALL'!$B$2:$AC$500,23,FALSE)),#N/A) -> 0.43 | G34: =VLOOKUP($A$3,'FIAG5-SALL'!$B$2:$AC$500,22,FALSE) -> 9 | H34: NA | I34: =IFERROR(IF(VLOOKUP($A$3,'FIAG5-SALL'!$B$2:$AC$500,3,FALSE)<10,#N/A,VLOOKUP($A$3,'FIAG5-SALL'!$B$2:$AC$500,15,FALSE)),#N/A) -> 0.47 | J34: =VLOOKUP($A$3,'FIAG5-SALL'!$B$2:$AC$500,14,FALSE) -> 20 | K34: NA | L34: =IFERROR(IF(VLOOKUP($A$3,'FIAG5-SALL'!$B$2:$AC$500,3,FALSE)<10,#N/A,VLOOKUP($A$3,'FIAG5-SALL'!$B$2:$AC$500,27,FALSE)),#N/A) -> 0.55 | M34: =VLOOKUP($A$3,'FIAG5-SALL'!$B$2:$AC$500,26,FALSE) -> 24 | N34: NA | O34: =IFERROR(IF(VLOOKUP($A$3,'FIAG5-SALL'!$B$2:$AC$500,3,FALSE)<10,#N/A,VLOOKUP($A$3,'FIAG5-SALL'!$B$2:$AC$500,19,FALSE)),#N/A) -> 0.57 | P34: =VLOOKUP($A$3,'FIAG5-SALL'!$B$2:$AC$500,18,FALSE) -> 15 | Q34: NA | AJ34: =IFERROR(VLOOKUP($A$3,'FIAG5-SALL'!$B$2:$AC$500,3,FALSE),"NT") -> 24129
A35: Baseline | B35: =IFERROR(VLOOKUP(TEXT($A$3,"0000"),MemSep13!$A$2:$O$500,9,FALSE),"NA") -> 25542 | C35: =IFERROR(IF(OR($B35="NA",AJ35<10),"NT",IF(VLOOKUP($A$3,'BLG5-SALL'!$A$14:$AG$500,3,FALSE)>$B35,1,VLOOKUP($A$3,'BLG5-SALL'!$A$14:$AG$500,3,FALSE)/$B35)),"NT") -> 0.942604338 | D35: =IFERROR(IF($C35="NA","NA",VLOOKUP($A$3,'BLG5-SALL'!$A$14:$AG$500,5,FALSE)*100),"NT") -> 46 | E35: =IFERROR(IF($C35="NA","NA",VLOOKUP($A$3,'BLG5-SALL'!$A$14:$AG$500,9,FALSE)*100),"NT") -> 7.21 | F35: =IFERROR(IF($C35="NA","NA",VLOOKUP($A$3,'BLG5-SALL'!$A$14:$AM$500,11,FALSE)),"NT") -> 0.37 | G35: 8 | H35: =IFERROR((IF($C35="NA","NA",VLOOKUP($A$3,'BLG5-SALL'!$A$14:$AM$500,15,FALSE)*100)),"NT") -> 7.36 | I35: =IFERROR(IF($C35="NA","NA",VLOOKUP($A$3,'BLG5-SALL'!$A$14:$AM$500,17,FALSE)),"NT") -> 0.44 | J35: 19 | K35: =IFERROR((IF($C35="NA","NA",VLOOKUP($A$3,'BLG5-SALL'!$A$14:$AM$500,21,FALSE)*100)),"NT") -> 4.57 | L35: =IFERROR(IF($C35="NA","NA",VLOOKUP($A$3,'BLG5-SALL'!$A$14:$AM$500,23,FALSE)),"NT") -> 0.52 | M35: 24 | N35: =IFERROR((IF($C35="NA","NA",VLOOKUP($A$3,'BLG5-SALL'!$A$14:$AM$500,27,FALSE)*100)),"NT") -> 19.68 | O35: =IFERROR(IF($C35="NA","NA",VLOOKUP($A$3,'BLG5-SALL'!$A$14:$AM$500,29,FALSE)),"NT") -> 0.46 | P35: 15 | Q35: =IFERROR(IF($C35="NA","NA",VLOOKUP($A$3,'BLG5-SALL'!$A$14:$AM$500,33,FALSE)*100),"NT") -> 10.82 | S35: Pre-Test | T35: =IFERROR(VLOOKUP(TEXT($A$3,"0000"),MemSep13!$A$2:$O$500,8,FALSE),"NA") -> 24928 | U35: =IFERROR(IF(VLOOKUP($A$3,'BLG4-WALL'!$A$2:$AJ$500,3,FALSE)<10,"NA",IF(VLOOKUP($A$3,'BLG4-WALL'!$A$2:$AJ$500,3,FALSE)>T35,"100%",ROUND(VLOOKUP($A$3,'BLG4-WALL'!$A$2:$AJ$500,3,FALSE)/T35*100,0)&"%")),"NT") -> 75% | V35: =IFERROR(IF(U35="NA","NA",VLOOKUP($A$3,'BLG4-WALL'!$A$2:$AJ$500,4,FALSE)),"NT") -> 1.399999976 | W35: =IFERROR(IF(U35="NA","NA",SUM(VLOOKUP($A$3,'BLG4-WALL'!$A$2:$AJ$500,10,FALSE),VLOOKUP($A$3,'BLG4-WALL'!$A$2:$AJ$500,11,FALSE))*100),"NT") -> 11.24 | X35: NA | Y35: =IFERROR(IF($U35="NA","NA",(VLOOKUP($A$3,'BLG4-WALL'!$A$6:$AJ$500,11,FALSE)*100)),"NT") -> 1.13 | AA35: =IFERROR(IF(VLOOKUP($A$3,'BLG4-WALL'!$A$2:$AJ$500,12,FALSE)<10,"NA",IF(VLOOKUP($A$3,'BLG4-WALL'!$A$2:$AJ$500,12,FALSE)>T35,"100%",ROUND(VLOOKUP($A$3,'BLG4-WALL'!$A$2:$AJ$500,12,FALSE)/T35*100,0)&"%")),"NT") -> 80% | AC35: =IFERROR(IF(AA35="NA","NA",VLOOKUP($A$3,'BLG4-WALL'!$A$2:$AJ$526,13,FALSE)),"NT") -> 1.5 | AE35: =IFERROR(IF(AA35="NA","NA",SUM(VLOOKUP($A$3,'BLG4-WALL'!$A$2:$AJ$500,19,FALSE),VLOOKUP($A$3,'BLG4-WALL'!$A$2:$AJ$500,20,FALSE))*100),"NT") -> 15.6 | AF35: NA | AG35: NA | AH35: =IFERROR(IF(AA35="NA","NA",(VLOOKUP($A$3,'BLG4-WALL'!$A$2:$AJ$500,20,FALSE)*100)),"NT") -> 2.32 | AJ35: =IFERROR(VLOOKUP($A$3,'BLG5-SALL'!$A$14:$AG$500,3,FALSE),"NT") -> 24076 | AK35: =VLOOKUP($A$3,'BLG4-WALL'!$A$2:$AJ$500,3,FALSE) -> 18745 | AL35: =VLOOKUP($A$3,'BLG4-WALL'!$A$2:$AJ$500,12,FALSE) -> 19989
A36: FCAT 2013 | B36: =IFERROR(VLOOKUP(TEXT($A$3,"0000"),'MemMay16-2013'!$A$2:$O$500,9,FALSE),"") -> 25642 | C36: =IFERROR(IF(VLOOKUP($A$3,'S-2013'!$A$7:$N$500,3,FALSE)>B36,1,VLOOKUP($A$3,'S-2013'!$A$3:$N$500,3,FALSE)/B36),"") -> 1 | D36: NA | E36: =IFERROR(VLOOKUP($A$3,'S-2013'!$A$3:$N$500,10,FALSE),"") -> 51 | F36: =IFERROR(VLOOKUP($A$3,'S-2013'!$A$7:$N$500,11,FALSE)/G36,"") -> 0.6 | G36: ='S-2013'!$K$6 -> 10 | H36: NA | I36: =IFERROR(VLOOKUP($A$3,'S-2013'!$A$7:$N$500,12,FALSE)/J36,"") -> 0.75 | J36: ='S-2013'!$L$6 -> 16 | K36: NA | L36: =IFERROR(VLOOKUP($A$3,'S-2013'!$A$7:$N$500,13,FALSE)/M36,"") -> 0.625 | M36: ='S-2013'!$M$6 -> 16 | N36: NA | O36: =IFERROR(VLOOKUP($A$3,'S-2013'!$A$7:$N$500,14,FALSE)/P36,"") -> 0.7142857143 | P36: ='S-2013'!$N$6 -> 14 | Q36: NA | S36: FCAT 2013 | T36: =IFERROR(IF(VLOOKUP(TEXT($A$3,"0000"),'MemMay16-2013'!$A$2:$O$500,8,FALSE)<10,"NA",VLOOKUP(TEXT($A$3,"0000"),'MemMay16-2013'!$A$2:$O$500,8,FALSE)),"NA") -> 25646 | U36: NA | V36: NA | W36: NA | X36: NA | Y36: NA | AA36: =IFERROR(IF(VLOOKUP($A$3,'W13'!$A$7:$S$500,3,FALSE)>T36,"100%",ROUND(VLOOKUP($A$3,'W13'!$A$7:$S$500,3,FALSE)/T36*100,0)&"%"),"NA") -> 99% | AC36: =IFERROR(IF(OR($T36="NA",AA36="NA"),"NA",VLOOKUP($A$3,'W13'!$A$2:$S$500,4,FALSE)),"NA") -> 3.4 | AE36: =IFERROR(VLOOKUP($A$3,'W13'!$A$7:$S$500,17,FALSE),"NA") -> 84 | AG36: =IFERROR(VLOOKUP($A$3,'W13'!$A$7:$S$500,18,FALSE),"NA") -> 58 | AH36: =IFERROR(VLOOKUP($A$3,'W13'!$A$7:$S$500,19,FALSE),"NA") -> 37 | AJ36: =VLOOKUP($A$3,'S-2013'!$A$7:$N$500,3,FALSE) -> 25,560 | AK36: =U36 -> NA | AL36: =IF(VLOOKUP($A$3,'W13'!$A$7:$S$500,3,FALSE)<10,"NA",VLOOKUP($A$3,'W13'!$A$7:$S$500,3,FALSE)) -> 25441
A37: 2010 to 2014 School Grade Performance | U37: School Grading Scale
A38: Year | B38: School Grade | C38: Adj. Points Total | D38: Un-adjusted Points Total | E38: Unadjusted Satisfactory or Higher Performance Points | J38: Learning Gains Points | M38: Learning Gains Points for Lowest 25% | Q38: Middle School Acceleration Points | T38: % Tested | U38: School Type | X38: Year | Y38: Total Points | AA38: A | AC38: B | AE38: C | AG38: D | AH38: F
E39: Read-ing | F39: Math | G39: Writing | I39: Science | J39: Reading | L39: Math | M39: Reading | O39: Math | Q39: Partici- pation | S39: Performance | U39: Elementary and K-7 | X39: 2010-2014 | Y39: 800 | AA39: 525 - 800 | AC39: 495 - 524 | AE39: 435 - 494 | AG39: 395 - 434 | AH39: 0 - 394
A40: 2014 | B40: =IF(VLOOKUP(TEXT($A$3,"0000"),'2014 SG'!$D$6:$BH$500,30,FALSE)="I","I",(IF(VLOOKUP(TEXT($A$3,"0000"),'2014 SG'!$D$6:$BH$500,29,FALSE)="YES","*","")&VLOOKUP(TEXT($A$3,"0000"),'2014 SG'!$D$6:$BH$500,30,FALSE))) -> B | C40: =IF(VLOOKUP(TEXT($A$3,"0000"),'2014 SG'!$D$6:$BH$500,30,FALSE)="I","",VLOOKUP(TEXT($A$3,"0000"),'2014 SG'!$D$6:$BH$500,28,FALSE)) -> 506 | D40: =IF(VLOOKUP(TEXT($A$3,"0000"),'2014 SG'!$D$6:$BH$500,30,FALSE)="I","",VLOOKUP(TEXT($A$3,"0000"),'2014 SG'!$D$6:$BH$500,15,FALSE)) -> 506 | E40: =IF(VLOOKUP(TEXT($A$3,"0000"),'2014 SG'!$D$6:$BH$500,30,FALSE)="I","",VLOOKUP(TEXT($A$3,"0000"),'2014 SG'!$D$6:$BH$500,3,FALSE)) -> 59 | F40: =IF(VLOOKUP(TEXT($A$3,"0000"),'2014 SG'!$D$6:$BH$500,30,FALSE)="I","",VLOOKUP(TEXT($A$3,"0000"),'2014 SG'!$D$6:$BH$500,4,FALSE)) -> 62 | G40: =IF(VLOOKUP(TEXT($A$3,"0000"),'2014 SG'!$D$6:$BH$500,30,FALSE)="I","",VLOOKUP(TEXT($A$3,"0000"),'2014 SG'!$D$6:$BH$500,5,FALSE)) -> 58 | H40: =IF(VLOOKUP(TEXT($A$3,"0000"),'2012 SG'!$D$9:$AW$500,24,FALSE)="","NG",IFERROR(VLOOKUP(TEXT($A$3,"0000"),'2012 SG'!$D$9:$AW$500,24,FALSE),"")) -> 99 | I40: =IF(VLOOKUP(TEXT($A$3,"0000"),'2014 SG'!$D$6:$BH$500,30,FALSE)="I","",VLOOKUP(TEXT($A$3,"0000"),'2014 SG'!$D$6:$BH$500,6,FALSE)) -> 56 | J40: =IF(VLOOKUP(TEXT($A$3,"0000"),'2014 SG'!$D$6:$BH$500,30,FALSE)="I","",VLOOKUP(TEXT($A$3,"0000"),'2014 SG'!$D$6:$BH$500,7,FALSE)) -> 70 | K40: =IF(VLOOKUP(TEXT($A$3,"0000"),'2012 SG'!$D$9:$AW$500,24,FALSE)="","NG",IFERROR(VLOOKUP(TEXT($A$3,"0000"),'2012 SG'!$D$9:$AW$500,24,FALSE),"")) -> 99 | L40: =IF(VLOOKUP(TEXT($A$3,"0000"),'2014 SG'!$D$6:$BH$500,30,FALSE)="I","",VLOOKUP(TEXT($A$3,"0000"),'2014 SG'!$D$6:$BH$500,8,FALSE)) -> 68 | M40: =IF(VLOOKUP(TEXT($A$3,"0000"),'2014 SG'!$D$6:$BH$500,30,FALSE)="I","",VLOOKUP(TEXT($A$3,"0000"),'2014 SG'!$D$6:$BH$500,9,FALSE)) -> 68 | N40: =IF(VLOOKUP(TEXT($A$3,"0000"),'2014 SG'!$D$6:$BH$500,30,FALSE)="I","",VLOOKUP(TEXT($A$3,"0000"),'2014 SG'!$D$6:$BH$500,8,FALSE)) -> 68 | O40: =IF(VLOOKUP(TEXT($A$3,"0000"),'2014 SG'!$D$6:$BH$500,30,FALSE)="I","",VLOOKUP(TEXT($A$3,"0000"),'2014 SG'!$D$6:$BH$500,10,FALSE)) -> 65 | P40: =IF(VLOOKUP(TEXT($A$3,"0000"),'2014 SG'!$D$6:$BH$500,30,FALSE)="I","",VLOOKUP(TEXT($A$3,"0000"),'2014 SG'!$D$6:$BH$500,8,FALSE)) -> 68 | Q40: =IF(OR(VLOOKUP(TEXT($A$3,"0000"),'2014 SG'!$D$6:$BH$500,11,FALSE)="no",VLOOKUP(TEXT($A$3,"0000"),'2014 SG'!$D$6:$BH$500,11,FALSE)=""),"NA",VLOOKUP(TEXT($A$3,"0000"),'2014 SG'!$D$6:$BH$500,12,FALSE)) -> NA | R40: =IF(VLOOKUP(TEXT($A$3,"0000"),'2014 SG'!$D$6:$BH$500,30,FALSE)="I","",VLOOKUP(TEXT($A$3,"0000"),'2014 SG'!$D$6:$BH$500,8,FALSE)) -> 68 | S40: =IF(OR(VLOOKUP(TEXT($A$3,"0000"),'2014 SG'!$D$6:$BH$500,11,FALSE)="no",VLOOKUP(TEXT($A$3,"0000"),'2014 SG'!$D$6:$BH$500,11,FALSE)=""),"NA",VLOOKUP(TEXT($A$3,"0000"),'2014 SG'!$D$6:$BH$500,13,FALSE)) -> NA | T40: =IF(VLOOKUP(TEXT($A$3,"0000"),'2014 SG'!$D$6:$BH$500,30,FALSE)="I","",VLOOKUP(TEXT($A$3,"0000"),'2014 SG'!$D$6:$BH$500,16,FALSE)) -> 99 | U40: Middle Schools and K-8, if grade 8 is included. | X40: 2012-2014 | Y40: 900 | AA40: 590 - 900 | AC40: 560 - 589 | AE40: 490 - 559 | AG40: 445 - 489 | AH40: 0 - 444
A41: 2013 | B41: =IF(VLOOKUP(TEXT($A$3,"0000"),'2013 SG'!$D$6:$BC$500,30,FALSE)="I","I",(IF(VLOOKUP(TEXT($A$3,"0000"),'2013 SG'!$D$6:$BC$500,29,FALSE)="YES","*","")&IF(VLOOKUP(TEXT($A$3,"0000"),'2013 SG'!$D$6:$BC$500,30,FALSE)="Pending",VLOOKUP(TEXT($A$3,"0000"),'2013 SG HS'!$D$4:$CP$80,70,FALSE),VLOOKUP(TEXT($A$3,"0000"),'2013 SG'!$D$6:$BC$500,30,FALSE)))) -> B | C41: =IF(VLOOKUP(TEXT($A$3,"0000"),'2013 SG'!$D$6:$BC$500,30,FALSE)="pending",VLOOKUP(TEXT($A$3,"0000"),'2013 SG HS'!$D$4:$CP$80,66,FALSE)-VLOOKUP(TEXT($A$3,"0000"),'2013 SG HS'!$D$4:$CP$80,59,FALSE),VLOOKUP(TEXT($A$3,"0000"),'2013 SG'!$D$6:$BC$500,28,FALSE)) -> 495 | D41: =IFERROR(VLOOKUP(TEXT($A$3,"0000"),'2013 SG'!$D$6:$BC$500,15,FALSE),"") -> 495 | E41: =IFERROR(VLOOKUP(TEXT($A$3,"0000"),'2013 SG'!$D$6:$BC$500,3,FALSE),"") -> 57 | F41: =IFERROR(VLOOKUP(TEXT($A$3,"0000"),'2013 SG'!$D$6:$BC$500,4,FALSE),"") -> 59 | G41: =IFERROR(VLOOKUP(TEXT($A$3,"0000"),'2013 SG'!$D$6:$BC$500,5,FALSE),"") -> 58 | H41: =IF(VLOOKUP(TEXT($A$3,"0000"),'2012 SG'!$D$9:$AW$500,24,FALSE)="","NG",IFERROR(VLOOKUP(TEXT($A$3,"0000"),'2012 SG'!$D$9:$AW$500,24,FALSE),"")) -> 99 | I41: =IFERROR(VALUE(VLOOKUP(TEXT($A$3,"0000"),'2013 SG'!$D$6:$BC$500,6,FALSE)),"") -> 54 | J41: =IFERROR(VLOOKUP(TEXT($A$3,"0000"),'2013 SG'!$D$6:$BC$500,7,FALSE),"") -> 68 | K41: =IF(VLOOKUP(TEXT($A$3,"0000"),'2012 SG'!$D$9:$AW$500,24,FALSE)="","NG",IFERROR(VLOOKUP(TEXT($A$3,"0000"),'2012 SG'!$D$9:$AW$500,24,FALSE),"")) -> 99 | L41: =IFERROR(VALUE(VLOOKUP(TEXT($A$3,"0000"),'2013 SG'!$D$6:$BC$500,8,FALSE)),"") -> 67 | M41: =IFERROR(VLOOKUP(TEXT($A$3,"0000"),'2013 SG'!$D$6:$BC$500,9,FALSE),"") -> 67 | O41: =IFERROR(VALUE(VLOOKUP(TEXT($A$3,"0000"),'2013 SG'!$D$6:$BC$500,10,FALSE)),"") -> 65 | Q41: =IF(VLOOKUP(TEXT($A$3,"0000"),'2013 SG'!$D$6:$BC$500,12,FALSE)="","NA",IFERROR(VLOOKUP(TEXT($A$3,"0000"),'2013 SG'!$D$6:$BC$500,12,FALSE),"")) -> NA | S41: =IF(VLOOKUP(TEXT($A$3,"0000"),'2013 SG'!$D$6:$BC$500,13,FALSE)="","NA",IFERROR(VLOOKUP(TEXT($A$3,"0000"),'2013 SG'!$D$6:$BC$500,13,FALSE),"")) -> NA | T41: =IF(VLOOKUP(TEXT($A$3,"0000"),'2013 SG'!$D$6:$BC$500,16,FALSE)="","NG",IFERROR(VLOOKUP(TEXT($A$3,"0000"),'2013 SG'!$D$6:$BC$500,16,FALSE),"")) -> 99 | X41: 2010-2011 | Y41: 800 | AA41: 525 - 800 | AC41: 495 - 524 | AE41: 435 - 494 | AG41: 395 - 434 | AH41: 0 - 394
A42: 2012 | B42: =IF(VLOOKUP(TEXT($A$3,"0000"),'2012 SG'!$D$4:$AX$500,47,FALSE)>0,"*","")&IF(VLOOKUP(TEXT($A$3,"0000"),'2012 SG'!$D$4:$AW$500,25,FALSE)="","NG",IF(VLOOKUP(TEXT($A$3,"0000"),'2012 SG'!$D$4:$AW$500,25,FALSE)="pending",VLOOKUP(TEXT($A$3,"0000"),'2012 SG HS'!$D$4:$CJ$500,64,FALSE),VLOOKUP(TEXT($A$3,"0000"),'2012 SG'!$D$4:$AW$500,25,FALSE))) -> B | C42: =IF(VLOOKUP(TEXT($A$3,"0000"),'2012 SG'!$D$9:$AW$500,23,FALSE)="","NG",IFERROR(VLOOKUP(TEXT($A$3,"0000"),'2012 SG'!$D$9:$AW$500,23,FALSE),"")) -> 512 | D42: =IF(VLOOKUP(TEXT($A$3,"0000"),'2012 SG'!$D$9:$AW$500,19,FALSE)="","NG",IFERROR(VLOOKUP(TEXT($A$3,"0000"),'2012 SG'!$D$9:$AW$500,19,FALSE),"")) -> 512 | E42: =IF(VLOOKUP(TEXT($A$3,"0000"),'2012 SG'!$D$9:$AW$500,3,FALSE)="","NG",IFERROR(VLOOKUP(TEXT($A$3,"0000"),'2012 SG'!$D$9:$AW$500,3,FALSE),"")) -> 55 | F42: =IF(VLOOKUP(TEXT($A$3,"0000"),'2012 SG'!$D$9:$AW$500,4,FALSE)="","NG",IFERROR(VLOOKUP(TEXT($A$3,"0000"),'2012 SG'!$D$9:$AW$500,4,FALSE),"")) -> 57 | G42: =IF(VLOOKUP(TEXT($A$3,"0000"),'2012 SG'!$D$9:$AW$500,5,FALSE)="","NG",IFERROR(VLOOKUP(TEXT($A$3,"0000"),'2012 SG'!$D$9:$AW$500,5,FALSE),"")) -> 81 | H42: =IF(VLOOKUP(TEXT($A$3,"0000"),'2012 SG'!$D$9:$AW$500,24,FALSE)="","NG",IFERROR(VLOOKUP(TEXT($A$3,"0000"),'2012 SG'!$D$9:$AW$500,24,FALSE),"")) -> 99 | I42: =IF(VLOOKUP(TEXT($A$3,"0000"),'2012 SG'!$D$9:$AW$500,6,FALSE)="","NG",IFERROR(VALUE(VLOOKUP(TEXT($A$3,"0000"),'2012 SG'!$D$9:$AW$500,6,FALSE)),"")) -> 47 | J42: =IF(VLOOKUP(TEXT($A$3,"0000"),'2012 SG'!$D$9:$AW$500,7,FALSE)="","NG",IFERROR(VLOOKUP(TEXT($A$3,"0000"),'2012 SG'!$D$9:$AW$500,7,FALSE),"")) -> 68 | K42: =IF(VLOOKUP(TEXT($A$3,"0000"),'2012 SG'!$D$9:$AW$500,24,FALSE)="","NG",IFERROR(VLOOKUP(TEXT($A$3,"0000"),'2012 SG'!$D$9:$AW$500,24,FALSE),"")) -> 99 | L42: =IF(VLOOKUP(TEXT($A$3,"0000"),'2012 SG'!$D$9:$AW$500,8,FALSE)="","NG",IFERROR(VALUE(VLOOKUP(TEXT($A$3,"0000"),'2012 SG'!$D$9:$AW$500,8,FALSE)),"")) -> 68 | M42: =IF(VLOOKUP(TEXT($A$3,"0000"),'2012 SG'!$D$9:$AW$500,9,FALSE)="","NG",IFERROR(VLOOKUP(TEXT($A$3,"0000"),'2012 SG'!$D$9:$AW$500,9,FALSE),"")) -> 70 | O42: =IF(VLOOKUP(TEXT($A$3,"0000"),'2012 SG'!$D$9:$AW$500,10,FALSE)="","NG",IFERROR(VALUE(VLOOKUP(TEXT($A$3,"0000"),'2012 SG'!$D$9:$AW$500,10,FALSE)),"")) -> 66 | Q42: =IF(VLOOKUP(TEXT($A$3,"0000"),'2012 SG'!$D$9:$AW$500,12,FALSE)="","NA",IFERROR(VLOOKUP(TEXT($A$3,"0000"),'2012 SG'!$D$9:$AW$500,12,FALSE),"")) -> NA | S42: =IF(VLOOKUP(TEXT($A$3,"0000"),'2012 SG'!$D$9:$AW$500,13,FALSE)="","NA",IFERROR(VLOOKUP(TEXT($A$3,"0000"),'2012 SG'!$D$9:$AW$500,13,FALSE),"")) -> NA | T42: =IF(VLOOKUP(TEXT($A$3,"0000"),'2012 SG'!$D$9:$AW$500,24,FALSE)="","NG",IFERROR(VLOOKUP(TEXT($A$3,"0000"),'2012 SG'!$D$9:$AW$500,24,FALSE),"")) -> 99 | U42: High Schools | X42: 2014 | Y42: 1600 | AA42: 1120-1600 | AC42: 1040 - 1119 | AE42: 880 - 1039 | AG42: 800 - 879 | AH42: 0 - 799
A43: 2011 | B43: =IF(VLOOKUP(TEXT($A$3,"0000"),'2011 SG'!$A$3:$AN$500,20,FALSE)="","NG",IFERROR(VLOOKUP(TEXT($A$3,"0000"),'2011 SG'!$A$3:$AN$500,20,FALSE),"")) -> B | C43: NA | D43: =IF(VLOOKUP(TEXT($A$3,"0000"),'2011 SG'!$A$3:$AN$500,12,FALSE)="","NG",IFERROR(VLOOKUP(TEXT($A$3,"0000"),'2011 SG'!$A$3:$AN$500,12,FALSE),"")) -> 519 | E43: =IF(VLOOKUP(TEXT($A$3,"0000"),'2011 SG'!$A$3:$AN$500,3,FALSE)="","NG",IFERROR(VLOOKUP(TEXT($A$3,"0000"),'2011 SG'!$A$3:$AN$500,3,FALSE),"")) -> 64 | F43: =IF(VLOOKUP(TEXT($A$3,"0000"),'2011 SG'!$A$3:$AN$500,4,FALSE)="","NG",IFERROR(VLOOKUP(TEXT($A$3,"0000"),'2011 SG'!$A$3:$AN$500,4,FALSE),"")) -> 71 | G43: =IF(VLOOKUP(TEXT($A$3,"0000"),'2011 SG'!$A$3:$AN$500,5,FALSE)="","NG",IFERROR(VLOOKUP(TEXT($A$3,"0000"),'2011 SG'!$A$3:$AN$500,5,FALSE),"")) -> 83 | I43: =IF(VLOOKUP(TEXT($A$3,"0000"),'2011 SG'!$A$3:$AN$500,6,FALSE)="","NG",IFERROR(VLOOKUP(TEXT($A$3,"0000"),'2011 SG'!$A$3:$AN$500,6,FALSE),"")) -> 47 | J43: =IF(VLOOKUP(TEXT($A$3,"0000"),'2011 SG'!$A$3:$AN$500,7,FALSE)="","NG",IFERROR(VLOOKUP(TEXT($A$3,"0000"),'2011 SG'!$A$3:$AN$500,7,FALSE),"")) -> 61 | L43: =IF(VLOOKUP(TEXT($A$3,"0000"),'2011 SG'!$A$3:$AN$500,8,FALSE)="","NG",IFERROR(VLOOKUP(TEXT($A$3,"0000"),'2011 SG'!$A$3:$AN$500,8,FALSE),"")) -> 67 | M43: =IF(VLOOKUP(TEXT($A$3,"0000"),'2011 SG'!$A$3:$AN$500,9,FALSE)="","NG",IFERROR(VLOOKUP(TEXT($A$3,"0000"),'2011 SG'!$A$3:$AN$500,9,FALSE),"")) -> 60 | O43: =IF(VLOOKUP(TEXT($A$3,"0000"),'2011 SG'!$A$3:$AN$500,10,FALSE)="","NG",IFERROR(VLOOKUP(TEXT($A$3,"0000"),'2011 SG'!$A$3:$AN$500,10,FALSE),"")) -> 66 | Q43: NA | S43: NA | T43: =IF(VLOOKUP(TEXT($A$3,"0000"),'2011 SG'!$A$3:$AN$500,13,FALSE)="","NG",IFERROR(VLOOKUP(TEXT($A$3,"0000"),'2011 SG'!$A$3:$AN$500,13,FALSE),"")) -> 99 | X43: 2010-2013 | Y43: 1600 | AA43: 1050-1600 | AC43: 990 - 1049 | AE43: 870 - 989 | AG43: 790 - 869 | AH43: 0 - 789
A44: 2010 | B44: =IF(VLOOKUP($A$3,'2010 SG'!$A$3:$AI$500,3,FALSE)="","NG",IFERROR(VLOOKUP($A$3,'2010 SG'!$A$3:$AI$500,3,FALSE),"")) -> B | C44: NA | D44: =IFERROR(VLOOKUP($A$3,'2010 SG'!$A$3:$AI$500,23,FALSE),"") -> 521 | E44: =IFERROR(VLOOKUP($A$3,'2010 SG'!$A$3:$AI$500,14,FALSE),"") -> 64 | F44: =IFERROR(VLOOKUP($A$3,'2010 SG'!$A$3:$AI$500,15,FALSE),"") -> 71 | G44: =IFERROR(VLOOKUP($A$3,'2010 SG'!$A$3:$AI$500,16,FALSE),"") -> 88 | I44: =IFERROR(VLOOKUP($A$3,'2010 SG'!$A$3:$AI$500,17,FALSE),"") -> 41 | J44: =IFERROR(VLOOKUP($A$3,'2010 SG'!$A$3:$AI$500,18,FALSE),"") -> 63 | L44: =IFERROR(VLOOKUP($A$3,'2010 SG'!$A$3:$AI$500,19,FALSE),"") -> 69 | M44: =IFERROR(VLOOKUP($A$3,'2010 SG'!$A$3:$AI$500,20,FALSE),"") -> 58 | O44: =IFERROR(VLOOKUP($A$3,'2010 SG'!$A$3:$AI$500,21,FALSE),"") -> 67 | Q44: NA | S44: NA | T44: =IFERROR(VLOOKUP($A$3,'2010 SG'!$A$3:$AI$500,24,FALSE),"") -> 99 | U44: K-12 and 6-12 | X44: 2012-2014 | Y44: 1700 | AA44: 1115 - 1700 | AC44: 1050 - 1114 | AE44: 925 - 1049 | AG44: 840 - 924 | AH44: 0 - 839

Sheet G3-8 FIA Trend Report
A2: Click here to return to the school and sheet selection interface | AF2: District | AG2: Average % Correct | AT2: District | AU2: % Proficient
A3: ='Select School'!B3 -> 9999 | AG3: District | AU3: District
A4: =TEXT(A3,"0000")&"-"&VLOOKUP(A3,SchList!$A$2:$B$502,2,FALSE) -> 9999-District | AG4: Average % Correct | AP4: Average Score | AU4: % Proficient | BD4: % of Students Scoring at 4.0 and higher
A5: Fall IA Trend Report: 2013 FCAT 2.0, 2012 Fall Interim Assessment, and 2013 Fall Interim Assessment | AG5: Reading | AJ5: Math | AM5: Science | AP5: Writing | AU5: Reading | AX5: Math | BA5: Science | BD5: Writing
AF6: Grade | AG6: 2012 FCAT 2.0 | AH6: 2011 Fall IA | AI6: 2012 FIA | AJ6: Baseline | AK6: Fall IA | AL6: Winter IA | AM6: BL | AN6: Fall | AO6: Winter | AP6: Prompt | AQ6: Pre-Test | AR6: Midyear | AT6: Grade | AU6: 2013 FCAT 2.0 | AV6: 2012 Fall IA | AW6: 2013 Fall IA | AX6: 2013 FCAT 2.0 | AY6: 2012 Fall IA | AZ6: 2013 Fall IA | BA6: 2013 FCAT 2.0 | BB6: 2012 Fall IA | BC6: 2013 Fall IA | BD6: Prompt | BE6: Baseline | BF6: Midyear
AF7: 3 | AG7: =IFERROR(IF(VLOOKUP(9999,'BLG3-RALL'!$A$14:$CZ$500,3,FALSE)="",#N/A,VLOOKUP(9999,'BLG3-RALL'!$A$14:$CZ$500,5,FALSE)*100),#N/A) -> 55 | AH7: =IFERROR(IF(VLOOKUP(9999,#REF!,3,FALSE)="",#N/A,VLOOKUP(9999,#REF!,5,FALSE)*100),#N/A) ->  | AI7: =IFERROR(IF(VLOOKUP(9999,#REF!,3,FALSE)="",#N/A,VLOOKUP(9999,#REF!,5,FALSE)*100),#N/A) ->  | AJ7: =IFERROR(IF(VLOOKUP(9999,'BLG3-MALL'!$A$14:$CZ$500,3,FALSE)="",#N/A,VLOOKUP(9999,'BLG3-MALL'!$A$14:$CZ$500,5,FALSE)*100),#N/A) -> 39 | AK7: =IFERROR(IF(VLOOKUP(9999,#REF!,3,FALSE)="",#N/A,VLOOKUP(9999,#REF!,5,FALSE)*100),#N/A) ->  | AL7: =IFERROR(IF(VLOOKUP(9999,#REF!,3,FALSE)="",#N/A,VLOOKUP(9999,#REF!,5,FALSE)*100),#N/A) ->  | AP7: Expository | AQ7: =IFERROR(IF(VLOOKUP(9999,'BLG4-WALL'!$A$14:$CZ$503,3,FALSE)="",#N/A,VLOOKUP(9999,'BLG4-WALL'!$A$14:$CZ$503,4,FALSE)),#N/A) -> 1.399999976 | AR7: =IFERROR(IF(VLOOKUP(9999,'MYG4-WALL'!$A$14:$CG$495,3,FALSE)="",#N/A,VLOOKUP(9999,'MYG4-WALL'!$A$14:$CG$495,4,FALSE)),#N/A) -> E | AT7: 3 | AU7: =IFERROR(IF(VLOOKUP(9999,'R-2013'!$A$6:$N$500,3,FALSE)="",#N/A,VLOOKUP(9999,'R-2013'!$A$6:$N$500,10,FALSE)),#N/A) -> 53 | AV7: =IFERROR(IF(VLOOKUP(9999,'2012 FIA-Read'!$A$14:$K$500,3,FALSE)="",#N/A,VLOOKUP(9999,'2012 FIA-Read'!$A$14:$K$500,11,FALSE)*100),#N/A) -> 49.7 | AW7: =IFERROR(IF(VLOOKUP(9999,'FIAG3-RAll'!$B$2:$AC$500,3,FALSE)="",#N/A,VLOOKUP(9999,'FIAG3-RAll'!$B$2:$AC$500,12,FALSE)*100),#N/A) -> 51 | AX7: =IFERROR(IF(VLOOKUP(9999,'M-2013'!$A$6:$N$500,3,FALSE)="",#N/A,VLOOKUP(9999,'M-2013'!$A$6:$N$500,10,FALSE)),#N/A) -> 62 | AY7: =IFERROR(IF(VLOOKUP(9999,'2012 FIA-Math'!$A$14:$K$500,3,FALSE)="",#N/A,VLOOKUP(9999,'2012 FIA-Math'!$A$14:$K$500,11,FALSE)*100),#N/A) -> 58.74 | AZ7: =IFERROR(IF(VLOOKUP(9999,'FIAG3-MAll'!$B$2:$AC$500,3,FALSE)="",#N/A,VLOOKUP(9999,'FIAG3-MAll'!$B$2:$AC$500,12,FALSE)*100),#N/A) -> 61 | BD7: Expository | BE7: =IFERROR(IF(VLOOKUP(9999,'BLG4-WALL'!$A$14:$CZ$503,3,FALSE)="",#N/A,VLOOKUP(9999,'BLG4-WALL'!$A$14:$CZ$503,11,FALSE)*100),#N/A) -> 1.13 | BF7: =IFERROR(IF(VLOOKUP(9999,'MYG4-WALL'!$A$14:$CG$495,3,FALSE)="",#N/A,VLOOKUP(9999,'MYG4-WALL'!$A$14:$CG$495,11,FALSE)*100),#N/A) -> 3800
AF8: 4 | AG8: =IFERROR(IF(VLOOKUP(9999,'BLG4-RALL'!$A$14:$CZ$500,3,FALSE)="",#N/A,VLOOKUP(9999,'BLG4-RALL'!$A$14:$CZ$500,5,FALSE)*100),#N/A) -> 60 | AH8: =IFERROR(IF(VLOOKUP(9999,#REF!,3,FALSE)="",#N/A,VLOOKUP(9999,#REF!,5,FALSE)*100),#N/A) ->  | AI8: =IFERROR(IF(VLOOKUP(9999,#REF!,3,FALSE)="",#N/A,VLOOKUP(9999,#REF!,5,FALSE)*100),#N/A) ->  | AJ8: =IFERROR(IF(VLOOKUP(9999,'BLG4-MALL'!$A$14:$CZ$500,3,FALSE)="",#N/A,VLOOKUP(9999,'BLG4-MALL'!$A$14:$CZ$500,5,FALSE)*100),#N/A) -> 41 | AK8: =IFERROR(IF(VLOOKUP(9999,#REF!,3,FALSE)="",#N/A,VLOOKUP(9999,#REF!,5,FALSE)*100),#N/A) ->  | AL8: =IFERROR(IF(VLOOKUP(9999,#REF!,3,FALSE)="",#N/A,VLOOKUP(9999,#REF!,5,FALSE)*100),#N/A) ->  | AP8: Narrative | AQ8: =IFERROR(IF(VLOOKUP(9999,'BLG4-WALL'!$A$14:$CZ$503,12,FALSE)="",#N/A,VLOOKUP(9999,'BLG4-WALL'!$A$14:$CZ$503,13,FALSE)),#N/A) -> 1.5 | AR8: =IFERROR(IF(VLOOKUP(9999,'MYG4-WALL'!$A$14:$CG$495,12,FALSE)="",#N/A,VLOOKUP(9999,'MYG4-WALL'!$A$14:$CG$495,13,FALSE)),#N/A) -> 61 | AT8: 4 | AU8: =IFERROR(IF(VLOOKUP(9999,'R-2013'!$P$6:$AC$500,3,FALSE)="",#N/A,VLOOKUP(9999,'R-2013'!$P$6:$AC$500,10,FALSE)),#N/A) -> 59 | AV8: =IFERROR(IF(VLOOKUP(9999,'2012 FIA-Read'!$L$14:$V$500,3,FALSE)="",#N/A,VLOOKUP(9999,'2012 FIA-Read'!$L$14:$V$500,11,FALSE)*100),#N/A) -> 55.98 | AW8: =IFERROR(IF(VLOOKUP(9999,'FIAG4-RAll'!$B$2:$AC$500,3,FALSE)="",#N/A,VLOOKUP(9999,'FIAG4-RAll'!$B$2:$AC$500,12,FALSE)*100),#N/A) -> 62 | AX8: =IFERROR(IF(VLOOKUP(9999,'M-2013'!$O$6:$AB$500,3,FALSE)="",#N/A,VLOOKUP(9999,'M-2013'!$O$6:$AB$500,10,FALSE)),#N/A) -> 64 | AY8: =IFERROR(IF(VLOOKUP(9999,'2012 FIA-Math'!$L$14:$V$500,3,FALSE)="",#N/A,VLOOKUP(9999,'2012 FIA-Math'!$L$14:$V$500,11,FALSE)*100),#N/A) -> 59.5 | AZ8: =IFERROR(IF(VLOOKUP(9999,'FIAG4-MAll'!$B$2:$AC$500,3,FALSE)="",#N/A,VLOOKUP(9999,'FIAG4-MAll'!$B$2:$AC$500,12,FALSE)*100),#N/A) -> 65 | BD8: Narrative | BE8: =IFERROR(IF(VLOOKUP(9999,'BLG4-WALL'!$A$14:$CZ$503,12,FALSE)="",#N/A,VLOOKUP(9999,'BLG4-WALL'!$A$14:$CZ$503,20,FALSE)*100),#N/A) -> 2.32 | BF8: =IFERROR(IF(VLOOKUP(9999,'MYG4-WALL'!$A$14:$CG$495,12,FALSE)="",#N/A,VLOOKUP(9999,'MYG4-WALL'!$A$14:$CG$495,20,FALSE)*100),#N/A) -> 3600
AF9: 5 | AG9: =IFERROR(IF(VLOOKUP(9999,'BLG5-RALL'!$A$14:$CZ$500,3,FALSE)="",#N/A,VLOOKUP(9999,'BLG5-RALL'!$A$14:$CZ$500,5,FALSE)*100),#N/A) -> 61 | AH9: =IFERROR(IF(VLOOKUP(9999,#REF!,3,FALSE)="",#N/A,VLOOKUP(9999,#REF!,5,FALSE)*100),#N/A) ->  | AI9: =IFERROR(IF(VLOOKUP(9999,#REF!,3,FALSE)="",#N/A,VLOOKUP(9999,#REF!,5,FALSE)*100),#N/A) ->  | AJ9: =IFERROR(IF(VLOOKUP(9999,'BLG5-MALL'!$A$14:$CZ$500,3,FALSE)="",#N/A,VLOOKUP(9999,'BLG5-MALL'!$A$14:$CZ$500,5,FALSE)*100),#N/A) -> 42 | AK9: =IFERROR(IF(VLOOKUP(9999,#REF!,3,FALSE)="",#N/A,VLOOKUP(9999,#REF!,5,FALSE)*100),#N/A) ->  | AL9: =IFERROR(IF(VLOOKUP(9999,#REF!,3,FALSE)="",#N/A,VLOOKUP(9999,#REF!,5,FALSE)*100),#N/A) ->  | AM9: =IFERROR(IF(VLOOKUP(9999,'BLG5-SALL'!$A$14:$CZ$500,3,FALSE)="",#N/A,VLOOKUP(9999,'BLG5-SALL'!$A$14:$CZ$500,5,FALSE)*100),#N/A) -> 46 | AN9: =IFERROR(IF(VLOOKUP(9999,#REF!,3,FALSE)="",#N/A,VLOOKUP(9999,#REF!,5,FALSE)*100),#N/A) ->  | AO9: =IFERROR(IF(VLOOKUP(9999,#REF!,3,FALSE)="",#N/A,VLOOKUP(9999,#REF!,5,FALSE)*100),#N/A) ->  | AT9: 5 | AU9: =IFERROR(IF(VLOOKUP(9999,'R-2013'!$AE$6:$AR$500,3,FALSE)="",#N/A,VLOOKUP(9999,'R-2013'!$AE$6:$AR$500,10,FALSE)),#N/A) -> 59 | AV9: =IFERROR(IF(VLOOKUP(9999,'2012 FIA-Read'!$W$14:$AG$500,3,FALSE)="",#N/A,VLOOKUP(9999,'2012 FIA-Read'!$W$14:$AG$500,11,FALSE)*100),#N/A) -> 56.4 | AW9: =IFERROR(IF(VLOOKUP(9999,'FIAG5-RAll'!$B$2:$AC$500,3,FALSE)="",#N/A,VLOOKUP(9999,'FIAG5-RAll'!$B$2:$AC$500,12,FALSE)*100),#N/A) -> 57 | AX9: =IFERROR(IF(VLOOKUP(9999,'M-2013'!$AC$6:$AP$500,3,FALSE)="",#N/A,VLOOKUP(9999,'M-2013'!$AC$6:$AP$500,10,FALSE)),#N/A) -> 56 | AY9: =IFERROR(IF(VLOOKUP(9999,'2012 FIA-Math'!$W$14:$AG$500,3,FALSE)="",#N/A,VLOOKUP(9999,'2012 FIA-Math'!$W$14:$AG$500,11,FALSE)*100),#N/A) -> 57 | AZ9: =IFERROR(IF(VLOOKUP(9999,'FIAG5-MAll'!$B$2:$AC$500,3,FALSE)="",#N/A,VLOOKUP(9999,'FIAG5-MAll'!$B$2:$AC$500,12,FALSE)*100),#N/A) -> 55 | BA9: =IFERROR(IF(VLOOKUP(9999,'S-2013'!$A$6:$N$272,3,FALSE)="",#N/A,VLOOKUP(9999,'S-2013'!$A$6:$N$272,10,FALSE)),#N/A) -> 51 | BB9: =IFERROR(IF(VLOOKUP(9999,'2012 FIA-Sci'!$A$14:$P$500,3,FALSE)="",#N/A,VLOOKUP(9999,'2012 FIA-Sci'!$A$14:$K$500,11,FALSE)*100),#N/A) -> 48.76 | BC9: =IFERROR(IF(VLOOKUP(9999,'FIAG5-SALL'!$B$2:$AC$500,3,FALSE)="",#N/A,VLOOKUP(9999,'FIAG5-SALL'!$B$2:$AC$500,12,FALSE)*100),#N/A) -> 51
AT10: 6 | AU10: =IFERROR(IF(VLOOKUP(9999,'R-2013'!$AT$6:$BH$500,3,FALSE)="",#N/A,VLOOKUP(9999,'R-2013'!$AT$6:$BH$500,10,FALSE)),#N/A) -> 57 | AV10: =IFERROR(IF(VLOOKUP(9999,'2012 FIA-Read'!$AH$14:$AR$500,3,FALSE)="",#N/A,VLOOKUP(9999,'2012 FIA-Read'!$AH$14:$AR$500,11,FALSE)*100),#N/A) -> 51.84 | AW10: =IFERROR(IF(VLOOKUP(9999,'FIAG6-RAll'!$B$2:$AC$500,3,FALSE)="",#N/A,VLOOKUP(9999,'FIAG6-RAll'!$B$2:$AC$500,12,FALSE)*100),#N/A) -> 60 | AX10: =IFERROR(IF(VLOOKUP(9999,'M-2013'!$AQ$6:$BD$500,3,FALSE)="",#N/A,VLOOKUP(9999,'M-2013'!$AQ$6:$BD$500,10,FALSE)),#N/A) -> 51 | AY10: =IFERROR(IF(VLOOKUP(9999,'2012 FIA-Math'!$AH$14:$AR$500,3,FALSE)="",#N/A,VLOOKUP(9999,'2012 FIA-Math'!$AH$14:$AR$500,11,FALSE)*100),#N/A) -> 48.23 | AZ10: =IFERROR(IF(VLOOKUP(9999,'FIAG6-MAll'!$B$2:$AC$500,3,FALSE)="",#N/A,VLOOKUP(9999,'FIAG6-MAll'!$B$2:$AC$500,12,FALSE)*100),#N/A) -> 48 | BD10: Grade | BE10: 2013 FCAT 2.0 | BF10: 2012 Fall IA | BG10: 2013 Fall IA
AF11: School | AG11: =A4 -> 9999-District | AT11: 7 | AU11: =IFERROR(IF(VLOOKUP(9999,'R-2013'!$BI$6:$BW$500,3,FALSE)="",#N/A,VLOOKUP(9999,'R-2013'!$BI$6:$BW$500,10,FALSE)),#N/A) -> 57 | AV11: =IFERROR(IF(VLOOKUP(9999,'2012 FIA-Read'!$AS$14:$BC$500,3,FALSE)="",#N/A,VLOOKUP(9999,'2012 FIA-Read'!$AS$14:$BC$500,11,FALSE)*100),#N/A) -> 49.22 | AW11: =IFERROR(IF(VLOOKUP(9999,'FIAG7-RAll'!$B$2:$AC$500,3,FALSE)="",#N/A,VLOOKUP(9999,'FIAG7-RAll'!$B$2:$AC$500,12,FALSE)*100),#N/A) -> 59 | AX11: =IFERROR(IF(VLOOKUP(9999,'M-2013'!$BE$6:$BS$500,3,FALSE)="",#N/A,VLOOKUP(9999,'M-2013'!$BE$6:$BS$500,10,FALSE)),#N/A) -> 51 | AY11: =IFERROR(IF(VLOOKUP(9999,'2012 FIA-Math'!$AS$14:$BC$500,3,FALSE)="",#N/A,VLOOKUP(9999,'2012 FIA-Math'!$AS$14:$BC$500,11,FALSE)*100),#N/A) -> 47.05 | AZ11: =IFERROR(IF(VLOOKUP(9999,'FIAG7-MAll'!$B$2:$AC$500,3,FALSE)="",#N/A,VLOOKUP(9999,'FIAG7-MAll'!$B$2:$AC$500,12,FALSE)*100),#N/A) -> 42 | BD11: 5 | BE11: =IFERROR(IF(VLOOKUP(VALUE(9999),'S-2013'!$A$6:$N$272,3,FALSE)="",#N/A,VLOOKUP(VALUE(9999),'S-2013'!$A$6:$N$272,10,FALSE)),#N/A) -> 51 | BF11: =IFERROR(IF(VLOOKUP(VALUE(9999),'2012 FIA-Sci'!$A$14:$K$500,3,FALSE)="",#N/A,VLOOKUP(VALUE(9999),'2012 FIA-Sci'!$A$14:$K$500,11,FALSE)*100),#N/A) -> 48.76 | BG11: =IFERROR(IF(VLOOKUP(9999,'FIAG5-SALL'!$B$2:$AC$500,3,FALSE)="",#N/A,VLOOKUP(9999,'FIAG5-SALL'!$B$2:$AC$500,12,FALSE)*100),#N/A) -> 51
AG12: Average % Correct | AP12: Average Score | AT12: 8 | AU12: =IFERROR(IF(VLOOKUP(9999,'R-2013'!$BX$6:$CL$500,3,FALSE)="",#N/A,VLOOKUP(9999,'R-2013'!$BX$6:$CL$500,10,FALSE)),#N/A) -> 56 | AV12: =IFERROR(IF(VLOOKUP(9999,'2012 FIA-Read'!$BD$14:$BN$500,3,FALSE)="",#N/A,VLOOKUP(9999,'2012 FIA-Read'!$BD$14:$BN$500,11,FALSE)*100),#N/A) -> 49.79 | AW12: =IFERROR(IF(VLOOKUP(9999,'FIAG8-RAll'!$B$2:$AC$500,3,FALSE)="",#N/A,VLOOKUP(9999,'FIAG8-RAll'!$B$2:$AC$500,12,FALSE)*100),#N/A) -> 54 | AX12: =IFERROR(IF(VLOOKUP(9999,'M-2013'!$BT$6:$CG$500,3,FALSE)="",#N/A,VLOOKUP(9999,'M-2013'!$BT$6:$CG$500,10,FALSE)),#N/A) -> 35 | AY12: =IFERROR(IF(VLOOKUP(9999,'2012 FIA-Math'!$BD$14:$BN$500,3,FALSE)="",#N/A,VLOOKUP(9999,'2012 FIA-Math'!$BD$14:$BN$500,11,FALSE)*100),#N/A) -> 39.49 | AZ12: =IFERROR(IF(VLOOKUP(9999,'FIAG8-MAll'!$B$2:$AC$500,3,FALSE)="",#N/A,VLOOKUP(9999,'FIAG8-MAll'!$B$2:$AC$500,12,FALSE)*100),#N/A) -> 21 | BA12: =IFERROR(IF(VLOOKUP(9999,'S-2013'!$P$6:$AC$272,3,FALSE)="",#N/A,VLOOKUP(9999,'S-2013'!$P$6:$AC$272,10,FALSE)),#N/A) -> 42 | BB12: =IFERROR(IF(VLOOKUP(9999,'2012 FIA-Sci'!$L$14:$V$500,3,FALSE)="",#N/A,VLOOKUP(9999,'2012 FIA-Sci'!$L$14:$V$500,11,FALSE)*100),#N/A) -> 37.57 | BC12: =IFERROR(IF(VLOOKUP(9999,'FIAG8-SALL'!$B$2:$AC$496,3,FALSE)="",#N/A,VLOOKUP(9999,'FIAG8-SALL'!$B$2:$AC$496,12,FALSE)*100),#N/A) -> 40 | BD12: 8 | BE12: =IFERROR(IF(VLOOKUP(9999,'S-2013'!$P$6:$AC$272,3,FALSE)="",#N/A,VLOOKUP(9999,'S-2013'!$P$6:$AC$272,10,FALSE)),#N/A) -> 42 | BF12: =IFERROR(IF(VLOOKUP(9999,'2012 FIA-Sci'!$L$14:$V$500,3,FALSE)="",#N/A,VLOOKUP(9999,'2012 FIA-Sci'!$L$14:$V$500,11,FALSE)*100),#N/A) -> 37.57 | BG12: =IFERROR(IF(VLOOKUP(9999,'FIAG8-SALL'!$B$2:$AC$496,3,FALSE)="",#N/A,VLOOKUP(9999,'FIAG8-SALL'!$B$2:$AC$496,12,FALSE)*100),#N/A) -> 40
AG13: Reading | AJ13: Math | AM13: Science | AP13: Writing | AT13: Alg | AX13: =IFERROR(VLOOKUP(9999,'2013 ALG'!$A$6:$I$500,5,FALSE),#N/A) -> 66 | AY13: =IFERROR(IF(VLOOKUP(9999,'2012 FIA-EOC'!$A$14:$K$500,3,FALSE)="",#N/A,VLOOKUP(9999,'2012 FIA-EOC'!$A$14:$K$500,11,FALSE)*100),#N/A) -> 49.93294891 | AZ13: =IFERROR(IF(VLOOKUP(9999,'FIA-ALG'!$B$2:$AC$500,3,FALSE)="",#N/A,VLOOKUP(9999,'FIA-ALG'!$B$2:$AC$500,12,FALSE)*100),#N/A) -> 68
AF14: Grade | AG14: Baseline | AH14: Fall IA | AI14: Winter IA | AJ14: Baseline | AK14: Fall IA | AL14: Winter IA | AM14: BL | AN14: Fall | AO14: Winter | AP14: Prompt | AQ14: Pre-Test | AR14: Midyear | AT14: Geo | AX14: =IFERROR(VLOOKUP(9999,'2013 GEO'!$A$6:$I$500,5,FALSE),#N/A) -> 60 | AY14: =IFERROR(IF(VLOOKUP(9999,'2012 FIA-EOC'!$L$14:$V$500,3,FALSE)="",#N/A,VLOOKUP(9999,'2012 FIA-EOC'!$L$14:$V$500,11,FALSE)*100),#N/A) -> 44.94303106 | AZ14: =IFERROR(IF(VLOOKUP(9999,'FIA-GEO'!$B$2:$AC$500,3,FALSE)="",#N/A,VLOOKUP(9999,'FIA-GEO'!$B$2:$AC$500,12,FALSE)*100),#N/A) -> 60
AF15: 3 | AG15: =IFERROR(IF(VLOOKUP($A$3,'BLG3-RALL'!$A$14:$CZ$500,3,FALSE)="",#N/A,VLOOKUP($A$3,'BLG3-RALL'!$A$14:$CZ$500,5,FALSE)*100),#N/A) -> 55 | AH15: =IFERROR(IF(VLOOKUP($A$3,#REF!,3,FALSE)="",#N/A,VLOOKUP($A$3,#REF!,5,FALSE)*100),#N/A) ->  | AI15: =IFERROR(IF(VLOOKUP($A$3,#REF!,3,FALSE)="",#N/A,VLOOKUP($A$3,#REF!,5,FALSE)*100),#N/A) ->  | AJ15: =IFERROR(IF(VLOOKUP($A$3,'BLG3-MALL'!$A$14:$CZ$500,3,FALSE)="",#N/A,VLOOKUP($A$3,'BLG3-MALL'!$A$14:$CZ$500,5,FALSE)*100),#N/A) -> 39 | AK15: =IFERROR(IF(VLOOKUP($A$3,#REF!,3,FALSE)="",#N/A,VLOOKUP($A$3,#REF!,5,FALSE)*100),#N/A) ->  | AL15: =IFERROR(IF(VLOOKUP($A$3,#REF!,3,FALSE)="",#N/A,VLOOKUP($A$3,#REF!,5,FALSE)*100),#N/A) ->  | AP15: Expository | AQ15: =IFERROR(IF(VLOOKUP($A$3,'BLG4-WALL'!$A$14:$CZ$503,3,FALSE)="",#N/A,VLOOKUP($A$3,'BLG4-WALL'!$A$14:$CZ$503,4,FALSE)),#N/A) -> 1.399999976 | AR15: =IFERROR(IF(VLOOKUP($A$3,'MYG4-WALL'!$A$14:$CG$495,3,FALSE)="",#N/A,VLOOKUP($A$3,'MYG4-WALL'!$A$14:$CG$495,4,FALSE)),#N/A) -> E
AF16: 4 | AG16: =IFERROR(IF(VLOOKUP($A$3,'BLG4-RALL'!$A$14:$CZ$500,3,FALSE)="",#N/A,VLOOKUP($A$3,'BLG4-RALL'!$A$14:$CZ$500,5,FALSE)*100),#N/A) -> 60 | AH16: =IFERROR(IF(VLOOKUP($A$3,#REF!,3,FALSE)="",#N/A,VLOOKUP($A$3,#REF!,5,FALSE)*100),#N/A) ->  | AI16: =IFERROR(IF(VLOOKUP($A$3,#REF!,3,FALSE)="",#N/A,VLOOKUP($A$3,#REF!,5,FALSE)*100),#N/A) ->  | AJ16: =IFERROR(IF(VLOOKUP($A$3,'BLG4-MALL'!$A$14:$CZ$500,3,FALSE)="",#N/A,VLOOKUP($A$3,'BLG4-MALL'!$A$14:$CZ$500,5,FALSE)*100),#N/A) -> 41 | AK16: =IFERROR(IF(VLOOKUP($A$3,#REF!,3,FALSE)="",#N/A,VLOOKUP($A$3,#REF!,5,FALSE)*100),#N/A) ->  | AL16: =IFERROR(IF(VLOOKUP($A$3,#REF!,3,FALSE)="",#N/A,VLOOKUP($A$3,#REF!,5,FALSE)*100),#N/A) ->  | AP16: Narrative | AQ16: =IFERROR(IF(VLOOKUP($A$3,'BLG4-WALL'!$A$14:$CZ$503,12,FALSE)="",#N/A,VLOOKUP($A$3,'BLG4-WALL'!$A$14:$CZ$503,13,FALSE)),#N/A) -> 1.5 | AR16: =IFERROR(IF(VLOOKUP($A$3,'MYG4-WALL'!$A$14:$CG$495,12,FALSE)="",#N/A,VLOOKUP($A$3,'MYG4-WALL'!$A$14:$CG$495,13,FALSE)),#N/A) -> 61
AF17: 5 | AG17: =IFERROR(IF(VLOOKUP($A$3,'BLG5-RALL'!$A$14:$CZ$500,3,FALSE)="",#N/A,VLOOKUP($A$3,'BLG5-RALL'!$A$14:$CZ$500,5,FALSE)*100),#N/A) -> 61 | AH17: =IFERROR(IF(VLOOKUP($A$3,#REF!,3,FALSE)="",#N/A,VLOOKUP($A$3,#REF!,5,FALSE)*100),#N/A) ->  | AI17: =IFERROR(IF(VLOOKUP($A$3,#REF!,3,FALSE)="",#N/A,VLOOKUP($A$3,#REF!,5,FALSE)*100),#N/A) ->  | AJ17: =IFERROR(IF(VLOOKUP($A$3,'BLG5-MALL'!$A$14:$CZ$500,3,FALSE)="",#N/A,VLOOKUP($A$3,'BLG5-MALL'!$A$14:$CZ$500,5,FALSE)*100),#N/A) -> 42 | AK17: =IFERROR(IF(VLOOKUP($A$3,#REF!,3,FALSE)="",#N/A,VLOOKUP($A$3,#REF!,5,FALSE)*100),#N/A) ->  | AL17: =IFERROR(IF(VLOOKUP($A$3,#REF!,3,FALSE)="",#N/A,VLOOKUP($A$3,#REF!,5,FALSE)*100),#N/A) ->  | AM17: =IFERROR(IF(VLOOKUP($A$3,'BLG5-SALL'!$A$14:$CZ$500,3,FALSE)="",#N/A,VLOOKUP($A$3,'BLG5-SALL'!$A$14:$CZ$500,5,FALSE)*100),#N/A) -> 46 | AN17: =IFERROR(IF(VLOOKUP($A$3,#REF!,3,FALSE)="",#N/A,VLOOKUP($A$3,#REF!,5,FALSE)*100),#N/A) ->  | AO17: =IFERROR(IF(VLOOKUP($A$3,#REF!,3,FALSE)="",#N/A,VLOOKUP($A$3,#REF!,5,FALSE)*100),#N/A) ->  | AT17: School | AU17: =A4 -> 9999-District
AU18: % Proficient | BD18: % of Students Scoring at 4.0 and higher
AU19: Reading | AX19: Math | BA19: Science | BD19: Writing
AT20: Grade | AU20: 2013 FCAT 2.0 | AV20: 2012 Fall IA | AW20: 2013 Fall IA | AX20: 2013 FCAT 2.0 | AY20: 2012 Fall IA | AZ20: 2013 Fall IA | BA20: 2013 FCAT 2.0 | BB20: 2012 Fall IA | BC20: 2013 Fall IA | BD20: Prompt | BE20: Baseline | BF20: Midyear
AT21: 3 | AU21: =IFERROR(IF(VLOOKUP(VALUE($A$3),'R-2013'!$A$6:$N$500,3,FALSE)="",#N/A,VLOOKUP(VALUE($A$3),'R-2013'!$A$6:$N$500,10,FALSE)),#N/A) -> 53 | AV21: =IFERROR(IF(VLOOKUP(VALUE($A$3),'2012 FIA-Read'!$A$14:$K$500,3,FALSE)="",#N/A,VLOOKUP(VALUE($A$3),'2012 FIA-Read'!$A$14:$K$500,11,FALSE)*100),#N/A) -> 49.7 | AW21: =IFERROR(IF(VLOOKUP($A$3,'FIAG3-RAll'!$B$2:$AC$500,3,FALSE)="",#N/A,VLOOKUP($A$3,'FIAG3-RAll'!$B$2:$AC$500,12,FALSE)*100),#N/A) -> 51 | AX21: =IFERROR(IF(VLOOKUP(VALUE($A$3),'M-2013'!$A$6:$N$500,3,FALSE)="",#N/A,VLOOKUP(VALUE($A$3),'M-2013'!$A$6:$N$500,10,FALSE)),#N/A) -> 62 | AY21: =IFERROR(IF(VLOOKUP(VALUE($A$3),'2012 FIA-Math'!$A$14:$K$500,3,FALSE)="",#N/A,VLOOKUP(VALUE($A$3),'2012 FIA-Math'!$A$14:$K$500,11,FALSE)*100),#N/A) -> 58.74 | AZ21: =IFERROR(IF(VLOOKUP($A$3,'FIAG3-MAll'!$B$2:$AC$500,3,FALSE)="",#N/A,VLOOKUP($A$3,'FIAG3-MAll'!$B$2:$AC$500,12,FALSE)*100),#N/A) -> 61 | BD21: Expository | BE21: =IFERROR(IF(VLOOKUP(VALUE($A$3),'BLG4-WALL'!$A$14:$CZ$503,3,FALSE)="",#N/A,VLOOKUP(VALUE($A$3),'BLG4-WALL'!$A$14:$CZ$503,11,FALSE)*100),#N/A) -> 1.13 | BF21: =IFERROR(IF(VLOOKUP(VALUE($A$3),'MYG4-WALL'!$A$14:$CG$495,3,FALSE)="",#N/A,VLOOKUP(VALUE($A$3),'MYG4-WALL'!$A$14:$CG$495,11,FALSE)*100),#N/A) -> 3800
AT22: 4 | AU22: =IFERROR(IF(VLOOKUP(VALUE($A$3),'R-2013'!$P$6:$AC$500,3,FALSE)="",#N/A,VLOOKUP(VALUE($A$3),'R-2013'!$P$6:$AC$500,10,FALSE)),#N/A) -> 59 | AV22: =IFERROR(IF(VLOOKUP(VALUE($A$3),'2012 FIA-Read'!$L$14:$V$500,3,FALSE)="",#N/A,VLOOKUP(VALUE($A$3),'2012 FIA-Read'!$L$14:$V$500,11,FALSE)*100),#N/A) -> 55.98 | AW22: =IFERROR(IF(VLOOKUP($A$3,'FIAG4-RAll'!$B$2:$AC$500,3,FALSE)="",#N/A,VLOOKUP($A$3,'FIAG4-RAll'!$B$2:$AC$500,12,FALSE)*100),#N/A) -> 62 | AX22: =IFERROR(IF(VLOOKUP(VALUE($A$3),'M-2013'!$O$6:$AB$500,3,FALSE)="",#N/A,VLOOKUP(VALUE($A$3),'M-2013'!$O$6:$AB$500,10,FALSE)),#N/A) -> 64 | AY22: =IFERROR(IF(VLOOKUP(VALUE($A$3),'2012 FIA-Math'!$L$14:$V$500,3,FALSE)="",#N/A,VLOOKUP(VALUE($A$3),'2012 FIA-Math'!$L$14:$V$500,11,FALSE)*100),#N/A) -> 59.5 | AZ22: =IFERROR(IF(VLOOKUP($A$3,'FIAG4-MAll'!$B$2:$AC$500,3,FALSE)="",#N/A,VLOOKUP($A$3,'FIAG4-MAll'!$B$2:$AC$500,12,FALSE)*100),#N/A) -> 65 | BD22: Narrative | BE22: =IFERROR(IF(VLOOKUP(VALUE($A$3),'BLG4-WALL'!$A$14:$CZ$503,12,FALSE)="",#N/A,VLOOKUP(VALUE($A$3),'BLG4-WALL'!$A$14:$CZ$503,20,FALSE)*100),#N/A) -> 2.32 | BF22: =IFERROR(IF(VLOOKUP(VALUE($A$3),'MYG4-WALL'!$A$14:$CG$495,12,FALSE)="",#N/A,VLOOKUP(VALUE($A$3),'MYG4-WALL'!$A$14:$CG$495,20,FALSE)*100),#N/A) -> 3600
AT23: 5 | AU23: =IFERROR(IF(VLOOKUP(VALUE($A$3),'R-2013'!$AE$6:$AR$500,3,FALSE)="",#N/A,VLOOKUP(VALUE($A$3),'R-2013'!$AE$6:$AR$500,10,FALSE)),#N/A) -> 59 | AV23: =IFERROR(IF(VLOOKUP(VALUE($A$3),'2012 FIA-Read'!$W$14:$AG$500,3,FALSE)="",#N/A,VLOOKUP(VALUE($A$3),'2012 FIA-Read'!$W$14:$AG$500,11,FALSE)*100),#N/A) -> 56.4 | AW23: =IFERROR(IF(VLOOKUP($A$3,'FIAG5-RAll'!$B$2:$AC$500,3,FALSE)="",#N/A,VLOOKUP($A$3,'FIAG5-RAll'!$B$2:$AC$500,12,FALSE)*100),#N/A) -> 57 | AX23: =IFERROR(IF(VLOOKUP(VALUE($A$3),'M-2013'!$AC$6:$AP$500,3,FALSE)="",#N/A,VLOOKUP(VALUE($A$3),'M-2013'!$AC$6:$AP$500,10,FALSE)),#N/A) -> 56 | AY23: =IFERROR(IF(VLOOKUP(VALUE($A$3),'2012 FIA-Math'!$W$14:$AG$500,3,FALSE)="",#N/A,VLOOKUP(VALUE($A$3),'2012 FIA-Math'!$W$14:$AG$500,11,FALSE)*100),#N/A) -> 57 | AZ23: =IFERROR(IF(VLOOKUP($A$3,'FIAG5-MAll'!$B$2:$AC$500,3,FALSE)="",#N/A,VLOOKUP($A$3,'FIAG5-MAll'!$B$2:$AC$500,12,FALSE)*100),#N/A) -> 55 | BA23: =IFERROR(IF(VLOOKUP(VALUE($A$3),'S-2013'!$A$6:$N$272,3,FALSE)="",#N/A,VLOOKUP(VALUE($A$3),'S-2013'!$A$6:$N$272,10,FALSE)),#N/A) -> 51 | BB23: =IFERROR(IF(VLOOKUP(VALUE($A$3),'2012 FIA-Sci'!$A$14:$K$500,3,FALSE)="",#N/A,VLOOKUP(VALUE($A$3),'2012 FIA-Sci'!$A$14:$K$500,11,FALSE)*100),#N/A) -> 48.76 | BC23: =IFERROR(IF(VLOOKUP($A$3,'FIAG5-SALL'!$B$2:$AC$500,3,FALSE)="",#N/A,VLOOKUP($A$3,'FIAG5-SALL'!$B$2:$AC$500,12,FALSE)*100),#N/A) -> 51
AT24: 6 | AU24: =IFERROR(IF(VLOOKUP($A$3,'R-2013'!$AT$6:$BH$500,3,FALSE)="",#N/A,VLOOKUP($A$3,'R-2013'!$AT$6:$BH$500,10,FALSE)),#N/A) -> 57 | AV24: =IFERROR(IF(VLOOKUP($A$3,'2012 FIA-Read'!$AH$14:$AR$500,3,FALSE)="",#N/A,VLOOKUP($A$3,'2012 FIA-Read'!$AH$14:$AR$500,11,FALSE)*100),#N/A) -> 51.84 | AW24: =IFERROR(IF(VLOOKUP($A$3,'FIAG6-RAll'!$B$2:$AC$500,3,FALSE)="",#N/A,VLOOKUP($A$3,'FIAG6-RAll'!$B$2:$AC$500,12,FALSE)*100),#N/A) -> 60 | AX24: =IFERROR(IF(VLOOKUP($A$3,'M-2013'!$AQ$6:$BD$500,3,FALSE)="",#N/A,VLOOKUP($A$3,'M-2013'!$AQ$6:$BD$500,10,FALSE)),#N/A) -> 51 | AY24: =IFERROR(IF(VLOOKUP($A$3,'2012 FIA-Math'!$AH$14:$AR$500,3,FALSE)="",#N/A,VLOOKUP($A$3,'2012 FIA-Math'!$AH$14:$AR$500,11,FALSE)*100),#N/A) -> 48.23 | AZ24: =IFERROR(IF(VLOOKUP($A$3,'FIAG6-MAll'!$B$2:$AC$500,3,FALSE)="",#N/A,VLOOKUP($A$3,'FIAG6-MAll'!$B$2:$AC$500,12,FALSE)*100),#N/A) -> 48 | BD24: Grade | BE24: 2013 FCAT 2.0 | BF24: 2012 Fall IA | BG24: 2013 Fall IA
AT25: 7 | AU25: =IFERROR(IF(VLOOKUP($A$3,'R-2013'!$BI$6:$BW$500,3,FALSE)="",#N/A,VLOOKUP($A$3,'R-2013'!$BI$6:$BW$500,10,FALSE)),#N/A) -> 57 | AV25: =IFERROR(IF(VLOOKUP($A$3,'2012 FIA-Read'!$AS$14:$BC$500,3,FALSE)="",#N/A,VLOOKUP($A$3,'2012 FIA-Read'!$AS$14:$BC$500,11,FALSE)*100),#N/A) -> 49.22 | AW25: =IFERROR(IF(VLOOKUP($A$3,'FIAG7-RAll'!$B$2:$AC$500,3,FALSE)="",#N/A,VLOOKUP($A$3,'FIAG7-RAll'!$B$2:$AC$500,12,FALSE)*100),#N/A) -> 59 | AX25: =IFERROR(IF(VLOOKUP($A$3,'M-2013'!$BE$6:$BS$500,3,FALSE)="",#N/A,VLOOKUP($A$3,'M-2013'!$BE$6:$BS$500,10,FALSE)),#N/A) -> 51 | AY25: =IFERROR(IF(VLOOKUP($A$3,'2012 FIA-Math'!$AS$14:$BC$500,3,FALSE)="",#N/A,VLOOKUP($A$3,'2012 FIA-Math'!$AS$14:$BC$500,11,FALSE)*100),#N/A) -> 47.05 | AZ25: =IFERROR(IF(VLOOKUP($A$3,'FIAG7-MAll'!$B$2:$AC$500,3,FALSE)="",#N/A,VLOOKUP($A$3,'FIAG7-MAll'!$B$2:$AC$500,12,FALSE)*100),#N/A) -> 42 | BD25: 5 | BE25: =IFERROR(IF(VLOOKUP(VALUE($A$3),'S-2013'!$A$6:$N$272,3,FALSE)="",#N/A,VLOOKUP(VALUE($A$3),'S-2013'!$A$6:$N$272,10,FALSE)),#N/A) -> 51 | BF25: =IFERROR(IF(VLOOKUP(VALUE($A$3),'2012 FIA-Sci'!$A$14:$K$500,3,FALSE)="",#N/A,VLOOKUP(VALUE($A$3),'2012 FIA-Sci'!$A$14:$K$500,11,FALSE)*100),#N/A) -> 48.76 | BG25: =IFERROR(IF(VLOOKUP($A$3,'FIAG5-SALL'!$B$2:$AC$500,3,FALSE)="",#N/A,VLOOKUP($A$3,'FIAG5-SALL'!$B$2:$AC$500,12,FALSE)*100),#N/A) -> 51
AT26: 8 | AU26: =IFERROR(IF(VLOOKUP($A$3,'R-2013'!$BX$6:$CL$500,3,FALSE)="",#N/A,VLOOKUP($A$3,'R-2013'!$BX$6:$CL$500,10,FALSE)),#N/A) -> 56 | AV26: =IFERROR(IF(VLOOKUP($A$3,'2012 FIA-Read'!$BD$14:$BN$500,3,FALSE)="",#N/A,VLOOKUP($A$3,'2012 FIA-Read'!$BD$14:$BN$500,11,FALSE)*100),#N/A) -> 49.79 | AW26: =IFERROR(IF(VLOOKUP($A$3,'FIAG8-RAll'!$B$2:$AC$500,3,FALSE)="",#N/A,VLOOKUP($A$3,'FIAG8-RAll'!$B$2:$AC$500,12,FALSE)*100),#N/A) -> 54 | AX26: =IFERROR(IF(VLOOKUP($A$3,'M-2013'!$BT$6:$CG$500,3,FALSE)="",#N/A,VLOOKUP($A$3,'M-2013'!$BT$6:$CG$500,10,FALSE)),#N/A) -> 35 | AY26: =IFERROR(IF(OR(VLOOKUP($A$3,'2012 FIA-Math'!$BD$14:$BN$500,3,FALSE)="",VLOOKUP($A$3,'2012 FIA-Math'!$BD$14:$BN$500,3,FALSE)<10),#N/A,VLOOKUP($A$3,'2012 FIA-Math'!$BD$14:$BN$500,11,FALSE)*100),#N/A) -> 39.49 | AZ26: =IFERROR(IF(OR(VLOOKUP($A$3,'FIAG8-MAll'!$B$2:$AC$500,3,FALSE)="",VLOOKUP($A$3,'FIAG8-MAll'!$B$2:$AC$500,3,FALSE)<10),#N/A,VLOOKUP($A$3,'FIAG8-MAll'!$B$2:$AC$500,12,FALSE)*100),#N/A) -> 21 | BA26: =IFERROR(IF(VLOOKUP($A$3,'S-2013'!$P$6:$AC$272,3,FALSE)="",#N/A,VLOOKUP($A$3,'S-2013'!$P$6:$AC$272,10,FALSE)),#N/A) -> 42 | BB26: =IFERROR(IF(OR(VLOOKUP($A$3,'2012 FIA-Sci'!$L$14:$V$500,3,FALSE)="",VLOOKUP($A$3,'2012 FIA-Sci'!$L$14:$V$500,3,FALSE)<10),#N/A,VLOOKUP($A$3,'2012 FIA-Sci'!$L$14:$V$500,11,FALSE)*100),#N/A) -> 37.57 | BC26: =IFERROR(IF(OR(VLOOKUP($A$3,'FIAG8-SALL'!$B$2:$AC$496,3,FALSE)="",VLOOKUP($A$3,'FIAG8-SALL'!$B$2:$AC$496,3,FALSE)<10),#N/A,VLOOKUP($A$3,'FIAG8-SALL'!$B$2:$AC$496,12,FALSE)*100),#N/A) -> 40 | BD26: 8 | BE26: =IFERROR(IF(VLOOKUP($A$3,'S-2013'!$P$6:$AC$272,3,FALSE)="",#N/A,VLOOKUP($A$3,'S-2013'!$P$6:$AC$272,10,FALSE)),#N/A) -> 42 | BF26: =IFERROR(IF(VLOOKUP($A$3,'2012 FIA-Sci'!$L$14:$V$500,3,FALSE)="",#N/A,VLOOKUP($A$3,'2012 FIA-Sci'!$L$14:$V$500,11,FALSE)*100),#N/A) -> 37.57 | BG26: =IFERROR(IF(VLOOKUP($A$3,'FIAG8-SALL'!$B$2:$AC$496,3,FALSE)="",#N/A,VLOOKUP($A$3,'FIAG8-SALL'!$B$2:$AC$496,12,FALSE)*100),#N/A) -> 40
AT27: Alg | AX27: =IFERROR(VLOOKUP($A$3,'2013 ALG'!$A$6:$I$500,5,FALSE),#N/A) -> 66 | AY27: =IFERROR(IF(OR(VLOOKUP($A$3,'2012 FIA-EOC'!$A$14:$K$500,3,FALSE)="",VLOOKUP($A$3,'2012 FIA-EOC'!$A$14:$K$500,3,FALSE)<10),#N/A,VLOOKUP($A$3,'2012 FIA-EOC'!$A$14:$K$500,11,FALSE)*100),#N/A) -> 49.93294891 | AZ27: =IFERROR(IF(OR(VLOOKUP($A$3,'FIA-ALG'!$B$2:$AC$500,3,FALSE)="",VLOOKUP($A$3,'FIA-ALG'!$B$2:$AC$500,3,FALSE)<10),#N/A,VLOOKUP($A$3,'FIA-ALG'!$B$2:$AC$500,12,FALSE)*100),#N/A) -> 68
AT28: Geo | AX28: =IFERROR(VLOOKUP($A$3,'2013 GEO'!$A$6:$I$500,5,FALSE),#N/A) -> 60 | AY28: =IFERROR(IF(OR(VLOOKUP($A$3,'2012 FIA-EOC'!$L$14:$V$500,3,FALSE)="",VLOOKUP($A$3,'2012 FIA-EOC'!$L$14:$V$500,3,FALSE)<10),#N/A,VLOOKUP($A$3,'2012 FIA-EOC'!$L$14:$V$500,11,FALSE)*100),#N/A) -> 44.94303106 | AZ28: =IFERROR(IF(OR(VLOOKUP($A$3,'FIA-GEO'!$B$2:$AC$500,3,FALSE)="",VLOOKUP($A$3,'FIA-GEO'!$B$2:$AC$500,3,FALSE)<10),#N/A,VLOOKUP($A$3,'FIA-GEO'!$B$2:$AC$500,12,FALSE)*100),#N/A) -> 60

Sheet G3-8 WIA Trend Report
A2: Click here to return to the school and sheet selection interface | AG2: District | AH2: % Proficient
A3: ='Select School'!B3 -> 9999 | AH3: District
A4: =TEXT(A3,"0000")&"-"&VLOOKUP(A3,SchList!$A$2:$B$502,2,FALSE) -> 9999-District | AH4: % Proficient | AQ4: % of Students Scoring at 4.0 and higher
A5: Winter IA Trend Report: 2013 FCAT 2.0, 2013 Winter Interim Assessment, and 2014 Winter Interim Assessment | AH5: Reading | AK5: Math | AQ5: Writing
AG6: Grade | AH6: 2013 FCAT 2.0 | AI6: 2013 WIA | AJ6: 2014 WIA | AK6: 2013 FCAT 2.0 | AL6: 2013 WIA | AM6: 2014 WIA | AQ6: Prompt | AR6: 2013 FCAT | AS6: 2013 Midyear | AT6: 2014 Midyear
AG7: 3 | AH7: =IFERROR(IF(VLOOKUP(9999,'R-2013'!$A$6:$N$500,3,FALSE)="",#N/A,VLOOKUP(9999,'R-2013'!$A$6:$N$500,10,FALSE)),#N/A) -> 53 | AI7: =IFERROR(IF(VLOOKUP(9999,'2013 WIA-Read'!$A$14:$K$500,3,FALSE)="",#N/A,VLOOKUP(9999,'2013 WIA-Read'!$A$14:$K$500,11,FALSE)*100),#N/A) -> 53.31 | AJ7: =IFERROR(IF(VLOOKUP(9999,'WIAG3-RALL'!$B$2:$AC$500,3,FALSE)="",#N/A,VLOOKUP(9999,'WIAG3-RALL'!$B$2:$AC$500,12,FALSE)*100),#N/A) -> 53 | AK7: =IFERROR(IF(VLOOKUP(9999,'M-2013'!$A$6:$N$500,3,FALSE)="",#N/A,VLOOKUP(9999,'M-2013'!$A$6:$N$500,10,FALSE)),#N/A) -> 62 | AL7: =IFERROR(IF(VLOOKUP(9999,'2013 WIA-Math'!$A$14:$K$500,3,FALSE)="",#N/A,VLOOKUP(9999,'2013 WIA-Math'!$A$14:$K$500,11,FALSE)*100),#N/A) -> 64.35 | AM7: =IFERROR(IF(VLOOKUP(9999,'WIAG3-MALL'!$B$2:$AC$500,3,FALSE)="",#N/A,VLOOKUP(9999,'WIAG3-MALL'!$B$2:$AC$500,12,FALSE)*100),#N/A) -> 60 | AQ7: G4-E | AS7: =IFERROR(IF(VLOOKUP(9999,'2013 MY-Writing'!$A$14:$T$503,3,FALSE)="",#N/A,VLOOKUP(9999,'2013 MY-Writing'!$A$14:$T$503,11,FALSE)*100),#N/A) -> 23.28435011 | AT7: =IFERROR(IF(VLOOKUP(9999,'MYG4-WALL'!$A$2:$W$495,5,FALSE)<10,#N/A,VLOOKUP(9999,'MYG4-WALL'!$A$2:$W$495,12,FALSE)),#N/A) -> 23
AG8: 4 | AH8: =IFERROR(IF(VLOOKUP(9999,'R-2013'!$P$6:$AC$500,3,FALSE)="",#N/A,VLOOKUP(9999,'R-2013'!$P$6:$AC$500,10,FALSE)),#N/A) -> 59 | AI8: =IFERROR(IF(VLOOKUP(9999,'2013 WIA-Read'!$L$14:$V$500,3,FALSE)="",#N/A,VLOOKUP(9999,'2013 WIA-Read'!$L$14:$V$500,11,FALSE)*100),#N/A) -> 61.57 | AJ8: =IFERROR(IF(VLOOKUP(9999,'WIAG4-RALL'!$B$2:$AC$500,3,FALSE)="",#N/A,VLOOKUP(9999,'WIAG4-RALL'!$B$2:$AC$500,12,FALSE)*100),#N/A) -> 60 | AK8: =IFERROR(IF(VLOOKUP(9999,'M-2013'!$O$6:$AB$500,3,FALSE)="",#N/A,VLOOKUP(9999,'M-2013'!$O$6:$AB$500,10,FALSE)),#N/A) -> 64 | AL8: =IFERROR(IF(VLOOKUP(9999,'2013 WIA-Math'!$L$14:$V$500,3,FALSE)="",#N/A,VLOOKUP(9999,'2013 WIA-Math'!$L$14:$V$500,11,FALSE)*100),#N/A) -> 61.57 | AM8: =IFERROR(IF(VLOOKUP(9999,'WIAG4-MALL'!$B$2:$AC$500,3,FALSE)="",#N/A,VLOOKUP(9999,'WIAG4-MALL'!$B$2:$AC$500,12,FALSE)*100),#N/A) -> 68 | AQ8: G4-N | AR8: =IFERROR(VLOOKUP(9999,'W13'!$A$7:$S$500,19,FALSE),#N/A) -> 37 | AS8: =IFERROR(IF(VLOOKUP(9999,'2013 MY-Writing'!$A$14:$T$503,3,FALSE)="",#N/A,VLOOKUP(9999,'2013 MY-Writing'!$A$14:$T$503,20,FALSE)*100),#N/A) -> 24.18300654 | AT8: =IFERROR(IF(VLOOKUP(9999,'MYG4-WALL'!$A$2:$W$495,15,FALSE)<10,#N/A,VLOOKUP(9999,'MYG4-WALL'!$A$2:$W$495,22,FALSE)),#N/A) -> 27
AG9: 5 | AH9: =IFERROR(IF(VLOOKUP(9999,'R-2013'!$AE$6:$AR$500,3,FALSE)="",#N/A,VLOOKUP(9999,'R-2013'!$AE$6:$AR$500,10,FALSE)),#N/A) -> 59 | AI9: =IFERROR(IF(VLOOKUP(9999,'2013 WIA-Read'!$W$14:$AG$500,3,FALSE)="",#N/A,VLOOKUP(9999,'2013 WIA-Read'!$W$14:$AG$500,11,FALSE)*100),#N/A) -> 57.39 | AJ9: =IFERROR(IF(VLOOKUP(9999,'WIAG5-RALL'!$B$2:$AC$500,3,FALSE)="",#N/A,VLOOKUP(9999,'WIAG5-RALL'!$B$2:$AC$500,12,FALSE)*100),#N/A) -> 59 | AK9: =IFERROR(IF(VLOOKUP(9999,'M-2013'!$AC$6:$AP$500,3,FALSE)="",#N/A,VLOOKUP(9999,'M-2013'!$AC$6:$AP$500,10,FALSE)),#N/A) -> 56 | AL9: =IFERROR(IF(VLOOKUP(9999,'2013 WIA-Math'!$W$14:$AG$500,3,FALSE)="",#N/A,VLOOKUP(9999,'2013 WIA-Math'!$W$14:$AG$500,11,FALSE)*100),#N/A) -> 50.2 | AM9: =IFERROR(IF(VLOOKUP(9999,'WIAG5-MALL'!$B$2:$AC$500,3,FALSE)="",#N/A,VLOOKUP(9999,'WIAG5-MALL'!$B$2:$AC$500,12,FALSE)*100),#N/A) -> 51 | AQ9: G8-E | AS9: =IFERROR(IF(VLOOKUP(9999,'2013 MY-Writing'!$U$14:$AN$503,3,FALSE)="",#N/A,VLOOKUP(9999,'2013 MY-Writing'!$U$14:$AN$503,11,FALSE)*100),#N/A) -> 35.94284113 | AT9: =IFERROR(IF(VLOOKUP(9999,'MYG8-WALL'!$A$2:$W$500,5,FALSE)<10,#N/A,VLOOKUP(9999,'MYG8-WALL'!$A$2:$W$500,12,FALSE)),#N/A) -> 41
AG10: 6 | AH10: =IFERROR(IF(VLOOKUP(9999,'R-2013'!$AT$6:$BH$500,3,FALSE)="",#N/A,VLOOKUP(9999,'R-2013'!$AT$6:$BH$500,10,FALSE)),#N/A) -> 57 | AI10: =IFERROR(IF(VLOOKUP(9999,'2013 WIA-Read'!$AH$14:$AR$500,3,FALSE)="",#N/A,VLOOKUP(9999,'2013 WIA-Read'!$AH$14:$AR$500,11,FALSE)*100),#N/A) -> 54.36 | AJ10: =IFERROR(IF(VLOOKUP(9999,'WIAG6-RALL'!$B$2:$AC$500,3,FALSE)="",#N/A,VLOOKUP(9999,'WIAG6-RALL'!$B$2:$AC$500,12,FALSE)*100),#N/A) -> 62 | AK10: =IFERROR(IF(VLOOKUP(9999,'M-2013'!$AQ$6:$BD$500,3,FALSE)="",#N/A,VLOOKUP(9999,'M-2013'!$AQ$6:$BD$500,10,FALSE)),#N/A) -> 51 | AL10: =IFERROR(IF(VLOOKUP(9999,'2013 WIA-Math'!$AH$14:$AR$500,3,FALSE)="",#N/A,VLOOKUP(9999,'2013 WIA-Math'!$AH$14:$AR$500,11,FALSE)*100),#N/A) -> 48.65 | AM10: =IFERROR(IF(VLOOKUP(9999,'WIAG6-MALL'!$B$2:$AC$500,3,FALSE)="",#N/A,VLOOKUP(9999,'WIAG6-MALL'!$B$2:$AC$500,12,FALSE)*100),#N/A) -> 47 | AQ10: G8-P | AR10: =IFERROR(VLOOKUP(9999,'W13'!$U$7:$AM$500,19,FALSE),#N/A) -> 29 | AS10: =IFERROR(IF(VLOOKUP(9999,'2013 MY-Writing'!$U$14:$AN$503,3,FALSE)="",#N/A,VLOOKUP(9999,'2013 MY-Writing'!$U$14:$AN$503,20,FALSE)*100),#N/A) -> 30.90367227 | AT10: =IFERROR(IF(VLOOKUP(9999,'MYG8-WALL'!$A$2:$W$500,15,FALSE)<10,#N/A,VLOOKUP(9999,'MYG8-WALL'!$A$2:$W$500,22,FALSE)),#N/A) -> 40
AG11: 7 | AH11: =IFERROR(IF(VLOOKUP(9999,'R-2013'!$BI$6:$BW$500,3,FALSE)="",#N/A,VLOOKUP(9999,'R-2013'!$BI$6:$BW$500,10,FALSE)),#N/A) -> 57 | AI11: =IFERROR(IF(VLOOKUP(9999,'2013 WIA-Read'!$AS$14:$BC$500,3,FALSE)="",#N/A,VLOOKUP(9999,'2013 WIA-Read'!$AS$14:$BC$500,11,FALSE)*100),#N/A) -> 55.3 | AJ11: =IFERROR(IF(VLOOKUP(9999,'WIAG7-RALL'!$B$2:$AC$500,3,FALSE)="",#N/A,VLOOKUP(9999,'WIAG7-RALL'!$B$2:$AC$500,12,FALSE)*100),#N/A) -> 60 | AK11: =IFERROR(IF(VLOOKUP(9999,'M-2013'!$BE$6:$BS$500,3,FALSE)="",#N/A,VLOOKUP(9999,'M-2013'!$BE$6:$BS$500,10,FALSE)),#N/A) -> 51 | AL11: =IFERROR(IF(VLOOKUP(9999,'2013 WIA-Math'!$AS$14:$BC$500,3,FALSE)="",#N/A,VLOOKUP(9999,'2013 WIA-Math'!$AS$14:$BC$500,11,FALSE)*100),#N/A) -> 47.59 | AM11: =IFERROR(IF(VLOOKUP(9999,'WIAG7-MALL'!$B$2:$AC$500,3,FALSE)="",#N/A,VLOOKUP(9999,'WIAG7-MALL'!$B$2:$AC$500,12,FALSE)*100),#N/A) -> 43
AG12: 8 | AH12: =IFERROR(IF(VLOOKUP(9999,'R-2013'!$BX$6:$CL$500,3,FALSE)="",#N/A,VLOOKUP(9999,'R-2013'!$BX$6:$CL$500,10,FALSE)),#N/A) -> 56 | AI12: =IFERROR(IF(VLOOKUP(9999,'2013 WIA-Read'!$BD$14:$BN$500,3,FALSE)="",#N/A,VLOOKUP(9999,'2013 WIA-Read'!$BD$14:$BN$500,11,FALSE)*100),#N/A) -> 50.36 | AJ12: =IFERROR(IF(VLOOKUP(9999,'WIAG8-RALL'!$B$2:$AC$500,3,FALSE)="",#N/A,VLOOKUP(9999,'WIAG8-RALL'!$B$2:$AC$500,12,FALSE)*100),#N/A) -> 56 | AK12: =IFERROR(IF(VLOOKUP(9999,'M-2013'!$BT$6:$CG$500,3,FALSE)="",#N/A,VLOOKUP(9999,'M-2013'!$BT$6:$CG$500,10,FALSE)),#N/A) -> 35 | AL12: =IFERROR(IF(VLOOKUP(9999,'2013 WIA-Math'!$BD$14:$BN$500,3,FALSE)="",#N/A,VLOOKUP(9999,'2013 WIA-Math'!$BD$14:$BN$500,11,FALSE)*100),#N/A) -> 37.42 | AM12: =IFERROR(IF(VLOOKUP(9999,'WIAG8-MALL'!$B$2:$AC$500,3,FALSE)="",#N/A,VLOOKUP(9999,'WIAG8-MALL'!$B$2:$AC$500,12,FALSE)*100),#N/A) -> 23 | AQ12: Grade | AR12: 2013 FCAT 2.0 | AS12: 2013 WIA | AT12: 2014 WIA
AG13: Alg. | AK13: =IFERROR(VLOOKUP(9999,'2013 ALG'!$A$6:$I$500,5,FALSE),#N/A) -> 66 | AL13: =IFERROR(IF(VLOOKUP(9999,'2013 WIA-Math'!$BO$14:$BY$500,3,FALSE)="",#N/A,VLOOKUP(9999,'2013 WIA-Math'!$BO$14:$BY$500,11,FALSE)*100),#N/A) -> 43.82097752 | AM13: =IFERROR(IF(VLOOKUP(9999,'WIA-ALG'!$B$2:$AC$500,3,FALSE)="",#N/A,VLOOKUP(9999,'WIA-ALG'!$B$2:$AC$500,12,FALSE)*100),#N/A) -> 68 | AQ13: Gr. 5 | AR13: =IFERROR(IF(VLOOKUP(VALUE(9999),'S-2013'!$A$6:$N$272,3,FALSE)="",#N/A,VLOOKUP(VALUE(9999),'S-2013'!$A$6:$N$272,10,FALSE)),#N/A) -> 51 | AS13: =IFERROR(IF(VLOOKUP(VALUE(9999),'2013 WIA-Sci'!$A$14:$K$500,3,FALSE)="",#N/A,VLOOKUP(VALUE(9999),'2013 WIA-Sci'!$A$14:$K$500,11,FALSE)*100),#N/A) -> 52.43 | AT13: =IFERROR(IF(VLOOKUP(9999,'WIAG5-SALL'!$B$2:$AC$500,3,FALSE)="",#N/A,VLOOKUP(9999,'WIAG5-SALL'!$B$2:$AC$500,12,FALSE)*100),#N/A) -> 56
AG14: Geo | AK14: =IFERROR(VLOOKUP(9999,'2013 GEO'!$A$6:$I$500,5,FALSE),#N/A) -> 60 | AL14: =IFERROR(IF(VLOOKUP(9999,'2013 WIA-Math'!$BZ$14:$CJ$500,3,FALSE)="",#N/A,VLOOKUP(9999,'2013 WIA-Math'!$BZ$14:$CJ$500,11,FALSE)*100),#N/A) -> 39.49498094 | AM14: =IFERROR(IF(VLOOKUP(9999,'WIA-GEO'!$B$2:$AC$500,3,FALSE)="",#N/A,VLOOKUP(9999,'WIA-GEO'!$B$2:$AC$500,12,FALSE)*100),#N/A) -> 43 | AQ14: Gr. 8 | AR14: =IFERROR(IF(VLOOKUP(9999,'S-2013'!$P$6:$AC$272,3,FALSE)="",#N/A,VLOOKUP(9999,'S-2013'!$P$6:$AC$272,10,FALSE)),#N/A) -> 42 | AS14: =IFERROR(IF(VLOOKUP(9999,'2013 WIA-Sci'!$L$14:$V$500,3,FALSE)="",#N/A,VLOOKUP(9999,'2013 WIA-Sci'!$L$14:$V$500,11,FALSE)*100),#N/A) -> 38.26 | AT14: =IFERROR(IF(VLOOKUP(9999,'WIAG8-SALL'!$B$2:$AC$496,3,FALSE)="",#N/A,VLOOKUP(9999,'WIAG8-SALL'!$B$2:$AC$496,12,FALSE)*100),#N/A) -> 41
AQ15: Bio | AR15: =IFERROR(VLOOKUP(9999,'2013 BIO'!$A$6:$I$500,5,FALSE),#N/A) -> 63 | AS15: =IFERROR(IF(VLOOKUP(9999,'2013 WIA-Sci'!$W$14:$AG$500,3,FALSE)="",#N/A,VLOOKUP(9999,'2013 WIA-Sci'!$W$14:$AG$500,11,FALSE)*100),#N/A) -> 50.11005723 | AT15: =IFERROR(IF(VLOOKUP(9999,'WIA-BIO'!$B$2:$AC$494,3,FALSE)="",#N/A,VLOOKUP(9999,'WIA-BIO'!$B$2:$AC$494,12,FALSE)*100),#N/A) -> 60
AG17: School | AH17: =A4 -> 9999-District
AH18: % Proficient | AQ18: % of Students Scoring at 4.0 and higher
AH19: Reading | AK19: Math | AQ19: Writing
AG20: Grade | AH20: 2013 FCAT 2.0 | AI20: 2013 WIA | AJ20: 2014 WIA | AK20: 2013 FCAT 2.0 | AL20: 2013 WIA | AM20: 2014 WIA | AQ20: Prompt | AR20: 2013 FCAT | AS20: 2013 Midyear | AT20: 2014 Midyear
AG21: 3 | AH21: =IFERROR(IF(VLOOKUP($A$3,'R-2013'!$A$6:$N$500,3,FALSE)="",#N/A,VLOOKUP($A$3,'R-2013'!$A$6:$N$500,10,FALSE)),#N/A) -> 53 | AI21: =IFERROR(IF(VLOOKUP($A$3,'2013 WIA-Read'!$A$14:$K$500,3,FALSE)="",#N/A,VLOOKUP($A$3,'2013 WIA-Read'!$A$14:$K$500,11,FALSE)*100),#N/A) -> 53.31 | AJ21: =IFERROR(IF(VLOOKUP($A$3,'WIAG3-RALL'!$B$2:$AC$500,3,FALSE)="",#N/A,VLOOKUP($A$3,'WIAG3-RALL'!$B$2:$AC$500,12,FALSE)*100),#N/A) -> 53 | AK21: =IFERROR(IF(VLOOKUP($A$3,'M-2013'!$A$6:$N$500,3,FALSE)="",#N/A,VLOOKUP($A$3,'M-2013'!$A$6:$N$500,10,FALSE)),#N/A) -> 62 | AL21: =IFERROR(IF(VLOOKUP($A$3,'2013 WIA-Math'!$A$14:$K$500,3,FALSE)="",#N/A,VLOOKUP($A$3,'2013 WIA-Math'!$A$14:$K$500,11,FALSE)*100),#N/A) -> 64.35 | AM21: =IFERROR(IF(VLOOKUP($A$3,'WIAG3-MALL'!$B$2:$AC$500,3,FALSE)="",#N/A,VLOOKUP($A$3,'WIAG3-MALL'!$B$2:$AC$500,12,FALSE)*100),#N/A) -> 60 | AQ21: G4-E | AS21: =IFERROR(IF(VLOOKUP($A$3,'2013 MY-Writing'!$A$14:$T$503,3,FALSE)="",#N/A,VLOOKUP($A$3,'2013 MY-Writing'!$A$14:$T$503,11,FALSE)*100),#N/A) -> 23.28435011 | AT21: =IFERROR(IF(VLOOKUP($A$3,'MYG4-WALL'!$A$2:$W$495,5,FALSE)<10,#N/A,VLOOKUP($A$3,'MYG4-WALL'!$A$2:$W$495,12,FALSE)),#N/A) -> 23
AG22: 4 | AH22: =IFERROR(IF(VLOOKUP($A$3,'R-2013'!$P$6:$AC$500,3,FALSE)="",#N/A,VLOOKUP($A$3,'R-2013'!$P$6:$AC$500,10,FALSE)),#N/A) -> 59 | AI22: =IFERROR(IF(VLOOKUP($A$3,'2013 WIA-Read'!$L$14:$V$500,3,FALSE)="",#N/A,VLOOKUP($A$3,'2013 WIA-Read'!$L$14:$V$500,11,FALSE)*100),#N/A) -> 61.57 | AJ22: =IFERROR(IF(VLOOKUP($A$3,'WIAG4-RALL'!$B$2:$AC$500,3,FALSE)="",#N/A,VLOOKUP($A$3,'WIAG4-RALL'!$B$2:$AC$500,12,FALSE)*100),#N/A) -> 60 | AK22: =IFERROR(IF(VLOOKUP($A$3,'M-2013'!$O$6:$AB$500,3,FALSE)="",#N/A,VLOOKUP($A$3,'M-2013'!$O$6:$AB$500,10,FALSE)),#N/A) -> 64 | AL22: =IFERROR(IF(VLOOKUP($A$3,'2013 WIA-Math'!$L$14:$V$500,3,FALSE)="",#N/A,VLOOKUP($A$3,'2013 WIA-Math'!$L$14:$V$500,11,FALSE)*100),#N/A) -> 61.57 | AM22: =IFERROR(IF(VLOOKUP($A$3,'WIAG4-MALL'!$B$2:$AC$500,3,FALSE)="",#N/A,VLOOKUP($A$3,'WIAG4-MALL'!$B$2:$AC$500,12,FALSE)*100),#N/A) -> 68 | AQ22: G4-N | AR22: =IFERROR(VLOOKUP($A$3,'W13'!$A$7:$S$500,19,FALSE),#N/A) -> 37 | AS22: =IFERROR(IF(VLOOKUP($A$3,'2013 MY-Writing'!$A$14:$T$503,3,FALSE)="",#N/A,VLOOKUP($A$3,'2013 MY-Writing'!$A$14:$T$503,20,FALSE)*100),#N/A) -> 24.18300654 | AT22: =IFERROR(IF(VLOOKUP($A$3,'MYG4-WALL'!$A$2:$W$495,15,FALSE)<10,#N/A,VLOOKUP($A$3,'MYG4-WALL'!$A$2:$W$495,22,FALSE)),#N/A) -> 27
AG23: 5 | AH23: =IFERROR(IF(VLOOKUP($A$3,'R-2013'!$AE$6:$AR$500,3,FALSE)="",#N/A,VLOOKUP($A$3,'R-2013'!$AE$6:$AR$500,10,FALSE)),#N/A) -> 59 | AI23: =IFERROR(IF(VLOOKUP($A$3,'2013 WIA-Read'!$W$14:$AG$500,3,FALSE)="",#N/A,VLOOKUP($A$3,'2013 WIA-Read'!$W$14:$AG$500,11,FALSE)*100),#N/A) -> 57.39 | AJ23: =IFERROR(IF(VLOOKUP($A$3,'WIAG5-RALL'!$B$2:$AC$500,3,FALSE)="",#N/A,VLOOKUP($A$3,'WIAG5-RALL'!$B$2:$AC$500,12,FALSE)*100),#N/A) -> 59 | AK23: =IFERROR(IF(VLOOKUP($A$3,'M-2013'!$AC$6:$AP$500,3,FALSE)="",#N/A,VLOOKUP($A$3,'M-2013'!$AC$6:$AP$500,10,FALSE)),#N/A) -> 56 | AL23: =IFERROR(IF(VLOOKUP($A$3,'2013 WIA-Math'!$W$14:$AG$500,3,FALSE)="",#N/A,VLOOKUP($A$3,'2013 WIA-Math'!$W$14:$AG$500,11,FALSE)*100),#N/A) -> 50.2 | AM23: =IFERROR(IF(VLOOKUP($A$3,'WIAG5-MALL'!$B$2:$AC$500,3,FALSE)="",#N/A,VLOOKUP($A$3,'WIAG5-MALL'!$B$2:$AC$500,12,FALSE)*100),#N/A) -> 51 | AQ23: G8-E | AS23: =IFERROR(IF(VLOOKUP($A$3,'2013 MY-Writing'!$U$14:$AN$503,3,FALSE)="",#N/A,VLOOKUP($A$3,'2013 MY-Writing'!$U$14:$AN$503,11,FALSE)*100),#N/A) -> 35.94284113 | AT23: =IFERROR(IF(VLOOKUP($A$3,'MYG8-WALL'!$A$2:$W$500,5,FALSE)<10,#N/A,VLOOKUP($A$3,'MYG8-WALL'!$A$2:$W$500,12,FALSE)),#N/A) -> 41
AG24: 6 | AH24: =IFERROR(IF(VLOOKUP($A$3,'R-2013'!$AT$6:$BH$500,3,FALSE)="",#N/A,VLOOKUP($A$3,'R-2013'!$AT$6:$BH$500,10,FALSE)),#N/A) -> 57 | AI24: =IFERROR(IF(VLOOKUP($A$3,'2013 WIA-Read'!$AH$14:$AR$500,3,FALSE)="",#N/A,VLOOKUP($A$3,'2013 WIA-Read'!$AH$14:$AR$500,11,FALSE)*100),#N/A) -> 54.36 | AJ24: =IFERROR(IF(VLOOKUP($A$3,'WIAG6-RALL'!$B$2:$AC$500,3,FALSE)="",#N/A,VLOOKUP($A$3,'WIAG6-RALL'!$B$2:$AC$500,12,FALSE)*100),#N/A) -> 62 | AK24: =IFERROR(IF(VLOOKUP($A$3,'M-2013'!$AQ$6:$BD$500,3,FALSE)="",#N/A,VLOOKUP($A$3,'M-2013'!$AQ$6:$BD$500,10,FALSE)),#N/A) -> 51 | AL24: =IFERROR(IF(VLOOKUP($A$3,'2013 WIA-Math'!$AH$14:$AR$500,3,FALSE)="",#N/A,VLOOKUP($A$3,'2013 WIA-Math'!$AH$14:$AR$500,11,FALSE)*100),#N/A) -> 48.65 | AM24: =IFERROR(IF(VLOOKUP($A$3,'WIAG6-MALL'!$B$2:$AC$500,3,FALSE)="",#N/A,VLOOKUP($A$3,'WIAG6-MALL'!$B$2:$AC$500,12,FALSE)*100),#N/A) -> 47 | AQ24: G8-P | AR24: =IFERROR(VLOOKUP($A$3,'W13'!$U$7:$AM$500,19,FALSE),#N/A) -> 29 | AS24: =IFERROR(IF(VLOOKUP($A$3,'2013 MY-Writing'!$U$14:$AN$503,3,FALSE)="",#N/A,VLOOKUP($A$3,'2013 MY-Writing'!$U$14:$AN$503,20,FALSE)*100),#N/A) -> 30.90367227 | AT24: =IFERROR(IF(VLOOKUP($A$3,'MYG8-WALL'!$A$2:$W$500,15,FALSE)<10,#N/A,VLOOKUP($A$3,'MYG8-WALL'!$A$2:$W$500,22,FALSE)),#N/A) -> 40
AG25: 7 | AH25: =IFERROR(IF(VLOOKUP($A$3,'R-2013'!$BI$6:$BW$500,3,FALSE)="",#N/A,VLOOKUP($A$3,'R-2013'!$BI$6:$BW$500,10,FALSE)),#N/A) -> 57 | AI25: =IFERROR(IF(VLOOKUP($A$3,'2013 WIA-Read'!$AS$14:$BC$500,3,FALSE)="",#N/A,VLOOKUP($A$3,'2013 WIA-Read'!$AS$14:$BC$500,11,FALSE)*100),#N/A) -> 55.3 | AJ25: =IFERROR(IF(VLOOKUP($A$3,'WIAG7-RALL'!$B$2:$AC$500,3,FALSE)="",#N/A,VLOOKUP($A$3,'WIAG7-RALL'!$B$2:$AC$500,12,FALSE)*100),#N/A) -> 60 | AK25: =IFERROR(IF(VLOOKUP($A$3,'M-2013'!$BE$6:$BS$500,3,FALSE)="",#N/A,VLOOKUP($A$3,'M-2013'!$BE$6:$BS$500,10,FALSE)),#N/A) -> 51 | AL25: =IFERROR(IF(VLOOKUP($A$3,'2013 WIA-Math'!$AS$14:$BC$500,3,FALSE)="",#N/A,VLOOKUP($A$3,'2013 WIA-Math'!$AS$14:$BC$500,11,FALSE)*100),#N/A) -> 47.59 | AM25: =IFERROR(IF(VLOOKUP($A$3,'WIAG7-MALL'!$B$2:$AC$500,3,FALSE)="",#N/A,VLOOKUP($A$3,'WIAG7-MALL'!$B$2:$AC$500,12,FALSE)*100),#N/A) -> 43
AG26: 8 | AH26: =IFERROR(IF(VLOOKUP($A$3,'R-2013'!$BX$6:$CL$500,3,FALSE)="",#N/A,VLOOKUP($A$3,'R-2013'!$BX$6:$CL$500,10,FALSE)),#N/A) -> 56 | AI26: =IFERROR(IF(VLOOKUP($A$3,'2013 WIA-Read'!$BD$14:$BN$500,3,FALSE)="",#N/A,VLOOKUP($A$3,'2013 WIA-Read'!$BD$14:$BN$500,11,FALSE)*100),#N/A) -> 50.36 | AJ26: =IFERROR(IF(VLOOKUP($A$3,'WIAG8-RALL'!$B$2:$AC$500,3,FALSE)="",#N/A,VLOOKUP($A$3,'WIAG8-RALL'!$B$2:$AC$500,12,FALSE)*100),#N/A) -> 56 | AK26: =IFERROR(IF(VLOOKUP($A$3,'M-2013'!$BT$6:$CG$500,3,FALSE)="",#N/A,VLOOKUP($A$3,'M-2013'!$BT$6:$CG$500,10,FALSE)),#N/A) -> 35 | AL26: =IFERROR(IF(VLOOKUP($A$3,'2013 WIA-Math'!$BD$14:$BN$500,3,FALSE)="",#N/A,VLOOKUP($A$3,'2013 WIA-Math'!$BD$14:$BN$500,11,FALSE)*100),#N/A) -> 37.42 | AM26: =IFERROR(IF(VLOOKUP($A$3,'WIAG8-MALL'!$B$2:$AC$500,3,FALSE)="",#N/A,VLOOKUP($A$3,'WIAG8-MALL'!$B$2:$AC$500,12,FALSE)*100),#N/A) -> 23 | AQ26: Grade | AR26: 2013 FCAT 2.0 | AS26: 2013 WIA | AT26: 2014 WIA
AG27: Alg | AK27: =IFERROR(VLOOKUP($A$3,'2013 ALG'!$A$6:$I$500,5,FALSE),#N/A) -> 66 | AL27: =IFERROR(IF(VLOOKUP($A$3,'2013 WIA-Math'!$BO$14:$BY$500,3,FALSE)="",#N/A,VLOOKUP($A$3,'2013 WIA-Math'!$BO$14:$BY$500,11,FALSE)*100),#N/A) -> 43.82097752 | AM27: =IFERROR(IF(VLOOKUP($A$3,'WIA-ALG'!$B$2:$AC$500,3,FALSE)="",#N/A,VLOOKUP($A$3,'WIA-ALG'!$B$2:$AC$500,12,FALSE)*100),#N/A) -> 68 | AQ27: Gr. 5 | AR27: =IFERROR(IF(VLOOKUP(VALUE($A$3),'S-2013'!$A$6:$N$272,3,FALSE)="",#N/A,VLOOKUP(VALUE($A$3),'S-2013'!$A$6:$N$272,10,FALSE)),#N/A) -> 51 | AS27: =IFERROR(IF(VLOOKUP(VALUE($A$3),'2013 WIA-Sci'!$A$14:$K$500,3,FALSE)="",#N/A,VLOOKUP(VALUE($A$3),'2013 WIA-Sci'!$A$14:$K$500,11,FALSE)*100),#N/A) -> 52.43 | AT27: =IFERROR(IF(VLOOKUP($A$3,'WIAG5-SALL'!$B$2:$AC$500,3,FALSE)="",#N/A,VLOOKUP($A$3,'WIAG5-SALL'!$B$2:$AC$500,12,FALSE)*100),#N/A) -> 56
AG28: Geo | AK28: =IFERROR(VLOOKUP($A$3,'2013 GEO'!$A$6:$I$500,5,FALSE),#N/A) -> 60 | AL28: =IFERROR(IF(VLOOKUP($A$3,'2013 WIA-Math'!$BZ$14:$CJ$500,3,FALSE)="",#N/A,VLOOKUP($A$3,'2013 WIA-Math'!$BZ$14:$CJ$500,11,FALSE)*100),#N/A) -> 39.49498094 | AM28: =IFERROR(IF(VLOOKUP($A$3,'WIA-GEO'!$B$2:$AC$500,3,FALSE)="",#N/A,VLOOKUP($A$3,'WIA-GEO'!$B$2:$AC$500,12,FALSE)*100),#N/A) -> 43 | AQ28: Gr. 8 | AR28: =IFERROR(IF(VLOOKUP($A$3,'S-2013'!$P$6:$AC$272,3,FALSE)="",#N/A,VLOOKUP($A$3,'S-2013'!$P$6:$AC$272,10,FALSE)),#N/A) -> 42 | AS28: =IFERROR(IF(VLOOKUP($A$3,'2013 WIA-Sci'!$L$14:$V$500,3,FALSE)="",#N/A,VLOOKUP($A$3,'2013 WIA-Sci'!$L$14:$V$500,11,FALSE)*100),#N/A) -> 38.26 | AT28: =IFERROR(IF(VLOOKUP($A$3,'WIAG8-SALL'!$B$2:$AC$496,3,FALSE)="",#N/A,VLOOKUP($A$3,'WIAG8-SALL'!$B$2:$AC$496,12,FALSE)*100),#N/A) -> 41
AQ29: Bio | AR29: =IFERROR(VLOOKUP($A$3,'2013 BIO'!$A$6:$I$500,5,FALSE),#N/A) -> 63 | AS29: =IFERROR(IF(VLOOKUP($A$3,'2013 WIA-Sci'!$W$14:$AG$500,3,FALSE)="",#N/A,VLOOKUP($A$3,'2013 WIA-Sci'!$W$14:$AG$500,11,FALSE)*100),#N/A) -> 50.11005723 | AT29: =IFERROR(IF(VLOOKUP($A$3,'WIA-BIO'!$B$2:$AC$494,3,FALSE)="",#N/A,VLOOKUP($A$3,'WIA-BIO'!$B$2:$AC$494,12,FALSE)*100),#N/A) -> 60

Sheet G3-8 YAG Trend Report
A2: Click here to return to the school and sheet selection interface | AG2: District | AH2: % Proficient
A3: ='Select School'!B3 -> 9999 | AH3: District
A4: =TEXT(A3,"0000")&"-"&VLOOKUP(A3,SchList!$A$2:$B$502,2,FALSE) -> 9999-District | AH4: % Proficient | AQ4: % of Students Scoring at 4.0 and higher
A5: Year-at-a-Glance Trend Report: 2013-14 Fall Interim, 2013-14 Winter Interim, and 2014 FCAT 2.0 | AH5: Reading | AK5: Math | AQ5: Writing
AG6: Grade | AH6: 2013-14 FIA | AI6: 2013-14 WIA | AJ6: 2014 FCAT 2.0 | AK6: 2013-14 FIA | AL6: 2013-14 WIA | AM6: 2014 FCAT 2.0 | AQ6: Prompt | AR6: 2013-14 Pre-Test | AS6: 2013-14 Midyear | AT6: 2014 FCAT2.0
AG7: 3 | AH7: =IFERROR(IF(VLOOKUP(9999,'FIAG3-RAll'!$B$2:$AC$500,3,FALSE)="",#N/A,VLOOKUP(9999,'FIAG3-RAll'!$B$2:$AC$500,12,FALSE)*100),#N/A) -> 51 | AI7: =IFERROR(IF(VLOOKUP(9999,'WIAG3-RALL'!$B$2:$AC$500,3,FALSE)="",#N/A,VLOOKUP(9999,'WIAG3-RALL'!$B$2:$AC$500,12,FALSE)*100),#N/A) -> 53 | AJ7: =IFERROR(VLOOKUP(9999,'R-2014'!$A$3:$N$500,10,FALSE),"") -> 56 | AK7: =IFERROR(IF(VLOOKUP(9999,'FIAG3-MAll'!$B$2:$AC$500,3,FALSE)="",#N/A,VLOOKUP(9999,'FIAG3-MAll'!$B$2:$AC$500,12,FALSE)*100),#N/A) -> 61 | AL7: =IFERROR(IF(VLOOKUP(9999,'WIAG3-MALL'!$B$2:$AC$500,3,FALSE)="",#N/A,VLOOKUP(9999,'WIAG3-MALL'!$B$2:$AC$500,12,FALSE)*100),#N/A) -> 60 | AM7: =IFERROR(VLOOKUP(9999,'M-2014'!$A$7:$M$500,10,FALSE),"") -> 62 | AQ7: G4-E | AR7: =IFERROR(IF(VLOOKUP(9999,'BLG4-WALL'!$A$14:$CZ$503,3,FALSE)="",#N/A,VLOOKUP(9999,'BLG4-WALL'!$A$14:$CZ$503,11,FALSE)*100),#N/A) -> 1.13 | AS7: =IFERROR(IF(VLOOKUP(9999,'MYG4-WALL'!$A$2:$W$495,5,FALSE)<10,#N/A,VLOOKUP(9999,'MYG4-WALL'!$A$2:$W$495,12,FALSE)),#N/A) -> 23 | AT7: =IFERROR(VLOOKUP(9999,'W14'!$A$7:$S$500,19,FALSE),#N/A) -> 33
AG8: 4 | AH8: =IFERROR(IF(VLOOKUP(9999,'FIAG4-RAll'!$B$2:$AC$500,3,FALSE)="",#N/A,VLOOKUP(9999,'FIAG4-RAll'!$B$2:$AC$500,12,FALSE)*100),#N/A) -> 62 | AI8: =IFERROR(IF(VLOOKUP(9999,'WIAG4-RALL'!$B$2:$AC$500,3,FALSE)="",#N/A,VLOOKUP(9999,'WIAG4-RALL'!$B$2:$AC$500,12,FALSE)*100),#N/A) -> 60 | AJ8: =IFERROR(VLOOKUP(9999,'R-2014'!$P$7:$AC$500,10,FALSE),"") -> 63 | AK8: =IFERROR(IF(VLOOKUP(9999,'FIAG4-MAll'!$B$2:$AC$500,3,FALSE)="",#N/A,VLOOKUP(9999,'FIAG4-MAll'!$B$2:$AC$500,12,FALSE)*100),#N/A) -> 65 | AL8: =IFERROR(IF(VLOOKUP(9999,'WIAG4-MALL'!$B$2:$AC$500,3,FALSE)="",#N/A,VLOOKUP(9999,'WIAG4-MALL'!$B$2:$AC$500,12,FALSE)*100),#N/A) -> 68 | AM8: =IFERROR(IF(VLOOKUP(9999,'M-2014'!$O$6:$AB$500,3,FALSE)="",#N/A,VLOOKUP(9999,'M-2014'!$O$6:$AB$500,10,FALSE)),#N/A) -> 66 | AQ8: G4-N | AR8: =IFERROR(IF(VLOOKUP(9999,'BLG4-WALL'!$A$14:$CZ$503,12,FALSE)="",#N/A,VLOOKUP(9999,'BLG4-WALL'!$A$14:$CZ$503,20,FALSE)*100),#N/A) -> 2.32 | AS8: =IFERROR(IF(VLOOKUP(9999,'MYG4-WALL'!$A$2:$W$495,15,FALSE)<10,#N/A,VLOOKUP(9999,'MYG4-WALL'!$A$2:$W$495,22,FALSE)),#N/A) -> 27
AG9: 5 | AH9: =IFERROR(IF(VLOOKUP(9999,'FIAG5-RAll'!$B$2:$AC$500,3,FALSE)="",#N/A,VLOOKUP(9999,'FIAG5-RAll'!$B$2:$AC$500,12,FALSE)*100),#N/A) -> 57 | AI9: =IFERROR(IF(VLOOKUP(9999,'WIAG5-RALL'!$B$2:$AC$500,3,FALSE)="",#N/A,VLOOKUP(9999,'WIAG5-RALL'!$B$2:$AC$500,12,FALSE)*100),#N/A) -> 59 | AJ9: =IFERROR(VLOOKUP(9999,'R-2014'!$AE$7:$AR$500,10,FALSE),"") -> 61 | AK9: =IFERROR(IF(VLOOKUP(9999,'FIAG5-MAll'!$B$2:$AC$500,3,FALSE)="",#N/A,VLOOKUP(9999,'FIAG5-MAll'!$B$2:$AC$500,12,FALSE)*100),#N/A) -> 55 | AL9: =IFERROR(IF(VLOOKUP(9999,'WIAG5-MALL'!$B$2:$AC$500,3,FALSE)="",#N/A,VLOOKUP(9999,'WIAG5-MALL'!$B$2:$AC$500,12,FALSE)*100),#N/A) -> 51 | AM9: =IFERROR(IF(VLOOKUP(9999,'M-2014'!$AC$6:$AP$500,3,FALSE)="",#N/A,VLOOKUP(9999,'M-2014'!$AC$6:$AP$500,10,FALSE)),#N/A) -> 58 | AQ9: G8-E | AR9: =IFERROR(IF(VLOOKUP(9999,'BLG8-WALL'!$A$2:$AJ$500,3,FALSE)<10,#N/A,VLOOKUP(9999,'BLG8-WALL'!$A$2:$AJ$500,11,FALSE)*100),#N/A) -> 13.8 | AS9: =IFERROR(IF(VLOOKUP(9999,'MYG8-WALL'!$A$2:$W$500,5,FALSE)<10,#N/A,VLOOKUP(9999,'MYG8-WALL'!$A$2:$W$500,12,FALSE)),#N/A) -> 41 | AT9: =IFERROR(VLOOKUP(9999,'W14'!$U$7:$AM$500,19,FALSE),#N/A) -> 34
AG10: 6 | AH10: =IFERROR(IF(VLOOKUP(9999,'FIAG6-RAll'!$B$2:$AC$500,3,FALSE)="",#N/A,VLOOKUP(9999,'FIAG6-RAll'!$B$2:$AC$500,12,FALSE)*100),#N/A) -> 60 | AI10: =IFERROR(IF(VLOOKUP(9999,'WIAG6-RALL'!$B$2:$AC$500,3,FALSE)="",#N/A,VLOOKUP(9999,'WIAG6-RALL'!$B$2:$AC$500,12,FALSE)*100),#N/A) -> 62 | AJ10: =IFERROR(IF(VLOOKUP(9999,'R-2014'!$AT$6:$BH$500,3,FALSE)="",#N/A,VLOOKUP(9999,'R-2014'!$AT$6:$BH$500,10,FALSE)),#N/A) -> 61 | AK10: =IFERROR(IF(VLOOKUP(9999,'FIAG6-MAll'!$B$2:$AC$500,3,FALSE)="",#N/A,VLOOKUP(9999,'FIAG6-MAll'!$B$2:$AC$500,12,FALSE)*100),#N/A) -> 48 | AL10: =IFERROR(IF(VLOOKUP(9999,'WIAG6-MALL'!$B$2:$AC$500,3,FALSE)="",#N/A,VLOOKUP(9999,'WIAG6-MALL'!$B$2:$AC$500,12,FALSE)*100),#N/A) -> 47 | AM10: =IFERROR(IF(VLOOKUP(9999,'M-2014'!$AQ$6:$BD$500,3,FALSE)="",#N/A,VLOOKUP(9999,'M-2014'!$AQ$6:$BD$500,10,FALSE)),#N/A) -> 53 | AQ10: G8-P | AR10: =IFERROR(IF(VLOOKUP(9999,'BLG8-WALL'!$A$2:$AJ$500,12,FALSE)<10,#N/A,VLOOKUP(9999,'BLG8-WALL'!$A$2:$AJ$500,20,FALSE)*100),#N/A) -> 8.69 | AS10: =IFERROR(IF(VLOOKUP(9999,'MYG8-WALL'!$A$2:$W$500,15,FALSE)<10,#N/A,VLOOKUP(9999,'MYG8-WALL'!$A$2:$W$500,22,FALSE)),#N/A) -> 40
AG11: 7 | AH11: =IFERROR(IF(VLOOKUP(9999,'FIAG7-RAll'!$B$2:$AC$500,3,FALSE)="",#N/A,VLOOKUP(9999,'FIAG7-RAll'!$B$2:$AC$500,12,FALSE)*100),#N/A) -> 59 | AI11: =IFERROR(IF(VLOOKUP(9999,'WIAG7-RALL'!$B$2:$AC$500,3,FALSE)="",#N/A,VLOOKUP(9999,'WIAG7-RALL'!$B$2:$AC$500,12,FALSE)*100),#N/A) -> 60 | AJ11: =IFERROR(IF(VLOOKUP(9999,'R-2014'!$BI$6:$BW$500,3,FALSE)="",#N/A,VLOOKUP(9999,'R-2014'!$BI$6:$BW$500,10,FALSE)),#N/A) -> 57 | AK11: =IFERROR(IF(VLOOKUP(9999,'FIAG7-MAll'!$B$2:$AC$500,3,FALSE)="",#N/A,VLOOKUP(9999,'FIAG7-MAll'!$B$2:$AC$500,12,FALSE)*100),#N/A) -> 42 | AL11: =IFERROR(IF(VLOOKUP(9999,'WIAG7-MALL'!$B$2:$AC$500,3,FALSE)="",#N/A,VLOOKUP(9999,'WIAG7-MALL'!$B$2:$AC$500,12,FALSE)*100),#N/A) -> 43 | AM11: =IFERROR(IF(VLOOKUP(9999,'M-2014'!$BE$6:$BS$500,3,FALSE)="",#N/A,VLOOKUP(9999,'M-2014'!$BE$6:$BS$500,10,FALSE)),#N/A) -> 52 | AQ11: Science
AG12: 8 | AH12: =IFERROR(IF(VLOOKUP(9999,'FIAG8-RAll'!$B$2:$AC$500,3,FALSE)="",#N/A,VLOOKUP(9999,'FIAG8-RAll'!$B$2:$AC$500,12,FALSE)*100),#N/A) -> 54 | AI12: =IFERROR(IF(VLOOKUP(9999,'WIAG8-RALL'!$B$2:$AC$500,3,FALSE)="",#N/A,VLOOKUP(9999,'WIAG8-RALL'!$B$2:$AC$500,12,FALSE)*100),#N/A) -> 56 | AJ12: =IFERROR(IF(VLOOKUP(9999,'R-2014'!$BX$6:$CL$500,3,FALSE)="",#N/A,VLOOKUP(9999,'R-2014'!$BX$6:$CL$500,10,FALSE)),#N/A) -> 57 | AK12: =IFERROR(IF(VLOOKUP(9999,'FIAG8-MAll'!$B$2:$AC$500,3,FALSE)="",#N/A,VLOOKUP(9999,'FIAG8-MAll'!$B$2:$AC$500,12,FALSE)*100),#N/A) -> 21 | AL12: =IFERROR(IF(VLOOKUP(9999,'WIAG8-MALL'!$B$2:$AC$500,3,FALSE)="",#N/A,VLOOKUP(9999,'WIAG8-MALL'!$B$2:$AC$500,12,FALSE)*100),#N/A) -> 23 | AM12: =IFERROR(IF(VLOOKUP(9999,'M-2014'!$BT$6:$CG$500,3,FALSE)="",#N/A,VLOOKUP(9999,'M-2014'!$BT$6:$CG$500,10,FALSE)),#N/A) -> 33 | AQ12: Grade | AR12: FIA | AS12: WIA | AT12: 2014 FCAT 2.0
AG13: Alg. | AK13: =IFERROR(IF(VLOOKUP(9999,'FIA-ALG'!$B$2:$AC$500,3,FALSE)="",#N/A,VLOOKUP(9999,'FIA-ALG'!$B$2:$AC$500,12,FALSE)*100),#N/A) -> 68 | AL13: =IFERROR(IF(VLOOKUP(9999,'WIA-ALG'!$B$2:$AC$500,3,FALSE)="",#N/A,VLOOKUP(9999,'WIA-ALG'!$B$2:$AC$500,12,FALSE)*100),#N/A) -> 68 | AM13: =IF(VLOOKUP("9999",'2014 ALG'!$A$6:$L$500,4,FALSE)<10,#N/A,VLOOKUP("9999",'2014 ALG'!$A$6:$L$500,3,FALSE)*100) -> 68.49849552 | AQ13: Gr. 5 | AR13: =IFERROR(IF(VLOOKUP(9999,'FIAG5-SALL'!$B$2:$AC$500,3,FALSE)="",#N/A,VLOOKUP(9999,'FIAG5-SALL'!$B$2:$AC$500,12,FALSE)*100),#N/A) -> 51 | AS13: =IFERROR(IF(VLOOKUP(9999,'WIAG5-SALL'!$B$2:$AC$500,3,FALSE)="",#N/A,VLOOKUP(9999,'WIAG5-SALL'!$B$2:$AC$500,12,FALSE)*100),#N/A) -> 56 | AT13: =IFERROR(VLOOKUP(9999,'S-2014'!$A$3:$N$500,10,FALSE),#N/A) -> 51
AG14: Geo. | AK14: =IFERROR(IF(VLOOKUP(9999,'FIA-GEO'!$B$2:$AC$500,3,FALSE)="",#N/A,VLOOKUP(9999,'FIA-GEO'!$B$2:$AC$500,12,FALSE)*100),#N/A) -> 60 | AL14: =IFERROR(IF(VLOOKUP(9999,'WIA-GEO'!$B$2:$AC$500,3,FALSE)="",#N/A,VLOOKUP(9999,'WIA-GEO'!$B$2:$AC$500,12,FALSE)*100),#N/A) -> 43 | AM14: =IF(VLOOKUP("9999",'2014 GEO'!$A$6:$L$500,2,FALSE)<10,#N/A,VLOOKUP("9999",'2014 GEO'!$A$6:$L$500,4,FALSE)) -> 63 | AQ14: Gr. 8 | AR14: =IFERROR(IF(OR(VLOOKUP(9999,'FIAG8-SALL'!$B$2:$AC$496,3,FALSE)="",VLOOKUP(9999,'FIAG8-SALL'!$B$2:$AC$496,3,FALSE)<10),#N/A,VLOOKUP(9999,'FIAG8-SALL'!$B$2:$AC$496,12,FALSE)*100),#N/A) -> 40 | AS14: =IFERROR(IF(VLOOKUP(9999,'WIAG8-SALL'!$B$2:$AC$496,3,FALSE)="",#N/A,VLOOKUP(9999,'WIAG8-SALL'!$B$2:$AC$496,12,FALSE)*100),#N/A) -> 41 | AT14: =IFERROR(IF(VLOOKUP(9999,'S-2014'!$P$7:$AC$500,10,FALSE)="",#N/A,VLOOKUP(9999,'S-2014'!$P$7:$AC$500,10,FALSE)),#N/A) -> 44
AQ15: Bio | AR15: =IFERROR(IF(VLOOKUP(9999,'FIA-BIO'!$B$2:$AC$492,3,FALSE)="",#N/A,VLOOKUP(9999,'FIA-BIO'!$B$2:$AC$492,12,FALSE)*100),#N/A) -> 54 | AS15: =IFERROR(IF(VLOOKUP(9999,'WIA-BIO'!$B$2:$AC$494,3,FALSE)="",#N/A,VLOOKUP(9999,'WIA-BIO'!$B$2:$AC$494,12,FALSE)*100),#N/A) -> 60 | AT15: =IF(VLOOKUP("9999",'2014 BIO'!$A$6:$L$500,3,FALSE)<10,#N/A,VLOOKUP("9999",'2014 BIO'!$A$6:$L$500,2,FALSE)) -> 65.60359511
AG17: School | AH17: =A4 -> 9999-District
AH18: % Proficient | AQ18: % of Students Scoring at 4.0 and higher
AH19: Reading | AK19: Math | AQ19: Writing
AG20: Grade | AH20: 2013-14 FIA | AI20: 2013-14 WIA | AJ20: 2014 FCAT 2.0 | AK20: 2013-14 FIA | AL20: 2013-14 WIA | AM20: 2014 FCAT 2.0 | AQ20: Prompt | AR20: 2013-14 Pre-Test | AS20: 2013-14 Midyear | AT20: 2014 FCAT2.0
AG21: 3 | AH21: =IFERROR(IF(VLOOKUP($A$3,'FIAG3-RAll'!$B$2:$AC$500,3,FALSE)="",#N/A,VLOOKUP($A$3,'FIAG3-RAll'!$B$2:$AC$500,12,FALSE)*100),#N/A) -> 51 | AI21: =IFERROR(IF(VLOOKUP($A$3,'WIAG3-RALL'!$B$2:$AC$500,3,FALSE)="",#N/A,VLOOKUP($A$3,'WIAG3-RALL'!$B$2:$AC$500,12,FALSE)*100),#N/A) -> 53 | AJ21: =IFERROR(VLOOKUP($A$3,'R-2014'!$A$3:$N$500,10,FALSE),"") -> 56 | AK21: =IFERROR(IF(VLOOKUP($A$3,'FIAG3-MAll'!$B$2:$AC$500,3,FALSE)="",#N/A,VLOOKUP($A$3,'FIAG3-MAll'!$B$2:$AC$500,12,FALSE)*100),#N/A) -> 61 | AL21: =IFERROR(IF(VLOOKUP($A$3,'WIAG3-MALL'!$B$2:$AC$500,3,FALSE)="",#N/A,VLOOKUP($A$3,'WIAG3-MALL'!$B$2:$AC$500,12,FALSE)*100),#N/A) -> 60 | AM21: =IFERROR(VLOOKUP($A$3,'M-2014'!$A$7:$M$500,10,FALSE),"") -> 62 | AQ21: G4-E | AR21: =IFERROR(IF(VLOOKUP(VALUE($A$3),'BLG4-WALL'!$A$14:$CZ$503,3,FALSE)="",#N/A,VLOOKUP(VALUE($A$3),'BLG4-WALL'!$A$14:$CZ$503,11,FALSE)*100),#N/A) -> 1.13 | AS21: =IFERROR(IF(VLOOKUP($A$3,'MYG4-WALL'!$A$2:$W$495,5,FALSE)<10,#N/A,VLOOKUP($A$3,'MYG4-WALL'!$A$2:$W$495,12,FALSE)),#N/A) -> 23 | AT21: =IFERROR(VLOOKUP($A$3,'W14'!$A$7:$S$500,19,FALSE),#N/A) -> 33
AG22: 4 | AH22: =IFERROR(IF(VLOOKUP($A$3,'FIAG4-RAll'!$B$2:$AC$500,3,FALSE)="",#N/A,VLOOKUP($A$3,'FIAG4-RAll'!$B$2:$AC$500,12,FALSE)*100),#N/A) -> 62 | AI22: =IFERROR(IF(VLOOKUP($A$3,'WIAG4-RALL'!$B$2:$AC$500,3,FALSE)="",#N/A,VLOOKUP($A$3,'WIAG4-RALL'!$B$2:$AC$500,12,FALSE)*100),#N/A) -> 60 | AJ22: =IFERROR(VLOOKUP($A$3,'R-2014'!$P$7:$AC$500,10,FALSE),"") -> 63 | AK22: =IFERROR(IF(VLOOKUP($A$3,'FIAG4-MAll'!$B$2:$AC$500,3,FALSE)="",#N/A,VLOOKUP($A$3,'FIAG4-MAll'!$B$2:$AC$500,12,FALSE)*100),#N/A) -> 65 | AL22: =IFERROR(IF(VLOOKUP($A$3,'WIAG4-MALL'!$B$2:$AC$500,3,FALSE)="",#N/A,VLOOKUP($A$3,'WIAG4-MALL'!$B$2:$AC$500,12,FALSE)*100),#N/A) -> 68 | AM22: =IFERROR(IF(VLOOKUP($A$3,'M-2014'!$O$6:$AB$500,3,FALSE)="",#N/A,VLOOKUP($A$3,'M-2014'!$O$6:$AB$500,10,FALSE)),#N/A) -> 66 | AQ22: G4-N | AR22: =IFERROR(IF(VLOOKUP(VALUE($A$3),'BLG4-WALL'!$A$14:$CZ$503,12,FALSE)="",#N/A,VLOOKUP(VALUE($A$3),'BLG4-WALL'!$A$14:$CZ$503,20,FALSE)*100),#N/A) -> 2.32 | AS22: =IFERROR(IF(VLOOKUP($A$3,'MYG4-WALL'!$A$2:$W$495,15,FALSE)<10,#N/A,VLOOKUP($A$3,'MYG4-WALL'!$A$2:$W$495,22,FALSE)),#N/A) -> 27
AG23: 5 | AH23: =IFERROR(IF(VLOOKUP($A$3,'FIAG5-RAll'!$B$2:$AC$500,3,FALSE)="",#N/A,VLOOKUP($A$3,'FIAG5-RAll'!$B$2:$AC$500,12,FALSE)*100),#N/A) -> 57 | AI23: =IFERROR(IF(VLOOKUP($A$3,'WIAG5-RALL'!$B$2:$AC$500,3,FALSE)="",#N/A,VLOOKUP($A$3,'WIAG5-RALL'!$B$2:$AC$500,12,FALSE)*100),#N/A) -> 59 | AJ23: =IFERROR(VLOOKUP($A$3,'R-2014'!$AE$7:$AR$500,10,FALSE),"") -> 61 | AK23: =IFERROR(IF(VLOOKUP($A$3,'FIAG5-MAll'!$B$2:$AC$500,3,FALSE)="",#N/A,VLOOKUP($A$3,'FIAG5-MAll'!$B$2:$AC$500,12,FALSE)*100),#N/A) -> 55 | AL23: =IFERROR(IF(VLOOKUP($A$3,'WIAG5-MALL'!$B$2:$AC$500,3,FALSE)="",#N/A,VLOOKUP($A$3,'WIAG5-MALL'!$B$2:$AC$500,12,FALSE)*100),#N/A) -> 51 | AM23: =IFERROR(IF(VLOOKUP($A$3,'M-2014'!$AC$6:$AP$500,3,FALSE)="",#N/A,VLOOKUP($A$3,'M-2014'!$AC$6:$AP$500,10,FALSE)),#N/A) -> 58 | AQ23: G8-E | AR23: =IFERROR(IF(VLOOKUP($A$3,'BLG8-WALL'!$A$2:$AJ$500,3,FALSE)<10,#N/A,VLOOKUP($A$3,'BLG8-WALL'!$A$2:$AJ$500,11,FALSE)*100),#N/A) -> 13.8 | AS23: =IFERROR(IF(VLOOKUP($A$3,'MYG8-WALL'!$A$2:$W$500,5,FALSE)<10,#N/A,VLOOKUP($A$3,'MYG8-WALL'!$A$2:$W$500,12,FALSE)),#N/A) -> 41 | AT23: =IFERROR(VLOOKUP($A$3,'W14'!$U$7:$AM$500,19,FALSE),#N/A) -> 34
AG24: 6 | AH24: =IFERROR(IF(VLOOKUP($A$3,'FIAG6-RAll'!$B$2:$AC$500,3,FALSE)="",#N/A,VLOOKUP($A$3,'FIAG6-RAll'!$B$2:$AC$500,12,FALSE)*100),#N/A) -> 60 | AI24: =IFERROR(IF(VLOOKUP($A$3,'WIAG6-RALL'!$B$2:$AC$500,3,FALSE)="",#N/A,VLOOKUP($A$3,'WIAG6-RALL'!$B$2:$AC$500,12,FALSE)*100),#N/A) -> 62 | AJ24: =IFERROR(IF(VLOOKUP($A$3,'R-2014'!$AT$6:$BH$500,3,FALSE)="",#N/A,VLOOKUP($A$3,'R-2014'!$AT$6:$BH$500,10,FALSE)),#N/A) -> 61 | AK24: =IFERROR(IF(OR(VLOOKUP($A$3,'FIAG6-MAll'!$B$2:$AC$500,3,FALSE)="",VLOOKUP($A$3,'FIAG6-MAll'!$B$2:$AC$500,3,FALSE)<10),#N/A,VLOOKUP($A$3,'FIAG6-MAll'!$B$2:$AC$500,12,FALSE)*100),#N/A) -> 48 | AL24: =IFERROR(IF(OR(VLOOKUP($A$3,'WIAG6-MALL'!$B$2:$AC$500,3,FALSE)="",VLOOKUP($A$3,'WIAG6-MALL'!$B$2:$AC$500,3,FALSE)<10),#N/A,VLOOKUP($A$3,'WIAG6-MALL'!$B$2:$AC$500,12,FALSE)*100),#N/A) -> 47 | AM24: =IFERROR(IF(VLOOKUP($A$3,'M-2014'!$AQ$6:$BD$500,3,FALSE)="",#N/A,VLOOKUP($A$3,'M-2014'!$AQ$6:$BD$500,10,FALSE)),#N/A) -> 53 | AQ24: G8-P | AR24: =IFERROR(IF(VLOOKUP($A$3,'BLG8-WALL'!$A$2:$AJ$500,12,FALSE)<10,#N/A,VLOOKUP($A$3,'BLG8-WALL'!$A$2:$AJ$500,20,FALSE)*100),#N/A) -> 8.69 | AS24: =IFERROR(IF(VLOOKUP($A$3,'MYG8-WALL'!$A$2:$W$500,15,FALSE)<10,#N/A,VLOOKUP($A$3,'MYG8-WALL'!$A$2:$W$500,22,FALSE)),#N/A) -> 40
AG25: 7 | AH25: =IFERROR(IF(VLOOKUP($A$3,'FIAG7-RAll'!$B$2:$AC$500,3,FALSE)="",#N/A,VLOOKUP($A$3,'FIAG7-RAll'!$B$2:$AC$500,12,FALSE)*100),#N/A) -> 59 | AI25: =IFERROR(IF(VLOOKUP($A$3,'WIAG7-RALL'!$B$2:$AC$500,3,FALSE)="",#N/A,VLOOKUP($A$3,'WIAG7-RALL'!$B$2:$AC$500,12,FALSE)*100),#N/A) -> 60 | AJ25: =IFERROR(IF(VLOOKUP($A$3,'R-2014'!$BI$6:$BW$500,3,FALSE)="",#N/A,VLOOKUP($A$3,'R-2014'!$BI$6:$BW$500,10,FALSE)),#N/A) -> 57 | AK25: =IFERROR(IF(VLOOKUP($A$3,'FIAG7-MAll'!$B$2:$AC$500,3,FALSE)="",#N/A,VLOOKUP($A$3,'FIAG7-MAll'!$B$2:$AC$500,12,FALSE)*100),#N/A) -> 42 | AL25: =IFERROR(IF(VLOOKUP($A$3,'WIAG7-MALL'!$B$2:$AC$500,3,FALSE)="",#N/A,VLOOKUP($A$3,'WIAG7-MALL'!$B$2:$AC$500,12,FALSE)*100),#N/A) -> 43 | AM25: =IFERROR(IF(VLOOKUP($A$3,'M-2014'!$BE$6:$BS$500,3,FALSE)="",#N/A,VLOOKUP($A$3,'M-2014'!$BE$6:$BS$500,10,FALSE)),#N/A) -> 52 | AQ25: Science
AG26: 8 | AH26: =IFERROR(IF(VLOOKUP($A$3,'FIAG8-RAll'!$B$2:$AC$500,3,FALSE)="",#N/A,VLOOKUP($A$3,'FIAG8-RAll'!$B$2:$AC$500,12,FALSE)*100),#N/A) -> 54 | AI26: =IFERROR(IF(VLOOKUP($A$3,'WIAG8-RALL'!$B$2:$AC$500,3,FALSE)="",#N/A,VLOOKUP($A$3,'WIAG8-RALL'!$B$2:$AC$500,12,FALSE)*100),#N/A) -> 56 | AJ26: =IFERROR(IF(VLOOKUP($A$3,'R-2014'!$BX$6:$CL$500,3,FALSE)="",#N/A,VLOOKUP($A$3,'R-2014'!$BX$6:$CL$500,10,FALSE)),#N/A) -> 57 | AK26: =IFERROR(IF(OR(VLOOKUP($A$3,'FIAG8-MAll'!$B$2:$AC$500,3,FALSE)="",VLOOKUP($A$3,'FIAG8-MAll'!$B$2:$AC$500,3,FALSE)<10),#N/A,VLOOKUP($A$3,'FIAG8-MAll'!$B$2:$AC$500,12,FALSE)*100),#N/A) -> 21 | AL26: =IFERROR(IF(OR(VLOOKUP($A$3,'WIAG8-MALL'!$B$2:$AC$500,3,FALSE)="",VLOOKUP($A$3,'WIAG8-MALL'!$B$2:$AC$500,3,FALSE)<10),#N/A,VLOOKUP($A$3,'WIAG8-MALL'!$B$2:$AC$500,12,FALSE)*100),#N/A) -> 23 | AM26: =IFERROR(IF(VLOOKUP($A$3,'M-2014'!$BT$6:$CG$500,3,FALSE)="",#N/A,VLOOKUP($A$3,'M-2014'!$BT$6:$CG$500,10,FALSE)),#N/A) -> 33 | AQ26: Grade | AR26: FIA | AS26: WIA | AT26: 2014 FCAT 2.0
AG27: Alg. | AK27: =IFERROR(IF(OR(VLOOKUP($A$3,'FIA-ALG'!$B$2:$AC$500,3,FALSE)="",VLOOKUP($A$3,'FIA-ALG'!$B$2:$AC$500,3,FALSE)<10),#N/A,VLOOKUP($A$3,'FIA-ALG'!$B$2:$AC$500,12,FALSE)*100),#N/A) -> 68 | AL27: =IFERROR(IF(OR(VLOOKUP($A$3,'WIA-ALG'!$B$2:$AC$500,3,FALSE)="",VLOOKUP($A$3,'WIA-ALG'!$B$2:$AC$500,3,FALSE)<10),#N/A,VLOOKUP($A$3,'WIA-ALG'!$B$2:$AC$500,12,FALSE)*100),#N/A) -> 68 | AM27: =IF(VLOOKUP(TEXT($A$3,"0000"),'2014 ALG'!$A$6:$L$500,4,FALSE)<10,#N/A,VLOOKUP(TEXT($A$3,"0000"),'2014 ALG'!$A$6:$L$500,3,FALSE)*100) -> 68.49849552 | AQ27: Gr. 5 | AR27: =IFERROR(IF(VLOOKUP($A$3,'FIAG5-SALL'!$B$2:$AC$500,3,FALSE)="",#N/A,VLOOKUP($A$3,'FIAG5-SALL'!$B$2:$AC$500,12,FALSE)*100),#N/A) -> 51 | AS27: =IFERROR(IF(VLOOKUP($A$3,'WIAG5-SALL'!$B$2:$AC$500,3,FALSE)="",#N/A,VLOOKUP($A$3,'WIAG5-SALL'!$B$2:$AC$500,12,FALSE)*100),#N/A) -> 56 | AT27: =IFERROR(VLOOKUP($A$3,'S-2014'!$A$3:$N$500,10,FALSE),#N/A) -> 51
AG28: Geo. | AK28: =IFERROR(IF(OR(VLOOKUP($A$3,'FIA-GEO'!$B$2:$AC$500,3,FALSE)="",VLOOKUP($A$3,'FIA-GEO'!$B$2:$AC$500,3,FALSE)<10),#N/A,VLOOKUP($A$3,'FIA-GEO'!$B$2:$AC$500,12,FALSE)*100),#N/A) -> 60 | AL28: =IFERROR(IF(OR(VLOOKUP($A$3,'WIA-GEO'!$B$2:$AC$500,3,FALSE)="",VLOOKUP($A$3,'WIA-GEO'!$B$2:$AC$500,3,FALSE)<10),#N/A,VLOOKUP($A$3,'WIA-GEO'!$B$2:$AC$500,12,FALSE)*100),#N/A) -> 43 | AM28: =IF(VLOOKUP(TEXT($A$3,"0000"),'2014 GEO'!$A$6:$L$500,2,FALSE)<10,#N/A,VLOOKUP(TEXT($A$3,"0000"),'2014 GEO'!$A$6:$L$500,4,FALSE)) -> 63 | AQ28: Gr. 8 | AR28: =IFERROR(IF(OR(VLOOKUP($A$3,'FIAG8-SALL'!$B$2:$AC$496,3,FALSE)="",VLOOKUP($A$3,'FIAG8-SALL'!$B$2:$AC$496,3,FALSE)<10),#N/A,VLOOKUP($A$3,'FIAG8-SALL'!$B$2:$AC$496,12,FALSE)*100),#N/A) -> 40 | AS28: =IFERROR(IF(VLOOKUP($A$3,'WIAG8-SALL'!$B$2:$AC$496,3,FALSE)="",#N/A,VLOOKUP($A$3,'WIAG8-SALL'!$B$2:$AC$496,12,FALSE)*100),#N/A) -> 41 | AT28: =IFERROR(IF(VLOOKUP($A$3,'S-2014'!$P$7:$AC$500,10,FALSE)="",#N/A,VLOOKUP($A$3,'S-2014'!$P$7:$AC$500,10,FALSE)),#N/A) -> 44
AQ29: Bio | AR29: =IFERROR(IF(VLOOKUP($A$3,'FIA-BIO'!$B$2:$AC$492,3,FALSE)="",#N/A,VLOOKUP($A$3,'FIA-BIO'!$B$2:$AC$492,12,FALSE)*100),#N/A) -> 54 | AS29: =IFERROR(IF(VLOOKUP($A$3,'WIA-BIO'!$B$2:$AC$494,3,FALSE)="",#N/A,VLOOKUP($A$3,'WIA-BIO'!$B$2:$AC$494,12,FALSE)*100),#N/A) -> 60 | AT29: =IF(VLOOKUP("$a$3",'2014 BIO'!$A$6:$L$500,3,FALSE)<10,#N/A,VLOOKUP("$a$3",'2014 BIO'!$A$6:$L$500,2,FALSE)) -> 

Sheet G6-8 FIA Trend Report
A2: Click here to return to the school and sheet selection interface | AF2: District | AG2: Average % Correct | AT2: District | AU2: % Proficient
A3: ='Select School'!B3 -> 9999 | AG3: District | AU3: District
A4: =TEXT(A3,"0000")&"-"&VLOOKUP(A3,SchList!$A$2:$B$502,2,FALSE) -> 9999-District | AG4: Average % Correct | AP4: Average Score | AU4: % Proficient | BD4: % of Students Scoring at 4.0 and higher
A5: Fall IA Trend Report: 2013 FCAT 2.0, 2012 Fall Interim Assessment, and 2013 Fall Interim Assessment | AG5: Reading | AJ5: Math | AM5: Science | AP5: Writing | AU5: Reading | AX5: Math | BA5: Science | BD5: Writing
AF6: Grade | AG6: Baseline | AH6: Fall IA | AI6: Winter IA | AJ6: Baseline | AK6: Fall IA | AL6: Winter IA | AM6: BL | AN6: Fall | AO6: Winter | AP6: Prompt | AQ6: Pre-Test | AR6: Midyear | AT6: Grade | AU6: 2013 FCAT 2.0 | AV6: 2012 Fall IA | AW6: 2013 Fall IA | AX6: 2013 FCAT 2.0 | AY6: 2012 Fall IA | AZ6: 2013 Fall IA | BA6: 2013 FCAT 2.0 | BB6: 2012 Fall IA | BC6: 2013 Fall IA | BD6: Prompt | BE6: Baseline | BF6: Midyear
AF7: 3 | AG7: =IFERROR(IF(VLOOKUP(9999,'BLG3-RALL'!$A$14:$CZ$500,3,FALSE)="",#N/A,VLOOKUP(9999,'BLG3-RALL'!$A$14:$CZ$500,5,FALSE)*100),#N/A) -> 55 | AH7: =IFERROR(IF(VLOOKUP(9999,#REF!,3,FALSE)="",#N/A,VLOOKUP(9999,#REF!,5,FALSE)*100),#N/A) ->  | AI7: =IFERROR(IF(VLOOKUP(9999,#REF!,3,FALSE)="",#N/A,VLOOKUP(9999,#REF!,5,FALSE)*100),#N/A) ->  | AJ7: =IFERROR(IF(VLOOKUP(9999,'BLG3-MALL'!$A$14:$CZ$500,3,FALSE)="",#N/A,VLOOKUP(9999,'BLG3-MALL'!$A$14:$CZ$500,5,FALSE)*100),#N/A) -> 39 | AK7: =IFERROR(IF(VLOOKUP(9999,#REF!,3,FALSE)="",#N/A,VLOOKUP(9999,#REF!,5,FALSE)*100),#N/A) ->  | AL7: =IFERROR(IF(VLOOKUP(9999,#REF!,3,FALSE)="",#N/A,VLOOKUP(9999,#REF!,5,FALSE)*100),#N/A) ->  | AP7: Expository | AQ7: =IFERROR(IF(VLOOKUP(9999,'BLG4-WALL'!$A$14:$CZ$503,3,FALSE)="",#N/A,VLOOKUP(9999,'BLG4-WALL'!$A$14:$CZ$503,4,FALSE)),#N/A) -> 1.399999976 | AR7: =IFERROR(IF(VLOOKUP(9999,'MYG4-WALL'!$A$14:$CG$495,3,FALSE)="",#N/A,VLOOKUP(9999,'MYG4-WALL'!$A$14:$CG$495,4,FALSE)),#N/A) -> E | AT7: 6 | AU7: =IFERROR(IF(VLOOKUP(9999,'R-2013'!$AT$6:$BH$500,3,FALSE)="",#N/A,VLOOKUP(9999,'R-2013'!$AT$6:$BH$500,10,FALSE)),#N/A) -> 57 | AV7: =IFERROR(IF(VLOOKUP(9999,'2012 FIA-Read'!$AH$14:$AR$500,3,FALSE)="",#N/A,VLOOKUP(9999,'2012 FIA-Read'!$AH$14:$AR$500,11,FALSE)*100),#N/A) -> 51.84 | AW7: =IFERROR(IF(VLOOKUP(9999,'FIAG6-RAll'!$B$2:$AC$500,3,FALSE)="",#N/A,VLOOKUP(9999,'FIAG6-RAll'!$B$2:$AC$500,12,FALSE)*100),#N/A) -> 60 | AX7: =IFERROR(IF(VLOOKUP(9999,'M-2013'!$AQ$6:$BD$500,3,FALSE)="",#N/A,VLOOKUP(9999,'M-2013'!$AQ$6:$BD$500,10,FALSE)),#N/A) -> 51 | AY7: =IFERROR(IF(VLOOKUP(9999,'2012 FIA-Math'!$AH$14:$AR$500,3,FALSE)="",#N/A,VLOOKUP(9999,'2012 FIA-Math'!$AH$14:$AR$500,11,FALSE)*100),#N/A) -> 48.23 | AZ7: =IFERROR(IF(VLOOKUP(9999,'FIAG6-MAll'!$B$2:$AC$500,3,FALSE)="",#N/A,VLOOKUP(9999,'FIAG6-MAll'!$B$2:$AC$500,12,FALSE)*100),#N/A) -> 48 | BD7: Expository | BE7: =IFERROR(IF(VLOOKUP(9999,'BLG8-WALL'!$A$14:$BY$503,3,FALSE)="",#N/A,VLOOKUP(9999,'BLG8-WALL'!$A$14:$BY$503,11,FALSE)*100),#N/A) -> 13.8 | BF7: =IFERROR(IF(VLOOKUP(9999,#REF!,3,FALSE)="",#N/A,VLOOKUP(9999,#REF!,11,FALSE)*100),#N/A) -> 
AF8: 4 | AG8: =IFERROR(IF(VLOOKUP(9999,'BLG4-RALL'!$A$14:$CZ$500,3,FALSE)="",#N/A,VLOOKUP(9999,'BLG4-RALL'!$A$14:$CZ$500,5,FALSE)*100),#N/A) -> 60 | AH8: =IFERROR(IF(VLOOKUP(9999,#REF!,3,FALSE)="",#N/A,VLOOKUP(9999,#REF!,5,FALSE)*100),#N/A) ->  | AI8: =IFERROR(IF(VLOOKUP(9999,#REF!,3,FALSE)="",#N/A,VLOOKUP(9999,#REF!,5,FALSE)*100),#N/A) ->  | AJ8: =IFERROR(IF(VLOOKUP(9999,'BLG4-MALL'!$A$14:$CZ$500,3,FALSE)="",#N/A,VLOOKUP(9999,'BLG4-MALL'!$A$14:$CZ$500,5,FALSE)*100),#N/A) -> 41 | AK8: =IFERROR(IF(VLOOKUP(9999,#REF!,3,FALSE)="",#N/A,VLOOKUP(9999,#REF!,5,FALSE)*100),#N/A) ->  | AL8: =IFERROR(IF(VLOOKUP(9999,#REF!,3,FALSE)="",#N/A,VLOOKUP(9999,#REF!,5,FALSE)*100),#N/A) ->  | AP8: Narrative | AQ8: =IFERROR(IF(VLOOKUP(9999,'BLG4-WALL'!$A$14:$CZ$503,12,FALSE)="",#N/A,VLOOKUP(9999,'BLG4-WALL'!$A$14:$CZ$503,13,FALSE)),#N/A) -> 1.5 | AR8: =IFERROR(IF(VLOOKUP(9999,'MYG4-WALL'!$A$14:$CG$495,12,FALSE)="",#N/A,VLOOKUP(9999,'MYG4-WALL'!$A$14:$CG$495,13,FALSE)),#N/A) -> 61 | AT8: 7 | AU8: =IFERROR(IF(VLOOKUP(9999,'R-2013'!$BI$6:$BW$500,3,FALSE)="",#N/A,VLOOKUP(9999,'R-2013'!$BI$6:$BW$500,10,FALSE)),#N/A) -> 57 | AV8: =IFERROR(IF(VLOOKUP(9999,'2012 FIA-Read'!$AS$14:$BC$500,3,FALSE)="",#N/A,VLOOKUP(9999,'2012 FIA-Read'!$AS$14:$BC$500,11,FALSE)*100),#N/A) -> 49.22 | AW8: =IFERROR(IF(VLOOKUP(9999,'FIAG7-RAll'!$B$2:$AC$500,3,FALSE)="",#N/A,VLOOKUP(9999,'FIAG7-RAll'!$B$2:$AC$500,12,FALSE)*100),#N/A) -> 59 | AX8: =IFERROR(IF(VLOOKUP(9999,'M-2013'!$BE$6:$BS$500,3,FALSE)="",#N/A,VLOOKUP(9999,'M-2013'!$BE$6:$BS$500,10,FALSE)),#N/A) -> 51 | AY8: =IFERROR(IF(VLOOKUP(9999,'2012 FIA-Math'!$AS$14:$BC$500,3,FALSE)="",#N/A,VLOOKUP(9999,'2012 FIA-Math'!$AS$14:$BC$500,11,FALSE)*100),#N/A) -> 47.05 | AZ8: =IFERROR(IF(VLOOKUP(9999,'FIAG7-MAll'!$B$2:$AC$500,3,FALSE)="",#N/A,VLOOKUP(9999,'FIAG7-MAll'!$B$2:$AC$500,12,FALSE)*100),#N/A) -> 42 | BD8: Narrative | BE8: =IFERROR(IF(VLOOKUP(9999,'BLG8-WALL'!$A$14:$BY$503,12,FALSE)="",#N/A,VLOOKUP(9999,'BLG8-WALL'!$A$14:$BY$503,20,FALSE)*100),#N/A) -> 8.69 | BF8: =IFERROR(IF(VLOOKUP(9999,#REF!,12,FALSE)="",#N/A,VLOOKUP(9999,#REF!,20,FALSE)*100),#N/A) -> 
AF9: 5 | AG9: =IFERROR(IF(VLOOKUP(9999,'BLG5-RALL'!$A$14:$CZ$500,3,FALSE)="",#N/A,VLOOKUP(9999,'BLG5-RALL'!$A$14:$CZ$500,5,FALSE)*100),#N/A) -> 61 | AH9: =IFERROR(IF(VLOOKUP(9999,#REF!,3,FALSE)="",#N/A,VLOOKUP(9999,#REF!,5,FALSE)*100),#N/A) ->  | AI9: =IFERROR(IF(VLOOKUP(9999,#REF!,3,FALSE)="",#N/A,VLOOKUP(9999,#REF!,5,FALSE)*100),#N/A) ->  | AJ9: =IFERROR(IF(VLOOKUP(9999,'BLG5-MALL'!$A$14:$CZ$500,3,FALSE)="",#N/A,VLOOKUP(9999,'BLG5-MALL'!$A$14:$CZ$500,5,FALSE)*100),#N/A) -> 42 | AK9: =IFERROR(IF(VLOOKUP(9999,#REF!,3,FALSE)="",#N/A,VLOOKUP(9999,#REF!,5,FALSE)*100),#N/A) ->  | AL9: =IFERROR(IF(VLOOKUP(9999,#REF!,3,FALSE)="",#N/A,VLOOKUP(9999,#REF!,5,FALSE)*100),#N/A) ->  | AM9: =IFERROR(IF(VLOOKUP(9999,'BLG5-SALL'!$A$14:$CZ$500,3,FALSE)="",#N/A,VLOOKUP(9999,'BLG5-SALL'!$A$14:$CZ$500,5,FALSE)*100),#N/A) -> 46 | AN9: =IFERROR(IF(VLOOKUP(9999,#REF!,3,FALSE)="",#N/A,VLOOKUP(9999,#REF!,5,FALSE)*100),#N/A) ->  | AO9: =IFERROR(IF(VLOOKUP(9999,#REF!,3,FALSE)="",#N/A,VLOOKUP(9999,#REF!,5,FALSE)*100),#N/A) ->  | AT9: 8 | AU9: =IFERROR(IF(VLOOKUP(9999,'R-2013'!$BX$6:$CL$500,3,FALSE)="",#N/A,VLOOKUP(9999,'R-2013'!$BX$6:$CL$500,10,FALSE)),#N/A) -> 56 | AV9: =IFERROR(IF(VLOOKUP(9999,'2012 FIA-Read'!$BD$14:$BN$500,3,FALSE)="",#N/A,VLOOKUP(9999,'2012 FIA-Read'!$BD$14:$BN$500,11,FALSE)*100),#N/A) -> 49.79 | AW9: =IFERROR(IF(VLOOKUP(9999,'FIAG8-RAll'!$B$2:$AC$500,3,FALSE)="",#N/A,VLOOKUP(9999,'FIAG8-RAll'!$B$2:$AC$500,12,FALSE)*100),#N/A) -> 54 | AX9: =IFERROR(IF(VLOOKUP(9999,'M-2013'!$BT$6:$CG$500,3,FALSE)="",#N/A,VLOOKUP(9999,'M-2013'!$BT$6:$CG$500,10,FALSE)),#N/A) -> 35 | AY9: =IFERROR(IF(VLOOKUP(9999,'2012 FIA-Math'!$BD$14:$BN$500,3,FALSE)="",#N/A,VLOOKUP(9999,'2012 FIA-Math'!$BD$14:$BN$500,11,FALSE)*100),#N/A) -> 39.49 | AZ9: =IFERROR(IF(VLOOKUP(9999,'FIAG8-MAll'!$B$2:$AC$500,3,FALSE)="",#N/A,VLOOKUP(9999,'FIAG8-MAll'!$B$2:$AC$500,12,FALSE)*100),#N/A) -> 21 | BA9: =IFERROR(IF(VLOOKUP(9999,'S-2013'!$P$6:$AC$272,3,FALSE)="",#N/A,VLOOKUP(9999,'S-2013'!$P$6:$AC$272,10,FALSE)),#N/A) -> 42 | BB9: =IFERROR(IF(VLOOKUP(9999,'2012 FIA-Sci'!$L$14:$V$500,3,FALSE)="",#N/A,VLOOKUP(9999,'2012 FIA-Sci'!$L$14:$V$500,11,FALSE)*100),#N/A) -> 37.57 | BC9: =IFERROR(IF(VLOOKUP(9999,'FIAG8-SALL'!$B$2:$AC$496,3,FALSE)="",#N/A,VLOOKUP(9999,'FIAG8-SALL'!$B$2:$AC$496,12,FALSE)*100),#N/A) -> 40
AT10: Alg. | AX10: =IFERROR(VLOOKUP(9999,'2013 ALG'!$A$6:$I$500,5,FALSE),#N/A) -> 66 | AY10: =IFERROR(IF(VLOOKUP(9999,'2012 FIA-EOC'!$A$14:$K$500,3,FALSE)="",#N/A,VLOOKUP(9999,'2012 FIA-EOC'!$A$14:$K$500,11,FALSE)*100),#N/A) -> 49.93294891 | AZ10: =IFERROR(IF(VLOOKUP(9999,'FIA-ALG'!$B$2:$AC$500,3,FALSE)="",#N/A,VLOOKUP(9999,'FIA-ALG'!$B$2:$AC$500,12,FALSE)*100),#N/A) -> 68
AF11: School | AG11: =A4 -> 9999-District | AT11: Geo. | AX11: =IFERROR(VLOOKUP(9999,'2013 GEO'!$A$6:$I$500,5,FALSE),#N/A) -> 60 | AY11: =IFERROR(IF(VLOOKUP(9999,'2012 FIA-EOC'!$L$14:$V$500,3,FALSE)="",#N/A,VLOOKUP(9999,'2012 FIA-EOC'!$L$14:$V$500,11,FALSE)*100),#N/A) -> 44.94303106 | AZ11: =IFERROR(IF(VLOOKUP(9999,'FIA-GEO'!$B$2:$AC$500,3,FALSE)="",#N/A,VLOOKUP(9999,'FIA-GEO'!$B$2:$AC$500,12,FALSE)*100),#N/A) -> 60
AG12: Average % Correct | AP12: Average Score
AG13: Reading | AJ13: Math | AM13: Science | AP13: Writing | AT13: School | AU13: =A4 -> 9999-District
AF14: Grade | AG14: Baseline | AH14: Fall IA | AI14: Winter IA | AJ14: Baseline | AK14: Fall IA | AL14: Winter IA | AM14: BL | AN14: Fall | AO14: Winter | AP14: Prompt | AQ14: Pre-Test | AR14: Midyear | AU14: % Proficient | BD14: % of Students Scoring at 4.0 and higher
AF15: 3 | AG15: =IFERROR(IF(VLOOKUP($A$3,'BLG3-RALL'!$A$14:$CZ$500,3,FALSE)="",#N/A,VLOOKUP($A$3,'BLG3-RALL'!$A$14:$CZ$500,5,FALSE)*100),#N/A) -> 55 | AH15: =IFERROR(IF(VLOOKUP($A$3,#REF!,3,FALSE)="",#N/A,VLOOKUP($A$3,#REF!,5,FALSE)*100),#N/A) ->  | AI15: =IFERROR(IF(VLOOKUP($A$3,#REF!,3,FALSE)="",#N/A,VLOOKUP($A$3,#REF!,5,FALSE)*100),#N/A) ->  | AJ15: =IFERROR(IF(VLOOKUP($A$3,'BLG3-MALL'!$A$14:$CZ$500,3,FALSE)="",#N/A,VLOOKUP($A$3,'BLG3-MALL'!$A$14:$CZ$500,5,FALSE)*100),#N/A) -> 39 | AK15: =IFERROR(IF(VLOOKUP($A$3,#REF!,3,FALSE)="",#N/A,VLOOKUP($A$3,#REF!,5,FALSE)*100),#N/A) ->  | AL15: =IFERROR(IF(VLOOKUP($A$3,#REF!,3,FALSE)="",#N/A,VLOOKUP($A$3,#REF!,5,FALSE)*100),#N/A) ->  | AP15: Expository | AQ15: =IFERROR(IF(VLOOKUP($A$3,'BLG4-WALL'!$A$14:$CZ$503,3,FALSE)="",#N/A,VLOOKUP($A$3,'BLG4-WALL'!$A$14:$CZ$503,4,FALSE)),#N/A) -> 1.399999976 | AR15: =IFERROR(IF(VLOOKUP($A$3,'MYG4-WALL'!$A$14:$CG$495,3,FALSE)="",#N/A,VLOOKUP($A$3,'MYG4-WALL'!$A$14:$CG$495,4,FALSE)),#N/A) -> E | AU15: Reading | AX15: Math | BA15: Science | BD15: Writing
AF16: 4 | AG16: =IFERROR(IF(VLOOKUP($A$3,'BLG4-RALL'!$A$14:$CZ$500,3,FALSE)="",#N/A,VLOOKUP($A$3,'BLG4-RALL'!$A$14:$CZ$500,5,FALSE)*100),#N/A) -> 60 | AH16: =IFERROR(IF(VLOOKUP($A$3,#REF!,3,FALSE)="",#N/A,VLOOKUP($A$3,#REF!,5,FALSE)*100),#N/A) ->  | AI16: =IFERROR(IF(VLOOKUP($A$3,#REF!,3,FALSE)="",#N/A,VLOOKUP($A$3,#REF!,5,FALSE)*100),#N/A) ->  | AJ16: =IFERROR(IF(VLOOKUP($A$3,'BLG4-MALL'!$A$14:$CZ$500,3,FALSE)="",#N/A,VLOOKUP($A$3,'BLG4-MALL'!$A$14:$CZ$500,5,FALSE)*100),#N/A) -> 41 | AK16: =IFERROR(IF(VLOOKUP($A$3,#REF!,3,FALSE)="",#N/A,VLOOKUP($A$3,#REF!,5,FALSE)*100),#N/A) ->  | AL16: =IFERROR(IF(VLOOKUP($A$3,#REF!,3,FALSE)="",#N/A,VLOOKUP($A$3,#REF!,5,FALSE)*100),#N/A) ->  | AP16: Narrative | AQ16: =IFERROR(IF(VLOOKUP($A$3,'BLG4-WALL'!$A$14:$CZ$503,12,FALSE)="",#N/A,VLOOKUP($A$3,'BLG4-WALL'!$A$14:$CZ$503,13,FALSE)),#N/A) -> 1.5 | AR16: =IFERROR(IF(VLOOKUP($A$3,'MYG4-WALL'!$A$14:$CG$495,12,FALSE)="",#N/A,VLOOKUP($A$3,'MYG4-WALL'!$A$14:$CG$495,13,FALSE)),#N/A) -> 61 | AS16: Grade | AT16: Grade | AU16: 2013 FCAT 2.0 | AV16: 2012 Fall IA | AW16: 2013 Fall IA | AX16: 2013 FCAT 2.0/EOC | AY16: 2012 Fall IA/EOC | AZ16: 2013 Fall IA/EOC | BA16: 2013 FCAT 2.0 | BB16: 2012 Fall IA | BC16: 2013 Fall IA | BD16: Prompt | BE16: Baseline | BF16: Midyear
AF17: 5 | AG17: =IFERROR(IF(VLOOKUP($A$3,'BLG5-RALL'!$A$14:$CZ$500,3,FALSE)="",#N/A,VLOOKUP($A$3,'BLG5-RALL'!$A$14:$CZ$500,5,FALSE)*100),#N/A) -> 61 | AH17: =IFERROR(IF(VLOOKUP($A$3,#REF!,3,FALSE)="",#N/A,VLOOKUP($A$3,#REF!,5,FALSE)*100),#N/A) ->  | AI17: =IFERROR(IF(VLOOKUP($A$3,#REF!,3,FALSE)="",#N/A,VLOOKUP($A$3,#REF!,5,FALSE)*100),#N/A) ->  | AJ17: =IFERROR(IF(VLOOKUP($A$3,'BLG5-MALL'!$A$14:$CZ$500,3,FALSE)="",#N/A,VLOOKUP($A$3,'BLG5-MALL'!$A$14:$CZ$500,5,FALSE)*100),#N/A) -> 42 | AK17: =IFERROR(IF(VLOOKUP($A$3,#REF!,3,FALSE)="",#N/A,VLOOKUP($A$3,#REF!,5,FALSE)*100),#N/A) ->  | AL17: =IFERROR(IF(VLOOKUP($A$3,#REF!,3,FALSE)="",#N/A,VLOOKUP($A$3,#REF!,5,FALSE)*100),#N/A) ->  | AM17: =IFERROR(IF(VLOOKUP($A$3,'BLG5-SALL'!$A$14:$CZ$500,3,FALSE)="",#N/A,VLOOKUP($A$3,'BLG5-SALL'!$A$14:$CZ$500,5,FALSE)*100),#N/A) -> 46 | AN17: =IFERROR(IF(VLOOKUP($A$3,#REF!,3,FALSE)="",#N/A,VLOOKUP($A$3,#REF!,5,FALSE)*100),#N/A) ->  | AO17: =IFERROR(IF(VLOOKUP($A$3,#REF!,3,FALSE)="",#N/A,VLOOKUP($A$3,#REF!,5,FALSE)*100),#N/A) ->  | AS17: 6 | AT17: 6 | AU17: =IFERROR(IF(VLOOKUP($A$3,'R-2013'!$AT$6:$BH$500,3,FALSE)="",#N/A,VLOOKUP($A$3,'R-2013'!$AT$6:$BH$500,10,FALSE)),#N/A) -> 57 | AV17: =IFERROR(IF(VLOOKUP($A$3,'2012 FIA-Read'!$AH$14:$AR$500,3,FALSE)="",#N/A,VLOOKUP($A$3,'2012 FIA-Read'!$AH$14:$AR$500,11,FALSE)*100),#N/A) -> 51.84 | AW17: =IFERROR(IF(VLOOKUP($A$3,'FIAG6-RAll'!$B$2:$AC$500,3,FALSE)="",#N/A,VLOOKUP($A$3,'FIAG6-RAll'!$B$2:$AC$500,12,FALSE)*100),#N/A) -> 60 | AX17: =IFERROR(IF(VLOOKUP($A$3,'M-2013'!$AQ$6:$BD$500,3,FALSE)="",#N/A,VLOOKUP($A$3,'M-2013'!$AQ$6:$BD$500,10,FALSE)),#N/A) -> 51 | AY17: =IFERROR(IF(OR(VLOOKUP($A$3,'2012 FIA-Math'!$AH$14:$AR$500,3,FALSE)="",VLOOKUP($A$3,'2012 FIA-Math'!$AH$14:$AR$500,3,FALSE)<10),#N/A,VLOOKUP($A$3,'2012 FIA-Math'!$AH$14:$AR$500,11,FALSE)*100),#N/A) -> 48.23 | AZ17: =IFERROR(IF(OR(VLOOKUP($A$3,'FIAG6-MAll'!$B$2:$AC$500,3,FALSE)="",VLOOKUP($A$3,'FIAG6-MAll'!$B$2:$AC$500,3,FALSE)<10),#N/A,VLOOKUP($A$3,'FIAG6-MAll'!$B$2:$AC$500,12,FALSE)*100),#N/A) -> 48 | BD17: Expository | BE17: =IFERROR(IF(VLOOKUP($A$3,'BLG8-WALL'!$A$14:$BY$503,3,FALSE)="",#N/A,VLOOKUP($A$3,'BLG8-WALL'!$A$14:$BY$503,11,FALSE)*100),#N/A) -> 13.8 | BF17: =IFERROR(IF(VLOOKUP($A$3,#REF!,3,FALSE)="",#N/A,VLOOKUP($A$3,#REF!,11,FALSE)*100),#N/A) -> 
AS18: 7 | AT18: 7 | AU18: =IFERROR(IF(VLOOKUP($A$3,'R-2013'!$BI$6:$BW$500,3,FALSE)="",#N/A,VLOOKUP($A$3,'R-2013'!$BI$6:$BW$500,10,FALSE)),#N/A) -> 57 | AV18: =IFERROR(IF(VLOOKUP($A$3,'2012 FIA-Read'!$AS$14:$BC$500,3,FALSE)="",#N/A,VLOOKUP($A$3,'2012 FIA-Read'!$AS$14:$BC$500,11,FALSE)*100),#N/A) -> 49.22 | AW18: =IFERROR(IF(VLOOKUP($A$3,'FIAG7-RAll'!$B$2:$AC$500,3,FALSE)="",#N/A,VLOOKUP($A$3,'FIAG7-RAll'!$B$2:$AC$500,12,FALSE)*100),#N/A) -> 59 | AX18: =IFERROR(IF(VLOOKUP($A$3,'M-2013'!$BE$6:$BS$500,3,FALSE)="",#N/A,VLOOKUP($A$3,'M-2013'!$BE$6:$BS$500,10,FALSE)),#N/A) -> 51 | AY18: =IFERROR(IF(OR(VLOOKUP($A$3,'2012 FIA-Math'!$AS$14:$BC$500,3,FALSE)="",VLOOKUP($A$3,'2012 FIA-Math'!$AS$14:$BC$500,3,FALSE)<10),#N/A,VLOOKUP($A$3,'2012 FIA-Math'!$AS$14:$BC$500,11,FALSE)*100),#N/A) -> 47.05 | AZ18: =IFERROR(IF(VLOOKUP($A$3,'FIAG7-MAll'!$B$2:$AC$500,3,FALSE)="",#N/A,VLOOKUP($A$3,'FIAG7-MAll'!$B$2:$AC$500,12,FALSE)*100),#N/A) -> 42 | BD18: Narrative | BE18: =IFERROR(IF(VLOOKUP($A$3,'BLG8-WALL'!$A$14:$BY$503,12,FALSE)="",#N/A,VLOOKUP($A$3,'BLG8-WALL'!$A$14:$BY$503,20,FALSE)*100),#N/A) -> 8.69 | BF18: =IFERROR(IF(VLOOKUP($A$3,#REF!,12,FALSE)="",#N/A,VLOOKUP($A$3,#REF!,20,FALSE)*100),#N/A) -> 
AS19: 8 | AT19: 8 | AU19: =IFERROR(IF(VLOOKUP($A$3,'R-2013'!$BX$6:$CL$500,3,FALSE)="",#N/A,VLOOKUP($A$3,'R-2013'!$BX$6:$CL$500,10,FALSE)),#N/A) -> 56 | AV19: =IFERROR(IF(VLOOKUP($A$3,'2012 FIA-Read'!$BD$14:$BN$500,3,FALSE)="",#N/A,VLOOKUP($A$3,'2012 FIA-Read'!$BD$14:$BN$500,11,FALSE)*100),#N/A) -> 49.79 | AW19: =IFERROR(IF(VLOOKUP($A$3,'FIAG8-RAll'!$B$2:$AC$500,3,FALSE)="",#N/A,VLOOKUP($A$3,'FIAG8-RAll'!$B$2:$AC$500,12,FALSE)*100),#N/A) -> 54 | AX19: =IFERROR(IF(VLOOKUP($A$3,'M-2013'!$BT$6:$CG$500,3,FALSE)="",#N/A,VLOOKUP($A$3,'M-2013'!$BT$6:$CG$500,10,FALSE)),#N/A) -> 35 | AY19: =IFERROR(IF(OR(VLOOKUP($A$3,'2012 FIA-Math'!$BD$14:$BN$500,3,FALSE)="",VLOOKUP($A$3,'2012 FIA-Math'!$BD$14:$BN$500,3,FALSE)<10),#N/A,VLOOKUP($A$3,'2012 FIA-Math'!$BD$14:$BN$500,11,FALSE)*100),#N/A) -> 39.49 | AZ19: =IFERROR(IF(OR(VLOOKUP($A$3,'FIAG8-MAll'!$B$2:$AC$500,3,FALSE)="",VLOOKUP($A$3,'FIAG8-MAll'!$B$2:$AC$500,3,FALSE)<10),#N/A,VLOOKUP($A$3,'FIAG8-MAll'!$B$2:$AC$500,12,FALSE)*100),#N/A) -> 21 | BA19: =IFERROR(IF(VLOOKUP($A$3,'S-2013'!$P$6:$AC$272,3,FALSE)="",#N/A,VLOOKUP($A$3,'S-2013'!$P$6:$AC$272,10,FALSE)),#N/A) -> 42 | BB19: =IFERROR(IF(OR(VLOOKUP($A$3,'2012 FIA-Sci'!$L$14:$V$500,3,FALSE)="",VLOOKUP($A$3,'2012 FIA-Sci'!$L$14:$V$500,3,FALSE)<10),#N/A,VLOOKUP($A$3,'2012 FIA-Sci'!$L$14:$V$500,11,FALSE)*100),#N/A) -> 37.57 | BC19: =IFERROR(IF(OR(VLOOKUP($A$3,'FIAG8-SALL'!$B$2:$AC$496,3,FALSE)="",VLOOKUP($A$3,'FIAG8-SALL'!$B$2:$AC$496,3,FALSE)<10),#N/A,VLOOKUP($A$3,'FIAG8-SALL'!$B$2:$AC$496,12,FALSE)*100),#N/A) -> 40
AS20: Bio. | AT20: Alg. | AX20: =IFERROR(VLOOKUP($A$3,'2013 ALG'!$A$6:$I$500,5,FALSE),#N/A) -> 66 | AY20: =IFERROR(IF(OR(VLOOKUP($A$3,'2012 FIA-EOC'!$A$14:$K$500,3,FALSE)="",VLOOKUP($A$3,'2012 FIA-EOC'!$A$14:$K$500,3,FALSE)<10),#N/A,VLOOKUP($A$3,'2012 FIA-EOC'!$A$14:$K$500,11,FALSE)*100),#N/A) -> 49.93294891 | AZ20: =IFERROR(IF(OR(VLOOKUP($A$3,'FIA-ALG'!$B$2:$AC$500,3,FALSE)="",VLOOKUP($A$3,'FIA-ALG'!$B$2:$AC$500,3,FALSE)<10),#N/A,VLOOKUP($A$3,'FIA-ALG'!$B$2:$AC$500,12,FALSE)*100),#N/A) -> 68
AT21: Geo. | AX21: =IFERROR(VLOOKUP($A$3,'2013 GEO'!$A$6:$I$500,5,FALSE),#N/A) -> 60 | AY21: =IFERROR(IF(OR(VLOOKUP($A$3,'2012 FIA-EOC'!$L$14:$V$500,3,FALSE)="",VLOOKUP($A$3,'2012 FIA-EOC'!$L$14:$V$500,3,FALSE)<10),#N/A,VLOOKUP($A$3,'2012 FIA-EOC'!$L$14:$V$500,11,FALSE)*100),#N/A) -> 44.94303106 | AZ21: =IFERROR(IF(OR(VLOOKUP($A$3,'FIA-GEO'!$B$2:$AC$500,3,FALSE)="",VLOOKUP($A$3,'FIA-GEO'!$B$2:$AC$500,3,FALSE)<10),#N/A,VLOOKUP($A$3,'FIA-GEO'!$B$2:$AC$500,12,FALSE)*100),#N/A) -> 60

Sheet G6-8 WIA Trend Report
A2: Click here to return to the school and sheet selection interface | AG2: District | AH2: % Proficient
A3: ='Select School'!B3 -> 9999 | AH3: District
A4: =TEXT(A3,"0000")&"-"&VLOOKUP(A3,SchList!$A$2:$B$502,2,FALSE) -> 9999-District | AH4: % Proficient | AQ4: % of Students Scoring at 4.0 and higher
A5: Winter IA Trend Report: 2013 FCAT 2.0, 2013 Winter Interim Assessment, and 2014 Winter Interim Assessment | AH5: Reading | AK5: Math | AN5: Science | AQ5: Writing
AG6: Grade | AH6: 2013 FCAT 2.0 | AI6: 2013 WIA | AJ6: 2014 WIA | AK6: 2013 FCAT 2.0 | AL6: 2013 WIA | AM6: 2014 WIA | AN6: 2013 FCAT 2.0 | AO6: 2013 WIA | AP6: 2014 WIA | AQ6: Prompt | AR6: 2013 FCAT | AS6: 2013 Midyear | AT6: 2014 Midyear
AG7: 6 | AH7: =IFERROR(IF(VLOOKUP(9999,'R-2013'!$AT$6:$BH$500,3,FALSE)="",#N/A,VLOOKUP(9999,'R-2013'!$AT$6:$BH$500,10,FALSE)),#N/A) -> 57 | AI7: =IFERROR(IF(VLOOKUP(9999,'2013 WIA-Read'!$AH$14:$AR$500,3,FALSE)="",#N/A,VLOOKUP(9999,'2013 WIA-Read'!$AH$14:$AR$500,11,FALSE)*100),#N/A) -> 54.36 | AJ7: =IFERROR(IF(VLOOKUP(9999,'WIAG6-RALL'!$B$2:$AC$500,3,FALSE)="",#N/A,VLOOKUP(9999,'WIAG6-RALL'!$B$2:$AC$500,12,FALSE)*100),#N/A) -> 62 | AK7: =IFERROR(IF(VLOOKUP(9999,'M-2013'!$AQ$6:$BD$500,3,FALSE)="",#N/A,VLOOKUP(9999,'M-2013'!$AQ$6:$BD$500,10,FALSE)),#N/A) -> 51 | AL7: =IFERROR(IF(VLOOKUP(9999,'2013 WIA-Math'!$AH$14:$AR$500,3,FALSE)="",#N/A,VLOOKUP(9999,'2013 WIA-Math'!$AH$14:$AR$500,11,FALSE)*100),#N/A) -> 48.65 | AM7: =IFERROR(IF(VLOOKUP(9999,'WIAG6-MALL'!$B$2:$AC$500,3,FALSE)="",#N/A,VLOOKUP(9999,'WIAG6-MALL'!$B$2:$AC$500,12,FALSE)*100),#N/A) -> 47 | AQ7: Expository | AS7: =IFERROR(IF(VLOOKUP(9999,'2013 MY-Writing'!$U$14:$AN$503,3,FALSE)="",#N/A,VLOOKUP(9999,'2013 MY-Writing'!$U$14:$AN$503,11,FALSE)*100),#N/A) -> 35.94284113 | AT7: =IFERROR(IF(VLOOKUP(9999,'MYG8-WALL'!$A$2:$W$500,5,FALSE)<10,#N/A,VLOOKUP(9999,'MYG8-WALL'!$A$2:$W$500,12,FALSE)),#N/A) -> 41
AG8: 7 | AH8: =IFERROR(IF(VLOOKUP(9999,'R-2013'!$BI$6:$BW$500,3,FALSE)="",#N/A,VLOOKUP(9999,'R-2013'!$BI$6:$BW$500,10,FALSE)),#N/A) -> 57 | AI8: =IFERROR(IF(VLOOKUP(9999,'2013 WIA-Read'!$AS$14:$BC$500,3,FALSE)="",#N/A,VLOOKUP(9999,'2013 WIA-Read'!$AS$14:$BC$500,11,FALSE)*100),#N/A) -> 55.3 | AJ8: =IFERROR(IF(VLOOKUP(9999,'WIAG7-RALL'!$B$2:$AC$500,3,FALSE)="",#N/A,VLOOKUP(9999,'WIAG7-RALL'!$B$2:$AC$500,12,FALSE)*100),#N/A) -> 60 | AK8: =IFERROR(IF(VLOOKUP(9999,'M-2013'!$BE$6:$BS$500,3,FALSE)="",#N/A,VLOOKUP(9999,'M-2013'!$BE$6:$BS$500,10,FALSE)),#N/A) -> 51 | AL8: =IFERROR(IF(VLOOKUP(9999,'2013 WIA-Math'!$AS$14:$BC$500,3,FALSE)="",#N/A,VLOOKUP(9999,'2013 WIA-Math'!$AS$14:$BC$500,11,FALSE)*100),#N/A) -> 47.59 | AM8: =IFERROR(IF(VLOOKUP(9999,'WIAG7-MALL'!$B$2:$AC$500,3,FALSE)="",#N/A,VLOOKUP(9999,'WIAG7-MALL'!$B$2:$AC$500,12,FALSE)*100),#N/A) -> 43 | AQ8: Persuasive | AR8: =IFERROR(VLOOKUP(9999,'W13'!$U$7:$AM$500,19,FALSE),#N/A) -> 29 | AS8: =IFERROR(IF(VLOOKUP(9999,'2013 MY-Writing'!$U$14:$AN$503,3,FALSE)="",#N/A,VLOOKUP(9999,'2013 MY-Writing'!$U$14:$AN$503,20,FALSE)*100),#N/A) -> 30.90367227 | AT8: =IFERROR(IF(VLOOKUP(9999,'MYG8-WALL'!$A$2:$W$500,15,FALSE)<10,#N/A,VLOOKUP(9999,'MYG8-WALL'!$A$2:$W$500,22,FALSE)),#N/A) -> 40
AG9: 8 | AH9: =IFERROR(IF(VLOOKUP(9999,'R-2013'!$BX$6:$CL$500,3,FALSE)="",#N/A,VLOOKUP(9999,'R-2013'!$BX$6:$CL$500,10,FALSE)),#N/A) -> 56 | AI9: =IFERROR(IF(VLOOKUP(9999,'2013 WIA-Read'!$BD$14:$BN$500,3,FALSE)="",#N/A,VLOOKUP(9999,'2013 WIA-Read'!$BD$14:$BN$500,11,FALSE)*100),#N/A) -> 50.36 | AJ9: =IFERROR(IF(VLOOKUP(9999,'WIAG8-RALL'!$B$2:$AC$500,3,FALSE)="",#N/A,VLOOKUP(9999,'WIAG8-RALL'!$B$2:$AC$500,12,FALSE)*100),#N/A) -> 56 | AK9: =IFERROR(IF(VLOOKUP(9999,'M-2013'!$BT$6:$CG$500,3,FALSE)="",#N/A,VLOOKUP(9999,'M-2013'!$BT$6:$CG$500,10,FALSE)),#N/A) -> 35 | AL9: =IFERROR(IF(VLOOKUP(9999,'2013 WIA-Math'!$BD$14:$BN$500,3,FALSE)="",#N/A,VLOOKUP(9999,'2013 WIA-Math'!$BD$14:$BN$500,11,FALSE)*100),#N/A) -> 37.42 | AM9: =IFERROR(IF(VLOOKUP(9999,'WIAG8-MALL'!$B$2:$AC$500,3,FALSE)="",#N/A,VLOOKUP(9999,'WIAG8-MALL'!$B$2:$AC$500,12,FALSE)*100),#N/A) -> 23 | AQ9: Science
AG10: Alg. | AK10: =IFERROR(VLOOKUP(9999,'2013 ALG'!$A$6:$I$500,5,FALSE),#N/A) -> 66 | AL10: =IFERROR(IF(VLOOKUP(9999,'2013 WIA-Math'!$BO$14:$BY$500,3,FALSE)="",#N/A,VLOOKUP(9999,'2013 WIA-Math'!$BO$14:$BY$500,11,FALSE)*100),#N/A) -> 43.82097752 | AM10: =IFERROR(IF(VLOOKUP(9999,'WIA-ALG'!$B$2:$AC$500,3,FALSE)="",#N/A,VLOOKUP(9999,'WIA-ALG'!$B$2:$AC$500,12,FALSE)*100),#N/A) -> 68 | AQ10: Grade | AR10: 2013 FCAT 2.0 | AS10: 2013 WIA | AT10: 2014 WIA
AG11: Geo | AK11: =IFERROR(VLOOKUP(9999,'2013 GEO'!$A$6:$I$500,5,FALSE),#N/A) -> 60 | AL11: =IFERROR(IF(VLOOKUP(9999,'2013 WIA-Math'!$BZ$14:$CJ$500,3,FALSE)="",#N/A,VLOOKUP(9999,'2013 WIA-Math'!$BZ$14:$CJ$500,11,FALSE)*100),#N/A) -> 39.49498094 | AM11: =IFERROR(IF(VLOOKUP(9999,'WIA-GEO'!$B$2:$AC$500,3,FALSE)="",#N/A,VLOOKUP(9999,'WIA-GEO'!$B$2:$AC$500,12,FALSE)*100),#N/A) -> 43 | AQ11: Grade 8 | AR11: =IFERROR(IF(VLOOKUP(9999,'S-2013'!$P$6:$AC$272,3,FALSE)="",#N/A,VLOOKUP(9999,'S-2013'!$P$6:$AC$272,10,FALSE)),#N/A) -> 42 | AS11: =IFERROR(IF(VLOOKUP(9999,'2013 WIA-Sci'!$L$14:$V$500,3,FALSE)="",#N/A,VLOOKUP(9999,'2013 WIA-Sci'!$L$14:$V$500,11,FALSE)*100),#N/A) -> 38.26 | AT11: =IFERROR(IF(VLOOKUP(9999,'WIAG8-SALL'!$B$2:$AC$496,3,FALSE)="",#N/A,VLOOKUP(9999,'WIAG8-SALL'!$B$2:$AC$496,12,FALSE)*100),#N/A) -> 41
AQ12: Bio | AR12: =IFERROR(VLOOKUP(9999,'2013 BIO'!$A$6:$I$500,5,FALSE),#N/A) -> 63 | AS12: =IFERROR(IF(VLOOKUP(9999,'2013 WIA-Sci'!$W$14:$AG$500,3,FALSE)="",#N/A,VLOOKUP(9999,'2013 WIA-Sci'!$W$14:$AG$500,11,FALSE)*100),#N/A) -> 50.11005723 | AT12: =IFERROR(IF(VLOOKUP(9999,'WIA-BIO'!$B$2:$AC$494,3,FALSE)="",#N/A,VLOOKUP(9999,'WIA-BIO'!$B$2:$AC$494,12,FALSE)*100),#N/A) -> 60
AG13: School | AH13: =A4 -> 9999-District
AH14: % Proficient | AQ14: % of Students Scoring at 4.0 and higher
AH15: Reading | AK15: Math | AN15: Science | AQ15: Writing
AF16: Grade | AG16: Grade | AH16: 2013 FCAT 2.0 | AI16: 2013 WIA | AJ16: 2014 WIA | AK16: 2013 FCAT 2.0 | AL16: 2013 WIA | AM16: 2014 WIA | AQ16: Prompt | AR16: 2013 FCAT | AS16: 2013 Midyear | AT16: 2014 Midyear
AF17: 6 | AG17: 6 | AH17: =IFERROR(IF(VLOOKUP($A$3,'R-2013'!$AT$6:$BH$500,3,FALSE)="",#N/A,VLOOKUP($A$3,'R-2013'!$AT$6:$BH$500,10,FALSE)),#N/A) -> 57 | AI17: =IFERROR(IF(VLOOKUP($A$3,'2013 WIA-Read'!$AH$14:$AR$500,3,FALSE)="",#N/A,VLOOKUP($A$3,'2013 WIA-Read'!$AH$14:$AR$500,11,FALSE)*100),#N/A) -> 54.36 | AJ17: =IFERROR(IF(VLOOKUP($A$3,'WIAG6-RALL'!$B$2:$AC$500,3,FALSE)="",#N/A,VLOOKUP($A$3,'WIAG6-RALL'!$B$2:$AC$500,12,FALSE)*100),#N/A) -> 62 | AK17: =IFERROR(IF(VLOOKUP($A$3,'M-2013'!$AQ$6:$BD$500,3,FALSE)="",#N/A,VLOOKUP($A$3,'M-2013'!$AQ$6:$BD$500,10,FALSE)),#N/A) -> 51 | AL17: =IFERROR(IF(VLOOKUP($A$3,'2013 WIA-Math'!$AH$14:$AR$500,3,FALSE)="",#N/A,VLOOKUP($A$3,'2013 WIA-Math'!$AH$14:$AR$500,11,FALSE)*100),#N/A) -> 48.65 | AM17: =IFERROR(IF(OR(VLOOKUP($A$3,'WIAG6-MALL'!$B$2:$AC$500,3,FALSE)="",VLOOKUP($A$3,'WIAG6-MALL'!$B$2:$AC$500,3,FALSE)<10),#N/A,VLOOKUP($A$3,'WIAG6-MALL'!$B$2:$AC$500,12,FALSE)*100),#N/A) -> 47 | AQ17: Expository | AS17: =IFERROR(IF(VLOOKUP($A$3,'2013 MY-Writing'!$U$14:$AN$503,3,FALSE)="",#N/A,VLOOKUP($A$3,'2013 MY-Writing'!$U$14:$AN$503,11,FALSE)*100),#N/A) -> 35.94284113 | AT17: =IFERROR(IF(VLOOKUP($A$3,'MYG8-WALL'!$A$2:$W$500,5,FALSE)<10,#N/A,VLOOKUP($A$3,'MYG8-WALL'!$A$2:$W$500,12,FALSE)),#N/A) -> 41
AF18: 7 | AG18: 7 | AH18: =IFERROR(IF(VLOOKUP($A$3,'R-2013'!$BI$6:$BW$500,3,FALSE)="",#N/A,VLOOKUP($A$3,'R-2013'!$BI$6:$BW$500,10,FALSE)),#N/A) -> 57 | AI18: =IFERROR(IF(VLOOKUP($A$3,'2013 WIA-Read'!$AS$14:$BC$500,3,FALSE)="",#N/A,VLOOKUP($A$3,'2013 WIA-Read'!$AS$14:$BC$500,11,FALSE)*100),#N/A) -> 55.3 | AJ18: =IFERROR(IF(VLOOKUP($A$3,'WIAG7-RALL'!$B$2:$AC$500,3,FALSE)="",#N/A,VLOOKUP($A$3,'WIAG7-RALL'!$B$2:$AC$500,12,FALSE)*100),#N/A) -> 60 | AK18: =IFERROR(IF(VLOOKUP($A$3,'M-2013'!$BE$6:$BS$500,3,FALSE)="",#N/A,VLOOKUP($A$3,'M-2013'!$BE$6:$BS$500,10,FALSE)),#N/A) -> 51 | AL18: =IFERROR(IF(VLOOKUP($A$3,'2013 WIA-Math'!$AS$14:$BC$500,3,FALSE)="",#N/A,VLOOKUP($A$3,'2013 WIA-Math'!$AS$14:$BC$500,11,FALSE)*100),#N/A) -> 47.59 | AM18: =IFERROR(IF(VLOOKUP($A$3,'WIAG7-MALL'!$B$2:$AC$500,3,FALSE)="",#N/A,VLOOKUP($A$3,'WIAG7-MALL'!$B$2:$AC$500,12,FALSE)*100),#N/A) -> 43 | AQ18: Persuasive | AR18: =IFERROR(VLOOKUP($A$3,'W13'!$U$7:$AM$500,19,FALSE),#N/A) -> 29 | AS18: =IFERROR(IF(VLOOKUP($A$3,'2013 MY-Writing'!$U$14:$AN$503,3,FALSE)="",#N/A,VLOOKUP($A$3,'2013 MY-Writing'!$U$14:$AN$503,20,FALSE)*100),#N/A) -> 30.90367227 | AT18: =IFERROR(IF(VLOOKUP($A$3,'MYG8-WALL'!$A$2:$W$500,15,FALSE)<10,#N/A,VLOOKUP($A$3,'MYG8-WALL'!$A$2:$W$500,22,FALSE)),#N/A) -> 40
AF19: 8 | AG19: 8 | AH19: =IFERROR(IF(VLOOKUP($A$3,'R-2013'!$BX$6:$CL$500,3,FALSE)="",#N/A,VLOOKUP($A$3,'R-2013'!$BX$6:$CL$500,10,FALSE)),#N/A) -> 56 | AI19: =IFERROR(IF(VLOOKUP($A$3,'2013 WIA-Read'!$BD$14:$BN$500,3,FALSE)="",#N/A,VLOOKUP($A$3,'2013 WIA-Read'!$BD$14:$BN$500,11,FALSE)*100),#N/A) -> 50.36 | AJ19: =IFERROR(IF(VLOOKUP($A$3,'WIAG8-RALL'!$B$2:$AC$500,3,FALSE)="",#N/A,VLOOKUP($A$3,'WIAG8-RALL'!$B$2:$AC$500,12,FALSE)*100),#N/A) -> 56 | AK19: =IFERROR(IF(VLOOKUP($A$3,'M-2013'!$BT$6:$CG$500,3,FALSE)="",#N/A,VLOOKUP($A$3,'M-2013'!$BT$6:$CG$500,10,FALSE)),#N/A) -> 35 | AL19: =IFERROR(IF(VLOOKUP($A$3,'2013 WIA-Math'!$BD$14:$BN$500,3,FALSE)="",#N/A,VLOOKUP($A$3,'2013 WIA-Math'!$BD$14:$BN$500,11,FALSE)*100),#N/A) -> 37.42 | AM19: =IFERROR(IF(OR(VLOOKUP($A$3,'WIAG8-MALL'!$B$2:$AC$500,3,FALSE)="",VLOOKUP($A$3,'WIAG8-MALL'!$B$2:$AC$500,3,FALSE)<10),#N/A,VLOOKUP($A$3,'WIAG8-MALL'!$B$2:$AC$500,12,FALSE)*100),#N/A) -> 23 | AQ19: Science
AF20: Bio. | AG20: Alg. | AK20: =IFERROR(VLOOKUP($A$3,'2013 ALG'!$A$6:$I$500,5,FALSE),#N/A) -> 66 | AL20: =IFERROR(IF(VLOOKUP($A$3,'2013 WIA-Math'!$BO$14:$BY$500,3,FALSE)="",#N/A,VLOOKUP($A$3,'2013 WIA-Math'!$BO$14:$BY$500,11,FALSE)*100),#N/A) -> 43.82097752 | AM20: =IFERROR(IF(OR(VLOOKUP($A$3,'WIA-ALG'!$B$2:$AC$500,3,FALSE)="",VLOOKUP($A$3,'WIA-ALG'!$B$2:$AC$500,3,FALSE)<10),#N/A,VLOOKUP($A$3,'WIA-ALG'!$B$2:$AC$500,12,FALSE)*100),#N/A) -> 68 | AQ20: Grade | AR20: 2013 FCAT 2.0 | AS20: 2013 WIA | AT20: 2014 WIA
AG21: Geo. | AK21: =IFERROR(VLOOKUP($A$3,'2013 GEO'!$A$6:$I$500,5,FALSE),#N/A) -> 60 | AL21: =IFERROR(IF(VLOOKUP($A$3,'2013 WIA-Math'!$BZ$14:$CJ$500,3,FALSE)="",#N/A,VLOOKUP($A$3,'2013 WIA-Math'!$BZ$14:$CJ$500,11,FALSE)*100),#N/A) -> 39.49498094 | AM21: =IFERROR(IF(OR(VLOOKUP($A$3,'WIA-GEO'!$B$2:$AC$500,3,FALSE)="",VLOOKUP($A$3,'WIA-GEO'!$B$2:$AC$500,3,FALSE)<10),#N/A,VLOOKUP($A$3,'WIA-GEO'!$B$2:$AC$500,12,FALSE)*100),#N/A) -> 43 | AQ21: Grade 8 | AR21: =IFERROR(IF(VLOOKUP($A$3,'S-2013'!$P$6:$AC$272,3,FALSE)="",#N/A,VLOOKUP($A$3,'S-2013'!$P$6:$AC$272,10,FALSE)),#N/A) -> 42 | AS21: =IFERROR(IF(VLOOKUP($A$3,'2013 WIA-Sci'!$L$14:$V$500,3,FALSE)="",#N/A,VLOOKUP($A$3,'2013 WIA-Sci'!$L$14:$V$500,11,FALSE)*100),#N/A) -> 38.26 | AT21: =IFERROR(IF(VLOOKUP($A$3,'WIAG8-SALL'!$B$2:$AC$496,3,FALSE)="",#N/A,VLOOKUP($A$3,'WIAG8-SALL'!$B$2:$AC$496,12,FALSE)*100),#N/A) -> 41
AQ22: Bio | AR22: =IFERROR(VLOOKUP($A$3,'2013 BIO'!$A$6:$I$500,5,FALSE),#N/A) -> 63 | AS22: =IFERROR(IF(VLOOKUP($A$3,'2013 WIA-Sci'!$W$14:$AG$500,3,FALSE)="",#N/A,VLOOKUP($A$3,'2013 WIA-Sci'!$W$14:$AG$500,11,FALSE)*100),#N/A) -> 50.11005723 | AT22: =IFERROR(IF(VLOOKUP($A$3,'WIA-BIO'!$B$2:$AC$494,3,FALSE)="",#N/A,VLOOKUP($A$3,'WIA-BIO'!$B$2:$AC$494,12,FALSE)*100),#N/A) -> 60

Sheet G6-8 YAG Trend
A2: Click here to return to the school and sheet selection interface | AF2: District | AG2: Average % Correct | AT2: District | AU2: % Proficient - Fall IA, Winter IA, FCAT 2.0
A3: ='Select School'!B3 -> 9999 | AG3: District | AU3: District
A4: =TEXT(A3,"0000")&"-"&VLOOKUP(A3,SchList!$A$2:$B$502,2,FALSE) -> 9999-District | AG4: Average % Correct | AP4: Average Score | AU4: % Proficient
A5: Year-at-a-Glance Trend Report: 2013-14 Fall Interim, 2013-14 Winter Interim, and 2014 FCAT 2.0 | AG5: Reading | AJ5: Math | AM5: Science | AP5: Writing | AU5: Reading | AX5: Math | BA5: Science | BD5: Writing: % of Students Scoring at 4.0 and higher
AF6: Grade | AG6: Baseline | AH6: Fall IA | AI6: Winter IA | AJ6: Baseline | AK6: Fall IA | AL6: Winter IA | AM6: BL | AN6: Fall | AO6: Winter | AP6: Prompt | AQ6: Pre-Test | AR6: Midyear | AT6: Grade | AU6: 2013-14 FIA | AV6: 2013-14 WIA | AW6: 2014 FCAT 2.0 | AX6: 2013-14 FIA | AY6: 2013-14 WIA | AZ6: 2014 FCAT 2.0 | BA6: 2013-14 FIA | BB6: 2013-14 WIA | BC6: 2014 FCAT 2.0 | BD6: Prompt | BE6: 2013-14 Pre-Test | BF6: 2013-14 Midyear | BG6: 2014 FCAT2.0
AF7: 3 | AG7: =IFERROR(IF(VLOOKUP(9999,'BLG3-RALL'!$A$14:$CZ$500,3,FALSE)="",#N/A,VLOOKUP(9999,'BLG3-RALL'!$A$14:$CZ$500,5,FALSE)*100),#N/A) -> 55 | AH7: =IFERROR(IF(VLOOKUP(9999,#REF!,3,FALSE)="",#N/A,VLOOKUP(9999,#REF!,5,FALSE)*100),#N/A) ->  | AI7: =IFERROR(IF(VLOOKUP(9999,#REF!,3,FALSE)="",#N/A,VLOOKUP(9999,#REF!,5,FALSE)*100),#N/A) ->  | AJ7: =IFERROR(IF(VLOOKUP(9999,'BLG3-MALL'!$A$14:$CZ$500,3,FALSE)="",#N/A,VLOOKUP(9999,'BLG3-MALL'!$A$14:$CZ$500,5,FALSE)*100),#N/A) -> 39 | AK7: =IFERROR(IF(VLOOKUP(9999,#REF!,3,FALSE)="",#N/A,VLOOKUP(9999,#REF!,5,FALSE)*100),#N/A) ->  | AL7: =IFERROR(IF(VLOOKUP(9999,#REF!,3,FALSE)="",#N/A,VLOOKUP(9999,#REF!,5,FALSE)*100),#N/A) ->  | AP7: Expository | AQ7: =IFERROR(IF(VLOOKUP(9999,'BLG4-WALL'!$A$14:$CZ$503,3,FALSE)="",#N/A,VLOOKUP(9999,'BLG4-WALL'!$A$14:$CZ$503,4,FALSE)),#N/A) -> 1.399999976 | AR7: =IFERROR(IF(VLOOKUP(9999,'MYG4-WALL'!$A$14:$CG$495,3,FALSE)="",#N/A,VLOOKUP(9999,'MYG4-WALL'!$A$14:$CG$495,4,FALSE)),#N/A) -> E | AT7: 6 | AU7: =IFERROR(IF(VLOOKUP(9999,'FIAG6-RAll'!$B$2:$AC$500,3,FALSE)="",#N/A,VLOOKUP(9999,'FIAG6-RAll'!$B$2:$AC$500,12,FALSE)*100),#N/A) -> 60 | AV7: =IFERROR(IF(VLOOKUP(9999,'WIAG6-RALL'!$B$2:$AC$500,3,FALSE)="",#N/A,VLOOKUP(9999,'WIAG6-RALL'!$B$2:$AC$500,12,FALSE)*100),#N/A) -> 62 | AW7: =IFERROR(IF(VLOOKUP(9999,'R-2014'!$AT$6:$BH$500,3,FALSE)="",#N/A,VLOOKUP(9999,'R-2014'!$AT$6:$BH$500,10,FALSE)),#N/A) -> 61 | AX7: =IFERROR(IF(VLOOKUP(9999,'FIAG6-MAll'!$B$2:$AC$500,3,FALSE)="",#N/A,VLOOKUP(9999,'FIAG6-MAll'!$B$2:$AC$500,12,FALSE)*100),#N/A) -> 48 | AY7: =IFERROR(IF(VLOOKUP(9999,'WIAG6-MALL'!$B$2:$AC$500,3,FALSE)="",#N/A,VLOOKUP(9999,'WIAG6-MALL'!$B$2:$AC$500,12,FALSE)*100),#N/A) -> 47 | AZ7: =IFERROR(IF(VLOOKUP(9999,'M-2014'!$AQ$6:$BD$500,3,FALSE)="",#N/A,VLOOKUP(9999,'M-2014'!$AQ$6:$BD$500,10,FALSE)),#N/A) -> 53 | BD7: Expository | BE7: =IFERROR(IF(VLOOKUP(9999,'BLG8-WALL'!$A$2:$AJ$500,3,FALSE)<10,#N/A,VLOOKUP(9999,'BLG8-WALL'!$A$2:$AJ$500,11,FALSE)*100),#N/A) -> 13.8 | BF7: =IFERROR(IF(VLOOKUP(9999,'MYG8-WALL'!$A$2:$W$500,5,FALSE)<10,#N/A,VLOOKUP(9999,'MYG8-WALL'!$A$2:$W$500,12,FALSE)),#N/A) -> 41 | BG7: =IFERROR(VLOOKUP(9999,'W14'!$U$7:$AM$500,19,FALSE),#N/A) -> 34
AF8: 4 | AG8: =IFERROR(IF(VLOOKUP(9999,'BLG4-RALL'!$A$14:$CZ$500,3,FALSE)="",#N/A,VLOOKUP(9999,'BLG4-RALL'!$A$14:$CZ$500,5,FALSE)*100),#N/A) -> 60 | AH8: =IFERROR(IF(VLOOKUP(9999,#REF!,3,FALSE)="",#N/A,VLOOKUP(9999,#REF!,5,FALSE)*100),#N/A) ->  | AI8: =IFERROR(IF(VLOOKUP(9999,#REF!,3,FALSE)="",#N/A,VLOOKUP(9999,#REF!,5,FALSE)*100),#N/A) ->  | AJ8: =IFERROR(IF(VLOOKUP(9999,'BLG4-MALL'!$A$14:$CZ$500,3,FALSE)="",#N/A,VLOOKUP(9999,'BLG4-MALL'!$A$14:$CZ$500,5,FALSE)*100),#N/A) -> 41 | AK8: =IFERROR(IF(VLOOKUP(9999,#REF!,3,FALSE)="",#N/A,VLOOKUP(9999,#REF!,5,FALSE)*100),#N/A) ->  | AL8: =IFERROR(IF(VLOOKUP(9999,#REF!,3,FALSE)="",#N/A,VLOOKUP(9999,#REF!,5,FALSE)*100),#N/A) ->  | AP8: Narrative | AQ8: =IFERROR(IF(VLOOKUP(9999,'BLG4-WALL'!$A$14:$CZ$503,12,FALSE)="",#N/A,VLOOKUP(9999,'BLG4-WALL'!$A$14:$CZ$503,13,FALSE)),#N/A) -> 1.5 | AR8: =IFERROR(IF(VLOOKUP(9999,'MYG4-WALL'!$A$14:$CG$495,12,FALSE)="",#N/A,VLOOKUP(9999,'MYG4-WALL'!$A$14:$CG$495,13,FALSE)),#N/A) -> 61 | AT8: 7 | AU8: =IFERROR(IF(VLOOKUP(9999,'FIAG7-RAll'!$B$2:$AC$500,3,FALSE)="",#N/A,VLOOKUP(9999,'FIAG7-RAll'!$B$2:$AC$500,12,FALSE)*100),#N/A) -> 59 | AV8: =IFERROR(IF(VLOOKUP(9999,'WIAG7-RALL'!$B$2:$AC$500,3,FALSE)="",#N/A,VLOOKUP(9999,'WIAG7-RALL'!$B$2:$AC$500,12,FALSE)*100),#N/A) -> 60 | AW8: =IFERROR(IF(VLOOKUP(9999,'R-2014'!$BI$6:$BW$500,3,FALSE)="",#N/A,VLOOKUP(9999,'R-2014'!$BI$6:$BW$500,10,FALSE)),#N/A) -> 57 | AX8: =IFERROR(IF(VLOOKUP(9999,'FIAG7-MAll'!$B$2:$AC$500,3,FALSE)="",#N/A,VLOOKUP(9999,'FIAG7-MAll'!$B$2:$AC$500,12,FALSE)*100),#N/A) -> 42 | AY8: =IFERROR(IF(VLOOKUP(9999,'WIAG7-MALL'!$B$2:$AC$500,3,FALSE)="",#N/A,VLOOKUP(9999,'WIAG7-MALL'!$B$2:$AC$500,12,FALSE)*100),#N/A) -> 43 | AZ8: =IFERROR(IF(VLOOKUP(9999,'M-2014'!$BE$6:$BS$500,3,FALSE)="",#N/A,VLOOKUP(9999,'M-2014'!$BE$6:$BS$500,10,FALSE)),#N/A) -> 52 | BD8: Persuasive | BE8: =IFERROR(IF(VLOOKUP(9999,'BLG8-WALL'!$A$2:$AJ$500,12,FALSE)<10,#N/A,VLOOKUP(9999,'BLG8-WALL'!$A$2:$AJ$500,20,FALSE)*100),#N/A) -> 8.69 | BF8: =IFERROR(IF(VLOOKUP(9999,'MYG8-WALL'!$A$2:$W$500,15,FALSE)<10,#N/A,VLOOKUP(9999,'MYG8-WALL'!$A$2:$W$500,22,FALSE)),#N/A) -> 40
AF9: 5 | AG9: =IFERROR(IF(VLOOKUP(9999,'BLG5-RALL'!$A$14:$CZ$500,3,FALSE)="",#N/A,VLOOKUP(9999,'BLG5-RALL'!$A$14:$CZ$500,5,FALSE)*100),#N/A) -> 61 | AH9: =IFERROR(IF(VLOOKUP(9999,#REF!,3,FALSE)="",#N/A,VLOOKUP(9999,#REF!,5,FALSE)*100),#N/A) ->  | AI9: =IFERROR(IF(VLOOKUP(9999,#REF!,3,FALSE)="",#N/A,VLOOKUP(9999,#REF!,5,FALSE)*100),#N/A) ->  | AJ9: =IFERROR(IF(VLOOKUP(9999,'BLG5-MALL'!$A$14:$CZ$500,3,FALSE)="",#N/A,VLOOKUP(9999,'BLG5-MALL'!$A$14:$CZ$500,5,FALSE)*100),#N/A) -> 42 | AK9: =IFERROR(IF(VLOOKUP(9999,#REF!,3,FALSE)="",#N/A,VLOOKUP(9999,#REF!,5,FALSE)*100),#N/A) ->  | AL9: =IFERROR(IF(VLOOKUP(9999,#REF!,3,FALSE)="",#N/A,VLOOKUP(9999,#REF!,5,FALSE)*100),#N/A) ->  | AM9: =IFERROR(IF(VLOOKUP(9999,'BLG5-SALL'!$A$14:$CZ$500,3,FALSE)="",#N/A,VLOOKUP(9999,'BLG5-SALL'!$A$14:$CZ$500,5,FALSE)*100),#N/A) -> 46 | AN9: =IFERROR(IF(VLOOKUP(9999,#REF!,3,FALSE)="",#N/A,VLOOKUP(9999,#REF!,5,FALSE)*100),#N/A) ->  | AO9: =IFERROR(IF(VLOOKUP(9999,#REF!,3,FALSE)="",#N/A,VLOOKUP(9999,#REF!,5,FALSE)*100),#N/A) ->  | AT9: 8 | AU9: =IFERROR(IF(VLOOKUP(9999,'FIAG8-RAll'!$B$2:$AC$500,3,FALSE)="",#N/A,VLOOKUP(9999,'FIAG8-RAll'!$B$2:$AC$500,12,FALSE)*100),#N/A) -> 54 | AV9: =IFERROR(IF(VLOOKUP(9999,'WIAG8-RALL'!$B$2:$AC$500,3,FALSE)="",#N/A,VLOOKUP(9999,'WIAG8-RALL'!$B$2:$AC$500,12,FALSE)*100),#N/A) -> 56 | AW9: =IFERROR(IF(VLOOKUP(9999,'R-2014'!$BX$6:$CL$500,3,FALSE)="",#N/A,VLOOKUP(9999,'R-2014'!$BX$6:$CL$500,10,FALSE)),#N/A) -> 57 | AX9: =IFERROR(IF(VLOOKUP(9999,'FIAG8-MAll'!$B$2:$AC$500,3,FALSE)="",#N/A,VLOOKUP(9999,'FIAG8-MAll'!$B$2:$AC$500,12,FALSE)*100),#N/A) -> 21 | AY9: =IFERROR(IF(VLOOKUP(9999,'WIAG8-MALL'!$B$2:$AC$500,3,FALSE)="",#N/A,VLOOKUP(9999,'WIAG8-MALL'!$B$2:$AC$500,12,FALSE)*100),#N/A) -> 23 | AZ9: =IFERROR(IF(VLOOKUP(9999,'M-2014'!$BT$6:$CG$500,3,FALSE)="",#N/A,VLOOKUP(9999,'M-2014'!$BT$6:$CG$500,10,FALSE)),#N/A) -> 33 | BA9: =IFERROR(IF(VLOOKUP(9999,'FIAG8-SALL'!$B$2:$AC$496,3,FALSE)="",#N/A,VLOOKUP(9999,'FIAG8-SALL'!$B$2:$AC$496,12,FALSE)*100),#N/A) -> 40 | BB9: =IFERROR(IF(VLOOKUP(9999,'WIAG8-SALL'!$B$2:$AC$496,3,FALSE)="",#N/A,VLOOKUP(9999,'WIAG8-SALL'!$B$2:$AC$496,12,FALSE)*100),#N/A) -> 41 | BC9: =IFERROR(IF(VLOOKUP(9999,'S-2014'!$P$7:$AC$500,10,FALSE)="",#N/A,VLOOKUP(9999,'S-2014'!$P$7:$AC$500,10,FALSE)),"") -> 44 | BD9: Science
AT10: Alg. | AX10: =IFERROR(IF(VLOOKUP(9999,'FIA-ALG'!$B$2:$AC$500,3,FALSE)="",#N/A,VLOOKUP(9999,'FIA-ALG'!$B$2:$AC$500,12,FALSE)*100),#N/A) -> 68 | AY10: =IFERROR(IF(VLOOKUP(9999,'WIA-ALG'!$B$2:$AC$500,3,FALSE)="",#N/A,VLOOKUP(9999,'WIA-ALG'!$B$2:$AC$500,12,FALSE)*100),#N/A) -> 68 | AZ10: =IF(VLOOKUP("9999",'2014 ALG'!$A$6:$L$500,4,FALSE)<10,#N/A,VLOOKUP("9999",'2014 ALG'!$A$6:$L$500,3,FALSE)*100) -> 68.49849552 | BD10: Grade | BE10: 2013-14 FIA | BF10: 2013-14 WIA | BG10: 2014 FCAT 2.0
AF11: School | AG11: =A4 -> 9999-District | AT11: Geo. | AX11: =IFERROR(IF(VLOOKUP(9999,'FIA-GEO'!$B$2:$AC$500,3,FALSE)="",#N/A,VLOOKUP(9999,'FIA-GEO'!$B$2:$AC$500,12,FALSE)*100),#N/A) -> 60 | AY11: =IFERROR(IF(VLOOKUP(9999,'WIA-GEO'!$B$2:$AC$500,3,FALSE)="",#N/A,VLOOKUP(9999,'WIA-GEO'!$B$2:$AC$500,12,FALSE)*100),#N/A) -> 43 | AZ11: =IF(VLOOKUP("9999",'2014 GEO'!$A$6:$L$500,2,FALSE)<10,#N/A,VLOOKUP("9999",'2014 GEO'!$A$6:$L$500,4,FALSE)) -> 63 | BD11: Grade 8 | BE11: =IFERROR(IF(VLOOKUP(9999,'FIAG8-SALL'!$B$2:$AC$496,3,FALSE)="",#N/A,VLOOKUP(9999,'FIAG8-SALL'!$B$2:$AC$496,12,FALSE)*100),#N/A) -> 40 | BF11: =IFERROR(IF(VLOOKUP(9999,'WIAG8-SALL'!$B$2:$AC$496,3,FALSE)="",#N/A,VLOOKUP(9999,'WIAG8-SALL'!$B$2:$AC$496,12,FALSE)*100),#N/A) -> 41 | BG11: =IFERROR(IF(VLOOKUP(9999,'S-2014'!$P$7:$AC$500,10,FALSE)="",#N/A,VLOOKUP(9999,'S-2014'!$P$7:$AC$500,10,FALSE)),"") -> 44
AG12: Average % Correct | AP12: Average Score | BD12: Bio. | BE12: =IFERROR(IF(VLOOKUP(9999,'FIA-BIO'!$B$2:$AC$494,3,FALSE)="",#N/A,VLOOKUP(9999,'FIA-BIO'!$B$2:$AC$494,12,FALSE)*100),#N/A) -> 54 | BF12: =IFERROR(IF(VLOOKUP(9999,'WIA-BIO'!$B$2:$AC$494,3,FALSE)="",#N/A,VLOOKUP(9999,'WIA-BIO'!$B$2:$AC$494,12,FALSE)*100),#N/A) -> 60 | BG12: =IF(VLOOKUP("9999",'2014 BIO'!$A$6:$L$500,3,FALSE)<10,#N/A,VLOOKUP("9999",'2014 BIO'!$A$6:$L$500,2,FALSE)) -> 65.60359511
AG13: Reading | AJ13: Math | AM13: Science | AP13: Writing | AT13: School | AU13: =A4 -> 9999-District
AF14: Grade | AG14: Baseline | AH14: Fall IA | AI14: Winter IA | AJ14: Baseline | AK14: Fall IA | AL14: Winter IA | AM14: BL | AN14: Fall | AO14: Winter | AP14: Prompt | AQ14: Pre-Test | AR14: Midyear | AU14: % Proficient
AF15: 3 | AG15: =IFERROR(IF(VLOOKUP($A$3,'BLG3-RALL'!$A$14:$CZ$500,3,FALSE)="",#N/A,VLOOKUP($A$3,'BLG3-RALL'!$A$14:$CZ$500,5,FALSE)*100),#N/A) -> 55 | AH15: =IFERROR(IF(VLOOKUP($A$3,#REF!,3,FALSE)="",#N/A,VLOOKUP($A$3,#REF!,5,FALSE)*100),#N/A) ->  | AI15: =IFERROR(IF(VLOOKUP($A$3,#REF!,3,FALSE)="",#N/A,VLOOKUP($A$3,#REF!,5,FALSE)*100),#N/A) ->  | AJ15: =IFERROR(IF(VLOOKUP($A$3,'BLG3-MALL'!$A$14:$CZ$500,3,FALSE)="",#N/A,VLOOKUP($A$3,'BLG3-MALL'!$A$14:$CZ$500,5,FALSE)*100),#N/A) -> 39 | AK15: =IFERROR(IF(VLOOKUP($A$3,#REF!,3,FALSE)="",#N/A,VLOOKUP($A$3,#REF!,5,FALSE)*100),#N/A) ->  | AL15: =IFERROR(IF(VLOOKUP($A$3,#REF!,3,FALSE)="",#N/A,VLOOKUP($A$3,#REF!,5,FALSE)*100),#N/A) ->  | AP15: Expository | AQ15: =IFERROR(IF(VLOOKUP($A$3,'BLG4-WALL'!$A$14:$CZ$503,3,FALSE)="",#N/A,VLOOKUP($A$3,'BLG4-WALL'!$A$14:$CZ$503,4,FALSE)),#N/A) -> 1.399999976 | AR15: =IFERROR(IF(VLOOKUP($A$3,'MYG4-WALL'!$A$14:$CG$495,3,FALSE)="",#N/A,VLOOKUP($A$3,'MYG4-WALL'!$A$14:$CG$495,4,FALSE)),#N/A) -> E | AU15: Reading | AX15: Math | BA15: Science | BD15: Writing: % of Students Scoring at 4.0 and higher
AF16: 4 | AG16: =IFERROR(IF(VLOOKUP($A$3,'BLG4-RALL'!$A$14:$CZ$500,3,FALSE)="",#N/A,VLOOKUP($A$3,'BLG4-RALL'!$A$14:$CZ$500,5,FALSE)*100),#N/A) -> 60 | AH16: =IFERROR(IF(VLOOKUP($A$3,#REF!,3,FALSE)="",#N/A,VLOOKUP($A$3,#REF!,5,FALSE)*100),#N/A) ->  | AI16: =IFERROR(IF(VLOOKUP($A$3,#REF!,3,FALSE)="",#N/A,VLOOKUP($A$3,#REF!,5,FALSE)*100),#N/A) ->  | AJ16: =IFERROR(IF(VLOOKUP($A$3,'BLG4-MALL'!$A$14:$CZ$500,3,FALSE)="",#N/A,VLOOKUP($A$3,'BLG4-MALL'!$A$14:$CZ$500,5,FALSE)*100),#N/A) -> 41 | AK16: =IFERROR(IF(VLOOKUP($A$3,#REF!,3,FALSE)="",#N/A,VLOOKUP($A$3,#REF!,5,FALSE)*100),#N/A) ->  | AL16: =IFERROR(IF(VLOOKUP($A$3,#REF!,3,FALSE)="",#N/A,VLOOKUP($A$3,#REF!,5,FALSE)*100),#N/A) ->  | AP16: Narrative | AQ16: =IFERROR(IF(VLOOKUP($A$3,'BLG4-WALL'!$A$14:$CZ$503,12,FALSE)="",#N/A,VLOOKUP($A$3,'BLG4-WALL'!$A$14:$CZ$503,13,FALSE)),#N/A) -> 1.5 | AR16: =IFERROR(IF(VLOOKUP($A$3,'MYG4-WALL'!$A$14:$CG$495,12,FALSE)="",#N/A,VLOOKUP($A$3,'MYG4-WALL'!$A$14:$CG$495,13,FALSE)),#N/A) -> 61 | AS16: Grade | AT16: Grade | AU16: 2013-14 FIA | AV16: 2013-14 WIA | AW16: 2014 FCAT 2.0 | AX16: 2013-14 FIA | AY16: 2013-14 WIA | AZ16: 2014 FCAT 2.0 | BA16: 2013-14 FIA | BB16: 2013-14 WIA | BC16: 2014 FCAT 2.0 | BD16: Prompt | BE16: 2013-14 Pre-Test | BF16: 2013-14 Midyear | BG16: 2014 FCAT2.0
AF17: 5 | AG17: =IFERROR(IF(VLOOKUP($A$3,'BLG5-RALL'!$A$14:$CZ$500,3,FALSE)="",#N/A,VLOOKUP($A$3,'BLG5-RALL'!$A$14:$CZ$500,5,FALSE)*100),#N/A) -> 61 | AH17: =IFERROR(IF(VLOOKUP($A$3,#REF!,3,FALSE)="",#N/A,VLOOKUP($A$3,#REF!,5,FALSE)*100),#N/A) ->  | AI17: =IFERROR(IF(VLOOKUP($A$3,#REF!,3,FALSE)="",#N/A,VLOOKUP($A$3,#REF!,5,FALSE)*100),#N/A) ->  | AJ17: =IFERROR(IF(VLOOKUP($A$3,'BLG5-MALL'!$A$14:$CZ$500,3,FALSE)="",#N/A,VLOOKUP($A$3,'BLG5-MALL'!$A$14:$CZ$500,5,FALSE)*100),#N/A) -> 42 | AK17: =IFERROR(IF(VLOOKUP($A$3,#REF!,3,FALSE)="",#N/A,VLOOKUP($A$3,#REF!,5,FALSE)*100),#N/A) ->  | AL17: =IFERROR(IF(VLOOKUP($A$3,#REF!,3,FALSE)="",#N/A,VLOOKUP($A$3,#REF!,5,FALSE)*100),#N/A) ->  | AM17: =IFERROR(IF(VLOOKUP($A$3,'BLG5-SALL'!$A$14:$CZ$500,3,FALSE)="",#N/A,VLOOKUP($A$3,'BLG5-SALL'!$A$14:$CZ$500,5,FALSE)*100),#N/A) -> 46 | AN17: =IFERROR(IF(VLOOKUP($A$3,#REF!,3,FALSE)="",#N/A,VLOOKUP($A$3,#REF!,5,FALSE)*100),#N/A) ->  | AO17: =IFERROR(IF(VLOOKUP($A$3,#REF!,3,FALSE)="",#N/A,VLOOKUP($A$3,#REF!,5,FALSE)*100),#N/A) ->  | AS17: 6 | AT17: 6 | AU17: =IFERROR(IF(VLOOKUP($A$3,'FIAG6-RAll'!$B$2:$AC$500,3,FALSE)="",#N/A,VLOOKUP($A$3,'FIAG6-RAll'!$B$2:$AC$500,12,FALSE)*100),#N/A) -> 60 | AV17: =IFERROR(IF(VLOOKUP($A$3,'WIAG6-RALL'!$B$2:$AC$500,3,FALSE)="",#N/A,VLOOKUP($A$3,'WIAG6-RALL'!$B$2:$AC$500,12,FALSE)*100),#N/A) -> 62 | AW17: =IFERROR(IF(VLOOKUP($A$3,'R-2014'!$AT$6:$BH$500,3,FALSE)="",#N/A,VLOOKUP($A$3,'R-2014'!$AT$6:$BH$500,10,FALSE)),#N/A) -> 61 | AX17: =IFERROR(IF(OR(VLOOKUP($A$3,'FIAG6-MAll'!$B$2:$AC$500,3,FALSE)="",VLOOKUP($A$3,'FIAG6-MAll'!$B$2:$AC$500,3,FALSE)<10),#N/A,VLOOKUP($A$3,'FIAG6-MAll'!$B$2:$AC$500,12,FALSE)*100),#N/A) -> 48 | AY17: =IFERROR(IF(OR(VLOOKUP($A$3,'WIAG6-MALL'!$B$2:$AC$500,3,FALSE)="",VLOOKUP($A$3,'WIAG6-MALL'!$B$2:$AC$500,3,FALSE)<10),#N/A,VLOOKUP($A$3,'WIAG6-MALL'!$B$2:$AC$500,12,FALSE)*100),#N/A) -> 47 | AZ17: =IFERROR(IF(VLOOKUP($A$3,'M-2014'!$AQ$6:$BD$500,3,FALSE)="",#N/A,VLOOKUP($A$3,'M-2014'!$AQ$6:$BD$500,10,FALSE)),#N/A) -> 53 | BD17: Expository | BE17: =IFERROR(IF(VLOOKUP($A$3,'BLG8-WALL'!$A$2:$AJ$500,3,FALSE)<10,#N/A,VLOOKUP($A$3,'BLG8-WALL'!$A$2:$AJ$500,11,FALSE)*100),#N/A) -> 13.8 | BF17: =IFERROR(IF(VLOOKUP($A$3,'MYG8-WALL'!$A$2:$W$500,5,FALSE)<10,#N/A,VLOOKUP($A$3,'MYG8-WALL'!$A$2:$W$500,12,FALSE)),#N/A) -> 41 | BG17: =IFERROR(VLOOKUP($A$3,'W14'!$U$7:$AM$500,19,FALSE),#N/A) -> 34
AS18: 7 | AT18: 7 | AU18: =IFERROR(IF(VLOOKUP($A$3,'FIAG7-RAll'!$B$2:$AC$500,3,FALSE)="",#N/A,VLOOKUP($A$3,'FIAG7-RAll'!$B$2:$AC$500,12,FALSE)*100),#N/A) -> 59 | AV18: =IFERROR(IF(VLOOKUP($A$3,'WIAG7-RALL'!$B$2:$AC$500,3,FALSE)="",#N/A,VLOOKUP($A$3,'WIAG7-RALL'!$B$2:$AC$500,12,FALSE)*100),#N/A) -> 60 | AW18: =IFERROR(IF(VLOOKUP($A$3,'R-2014'!$BI$6:$BW$500,3,FALSE)="",#N/A,VLOOKUP($A$3,'R-2014'!$BI$6:$BW$500,10,FALSE)),#N/A) -> 57 | AX18: =IFERROR(IF(VLOOKUP($A$3,'FIAG7-MAll'!$B$2:$AC$500,3,FALSE)="",#N/A,VLOOKUP($A$3,'FIAG7-MAll'!$B$2:$AC$500,12,FALSE)*100),#N/A) -> 42 | AY18: =IFERROR(IF(VLOOKUP($A$3,'WIAG7-MALL'!$B$2:$AC$500,3,FALSE)="",#N/A,VLOOKUP($A$3,'WIAG7-MALL'!$B$2:$AC$500,12,FALSE)*100),#N/A) -> 43 | AZ18: =IFERROR(IF(VLOOKUP($A$3,'M-2014'!$BE$6:$BS$500,3,FALSE)="",#N/A,VLOOKUP($A$3,'M-2014'!$BE$6:$BS$500,10,FALSE)),#N/A) -> 52 | BD18: Persuasive | BE18: =IFERROR(IF(VLOOKUP($A$3,'BLG8-WALL'!$A$2:$AJ$500,12,FALSE)<10,#N/A,VLOOKUP($A$3,'BLG8-WALL'!$A$2:$AJ$500,20,FALSE)*100),#N/A) -> 8.69 | BF18: =IFERROR(IF(VLOOKUP($A$3,'MYG8-WALL'!$A$2:$W$500,15,FALSE)<10,#N/A,VLOOKUP($A$3,'MYG8-WALL'!$A$2:$W$500,22,FALSE)),#N/A) -> 40
AS19: 8 | AT19: 8 | AU19: =IFERROR(IF(VLOOKUP($A$3,'FIAG8-RAll'!$B$2:$AC$500,3,FALSE)="",#N/A,VLOOKUP($A$3,'FIAG8-RAll'!$B$2:$AC$500,12,FALSE)*100),#N/A) -> 54 | AV19: =IFERROR(IF(VLOOKUP($A$3,'WIAG8-RALL'!$B$2:$AC$500,3,FALSE)="",#N/A,VLOOKUP($A$3,'WIAG8-RALL'!$B$2:$AC$500,12,FALSE)*100),#N/A) -> 56 | AW19: =IFERROR(IF(VLOOKUP($A$3,'R-2014'!$BX$6:$CL$500,3,FALSE)="",#N/A,VLOOKUP($A$3,'R-2014'!$BX$6:$CL$500,10,FALSE)),#N/A) -> 57 | AX19: =IFERROR(IF(OR(VLOOKUP($A$3,'FIAG8-MAll'!$B$2:$AC$500,3,FALSE)="",VLOOKUP($A$3,'FIAG8-MAll'!$B$2:$AC$500,3,FALSE)<10),#N/A,VLOOKUP($A$3,'FIAG8-MAll'!$B$2:$AC$500,12,FALSE)*100),#N/A) -> 21 | AY19: =IFERROR(IF(OR(VLOOKUP($A$3,'WIAG8-MALL'!$B$2:$AC$500,3,FALSE)="",VLOOKUP($A$3,'WIAG8-MALL'!$B$2:$AC$500,3,FALSE)<10),#N/A,VLOOKUP($A$3,'WIAG8-MALL'!$B$2:$AC$500,12,FALSE)*100),#N/A) -> 23 | AZ19: =IFERROR(IF(VLOOKUP($A$3,'M-2014'!$BT$6:$CG$500,3,FALSE)="",#N/A,VLOOKUP($A$3,'M-2014'!$BT$6:$CG$500,10,FALSE)),#N/A) -> 33 | BA19: =IFERROR(IF(OR(VLOOKUP($A$3,'FIAG8-SALL'!$B$2:$AC$496,3,FALSE)="",VLOOKUP($A$3,'FIAG8-SALL'!$B$2:$AC$496,3,FALSE)<10),#N/A,VLOOKUP($A$3,'FIAG8-SALL'!$B$2:$AC$496,12,FALSE)*100),#N/A) -> 40 | BB19: =IFERROR(IF(VLOOKUP($A$3,'WIAG8-SALL'!$B$2:$AC$496,3,FALSE)="",#N/A,VLOOKUP($A$3,'WIAG8-SALL'!$B$2:$AC$496,12,FALSE)*100),#N/A) -> 41 | BC19: =IFERROR(IF(VLOOKUP($A$3,'S-2014'!$P$7:$AC$500,10,FALSE)="",#N/A,VLOOKUP($A$3,'S-2014'!$P$7:$AC$500,10,FALSE)),#N/A) -> 44 | BD19: Science
